Workbook

Sheet Database
B1: Table 1 - Precast Product Data
B3: Description | C3: Cell | D3: Unit | E3: Hand Set | F3: Flat Wall | G3: Manhole | H3: Manhole | I3: Manhole | J3: Manhole | K3: Manhole | L3: Manhole | M3: Riser Section | N3: Riser Section | O3: Riser Section | P3: Riser Section | Q3: Riser Section | R3: Riser Section | S3: 8" Flat Wall | T3: 8" Flat Wall | U3: 8" Flat Wall | V3: 8" Flat Wall | W3: 8" Flat Wall | X3: 8" Flat Wall | Y3: 8" Flat Wall | Z3: 8" Flat Wall | AA3: 8" Flat Wall | AB3: 8" Flat Wall | AC3: 8" Flat Wall | AD3: 8" Flat Wall | AE3: 8" Flat Wall | AF3: 8" Flat Wall | AG3: 8" Flat Wall | AH3: 8" Flat Wall | AI3: 8" Flat Wall | AJ3: 8" Flat Wall | AK3: 8" Flat Wall | AL3: 6" Flat Wall | AM3: 6" Flat Wall | AN3: 6" Flat Wall | AO3: 6" Flat Wall | AP3: 6" Flat Wall | AQ3: 6" Panel Form | AR3: 6" Panel Form | AS3: 6" Flat Wall | AT3: 6" Flat Wall | AU3: 6" Flat Wall | AV3: 6" Flat Wall | AW3: 6" Flat Wall | AX3: 6" Flat Wall | AY3: KO Manhole | AZ3: KO Manhole | BA3: KO Manhole | BB3: KO Manhole | BC3: KO Manhole | BD3: KO Manhole | BE3: KO 8"-10" Wall Taper | BF3: KO 8" Wall | BG3: KO 8" Wall | BH3: KO 8" Wall | BI3: KO 8" Wall | BJ3: KO 8" Wall | BK3: KO 6" Wall | BL3: KO 6" Wall | BM3: KO 6" Wall | BN3: KO 6" Wall
B4: Structure Size | C4: Reference | E4: Panel Form Structure | F4: Standard GT or Tank | G4: 48" Dia. | H4: 60" Dia. | I4: 72" Dia. | J4: 96" Dia. | K4: 120" Dia. | L4: 144" Dia. | M4: 48" Dia. (Component Only) | N4: 60" Dia. (Component Only) | O4: 72" Dia. (Component Only) | P4: 96" Dia. (Component Only) | Q4: 120" Dia. (Component Only) | R4: 144" Dia. (Component Only) | S4: 24"x24" K/O (8"W) | T4: 24"x24" (8"W) | U4: 24"x30" (8"W) | V4: 24"x36" (8"W) | W4: 32"x32" (8"W Panel Form) | X4: 36"x36" (8"W) | Y4: 24"x40" (8"W Panel Form) | Z4: 36"x48" (8"W) | AA4: 48"x48" (8"W) | AB4: 36"x54" (8"W Panel Form) | AC4: 24"x60" (8"W Panel Form) | AD4: 36"x60" (8"W Panel Form) | AE4: 60"x60" (8"W Panel Form) | AF4: 62"x62" (8"W TDOT Panel Form) | AG4: 72"x72" (8"W Panel Form) | AH4: 48"x48" (8"W/12"F KY TY C MH) | AI4: 48"x60" (8"W/12"F KY TY C MH) | AJ4: 48"x72" (8"W/12"F KY TY C MH) | AK4: 48"x90" (8"W/12"F KY TY C MH) | AL4: 18"x18" (6"W) | AM4: 24"x24" (6"W) | AN4: 28"x28" (6"W) | AO4: 30"x30" (6"W) | AP4: 24"x36" (6"W) | AQ4: 24"x46" (6"W/8"F Panel Form) | AR4: 30"x46" (6"W/8"F Panel Form) | AS4: 28"x64" (6"W) | AT4: 24"x72" (6"W Panel Form) | AU4: 28"x97" (6"W) | AV4: 72"x96" (6"W) | AW4: 60"x120" (6"W) | AX4: 72"x144" (6"W) | AY4: KO 48" Dia. x 2' (3-Way) | AZ4: KO 48" Dia. x 2' (4-Way) | BA4: KO 48" Dia. x 3' (3-Way) | BB4: KO 48" Dia. x 3' (4-Way) | BC4: KO 60" Dia. x 4.5' (3-Way) | BD4: KO 72" Dia. x 5' (3-Way) | BE4: KO 24"x24" x 3' (9"W Taper) | BF4: KO 24"x24" x 2.5' (8"W) | BG4: KO 24"x30" x 3' (8"W) | BH4: KO 24"x36" x 3' (8"W) | BI4: KO 36"x36" x 3.5' (8"W) | BJ4: KO 48"x48" x 4.5' (8"W) | BK4: KO 18"x18" x 2' (6"W) | BL4: KO 24"x24" x 2.5' (6"W) | BM4: KO 24"x36" x 3.5' (6"W) | BN4: KO 30"x30" x 3.5' (6"W)
B5: Structure Diamater | C5: Dia (inches) | D5: Inch | G5: 48 | H5: 60 | I5: 72 | J5: 96 | K5: 120 | L5: 144 | M5: 48 | N5: 60 | O5: 72 | P5: 96 | Q5: 120 | R5: 144 | AY5: 48 | AZ5: 48 | BA5: 48 | BB5: 48 | BC5: 60 | BD5: 72
B6: Structure Width | C6: Width (inches) | D6: Inch | S6: 24 | T6: 24 | U6: 24 | V6: 24 | W6: 32 | X6: 36 | Y6: 24 | Z6: 36 | AA6: 48 | AB6: 36 | AC6: 24 | AD6: 36 | AE6: 60 | AF6: 62 | AG6: 72 | AH6: 48 | AI6: 48 | AJ6: 48 | AK6: 48 | AL6: 18 | AM6: 24 | AN6: 28 | AO6: 30 | AP6: 24 | AQ6: 24 | AR6: 30 | AS6: 28 | AT6: 24 | AU6: 28 | AV6: 72 | AW6: 60 | AX6: 72 | BE6: 24 | BF6: 24 | BG6: 24 | BH6: 24 | BI6: 36 | BJ6: 48 | BK6: 18 | BL6: 24 | BM6: 24 | BN6: 30
B7: Structure Length | C7: Length (inches) | D7: Inch | S7: 24 | T7: 24 | U7: 30 | V7: 36 | W7: 32 | X7: 36 | Y7: 40 | Z7: 48 | AA7: 48 | AB7: 54 | AC7: 60 | AD7: 60 | AE7: 60 | AF7: 62 | AG7: 72 | AH7: 48 | AI7: 60 | AJ7: 72 | AK7: 90 | AL7: 18 | AM7: 24 | AN7: 28 | AO7: 30 | AP7: 36 | AQ7: 46 | AR7: 46 | AS7: 64 | AT7: 72 | AU7: 97 | AV7: 96 | AW7: 120 | AX7: 144 | BE7: 24 | BF7: 24 | BG7: 30 | BH7: 36 | BI7: 36 | BJ7: 48 | BK7: 18 | BL7: 24 | BM7: 36 | BN7: 30
B8: Standard Base Thickness | C8: Base | D8: Inch | G8: 6 | H8: 8 | I8: 8 | J8: 18 | K8: 18 | L8: 14 | S8: 8 | T8: 8 | U8: 8 | V8: 8 | W8: 8 | X8: 8 | Y8: 8 | Z8: 8 | AA8: 8 | AB8: 8 | AC8: 8 | AD8: 8 | AE8: 8 | AF8: 8 | AG8: 8 | AH8: 12 | AI8: 12 | AJ8: 12 | AK8: 12 | AL8: 6 | AM8: 6 | AN8: 6 | AO8: 6 | AP8: 6 | AQ8: 8 | AR8: 8 | AS8: 6 | AT8: 6 | AU8: 6 | AV8: 6 | AW8: 6 | AX8: 6
B9: Standard Top Thickness | C9: Lid | D9: Inch | G9: 8 | H9: 8 | I9: 10 | J9: 12 | K9: 12 | L9: 12 | S9: 8 | T9: 8 | U9: 8 | V9: 8 | W9: 8 | X9: 8 | Y9: 8 | Z9: 8 | AA9: 8 | AB9: 8 | AC9: 8 | AD9: 8 | AE9: 8 | AF9: 11 | AG9: 8 | AH9: 8 | AI9: 8 | AJ9: 8 | AK9: 8 | AL9: 6 | AM9: 6 | AN9: 6 | AO9: 6 | AP9: 6 | AQ9: 6 | AR9: 6 | AS9: 6 | AT9: 6 | AU9: 6 | AV9: 6 | AW9: 6 | AX9: 6
B10: Standard Wall Thickness | C10: Walls | D10: Inch | G10: 5 | H10: 6 | I10: 7 | J10: 9 | K10: 11 | L10: 12 | S10: 8 | T10: 8 | U10: 8 | V10: 8 | W10: 8 | X10: 8 | Y10: 8 | Z10: 8 | AA10: 8 | AB10: 8 | AC10: 8 | AD10: 8 | AE10: 8 | AF10: 8 | AG10: 8 | AH10: 8 | AI10: 8 | AJ10: 8 | AK10: 8 | AL10: 6 | AM10: 6 | AN10: 6 | AO10: 6 | AP10: 6 | AQ10: 6 | AR10: 6 | AS10: 6 | AT10: 6 | AU10: 6 | AV10: 6 | AW10: 6 | AX10: 6
B11: Outside Perimter | C11: Perimeter (Feet) | D11: Feet | G11: 15.19 | H11: 18.86 | I11: 22.52 | J11: 29.86 | K11: 37.19 | L11: 44 | M11: 15.19 | N11: 18.86 | O11: 22.52 | P11: 29.86 | Q11: 37.19 | R11: 44 | AY11: 15.19 | AZ11: 15.19 | BA11: 15.19 | BB11: 15.19 | BC11: 18.86 | BD11: 22.52 | BE11: 13.33 | BF11: 13.33 | BG11: 14.33 | BH11: 15.33 | BI11: 17.33 | BJ11: 21.33 | BK11: 10 | BL11: 12 | BM11: 14 | BN11: 14
B12: Structure Type | C12: Structure Type | E12: Flat Wall | F12: Flat Wall | G12: Round | H12: Round | I12: Round | J12: Round | K12: Round | L12: Round | M12: Round | N12: Round | O12: Round | P12: Round | Q12: Round | R12: Round | S12: Flat Wall | T12: Flat Wall | U12: Flat Wall | V12: Flat Wall | W12: Flat Wall | X12: Flat Wall | Y12: Flat Wall | Z12: Flat Wall | AA12: Flat Wall | AB12: Flat Wall | AC12: Flat Wall | AD12: Flat Wall | AE12: Flat Wall | AF12: Flat Wall | AG12: Flat Wall | AH12: Flat Wall | AI12: Flat Wall | AJ12: Flat Wall | AK12: Flat Wall | AL12: Flat Wall | AM12: Flat Wall | AN12: Flat Wall | AO12: Flat Wall | AP12: Flat Wall | AQ12: Flat Wall | AR12: Flat Wall | AS12: Flat Wall | AT12: Flat Wall | AU12: Flat Wall | AV12: Flat Wall | AW12: Flat Wall | AX12: Flat Wall | AY12: Round Knockout | AZ12: Round Knockout | BA12: Round Knockout | BB12: Round Knockout | BC12: Round Knockout | BD12: Round Knockout | BE12: FW Knockout | BF12: FW Knockout | BG12: FW Knockout | BH12: FW Knockout | BI12: FW Knockout | BJ12: FW Knockout | BK12: FW Knockout | BL12: FW Knockout | BM12: FW Knockout | BN12: FW Knockout
B13: Top Slab Default | C13: Top/Trans Slab Required | D13: Yes/No | E13: Yes Top | F13: Yes Top | G13: Yes Top | H13: Yes Top | I13: Yes Top | J13: Yes Top | K13: Yes Top | L13: Yes Top | M13: No Top | N13: No Top | O13: No Top | P13: No Top | Q13: No Top | R13: No Top | S13: No Top | T13: No Top | U13: No Top | V13: No Top | W13: No Top | X13: No Top | Y13: No Top | Z13: Yes Top | AA13: Yes Top | AB13: Yes Top | AC13: Yes Top | AD13: Yes Top | AE13: Yes Top | AF13: Yes Top | AG13: Yes Top | AH13: Yes Top | AI13: Yes Top | AJ13: Yes Top | AK13: Yes Top | AL13: No Top | AM13: No Top | AN13: No Top | AO13: No Top | AP13: No Top | AQ13: No Top | AR13: No Top | AS13: No Top | AT13: No Top | AU13: No Top | AV13: Yes Top | AW13: Yes Top | AX13: Yes Top | AY13: Yes Top | AZ13: Yes Top | BA13: Yes Top | BB13: Yes Top | BC13: Yes Top | BD13: Yes Top | BE13: No Top | BF13: No Top | BG13: No Top | BH13: No Top | BI13: No Top | BJ13: Yes Top | BK13: No Top | BL13: No Top | BM13: No Top | BN13: No Top
B14: Base Price Inside Height | C14: Base Price Depth | D14: Feet | S14: 3 | T14: 3 | U14: 3 | V14: 3 | W14: 3 | X14: 3 | Y14: 3 | Z14: 3 | AA14: 3 | AB14: 3 | AC14: 3 | AD14: 4 | AE14: 4 | AF14: 4 | AG14: 4 | AH14: 4 | AI14: 5 | AJ14: 6 | AK14: 7.5 | AL14: 2 | AM14: 2.5 | AN14: 4 | AO14: 4 | AP14: 4 | AQ14: 3 | AR14: 3 | AS14: 4 | AT14: 4 | AU14: 4 | AV14: 4 | AW14: 4 | AX14: 4
B15: Flat Wall Base Price | C15: Flat Wall Base | D15: Dollar | S15: 597 | T15: 661 | U15: 733 | V15: 804 | W15: 921 | X15: 921 | Y15: 1108 | Z15: 1072 | AA15: 1182 | AB15: 1566 | AC15: 1422 | AD15: 2044 | AE15: 2616 | AF15: 2712 | AG15: 3208 | AH15: 2347 | AI15: 3081 | AJ15: 3894 | AK15: 5264 | AL15: 445 | AM15: 510 | AN15: 790 | AO15: 813 | AP15: 690 | AQ15: 905 | AR15: 998 | AS15: 1266 | AT15: 1396 | AU15: 1824 | AV15: 3321 | AW15: 3510 | AX15: 4509
B16: Flat Wall Concrete Lid Adder | C16: Flat Wall Lid Adder | D16: Dollar | S16: 141 | T16: 170 | U16: 196 | V16: 221 | W16: 275 | X16: 275 | Y16: 312 | Z16: 339 | AA16: 398 | AB16: 506 | AC16: 423 | AD16: 548 | AE16: 802 | AF16: 1162 | AG16: 948 | AH16: 398 | AI16: 676 | AJ16: 783 | AK16: 943 | AL16: 142 | AM16: 153 | AN16: 176 | AO16: 187 | AP16: 156 | AQ16: 218 | AR16: 254 | AS16: 335 | AT16: 316 | AU16: 455 | AV16: 0 | AW16: 0 | AX16: 0
B17: Plain Concrete VF Adder Rate | C17: VF Adder Rate | D17: Dollar | G17: 102 | H17: 167 | I17: 255 | J17: 472 | K17: 776 | L17: 1079 | S17: 164 | T17: 164 | U17: 179 | V17: 194 | W17: 215 | X17: 215 | Y17: 268 | Z17: 244 | AA17: 261 | AB17: 354 | AC17: 354 | AD17: 372 | AE17: 454 | AF17: 468 | AG17: 532 | AH17: 261 | AI17: 414 | AJ17: 454 | AK17: 514 | AL17: 120 | AM17: 125 | AN17: 159 | AO17: 162 | AP17: 138 | AQ17: 205 | AR17: 220 | AS17: 243 | AT17: 272 | AU17: 343 | AV17: 405 | AW17: 432 | AX17: 513
B18: Flat Wall Base Slab Deduct | C18: Base Slab Deduct | D18: Dollar | S18: 0 | T18: 128 | U18: 147 | V18: 166 | W18: 207 | X18: 207 | Y18: 312 | Z18: 254 | AA18: 299 | AB18: 506 | AC18: 423 | AD18: 548 | AE18: 802 | AF18: 844 | AG18: 948 | AH18: 853 | AI18: 1013 | AJ18: 1174 | AK18: 1414 | AL18: 106 | AM18: 115 | AN18: 132 | AO18: 141 | AP18: 117 | AQ18: 218 | AR18: 339 | AS18: 251 | AT18: 316 | AU18: 455 | AV18: 638 | AW18: 668 | AX18: 921
B19: KO Base Price | C19: KO Base Price | D19: Dollar | AY19: 480 | AZ19: 480 | BA19: 550 | BB19: 550 | BC19: 1155 | BD19: 1870 | BE19: 597 | BF19: 597 | BG19: 733 | BH19: 804 | BI19: 1171 | BJ19: 1574 | BK19: 445 | BL19: 573 | BM19: 690 | BN19: 813
B20: KO Base Weight | C20: KO Base Weight | D20: LBS | AY20: 2600 | AZ20: 2425 | BA20: 3095 | BB20: 2925 | BC20: 6300 | BD20: 9350 | BE20: 3200 | BF20: 2588 | BG20: 3025 | BH20: 3342 | BI20: 4357 | BJ20: 6500 | BK20: 1170 | BL20: 1735 | BM20: 2550 | BN20: 2565
B21: KO Base Inside Height | C21: KO Base Height Inches | D21: Inches | AY21: 24 | AZ21: 24 | BA21: 36 | BB21: 36 | BC21: 54 | BD21: 60 | BE21: 36 | BF21: 30 | BG21: 36 | BH21: 36 | BI21: 42 | BJ21: 54 | BK21: 24 | BL21: 30 | BM21: 42 | BN21: 42
B22: KO Base Product ID | C22: KO Base Product ID | D22: Product ID | AY22: Input Here | AZ22: Input Here | BA22: Input Here | BB22: Input Here | BC22: Input Here | BD22: Input Here | BE22: Input Here | BF22: Input Here | BG22: Input Here | BH22: Input Here | BI22: Input Here | BJ22: Input Here | BK22: Input Here | BL22: Input Here | BM22: Input Here | BN22: Input Here
B23: KO Concrete Lid Adder | C23: KO Lid Price | D23: Dollar | AY23: 257 | AZ23: 257 | BA23: 257 | BB23: 257 | BC23: 396 | BD23: 706 | BE23: 170 | BF23: 170 | BG23: 196 | BH23: 221 | BI23: 275 | BJ23: 398 | BK23: 142 | BL23: 153 | BM23: 156 | BN23: 187
B24: KO Lid Weight | C24: KO Lid Weight | D24: LBS | AY24: 1545 | AZ24: 1545 | BA24: 1545 | BB24: 1545 | BC24: 2710 | BD24: 4935 | BE24: 1112 | BF24: 1112 | BG24: 1279 | BH24: 1446 | BI24: 1880 | BJ24: 2847 | BK24: 804 | BL24: 1112 | BM24: 1446 | BN24: 1471
B25: KO Lid Height | C25: KO Lid Height Inches | D25: Inch | AY25: 12 | AZ25: 12 | BA25: 12 | BB25: 12 | BC25: 13 | BD25: 15 | BE25: 8 | BF25: 8 | BG25: 8 | BH25: 8 | BI25: 8 | BJ25: 8 | BK25: 6 | BL25: 6 | BM25: 6 | BN25: 6
B26: Lid for KO Structure (18"x18" Opening) | C26: 18x18 | D26: Product ID | AY26: Input Here | AZ26: Input Here | BA26: Input Here | BB26: Input Here | BC26: Input Here | BD26: Input Here | BE26: Input Here | BF26: Input Here | BK26: Not Available
B27: Lid for KO Structure (18"x36" Opening) | C27: 18x36 | D27: Product ID | AY27: Input Here | AZ27: Input Here | BA27: Input Here | BB27: Input Here | BC27: Input Here | BD27: Input Here | BE27: Not Available | BF27: Not Available | BG27: Not Available | BK27: Not Available | BL27: Not Available | BN27: Not Available
B28: Lid for KO Structure (24"x24" Opening) | C28: 24x24 | D28: Product ID | AY28: Input Here | AZ28: Input Here | BA28: Input Here | BB28: Input Here | BC28: Input Here | BD28: Input Here | BE28: Not Available | BF28: Not Available | BK28: Not Available | BL28: Not Available
B29: Lid for KO Structure (24"x30" Opening) | C29: 24x30 | D29: Product ID | AY29: Input Here | AZ29: Input Here | BA29: Input Here | BB29: Input Here | BC29: Input Here | BD29: Input Here | BE29: Not Available | BF29: Not Available | BG29: Not Available | BK29: Not Available | BL29: Not Available
B30: Lid for KO Structure (24"x36" Opening) | C30: 24x36 | D30: Product ID | AY30: Input Here | AZ30: Input Here | BA30: Input Here | BB30: Input Here | BC30: Input Here | BD30: Input Here | BE30: Not Available | BF30: Not Available | BG30: Not Available | BH30: Not Available | BK30: Not Available | BL30: Not Available | BM30: Not Available | BN30: Not Available
B31: Lid for KO Structure (30"x30" Opening) | C31: 30x30 | D31: Product ID | AY31: Input Here | AZ31: Input Here | BA31: Input Here | BB31: Input Here | BC31: Input Here | BD31: Input Here | BE31: Not Available | BF31: Not Available | BG31: Not Available | BH31: Not Available | BK31: Not Available | BL31: Not Available | BM31: Not Available | BN31: Not Available
B32: Lid for KO Structure (33"x33" Opening) | C32: 33x33 | D32: Product ID | AY32: Input Here | AZ32: Input Here | BA32: Input Here | BB32: Input Here | BC32: Not Available | BD32: Not Available | BE32: Not Available | BF32: Not Available | BG32: Not Available | BH32: Not Available | BI32: Not Available | BJ32: Not Available | BK32: Not Available | BL32: Not Available | BM32: Not Available | BN32: Not Available
B33: Lid for KO Structure (36"x36" Opening) | C33: 36x36 | D33: Product ID | AY33: Not Available | AZ33: Not Available | BA33: Not Available | BB33: Not Available | BC33: Input Here | BD33: Input Here | BE33: Not Available | BF33: Not Available | BG33: Not Available | BH33: Not Available | BI33: Not Available | BK33: Not Available | BL33: Not Available | BM33: Not Available | BN33: Not Available
B34: Lid for KO Structure (48"x48" Opening) | C34: 48x48 | D34: Product ID | AY34: Not Available | AZ34: Not Available | BA34: Not Available | BB34: Not Available | BC34: Not Available | BD34: Input Here | BE34: Not Available | BF34: Not Available | BG34: Not Available | BH34: Not Available | BI34: Not Available | BJ34: Not Available | BK34: Not Available | BL34: Not Available | BM34: Not Available | BN34: Not Available
B35: Lid for KO Structure (24" Dia. Opening) | C35: 24 Dia | D35: Product ID | AY35: Input Here | AZ35: Input Here | BA35: Input Here | BB35: Input Here | BC35: Input Here | BD35: Input Here | BE35: Input Here | BF35: Input Here | BK35: Not Available
B36: Lid for KO Structure (30" Dia. Opening) | C36: 30 Dia | D36: Product ID | AY36: Input Here | AZ36: Input Here | BA36: Input Here | BB36: Input Here | BC36: Input Here | BD36: Input Here | BE36: Not Available | BF36: Not Available | BG36: Not Available | BH36: Not Available | BK36: Not Available | BL36: Not Available | BM36: Not Available
B37: Lid for KO Structure (36" Dia. Opening) | C37: 36 Dia | D37: Product ID | AY37: Input Here | AZ37: Input Here | BA37: Input Here | BB37: Input Here | BC37: Input Here | BD37: Input Here | BE37: Not Available | BF37: Not Available | BG37: Not Available | BH37: Not Available | BK37: Not Available | BL37: Not Available | BM37: Not Available | BN37: Not Available
B38: Lid for KO Structure (48" Dia. Opening) | C38: 48 Dia | D38: Product ID | AY38: Not Available | AZ38: Not Available | BA38: Not Available | BB38: Not Available | BC38: Input Here | BD38: Input Here | BE38: Not Available | BF38: Not Available | BG38: Not Available | BH38: Not Available | BI38: Not Available | BK38: Not Available | BL38: Not Available | BM38: Not Available
B39: 12" Plain Riser Price | C39: KO Riser Price | D39: Dollar | AY39: 102 | AZ39: 102 | BA39: 102 | BB39: 102 | BC39: 167 | BD39: 255 | BE39: 164 | BF39: 164 | BG39: 179 | BH39: 194 | BI39: 215 | BJ39: 261 | BK39: 120 | BL39: 125 | BM39: 138 | BN39: 162
B40: 12" Plain Riser Weight | C40: KO Riser Weight | D40: LBS | AY40: 867 | AZ40: 867 | BA40: 867 | BB40: 867 | BC40: 1300 | BD40: 1810 | BE40: 1068 | BF40: 1068 | BG40: 1170 | BH40: 1268 | BI40: 1475 | BJ40: 1877 | BK40: 600 | BL40: 750 | BM40: 900 | BN40: 900
B41: 12" Plain Riser Product ID | C41: Riser Product ID | D41: Product ID | AY41: Input Riser Here | AZ41: Input Riser Here | BA41: Input Riser Here | BB41: Input Riser Here | BC41: Input Riser Here | BD41: Input Riser Here | BE41: Input Riser Here | BF41: Input Riser Here | BG41: Input Riser Here | BH41: Input Riser Here | BI41: Input Riser Here | BJ41: Input Riser Here | BK41: Input Riser Here | BL41: Input Riser Here | BM41: Input Riser Here | BN41: Input Riser Here
B42: 24" Plain Riser Price | C42: KO Riser Price | D42: Dollar | AY42: 204 | AZ42: 204 | BA42: 204 | BB42: 204 | BC42: 334 | BD42: 510 | BE42: 328 | BF42: 328 | BG42: 358 | BH42: 388 | BI42: 430 | BJ42: 522 | BK42: 240 | BL42: 250 | BM42: 276 | BN42: 324
B43: 24" Plain Riser Weight | C43: KO Riser Weight | D43: LBS | AY43: 1734 | AZ43: 1734 | BA43: 1734 | BB43: 1734 | BC43: 2600 | BD43: 3620 | BE43: 2135 | BF43: 2135 | BG43: 2340 | BH43: 2535 | BI43: 2950 | BJ43: 3754 | BK43: 1200 | BL43: 1500 | BM43: 1800 | BN43: 1800
B44: 24" Plain Riser Product ID | C44: Riser Product ID | D44: Product ID | AY44: Input Riser Here | AZ44: Input Riser Here | BA44: Input Riser Here | BB44: Input Riser Here | BC44: Input Riser Here | BD44: Input Riser Here | BE44: Input Riser Here | BF44: Input Riser Here | BG44: Input Riser Here | BH44: Input Riser Here | BI44: Input Riser Here | BJ44: Input Riser Here | BK44: Input Riser Here | BL44: Input Riser Here | BM44: Input Riser Here | BN44: Input Riser Here
B45: 36" Plain Riser Price | C45: KO Riser Price | D45: Dollar | AY45: 306 | AZ45: 306 | BA45: 306 | BB45: 306 | BC45: 501 | BD45: 765
B46: 36" Plain Riser Weight | C46: KO Riser Weight | D46: LBS | AY46: 2601 | AZ46: 2601 | BA46: 2601 | BB46: 2601 | BC46: 3900 | BD46: 5430
B47: 36" Plain Riser Product ID | C47: Riser Product ID | D47: Product ID | AY47: Input Riser Here | AZ47: Input Riser Here | BA47: Input Riser Here | BB47: Input Riser Here | BC47: Input Riser Here | BD47: Input Riser Here
B48: 48" Plain Riser Price | C48: KO Riser Price | D48: Dollar | AY48: 408 | AZ48: 408 | BA48: 408 | BB48: 408 | BC48: 668 | BD48: 1020
B49: 48" Plain Riser Weight | C49: KO Riser Weight | D49: LBS | AY49: 3468 | AZ49: 3468 | BA49: 3468 | BB49: 3468 | BC49: 5200 | BD49: 7194
B50: 48" Plain Riser Product ID | C50: Riser Product ID | D50: Product ID | AY50: Input Riser Here | AZ50: Input Riser Here | BA50: Input Riser Here | BB50: Input Riser Here | BC50: Input Riser Here | BD50: Input Riser Here
B51: 60" Plain Riser Price | C51: KO Riser Price | D51: Dollar | AY51: 510 | AZ51: 510 | BA51: 510 | BB51: 510 | BC51: 853 | BD51: 1275
B52: 60" Plain Riser Weight | C52: KO Riser Weight | D52: LBS | AY52: 4335 | AZ52: 4335 | BA52: 4335 | BB52: 4335 | BC52: 6500 | BD52: 8992
B53: 60" Plain Riser Product ID | C53: Riser Product ID | D53: Product ID | AY53: Input Riser Here | AZ53: Input Riser Here | BA53: Input Riser Here | BB53: Input Riser Here | BC53: Input Riser Here | BD53: Input Riser Here
B54: 72" Plain Riser Price | C54: KO Riser Price | D54: Dollar | BC54: 1002 | BD54: 1530
B55: 72" Plain Riser Weight | C55: KO Riser Weight | D55: LBS | BC55: 7800 | BD55: 10791
B56: 72" Plain Riser Product ID | C56: Riser Product ID | D56: Product ID | BC56: Input Riser Here | BD56: Input Riser Here
B57: Standard Base Slab Extension | C57: Base Ext | D57: Inch | G57: 8 | H57: 7 | I57: 8 | J57: 14 | K57: 14 | L57: 8 | AH57: 8 | AI57: 8 | AJ57: 8 | AK57: 8
B58: 2' Plain Base & Top | C58: 2 | D58: Dollar | G58: 626 | H58: 1163 | I58: 1923 | J58: 4866 | K58: 8115 | L58: 12067
B59: 3' Plain Base & Top | C59: 3 | D59: Dollar | G59: 735 | H59: 1340 | I59: 2190 | J59: 5333 | K59: 8879 | L59: 13116
B60: 4' Plain Base & Top | C60: 4 | D60: Dollar | G60: 848 | H60: 1525 | I60: 2469 | J60: 5838 | K60: 9706 | L60: 14259
B61: 5' Plain Base & Top | C61: 5 | D61: Dollar | G61: 918 | H61: 1634 | I61: 2628 | J61: 6067 | K61: 10076 | L61: 14735
B62: 6' Plain Base & Top | C62: 6 | D62: Dollar | G62: 1010 | H62: 1782 | I62: 2851 | J62: 6453 | K62: 10708 | L62: 15600
B63: 7' Plain Base & Top | C63: 7 | D63: Dollar | G63: 1085 | H63: 1901 | I63: 3027 | J63: 6739 | K63: 11174 | L63: 16225
B64: 8' Plain Base & Top | C64: 8 | D64: Dollar | G64: 1165 | H64: 2030 | I64: 3221 | J64: 7074 | K64: 11721 | L64: 16971
B65: 9' Plain Base & Top | C65: 9 | D65: Dollar | G65: 1226 | H65: 2126 | I65: 3363 | J65: 7296 | K65: 12083 | L65: 17452
B66: 10' Plain Base & Top | C66: 10 | D66: Dollar | G66: 1296 | H66: 2238 | I66: 3530 | J66: 7579 | K66: 12545 | L66: 18079
B67: Plain VF of Riser | C67: VF Adder Rate | D67: Dollar | G67: 102 | H67: 167 | I67: 255 | J67: 472 | K67: 776 | L67: 1079
B68: Plain Base Slab Deduct | C68: Round Base Slab Deduct | D68: Dollar | G68: 202 | H68: 414 | I68: 591 | J68: 1901 | K68: 2950 | L68: 4308
B69: Plain Lid Slab | C69: Round Lid Slab Deduct | D69: Dollar | G69: 257 | H69: 396 | I69: 706 | J69: 1559 | K69: 2418 | L69: 3539
B70: Standard Plain Base Extension | C70: Base Ext Adder | D70: Dollar | G70: 111 | H70: 202 | I70: 286 | J70: 681 | K70: 866 | L70: 1025 | AH70: 480 | AI70: 520 | AJ70: 560 | AK70: 621
B71: 8" Plain Invert | C71: 8 | D71: Dollar | G71: 120 | H71: 196 | I71: 295
B72: 10" Plain Invert | C72: 10 | D72: Dollar | G72: 143 | H72: 235 | I72: 359
B73: 12" Plain Invert | C73: 12 | D73: Dollar | G73: 162 | H73: 271 | I73: 420
B74: 15" Plain Invert | C74: 15 | D74: Dollar | G74: 186 | H74: 317 | I74: 504
B75: 18" Plain Invert | C75: 18 | D75: Dollar | G75: 203 | H75: 355 | I75: 579
B76: 24" Plain Invert | C76: 24 | D76: Dollar | G76: 217 | H76: 406 | I76: 704
B77: 30" Plain Invert | C77: 30 | D77: Dollar | G77: 203 | H77: 423 | I77: 796
B78: 36" Plain Invert | C78: 36 | D78: Dollar | G78: n/a | H78: 406 | I78: 853
B79: 42" Plain Invert | C79: 42 | D79: Dollar | G79: n/a | H79: 355 | I79: 877
B80: 48" Plain Invert | C80: 48 | D80: Dollar | G80: n/a | H80: n/a | I80: 867
B81: 2' Xypex Base & Top | C81: 2 | D81: Dollar | G81: 771 | H81: 1409 | I81: 2296 | J81: 5737 | K81: 9462 | L81: 13938
B82: 3' Xypex Base & Top | C82: 3 | D82: Dollar | G82: 909 | H82: 1572 | I82: 2536 | J82: 6112 | K82: 10083 | L82: 14776
B83: 4' Xypex Base & Top | C83: 4 | D83: Dollar | G83: 1051 | H83: 1857 | I83: 2692 | J83: 6914 | K83: 11368 | L83: 16538
B84: 5' Xypex Base & Top | C84: 5 | D84: Dollar | G84: 1151 | H84: 2009 | I84: 3182 | J84: 7246 | K84: 11895 | L84: 17219
B85: 6' Xypex Base & Top | C85: 6 | D85: Dollar | G85: 1271 | H85: 2201 | I85: 3465 | J85: 7736 | K85: 12684 | L85: 18287
B86: 7' Xypex Base & Top | C86: 7 | D86: Dollar | G86: 1375 | H86: 2362 | I86: 3701 | J86: 8125 | K86: 13307 | L86: 19117
B87: 8' Xypex Base & Top | C87: 8 | D87: Dollar | G87: 1484 | H87: 2535 | I87: 3956 | J87: 8562 | K87: 14011 | L87: 20067
B88: 9' Xypex Base & Top | C88: 9 | D88: Dollar | G88: 1574 | H88: 2674 | I88: 4158 | J88: 8888 | K88: 14530 | L88: 20751
B89: 10' Xypex Base & Top | C89: 10 | D89: Dollar | G89: 1672 | H89: 2829 | I89: 4385 | J89: 9274 | K89: 15150 | L89: 21583
B90: Xypex VF of Riser | C90: VF Adder Rate | D90: Dollar | G90: 131 | H90: 211 | I90: 315 | J90: 575 | K90: 933 | L90: 1284
B91: Xypex Base Slab Deduct | C91: Round Base Slab Deduct | D91: Dollar | G91: 248 | H91: 509 | I91: 729 | J91: 2314 | K91: 3591 | L91: 5206
B92: Xypex Lid Slab | C92: Round Lid Slab Deduct | D92: Dollar | G92: 306 | H92: 471 | I92: 840 | J92: 1842 | K92: 2858 | L92: 4154
B93: Xypex Plain Base Extension | C93: Base Ext Adder | D93: Dollar | G93: 140 | H93: 242 | I93: 340 | J93: 811 | K93: 1025 | L93: 1175
B94: 8" Xypex Invert | C94: 8 | D94: Dollar | G94: 143 | H94: 233 | I94: 351
B95: 10" Xypex Invert | C95: 10 | D95: Dollar | G95: 170 | H95: 280 | I95: 428
B96: 12" Xypex Invert | C96: 12 | D96: Dollar | G96: 193 | H96: 322 | I96: 500
B97: 15" Xypex Invert | C97: 15 | D97: Dollar | G97: 222 | H97: 378 | I97: 599
B98: 18" Xypex Invert | C98: 18 | D98: Dollar | G98: 242 | H98: 423 | I98: 689
B99: 24" Xypex Invert | C99: 24 | D99: Dollar | G99: 258 | H99: 484 | I99: 838
B100: 30" Xypex Invert | C100: 30 | D100: Dollar | G100: 242 | H100: 504 | I100: 947
B101: 36" Xypex Invert | C101: 36 | D101: Dollar | G101: n/a | H101: 484 | I101: 1016
B102: 42" Xypex Invert | C102: 42 | D102: Dollar | G102: n/a | H102: 423 | I102: 1044
B103: 48" Xypex Invert | C103: 48 | D103: Dollar | G103: n/a | H103: n/a | I103: 1032
B104: 2' Con-Block MIC Base & Top | C104: 2 | D104: Dollar | G104: 902 | H104: 1631 | I104: 2631 | J104: 6520 | K104: 10676 | L104: 15622
B105: 3' Con-Block MIC Base & Top | C105: 3 | D105: Dollar | G105: 1066 | H105: 1890 | I105: 3012 | J105: 7183 | K105: 11739 | L105: 17059
B106: 4' Con-Block MIC Base & Top | C106: 4 | D106: Dollar | G106: 1234 | H106: 2156 | I106: 3406 | J106: 7883 | K106: 12864 | L106: 18590
B107: 5' Con-Block MIC Base & Top | C107: 5 | D107: Dollar | G107: 1360 | H107: 2347 | I107: 3680 | J107: 8308 | K107: 13532 | L107: 19454
B108: 6' Con-Block MIC Base & Top | C108: 6 | D108: Dollar | G108: 1506 | H108: 2578 | I108: 4017 | J108: 8890 | K108: 14463 | L108: 20706
B109: 7' Con-Block MIC Base & Top | C109: 7 | D109: Dollar | G109: 1636 | H109: 2778 | I109: 4308 | J109: 9372 | K109: 15227 | L109: 21719
B110: 8' Con-Block MIC Base & Top | C110: 8 | D110: Dollar | G110: 1771 | H110: 2990 | I110: 4617 | J110: 9902 | K110: 16073 | L110: 22853
B111: 9' Con-Block MIC Base & Top | C111: 9 | D111: Dollar | G111: 1887 | H111: 3168 | I111: 4873 | J111: 10321 | K111: 16733 | L111: 23721
B112: 10' Con-Block MIC Base & Top | C112: 10 | D112: Dollar | G112: 2011 | H112: 3361 | I112: 5154 | J112: 10799 | K112: 17494 | L112: 24736
B113: Con-Block MIC VF of Riser | C113: VF Adder Rate | D113: Dollar | G113: 157 | H113: 249 | I113: 370 | J113: 668 | K113: 1074 | L113: 1467
B114: Con-Block MIC Base Slab Deduct | C114: Round Base Slab Deduct | D114: Dollar | G114: 289 | H114: 593 | I114: 847 | J114: 2686 | K114: 4168 | L114: 6013
B115: Con-Block MIC Lid Slab | C115: Round Lid Slab Deduct | D115: Dollar | G115: 361 | H115: 556 | I115: 991 | J115: 2161 | K115: 3353 | L115: 4847
B116: Con-Block MIC Plain Base Extension | C116: Base Ext Adder | D116: Dollar | G116: 166 | H116: 279 | I116: 389 | J116: 928 | K116: 1168 | L116: 1311
B117: 8" Con-Block MIC Invert | C117: 8 | D117: Dollar | G117: 169 | H117: 275 | I117: 414
B118: 10" Con-Block MIC Invert | C118: 10 | D118: Dollar | G118: 201 | H118: 330 | I118: 505
B119: 12" Con-Block MIC Invert | C119: 12 | D119: Dollar | G119: 228 | H119: 380 | I119: 590
B120: 15" Con-Block MIC Invert | C120: 15 | D120: Dollar | G120: 262 | H120: 446 | I120: 707
B121: 18" Con-Block MIC Invert | C121: 18 | D121: Dollar | G121: 285 | H121: 499 | I121: 813
B122: 24" Con-Block MIC Invert | C122: 24 | D122: Dollar | G122: 304 | H122: 571 | I122: 989
B123: 30" Con-Block MIC Invert | C123: 30 | D123: Dollar | G123: 285 | H123: 594 | I123: 1118
B124: 36" Con-Block MIC Invert | C124: 36 | D124: Dollar | G124: n/a | H124: 571 | I124: 1198
B125: 42" Con-Block MIC Invert | C125: 42 | D125: Dollar | G125: n/a | H125: 499 | I125: 1232
B126: 48" Con-Block MIC Invert | C126: 48 | D126: Dollar | G126: n/a | H126: n/a | I126: 1217
B127: 2' Con-Block MIC + Xypex Base & Top | C127: 2 | D127: Dollar | G127: 1048 | H127: 1877 | I127: 3004 | J127: 7391 | K127: 12024 | L127: 17493
B128: 3' Con-Block MIC + Xypex Base & Top | C128: 3 | D128: Dollar | G128: 1241 | H128: 2121 | I128: 3359 | J128: 7962 | K128: 12943 | L128: 18719
B129: 4' Con-Block MIC + Xypex Base & Top | C129: 4 | D129: Dollar | G129: 1437 | H129: 2488 | I129: 3900 | J129: 8960 | K129: 14526 | L129: 20869
B130: 5' Con-Block MIC + Xypex Base & Top | C130: 5 | D130: Dollar | G130: 1592 | H130: 2723 | I130: 4234 | J130: 9487 | K130: 15352 | L130: 21937
B131: 6' Con-Block MIC + Xypex Base & Top | C131: 6 | D131: Dollar | G131: 1767 | H131: 2996 | I131: 4631 | J131: 10173 | K131: 16439 | L131: 23393
B132: 7' Con-Block MIC + Xypex Base & Top | C132: 7 | D132: Dollar | G132: 1926 | H132: 3240 | I132: 4982 | J132: 10758 | K132: 17361 | L132: 24610
B133: 8' Con-Block MIC + Xypex Base & Top | C133: 8 | D133: Dollar | G133: 2090 | H133: 3495 | I133: 5351 | J133: 11391 | K133: 18364 | L133: 25948
B134: 9' Con-Block MIC + Xypex Base & Top | C134: 9 | D134: Dollar | G134: 2235 | H134: 3716 | I134: 5668 | J134: 11912 | K134: 19181 | L134: 27021
B135: 10' Con-Block MIC + Xypex Base & Top | C135: 10 | D135: Dollar | G135: 2388 | H135: 3953 | I135: 6009 | J135: 12494 | K135: 20099 | L135: 28240
B136: Con-Block MIC + Xypex VF of Riser | C136: VF Adder Rate | D136: Dollar | G136: 186 | H136: 293 | I136: 430 | J136: 771 | K136: 1231 | L136: 1671
B137: Con-Block MIC + Xypex Base Slab Deduct | C137: Round Base Slab Deduct | D137: Dollar | G137: 335 | H137: 668 | I137: 981 | J137: 3100 | K137: 4809 | L137: 6911
B138: Con-Block MIC + Xypex Lid Slab | C138: Round Lid Slab Deduct | D138: Dollar | G138: 410 | H138: 631 | I138: 1126 | J138: 2444 | K138: 3792 | L138: 5462
B139: Con-Block MIC + Xypex Plain Base Ext. | C139: Base Ext Adder | D139: Dollar | G139: 195 | H139: 319 | I139: 444 | J139: 1058 | K139: 1327 | L139: 1461
B140: 8" Con-Block MIC + Xypex Invert | C140: 8 | D140: Dollar | G140: 192 | H140: 312 | I140: 470
B141: 10" Con-Block MIC + Xypex Invert | C141: 10 | D141: Dollar | G141: 228 | H141: 375 | I141: 573
B142: 12" Con-Block MIC + Xypex Invert | C142: 12 | D142: Dollar | G142: 259 | H142: 432 | I142: 670
B143: 15" Con-Block MIC + Xypex Invert | C143: 15 | D143: Dollar | G143: 297 | H143: 506 | I143: 803
B144: 18" Con-Block MIC + Xypex Invert | C144: 18 | D144: Dollar | G144: 324 | H144: 567 | I144: 923
B145: 24" Con-Block MIC + Xypex Invert | C145: 24 | D145: Dollar | G145: 346 | H145: 648 | I145: 1123
B146: 30" Con-Block MIC + Xypex Invert | C146: 30 | D146: Dollar | G146: 324 | H146: 675 | I146: 1269
B147: 36" Con-Block MIC + Xypex Invert | C147: 36 | D147: Dollar | G147: n/a | H147: 648 | I147: 1361
B148: 42" Con-Block MIC + Xypex Invert | C148: 42 | D148: Dollar | G148: n/a | H148: 567 | I148: 1399
B149: 48" Con-Block MIC + Xypex Invert | C149: 48 | D149: Dollar | G149: n/a | H149: n/a | I149: 1382
B153: Table 2 - Transition Structures
B155: Description | C155: Cell | D155: Unit
B156: Structure Size | C156: Reference | E156: Yes Top | F156: No Top | G156: Trans 48"R W/Top | H156: Trans 60"R W/Top | I156: Trans 24"x24" Riser | J156: Trans 24"x24" W/Top | K156: Trans 24"x30" Riser | L156: Trans 24"x30" W/Top | M156: Trans 24"x36" Riser | N156: Trans 24"x36" W/Top | O156: Trans 36"x36" Riser | P156: Trans 36"x36" W/Top
B157: Structure Diamater | C157: Dia (inches) | D157: Inch | G157: 48 | H157: 60
B158: Structure Width | C158: Width (inches) | D158: Inch | I158: 24 | J158: 24 | K158: 24 | L158: 24 | M158: 24 | N158: 24 | O158: 36 | P158: 36
B159: Structure Length | C159: Length (inches) | D159: Inch | I159: 24 | J159: 24 | K159: 30 | L159: 30 | M159: 36 | N159: 36 | O159: 36 | P159: 36
B160: Standard Top Thickness | C160: Lid | D160: Inch | G160: 8 | H160: 8 | J160: 8 | L160: 8 | N160: 8 | P160: 8
B161: Standard Wall Thickness | C161: Walls | D161: Inch | G161: 5 | H161: 6 | I161: 8 | J161: 8 | K161: 8 | L161: 8 | M161: 8 | N161: 8 | O161: 8 | P161: 8
B162: Standard Top Avg. Weight | C162: Top Weight | D162: LBS | G162: 1660 | H162: 2527 | J162: 1120 | L162: 1279 | N162: 1448 | P162: 1866
B163: Standard Riser Avg. VF Weight | C163: Riser VF Weight | D163: LBS | G163: 860 | H163: 1300 | I163: 1070 | J163: 1070 | K163: 1168 | L163: 1168 | M163: 1266 | N163: 1266 | O163: 1458 | P163: 1458
B164: Structure Type | C164: Structure Type | G164: Round | H164: Round | I164: Flat Wall | J164: Flat Wall | K164: Flat Wall | L164: Flat Wall | M164: Flat Wall | N164: Flat Wall | O164: Flat Wall | P164: Flat Wall
B165: Transition Status | C165: Transition Status | E165: Top Slab | F165: No Top | G165: Transition | H165: Transition | I165: Transition | J165: Transition | K165: Transition | L165: Transition | M165: Transition | N165: Transition | O165: Transition | P165: Transition
B166: Pipe Chamber Top or Transition Used? | C166: Pipe Chamber Top Status | E166: Top Slab | F166: No Top | G166: Yes Top | H166: Yes Top | I166: Yes Top | J166: Yes Top | K166: Yes Top | L166: Yes Top | M166: Yes Top | N166: Yes Top | O166: Yes Top | P166: Yes Top
B167: Top Slab Over Transition Riser | C167: Trans. Top | D167: Dollar | G167: 257 | H167: 396 | J167: 170 | L167: 196 | N167: 221 | P167: 275
B168: Plain Concrete VF Adder Rate | C168: Trans. Riser | D168: Dollar | G168: 102 | H168: 167 | I168: 164 | J168: 164 | K168: 179 | L168: 179 | M168: 194 | N168: 194 | O168: 215 | P168: 215
B169: Xypex Top Slab Over Transition Riser | C169: Trans. Top | D169: Dollar | G169: 306 | H169: 471
B170: Xypex Concrete VF Adder Rate | C170: Trans. Riser | D170: Dollar | G170: 131 | H170: 211
B171: MIC Top Slab Over Transition Riser | C171: Trans. Top | D171: Dollar | G171: 361 | H171: 556
B172: MIC Concrete VF Adder Rate | C172: Trans. Riser | D172: Dollar | G172: 157 | H172: 249
B173: MIC+Xypex Top Slab Over Transition Riser | C173: Trans. Top | D173: Dollar | G173: 410 | H173: 631
B174: MIC+Xypex Concrete VF Adder Rate | C174: Trans. Riser | D174: Dollar | G174: 186 | H174: 293
B178: Table 3 - Casting Product Data
C179: Cell
B180: Casting Make & Model | C180: Reference | D180: Unit | E180: No Casting | F180: Halliday Hatch Model | G180: Hatch Model | H180: HOE MC-82 F/C "Plain" | I180: HOE MC-260 F/C "Plain" | J180: HOE MC-260 F/C "Storm" | K180: HOE MC-260 F/C "Sanitary" | L180: HOE MC-260 F/C "Grease" | M180: HOE MC-350 F/C "Plain" | N180: HOE MC-350 F/C "Storm" | O180: HOE MC-350 F/C "Sanitary" | P180: HOE MC-350 F/C "Grease" | Q180: HOE MC-350-Self Seal F/C | R180: HOE WT-350-SAN F/C | S180: HOE MC-315 F/C "Plain" | T180: HOE MC-315 F/C "Storm" | U180: HOE MC-315 F/C "Sanitary" | V180: HOE MC-315 F/C "Grease" | W180: HOE MC-315 F/C "Oil/Water" | X180: HOE MC-315 F/C "Henderson" | Y180: HOE MC-315 F/C "RWRA" | Z180: HOE MC-315 F/C "Water" | AA180: HOE MC-315-Self Seal F/C | AB180: HOE WT-315-SAN F/C | AC180: HOE MC-420 F/C "Plain" | AD180: HOE MC-420 F/C "Storm" | AE180: HOE MC-420 F/C "Sanitary" | AF180: HOE WT-420 F/C "Plain" | AG180: HOE MC-285 F/C "Plain" | AH180: HOE MC-285 F/C "Storm" | AI180: HOE MC-285 F/C "Sanitary" | AJ180: HOE MC-375 F/C "Plain" | AK180: HOE MC-375 F/C "Storm" | AL180: HOE MC-375 F/C "Sanitary" | AM180: HOE MC-375 F/C "Grease" | AN180: HOE MC-375 F/C "Oil/Water" | AO180: HOE MC-375 F/C "Henderson" | AP180: HOE MC-375-Self Seal F/C | AQ180: HOE WT-375-SAN F/C | AR180: HOE MC-455 F/C "Plain" | AS180: HOE MC-747 F/C "Plain" | AT180: HOE MC-900 F/C "Plain" | AU180: HOE MCS-295 F/C "Plain" | AV180: HOE MCS-295 F/C "Storm" | AW180: HOE MCS-295 F/C "Sanitary" | AX180: HOE MCS-288 F/C "Plain" | AY180: HOE MCS-288 F/C "Storm" | AZ180: HOE MCS-288 F/C "Sanitary" | BA180: HOE MCS-288-BH F/G | BB180: HOE MCS-290 F/C "Plain" | BC180: HOE MCS-290 F/C "Storm" | BD180: HOE MCS-290 F/C "Sanitary" | BE180: HOE MCB-260 F/G | BF180: HOE MCB-260-BH F/G | BG180: HOE MCB-315-B F/G | BH180: HOE MCB-315-R F/G | BI180: HOE MCB-315-BH F/G | BJ180: HOE MCB-350 F/G | BK180: HOE MCB-350-BH F/G | BL180: HOE MCB-350-R F/G | BM180: HOE MCB-420 F/G | BN180: HOE MCB-285-B F/G | BO180: HOE MCB-285-BH F/G | BP180: HOE MCB-375-B F/G | BQ180: HOE MCB-375-BH F/G | BR180: HOE MCB-747 F/G | BS180: HOE MCB-900 F/G | BT180: HOE 165-A F/G | BU180: HOE 280T F/G | BV180: HOE 280-BH F/G | BW180: HOE 280-Solid F/C | BX180: HOE 320 F/G | BY180: HOE 342 F/G | BZ180: HOE 275-A F/G | CA180: HOE-460 F/G | CB180: HOE 326-BH F/G | CC180: HOE 580 F/G | CD180: HOE 518 F/G | CE180: HOE 518-DBL F/G | CF180: HOE 468 F/G | CG180: HOE 918 F/G | CH180: HOE 275A-DBL F/G | CI180: HOE 595 F/G | CJ180: HOE-165 Angle F/G | CK180: HOE-315 Angle F/G | CL180: HOE-555 Angle F/G | CM180: HOE-700 Angle F/G | CN180: HOE 465 Set | CO180: HOE 360 Set | CP180: HOE 399 Set | CQ180: HOE 470 Set | CR180: HOE 525 Set | CS180: HOE 525-DBL Set | CT180: HOE-410 F/G | CU180: HOE-698 F/G | CV180: EJ 4510 F/G | CW180: HOE KY-206 F/C (KY TY1) | CX180: HOE KY-510 F/C (KY TY2) | CY180: HOE KY-316 Set (DBI 1) | CZ180: HOE KY-398 Set (DBI 2) | DA180: HOE KY-328 Set (DBI 3) | DB180: HOE KY-410 Set (DBI 4) | DC180: HOE KY-460 Set (DBI 5) | DD180: HOE KY-426 Set (DBI 6) | DE180: HOE KY-328 Set (DBI 7) | DF180: HOE KY-550 F/G (DBI 10) | DG180: HOE KY-460-11 F/G | DH180: HOE DBI 12 F/G | DI180: HOE DBI 12A F/G | DJ180: HOE KY-230-G F/G (GRADE) | DK180: HOE KY-230-S F/G (SAG) | DL180: HOE KY-210 F/G (DBI 14) | DM180: HOE KY-215 F/G (DBI 15) | DN180: HOE KY Single Safety Inlet (2 Grates) | DO180: HOE KY Double Safety Inlet (4 Grates) | DP180: HOE KY-161 (12"-18" SBO1) | DQ180: HOE KY-300 (24" SBO1) | DR180: HOE KY-272 (12"-18" SFBIO) | DS180: HOE KY-454 (24" SFBIO) | DT180: HOE KY-796 (30" SFBIO) | DU180: HOE KY-1218 (36" SFBIO) | DV180: HOE KY-298 (SBIO TY1) | DW180: HOE KY-206-SB (SBIO TY2) | DX180: HOE KY-345 Set (MBBI) | DY180: HOE KY-206 F/C (CBI A) | DZ180: HOE KY-345 Set (CBI B) | EA180: HOE KY-465 Set (CBI TY F) | EB180: JRH 1-1/2" X 10" TD Angle F/G | EC180: JRH 1-1/2" X 12" TD Angle F/G | ED180: JRH 1-1/2" X 14" TD Angle F/G | EE180: JRH 1-1/2" X 17" TD Angle F/G | EF180: JRH 1-1/2" X 20" TD Angle F/G | EG180: JRH 1-1/2" X 26" TD Angle F/G | EH180: INDOT Type 2 F/G Set | EI180: INDOT Type 3 F/C Set | EJ180: INDOT Type 4 F/C Set | EK180: INDOT Type 5 F/G Set | EL180: INDOT Type 5 F/G Dbl Set | EM180: INDOT Type 7 BH Grate | EN180: INDOT Type 8 Casting Set | EO180: INDOT Type 10 Casting Set | EP180: INDOT Type 12-A (Single) Casting | EQ180: INDOT Type 12 (Double) Casting | ER180: INDOT Type 13 F/G Set | ES180: INDOT Type 14 F/G Set | ET180: INDOT Type 15 Casting Set | EU180: JBS 1020 F/C "Drain" | EV180: JBS 1020 F/C "Sewer" | EW180: JBS 1072 F/C "Plain" | EX180: JBS 1072 F/C "Storm" | EY180: JBS 1072 F/C "Sanitary" | EZ180: JBS 1072 F/C "Grease" | FA180: JBS 1077 F/C "KY Storm" | FB180: JBS 1090 BDWT F/C "MSD Lou" | FC180: JBS 1090 BDWT F/C "Sanitary" | FD180: JBS 1095 F/C "Lagrange" | FE180: JBS 1095 F/C "MSD Lou Storm" | FF180: JBS 1095 F/C "MSD Lou Sewer" | FG180: JBS 1110 F/C "Storm" | FH180: JBS 1110 F/C "Sanitary" | FI180: JBS 1123 WT F/C "Sanitary" | FJ180: JBS 1123 Mod. BDWT F/C | FK180: JBS 1123 Mod. Non WT F/C | FL180: JBS 1132 F/C "Electric" | FM180: JBS 1132 F/C "Communication" | FN180: JBS 1140M F/C "Storm" | FO180: JBS 1140M F/C "Sanitary" | FP180: JBS 1140M F/C "Lex. Sanitary" | FQ180: JBS 1140M F/C "RWRA" | FR180: JBS 1140M BDWT F/C "Sanitary" | FS180: JBS 1140M BDWT F/C "Lex. Sanitary" | FT180: JBS 1144 F/C "Storm" | FU180: JBS 1144 F/C "Sanitary" | FV180: JBS 1150 F/C "Plain" | FW180: JBS 1150 F/C "Storm" | FX180: JBS 1150 F/C "Sanitary" | FY180: JBS 1150 BDWT F/C "Sanitary" | FZ180: JBS 1152M F/C "BGMU" | GA180: JBS 1154 F/C "Storm" | GB180: JBS 1154 F/C "Sanitary" | GC180: JBS 1155 F/C "Plain" | GD180: JBS 1155 F/C "Storm" | GE180: JBS 1155 F/C "Sanitary" | GF180: JBS 1155 BDWT F/C "Sanitary" | GG180: JBS 1220 F/C "Plain" | GH180: JBS 1247DM F/C "Storm" | GI180: JBS 1247DM F/C "Sanitary" | GJ180: JBS 1247DM Self-Seal F/C "Sanitary" | GK180: JBS 1247DM Self-Seal F/C "Gtown" | GL180: JBS 1247DM BDWT F/C "Sanitary" | GM180: JBS 2072 F/G | GN180: JBS 2110 F/G | GO180: JBS 2140 F/G | GP180: JBS 2150 F/G | GQ180: JBS 2214 F/G | GR180: JBS 2215 F/G | GS180: JBS 2220 F/G | GT180: JBS 2230 F/G | GU180: JBS 2272 Beehive F/G | GV180: JBS 3070 F/G | GW180: JBS 3080 Set | GX180: JBS 3085 Set | GY180: JBS 3101 Single Set | GZ180: JBS 3101 Double Set | HA180: JBS 3101 Triple Set | HB180: JBS 3103 Single Set | HC180: JBS 3103 Double Set | HD180: JBS 3103 Triple Set | HE180: JBS 3104 Single Set | HF180: JBS 3104 Double St | HG180: JBS 3104 Triple Set | HH180: JBS 3105 Set | HI180: JBS 3106 Set Reg. Grate | HJ180: JBS 3106-V Set | HK180: JBS 3123 Mod. Single Set | HL180: JBS 3123 Mod. Double Set | HM180: JBS 3123-13 Single Set | HN180: JBS 3123-32 Single Set | HO180: JBS 3123-32 Double Set | HP180: JBS 3123-41 Single Set | HQ180: JBS 3123-41 Double Set | HR180: JBS 3123-41 Quad Set | HS180: JBS 3157 Set | HT180: JBS 3158 Set | HU180: JBS 3223-V (TDOT #10LPC) | HV180: JBS 3300 Single Set | HW180: JBS 3300 Double Set | HX180: JBS 3300 Triple Set | HY180: JBS 3305MOD Set | HZ180: JBS 3411 F/G | IA180: JBS 3413 F/G | IB180: JBS 3450 F/G | IC180: JBS 3700 F/G | ID180: JBS 4012 F/G | IE180: JBS 4073 F/G | IF180: JBS 4075 F/G | IG180: JBS 4076X F/G | IH180: JBS 4200 Single Grate | II180: JBS 4200 Double Grate Set | IJ180: JBS 4200 Quad Grate Set | IK180: JBS 4254 F/G | IL180: JBS 4260 F/G | IM180: JBS 4275-Regular F/G | IN180: JBS 4275-Vane F/G | IO180: JBS 4300 F/G | IP180: JBS 4310 F/G | IQ180: JBS 4315 F/G | IR180: JBS 4475D Grate Only | IS180: JBS 4480 Beehive F/G | IT180: JBS 5830 F/G | IU180: JBS 5830 Bolted F/G | IV180: LSQ-24-P Plain Trash Rack | IW180: LSQ-24-G Galvanized Trash Rack | IX180: LSQ-24-AL Aluminum Trash Rack | IY180: LSQ-36-P Plain Trash Rack | IZ180: LSQ-36-G Galvanized Trash Rack | JA180: LSQ-36-AL Aluminum Trash Rack | JB180: LSQ-48-P Plain Trash Rack | JC180: LSQ-48-G Galvanized Trash Rack | JD180: LSQ-48-AL Aluminum Trash Rack | JE180: LSQ-60-P Plain Trash Rack | JF180: LSQ-60-G Galvanized Trash Rack | JG180: LSQ-60-AL Aluminum Trash Rack | JH180: LSQ-72-P Plain Trash Rack | JI180: LSQ-72-G Galvanized Trash Rack | JJ180: LSQ-72-AL Aluminum Trash Rack | JK180: LDR-48-P Plain Trash Rack | JL180: LDR-48-G Galvanized Trash Rack | JM180: LDR-48-AL Aluminum Trash Rack | JN180: LDR-60-P Plain Trash Rack | JO180: LDR-60-G Galvanized Trash Rack | JP180: LDR-60-AL Aluminum Trash Rack | JQ180: LDR-72-P Plain Trash Rack | JR180: LDR-72-G Galvanized Trash Rack | JS180: LDR-72-AL Aluminum Trash Rack | JT180: LFG-36-P Plain Flat Grate | JU180: LFG-36-G Galvanized Flat Grate | JV180: LFG-36-AL Aluminum Flat Grate | JW180: LFG-3648-P Plain Flat Grate | JX180: LFG-3648-G Galvanized Flat Grate | JY180: LFG-3648-AL Aluminum Flat Grate | JZ180: LFG-48-P Plain Flat Grate | KA180: LFG-48-G Galvanized Flat Grate | KB180: LFG-48-AL Aluminum Flat Grate | KC180: LFG-60-P Plain Flat Grate | KD180: LFG-60-G Galvanized Flat Grate | KE180: LFG-60-AL Aluminum Flat Grate | KF180: LFG-72-P Plain Flat Grate | KG180: LFG-72-G Galvanized Flat Grate | KH180: LFG-72-AL Aluminum Flat Grate | KI180: LFS-36-P Plain Flush Grate | KJ180: LFS-36-G Galvanized Flush Grate | KK180: LFS-36-AL Aluminum Flush Grate | KL180: LFS-48-P Plain Flush Grate | KM180: LFS-48-G Galvanized Flush Grate | KN180: LFS-48-AL Aluminum Flush Grate | KO180: LFS-60-P Plain Flush Grate | KP180: LFS-60-G Galvanized Flush Grate | KQ180: LFS-60-AL Aluminum Flush Grate | KR180: LFS-72-P Plain Flush Grate | KS180: LFS-72-G Galvanized Flush Grate | KT180: LFS-72-AL Aluminum Flush Grate | KU180: LFR-48-P Plain Flush Grate | KV180: LFR-48-G Galvanized Flush Grate | KW180: LFR-48-AL Aluminum Flush Grate | KX180: LFR-60-P Plain Flush Grate | KY180: LFR-60-G Galvanized Flush Grate | KZ180: LFR-60-AL Aluminum Flush Grate | LA180: LFR-72-P Plain Flush Grate | LB180: LFR-72-G Galvanized Flush Grate | LC180: LFR-72-AL Aluminum Flush Grate | LD180: Halla 12" FES Trash Guard | LE180: Halla 15" FES Trash Guard | LF180: Halla 18" FES Trash Guard | LG180: Halla 24" FES Trash Guard | LH180: Halla 30" FES Trash Guard | LI180: Blank Slot 1 | LJ180: Blank Slot 2 | LK180: Blank Slot 3 | LL180: Blank Slot 4 | LM180: Blank Slot 5 | LN180: Blank Slot 6 | LO180: Blank Slot 7 | LP180: Blank Slot 8 | LQ180: Blank Slot 9 | LR180: Blank Slot 10
B181: Casting Frame Height Above Str. | C181: Casting Height | D181: Inch | E181: 0 | H181: 4 | I181: 4 | J181: 4 | K181: 4 | L181: 4 | M181: 7 | N181: 7 | O181: 7 | P181: 7 | Q181: 7 | R181: 7 | S181: 7 | T181: 7 | U181: 7 | V181: 7 | W181: 7 | X181: 7 | Y181: 7 | Z181: 7 | AA181: 7 | AB181: 7 | AC181: 7 | AD181: 7 | AE181: 7 | AF181: 7 | AG181: 4 | AH181: 4 | AI181: 4 | AJ181: 7 | AK181: 7 | AL181: 7 | AM181: 7 | AN181: 7 | AO181: 7 | AP181: 7 | AQ181: 7 | AR181: 4 | AS181: 6 | AT181: 6 | AU181: 0 | AV181: 0 | AW181: 0 | AX181: 0 | AY181: 0 | AZ181: 0 | BA181: 0 | BB181: 0 | BC181: 0 | BD181: 0 | BE181: 4 | BF181: 7 | BG181: 7 | BH181: 7 | BI181: 7 | BJ181: 7 | BK181: 7 | BL181: 7 | BM181: 7 | BN181: 4 | BO181: 4 | BP181: 7 | BQ181: 7 | BR181: 4 | BS181: 6 | BT181: 4 | BU181: 4 | BV181: 4 | BW181: 4 | BX181: 4 | BY181: 6 | BZ181: 3.5 | CA181: 4 | CB181: 4 | CC181: 5.5 | CD181: 4 | CE181: 4 | CF181: 4 | CG181: 4 | CH181: 3.5 | CI181: 3 | CJ181: 0 | CK181: 0 | CL181: 0 | CM181: 0 | CN181: 5 | CO181: 6 | CP181: 8 | CQ181: 6 | CR181: 6 | CS181: 6 | CT181: 3.5 | CU181: 3.5 | CV181: 6.25 | CW181: 4 | CX181: 8 | CY181: 0 | CZ181: 0 | DA181: 0 | DB181: 0 | DC181: 0 | DD181: 0 | DE181: 0 | DF181: 5 | DG181: 3.75 | DH181: 0 | DI181: 0 | DJ181: 0 | DK181: 0 | DL181: 0 | DM181: 0 | DP181: 0 | DQ181: 0 | DR181: 0 | DS181: 0 | DT181: 0 | DU181: 0 | DV181: 0 | DW181: 0 | DX181: 0 | DY181: 0 | DZ181: 0 | EA181: 5 | EH181: 8 | EJ181: 7 | EK181: 8 | EL181: 8 | EM181: 0 | EN181: 8 | EO181: 8 | ER181: 8 | ES181: 7 | ET181: 8 | EU181: 6.75 | EV181: 6.75 | EW181: 4 | EX181: 4 | EY181: 4 | EZ181: 4 | FA181: 4 | FB181: 7.5 | FC181: 7.5 | FD181: 7 | FE181: 7 | FF181: 7 | FG181: 7.25 | FH181: 7.25 | FI181: 7.5 | FJ181: 8 | FK181: 8 | FL181: 10 | FM181: 10 | FN181: 7 | FO181: 7 | FP181: 7 | FQ181: 7 | FR181: 7 | FS181: 7 | FT181: 4 | FU181: 4 | FV181: 7.25 | FW181: 7.25 | FX181: 7.25 | FY181: 7.25 | FZ181: 8 | GA181: 4 | GB181: 4 | GC181: 6 | GD181: 6 | GE181: 6 | GF181: 6 | GG181: 4 | GH181: 7 | GI181: 7 | GJ181: 7 | GK181: 7 | GL181: 7 | GM181: 4 | GN181: 7.25 | GO181: 7 | GP181: 7.25 | GQ181: 0 | GR181: 0 | GS181: 4 | GT181: 4.25 | GU181: 4 | GV181: 6.25 | GW181: 6.5 | GX181: 5 | GY181: 6 | GZ181: 6 | HA181: 6 | HB181: 6 | HC181: 6 | HD181: 6 | HE181: 5 | HF181: 5 | HG181: 5 | HH181: 7 | HI181: 5.5 | HJ181: 5.5 | HK181: 5 | HL181: 5 | HM181: 5 | HN181: 5 | HO181: 5 | HP181: 5 | HQ181: 5 | HR181: 5 | HS181: 7 | HT181: 5.5 | HU181: 5 | HV181: 7.5 | HW181: 7.5 | HX181: 7.5 | HY181: 7.25 | HZ181: 3.75 | IA181: 0 | IB181: 0 | IC181: 0 | ID181: 7 | IE181: 4 | IF181: 3.37 | IG181: 3 | IH181: 0 | II181: 0 | IJ181: 0 | IK181: 4 | IL181: 4 | IM181: 5.5 | IN181: 5.5 | IO181: 6 | IP181: 6 | IQ181: 4 | IR181: 0 | IS181: 0 | IT181: 0 | IU181: 0
B182: Casting Cost (Not Selling Price =>) | C182: Casting Price | D182: Dollar | H182: 203.28 | I182: 269.115 | J182: 269.115 | K182: 269.115 | L182: 269.115 | M182: 299.145 | N182: 299.145 | O182: 299.145 | P182: 299.145 | Q182: 329.175 | R182: 379.995 | S182: 279.51 | T182: 279.51 | U182: 279.51 | V182: 279.51 | W182: 279.51 | X182: 279.51 | Y182: 279.51 | Z182: 279.51 | AA182: 340.725 | AB182: 380 | AC182: 337.26 | AD182: 337.26 | AE182: 337.26 | AF182: 423.885 | AG182: 323.4 | AH182: 323.4 | AI182: 323.4 | AJ182: 323.4 | AK182: 323.4 | AL182: 323.4 | AM182: 323.4 | AN182: 323.4 | AO182: 323.4 | AP182: 323.4 | AQ182: 462 | AR182: 502.425 | AS182: 1002.372 | AT182: 1833.7095 | AU182: 302.925 | AV182: 302.925 | AW182: 302.925 | AX182: 326.865 | AY182: 326.865 | AZ182: 326.865 | BA182: 419.265 | BB182: 256.515 | BC182: 256.515 | BD182: 256.515 | BE182: 358.06 | BF182: 392.71 | BG182: 344.19 | BH182: 390.39 | BI182: 400.785 | BJ182: 388.08 | BK182: 422.73 | BL182: 383.46 | BM182: 429.66 | BN182: 325.71 | BO182: 337.26 | BP182: 325.72 | BQ182: 337.27 | BR182: 1022.784 | BS182: 1868.5695 | BT182: 173.25 | BU182: 265.65 | BV182: 304.92 | BW182: 303.77 | BX182: 375.375 | BY182: 504.735 | BZ182: 496.65 | CA182: 513.98 | CB182: 462 | CC182: 520.905 | CD182: 429.66 | CE182: 1219.68 | CF182: 575 | CG182: 1836.75 | CH182: 1263.58 | CI182: 702.24 | CJ182: 229.845 | CK182: 435.435 | CL182: 795.795 | CM182: 739.2 | CN182: 537.075 | CO182: 481.635 | CP182: 599.445 | CQ182: 691.845 | CR182: 571.725 | CS182: 1231.23 | CT182: 531.3 | CU182: 965.58 | CV182: 836 | CW182: 259.875 | CX182: 652.575 | CY182: 402.4125 | CZ182: 490.6125 | DA182: 545.7375 | DB182: 716.625 | DC182: 589.8375 | DD182: 800.415 | DE182: 545.7375 | DF182: 929.775 | DG182: 513.975 | DH182: 117.81 | DI182: 138.6 | DJ182: 323.4 | DK182: 646.8 | DL182: 392.7 | DM182: 398.475 | DN182: 513.78 | DO182: 1027.56 | DP182: 198.45 | DQ182: 380.3625 | DR182: 341.775 | DS182: 573.3 | DT182: 1014.3 | DU182: 1571.06 | DV182: 435.4875 | DW182: 325.2375 | DX182: 489.72 | DY182: 259.875 | DZ182: 489.72 | EA182: 537.075 | EB182: 77.385 | EC182: 80.85 | ED182: 86.625 | EE182: 114.345 | EF182: 132.825 | EG182: 168.63 | EH182: 687.3 | EI182: 600.58 | EJ182: 337.91 | EK182: 1032.7 | EL182: 2066 | EM182: 272.4225 | EN182: 574.43 | EO182: 695.5 | EP182: 827.59 | EQ182: 1881.93 | ER182: 567.84 | ES182: 1026.98 | ET182: 950.43 | EU182: 526 | EV182: 526 | EW182: 272 | EX182: 272 | EY182: 272 | EZ182: 281 | FA182: 266 | FB182: 411 | FC182: 435 | FD182: 338 | FE182: 318 | FF182: 318 | FG182: 288 | FH182: 288 | FI182: 753 | FJ182: 697 | FK182: 603 | FL182: 802 | FM182: 802 | FN182: 297 | FO182: 297 | FP182: 297 | FQ182: 297 | FR182: 379 | FS182: 379 | FT182: 332 | FU182: 332 | FV182: 333 | FW182: 333 | FX182: 326 | FY182: 419 | FZ182: 306 | GA182: 345 | GB182: 345 | GC182: 292 | GD182: 292 | GE182: 284 | GF182: 390 | GG182: 457 | GH182: 308 | GI182: 308 | GJ182: 332 | GK182: 332 | GL182: 428 | GM182: 322 | GN182: 297 | GO182: 340 | GP182: 334 | GQ182: 276 | GR182: 291 | GS182: 503 | GT182: 394 | GU182: 306 | GV182: 827 | GW182: 540 | GX182: 557 | GY182: 727 | GZ182: 1544 | HA182: 2362 | HB182: 716 | HC182: 1524 | HD182: 2330 | HE182: 669 | HF182: 1423 | HG182: 2182 | HH182: 420 | HI182: 677 | HJ182: 637 | HK182: 798 | HL182: 1596 | HM182: 860 | HN182: 820 | HO182: 1640 | HP182: 811 | HQ182: 1622 | HR182: 3244 | HS182: 420 | HT182: 639 | HU182: 541 | HV182: 648 | HW182: 1387 | HX182: 2127 | HY182: 685 | HZ182: 532 | IA182: 334 | IB182: 430 | IC182: 731 | ID182: 950 | IE182: 798 | IF182: 273 | IG182: 175 | IH182: 553 | II182: 1106 | IJ182: 2212 | IK182: 416 | IL182: 798 | IM182: 516 | IN182: 480 | IO182: 659 | IP182: 659 | IQ182: 546 | IR182: 321 | IS182: 557 | IT182: 112 | IU182: 144 | IV182: 462.46 | IW182: 542.65 | IX182: 682.4 | IY182: 805.68 | IZ182: 916.43 | JA182: 1119.59 | JB182: 1061.46 | JC182: 1061.46 | JD182: 1295.5 | JE182: 2349.94 | JF182: 2642.14 | JG182: 3241.97 | JH182: 3533.55 | JI182: 3853.76 | JJ182: 5456.67 | JK182: 1060.68 | JL182: 1154.69 | JM182: 1332.51 | JN182: 1696.72 | JO182: 1881.79 | JP182: 2231.87 | JQ182: 2647.53 | JR182: 2882.76 | JS182: 4168.52 | JT182: 636.12 | JU182: 713.7 | JV182: 855.39 | JW182: 836.58 | JX182: 946.8 | JY182: 1083.41 | JZ182: 966.24 | KA182: 1106.4 | KB182: 1303.98 | KC182: 2176.68 | KD182: 2531.3 | KE182: 3171.01 | KF182: 3217.35 | KG182: 3546.06 | KH182: 5148.97 | KI182: 672.12 | KJ182: 727.2 | KK182: 831.39 | KL182: 984.24 | KM182: 1094.4 | KN182: 1302.78 | KO182: 2227.68 | KP182: 2539.8 | KQ182: 3130.21 | KR182: 2819.55 | KS182: 3097.26 | KT182: 4615.17 | KU182: 1140.3 | KV182: 1278 | KW182: 1538.48 | KX182: 2227.68 | KY182: 2539.8 | KZ182: 3130.21 | LA182: 2819.55 | LB182: 3097.26 | LC182: 4615.17 | LD182: 255 | LE182: 295 | LF182: 323 | LG182: 505 | LH182: 684
B183: Casting Clear Opening | C183: Clear Opening | D183: Inch | H183: 11 | I183: 21 | J183: 21 | K183: 21 | L183: 21 | M183: 21 | N183: 21 | O183: 21 | P183: 21 | Q183: 21 | R183: 21 | S183: 21 | T183: 21 | U183: 21 | V183: 21 | W183: 21 | X183: 21 | Y183: 21 | Z183: 21 | AA183: 21 | AB183: 21 | AC183: 22 | AD183: 22 | AE183: 22 | AF183: 22 | AG183: 24 | AH183: 24 | AI183: 24 | AJ183: 24 | AK183: 24 | AL183: 24 | AM183: 24 | AN183: 24 | AO183: 24 | AP183: 24 | AQ183: 24 | AR183: 32 | AS183: 36 | AT183: 48 | AU183: 21 | AV183: 21 | AW183: 21 | AX183: 24 | AY183: 24 | AZ183: 24 | BA183: 24 | BB183: 21 | BC183: 21 | BD183: 21 | BE183: 21 | BF183: 21 | BG183: 21 | BH183: 21 | BI183: 21 | BJ183: 21 | BK183: 21 | BL183: 21 | BM183: 22 | BN183: 24 | BO183: 24 | BP183: 24 | BQ183: 24 | BR183: 36 | BS183: 48 | BT183: 18 X 18 | BU183: 22 X 22 | BV183: 22 X 22 | BW183: 22 X 22 | BX183: 24 X 24 | BY183: 22 X 22 | BZ183: 20 X 26 | CA183: 21.375 X 27.875 | CB183: 24 X 24 | CC183: 15.25 X 35.75 | CD183: 22 X 34 | CE183: 34 X 48 | CF183: 30 X 30 | CG183: 48.625x48.625 | CH183: 26 X 46 | CI183: 33.25 X 33.25 | CJ183: 18 x 18 | CK183: 25.5 x 25.5 | CL183: 36 x 36 | CM183: 24 X 35 | CN183: 22 X 22 | CO183: 17.5 X 20.25 | CP183: 20.88 X 22 | CQ183: 14.75 X 36 | CR183: 24.25 X 33.25 | CS183: (2) 24.25 X 33.25 | CT183: 23.375 X 20 | CU183: 23.378 X 44 | CV183: 21.25 X 34.31 | CW183: 23.5 | CX183: 26 | CY183: 36 X 36 | CZ183: 36 X 48 | DA183: 36 X 36 | DB183: 36 X 48 | DC183: 36 X 48 | DD183: 36 X 48 | DE183: 36 X 36 | DF183: 16 X 28 | DG183: 21 X 28 | DH183: 12 X 12 | DI183: 12 X 12 | DJ183: 15.75 X 27.75 | DK183: (2) 15.75 X 27.75 | DL183: 20 | DM183: 20 | EA183: 24 X 24 | EU183: 22 | EV183: 22 | EW183: 24.25 | EX183: 24.25 | EY183: 24.25 | EZ183: 24.25 | FA183: 23.5 | FB183: 21.75 | FC183: 21.75 | FD183: 22 | FE183: 22 | FF183: 22 | FG183: 21.5 | FH183: 21.5 | FI183: 24 | FJ183: 26 | FK183: 26 | FL183: 30 | FM183: 30 | FN183: 21 | FO183: 21 | FP183: 21 | FQ183: 21 | FR183: 21 | FS183: 21 | FT183: 20.62 | FU183: 20.62 | FV183: 24.12 | FW183: 24.12 | FX183: 24.12 | FY183: 24 | FZ183: 24 | GA183: 24.12 | GB183: 24.12 | GC183: 24.12 | GD183: 24.12 | GE183: 24.12 | GF183: 24.12 | GG183: 30 | GH183: 24 | GI183: 24 | GJ183: 24 | GK183: 24 | GL183: 24 | GM183: 24.25 | GN183: 21.5 | GO183: 21 | GP183: 24.12 | GQ183: 20 | GR183: 20 | GS183: 30 | GT183: 24 X 24 | GU183: 24.25 | GV183: 21.25 X 34.31 | GW183: 24.75 X33.75 | GX183: 24 X 24 | GY183: 30X30 | GZ183: (2) 30X30 | HA183: (3) 30X30 | HB183: 30X30 | HC183: (2) 30X30 | HD183: (3) 30X30 | HE183: 20.18 X 29.75 | HF183: (2) 20.18 X 29.75 | HG183: (3) 20.18 X 29.75 | HH183: 20.5 X 29 | HI183: 24 X 35.62 | HJ183: 24 X 35.62 | HU183: 21.75 x 36.25 | HV183: 29.56 X 30 | HW183: (2) 29.56 X 30 | HX183: (3) 29.56 X 30 | HY183: 23.25 X 24.25 | HZ183: 21 X 28 | IA183: 15.75 X 27.75 | IC183: 24 X 36 | ID183: 22 X 22 | IE183: 36 X 36 | IF183: 22.75 X 22.75 | IG183: 17 X 17 | IK183: 22 X 34 | IL183: 34 X 34 | IM183: 15 X 35.62 | IN183: 15 X 35.62 | IO183: 30 X 30 | IP183: 30 X 30 | IQ183: 30 X 30 | IT183: 12 X 12 | IU183: 12 X 12
B184: Precast Opening Size | C184: Precast Opening Size | D184: Inch | H184: 12 Dia | I184: 24 Dia | J184: 24 Dia | K184: 24 Dia | L184: 24 Dia | M184: 24 Dia | N184: 24 Dia | O184: 24 Dia | P184: 24 Dia | Q184: 24 Dia | R184: 24 Dia | S184: 24 Dia | T184: 24 Dia | U184: 24 Dia | V184: 24 Dia | W184: 24 Dia | X184: 24 Dia | Y184: 24 Dia | Z184: 24 Dia | AA184: 24 Dia | AB184: 24 Dia | AC184: 24 Dia | AD184: 24 Dia | AE184: 24 Dia | AF184: 24 Dia | AG184: 24 Dia | AH184: 24 Dia | AI184: 24 Dia | AJ184: 24 Dia | AK184: 24 Dia | AL184: 24 Dia | AM184: 24 Dia | AN184: 24 Dia | AO184: 24 Dia | AP184: 24 Dia | AQ184: 24 Dia | AR184: 30 Dia | AS184: 36 Dia | AT184: 48 Dia | AU184: 21 Dia | AV184: 21 Dia | AW184: 21 Dia | AX184: 24 Dia | AY184: 24 Dia | AZ184: 24 Dia | BA184: 24 Dia | BB184: 21 Dia | BC184: 21 Dia | BD184: 21 Dia | BE184: 24 Dia | BF184: 24 Dia | BG184: 24 Dia | BH184: 24 Dia | BI184: 24 Dia | BJ184: 24 Dia | BK184: 24 Dia | BL184: 24 Dia | BM184: 24 Dia | BN184: 24 Dia | BO184: 24 Dia | BP184: 24 Dia | BQ184: 24 Dia | BR184: 36 Dia | BS184: 48 Dia | BT184: 18x18 | BU184: 24x24 | BV184: 24x24 | BW184: 24x24 | BX184: 24x24 | BY184: 24x24 | BZ184: 24x30 | CA184: 24x30 | CB184: 24x24 | CC184: 18x36 | CD184: 24x36 | CE184: 36x48 | CF184: 30x30 | CG184: 48x48 | CH184: 30x48 | CI184: 36x36 | CJ184: 18x18 | CK184: 26x26 | CL184: 36x36 | CM184: 24x36 | CN184: 24x24 | CO184: 24x30 | CP184: 24x24 | CQ184: 24x36 | CR184: 24x36 | CS184: 24x72 | CT184: 24x24 | CU184: 24x48 | CV184: 24x36 | CW184: 24 Dia | CX184: 30 Dia | CY184: 36x36 | CZ184: 36x48 | DA184: 36x36 | DB184: 36x48 | DC184: 36x48 | DD184: 36x48 | DE184: 36x36 | DF184: 16 X 28 | DG184: 24x30 | DH184: 12x12 | DI184: 12x12 | DJ184: 16x28 | DK184: 16x60 | DL184: 20 Dia | DM184: 20 Dia
B185: Grade Ring Compatibility | C185: Grade Ring Compatible | D185: Yes/No | H185: No | I185: Yes | J185: Yes | K185: Yes | L185: Yes | M185: Yes | N185: Yes | O185: Yes | P185: Yes | Q185: Yes | R185: Yes | S185: Yes | T185: Yes | U185: Yes | V185: Yes | W185: Yes | X185: Yes | Y185: Yes | Z185: Yes | AA185: Yes | AB185: Yes | AC185: Yes | AD185: Yes | AE185: Yes | AF185: Yes | AG185: Yes | AH185: Yes | AI185: Yes | AJ185: Yes | AK185: Yes | AL185: Yes | AM185: Yes | AN185: Yes | AO185: Yes | AP185: Yes | AQ185: Yes | AR185: Yes | AS185: Yes | AT185: No | AU185: No | AV185: No | AW185: No | AX185: Yes | AY185: Yes | AZ185: Yes | BA185: Yes | BB185: No | BC185: No | BD185: No | BE185: Yes | BF185: Yes | BG185: Yes | BH185: Yes | BI185: Yes | BJ185: Yes | BK185: Yes | BL185: Yes | BM185: Yes | BN185: Yes | BO185: Yes | BP185: Yes | BQ185: Yes | BR185: Yes | BS185: Yes | BT185: Yes | BU185: Yes | BV185: Yes | BW185: Yes | BX185: Yes | BY185: Yes | BZ185: Yes | CA185: Yes | CB185: Yes | CC185: Yes | CD185: Yes | CE185: No | CF185: Yes | CG185: No | CH185: No | CI185: Yes | CJ185: Yes | CK185: No | CL185: Yes | CM185: Yes | CN185: Yes | CO185: Yes | CP185: No | CQ185: Yes | CR185: Yes | CS185: No | CT185: Yes | CU185: No | CV185: Yes | CW185: Yes | CX185: Yes | CY185: No | CZ185: No | DA185: No | DB185: No | DC185: No | DD185: No | DE185: No | DF185: No | DG185: Yes | DH185: No | DI185: No | DJ185: No | DK185: No | DL185: No | DM185: No
B186: Top Slab or Cone Required | C186: Top Slab or Cone Required | D186: Yes/No | H186: Yes | I186: Yes | J186: Yes | K186: Yes | L186: Yes | M186: Yes | N186: Yes | O186: Yes | P186: Yes | Q186: Yes | R186: Yes | S186: Yes | T186: Yes | U186: Yes | V186: Yes | W186: Yes | X186: Yes | Y186: Yes | Z186: Yes | AA186: Yes | AB186: Yes | AC186: Yes | AD186: Yes | AE186: Yes | AF186: Yes | AG186: Yes | AH186: Yes | AI186: Yes | AJ186: Yes | AK186: Yes | AL186: Yes | AM186: Yes | AN186: Yes | AO186: Yes | AP186: Yes | AQ186: Yes | AR186: Yes | AS186: Yes | AT186: No | AU186: Yes | AV186: Yes | AW186: Yes | AX186: Yes | AY186: Yes | AZ186: Yes | BA186: Yes | BB186: Yes | BC186: Yes | BD186: Yes | BE186: Yes | BF186: Yes | BG186: Yes | BH186: Yes | BI186: Yes | BJ186: Yes | BK186: Yes | BL186: Yes | BM186: Yes | BN186: Yes | BO186: Yes | BP186: Yes | BQ186: Yes | BR186: Yes | BS186: No | BT186: No | BU186: No | BV186: No | BW186: No | BX186: No | BY186: No | BZ186: No | CA186: No | CB186: No | CC186: No | CD186: No | CE186: No | CF186: No | CG186: No | CH186: No | CI186: No | CJ186: No | CK186: Yes | CL186: No | CM186: No | CN186: No | CO186: No | CP186: No | CQ186: No | CR186: No | CS186: No | CT186: No | CU186: No | CV186: No | CW186: Yes | CX186: Yes | CY186: No | CZ186: No | DA186: No | DB186: No | DC186: No | DD186: No | DE186: No | DF186: Yes | DG186: No | DH186: No | DI186: No | DJ186: Yes | DK186: Yes | DL186: Yes | DM186: Yes
B187: Casting/Hatch Designation | C187: Designation: | D187: Designation | F187: Hatch | G187: Hatch | H187: Casting | I187: Casting | J187: Casting | K187: Casting | L187: Casting | M187: Casting | N187: Casting | O187: Casting | P187: Casting | Q187: Casting | R187: Casting | S187: Casting | T187: Casting | U187: Casting | V187: Casting | W187: Casting | X187: Casting | Y187: Casting | Z187: Casting | AA187: Casting | AB187: Casting | AC187: Casting | AD187: Casting | AE187: Casting | AF187: Casting | AG187: Casting | AH187: Casting | AI187: Casting | AJ187: Casting | AK187: Casting | AL187: Casting | AM187: Casting | AN187: Casting | AO187: Casting | AP187: Casting | AQ187: Casting | AR187: Casting | AS187: Casting | AT187: Casting | AU187: Casting | AV187: Casting | AW187: Casting | AX187: Casting | AY187: Casting | AZ187: Casting | BA187: Casting | BB187: Casting | BC187: Casting | BD187: Casting | BE187: Casting | BF187: Casting | BG187: Casting | BH187: Casting | BI187: Casting | BJ187: Casting | BK187: Casting | BL187: Casting | BM187: Casting | BN187: Casting | BO187: Casting | BP187: Casting | BQ187: Casting | BR187: Casting | BS187: Casting | BT187: Casting | BU187: Casting | BV187: Casting | BW187: Casting | BX187: Casting | BY187: Casting | BZ187: Casting | CA187: Casting | CB187: Casting | CC187: Casting | CD187: Casting | CE187: Casting | CF187: Casting | CG187: Casting | CH187: Casting | CI187: Casting | CJ187: Casting | CK187: Casting | CL187: Casting | CM187: Casting | CN187: Casting | CO187: Casting | CP187: Casting | CQ187: Casting | CR187: Casting | CS187: Casting | CT187: Casting | CU187: Casting | CV187: Casting | CW187: Casting | CX187: Casting | CY187: Casting | CZ187: Casting | DA187: Casting | DB187: Casting | DC187: Casting | DD187: Casting | DE187: Casting | DF187: Casting | DG187: Casting | DH187: Casting | DI187: Casting | DJ187: Casting | DK187: Casting | DL187: Casting | DM187: Casting | DN187: Casting | DO187: Casting | DP187: Casting | DQ187: Casting | DR187: Casting | DS187: Casting | DT187: Casting | DU187: Casting | DV187: Casting | DW187: Casting | DX187: Casting | DY187: Casting | DZ187: Casting | EA187: Casting | EB187: Casting | EC187: Casting | ED187: Casting | EE187: Casting | EF187: Casting | EG187: Casting | EH187: Casting | EI187: Casting | EJ187: Casting | EK187: Casting | EL187: Casting | EM187: Casting | EN187: Casting | EO187: Casting | EP187: Casting | EQ187: Casting | ER187: Casting | ES187: Casting | ET187: Casting | EU187: Casting | EV187: Casting | EW187: Casting | EX187: Casting | EY187: Casting | EZ187: Casting | FA187: Casting | FB187: Casting | FC187: Casting | FD187: Casting | FE187: Casting | FF187: Casting | FG187: Casting | FH187: Casting | FI187: Casting | FJ187: Casting | FK187: Casting | FL187: Casting | FM187: Casting | FN187: Casting | FO187: Casting | FP187: Casting | FQ187: Casting | FR187: Casting | FS187: Casting | FT187: Casting | FU187: Casting | FV187: Casting | FW187: Casting | FX187: Casting | FY187: Casting | FZ187: Casting | GA187: Casting | GB187: Casting | GC187: Casting | GD187: Casting | GE187: Casting | GF187: Casting | GG187: Casting | GH187: Casting | GI187: Casting | GJ187: Casting | GK187: Casting | GL187: Casting | GM187: Casting | GN187: Casting | GO187: Casting | GP187: Casting | GQ187: Casting | GR187: Casting | GS187: Casting | GT187: Casting | GU187: Casting | GV187: Casting | GW187: Casting | GX187: Casting | GY187: Casting | GZ187: Casting | HA187: Casting | HB187: Casting | HC187: Casting | HD187: Casting | HE187: Casting | HF187: Casting | HG187: Casting | HH187: Casting | HI187: Casting | HJ187: Casting | HK187: Casting | HL187: Casting | HM187: Casting | HN187: Casting | HO187: Casting | HP187: Casting | HQ187: Casting | HR187: Casting | HS187: Casting | HT187: Casting | HU187: Casting | HV187: Casting | HW187: Casting | HX187: Casting | HY187: Casting | HZ187: Casting | IA187: Casting | IB187: Casting | IC187: Casting | ID187: Casting | IE187: Casting | IF187: Casting | IG187: Casting | IH187: Casting | II187: Casting | IJ187: Casting | IK187: Casting | IL187: Casting | IM187: Casting | IN187: Casting | IO187: Casting | IP187: Casting | IQ187: Casting | IR187: Casting | IS187: Casting | IT187: Casting | IU187: Casting | IV187: Casting | IW187: Casting | IX187: Casting | IY187: Casting | IZ187: Casting | JA187: Casting | JB187: Casting | JC187: Casting | JD187: Casting | JE187: Casting | JF187: Casting | JG187: Casting | JH187: Casting | JI187: Casting | JJ187: Casting | JK187: Casting | JL187: Casting | JM187: Casting | JN187: Casting | JO187: Casting | JP187: Casting | JQ187: Casting | JR187: Casting | JS187: Casting | JT187: Casting | JU187: Casting | JV187: Casting | JW187: Casting | JX187: Casting | JY187: Casting | JZ187: Casting | KA187: Casting | KB187: Casting | KC187: Casting | KD187: Casting | KE187: Casting | KF187: Casting | KG187: Casting | KH187: Casting | KI187: Casting | KJ187: Casting | KK187: Casting | KL187: Casting | KM187: Casting | KN187: Casting | KO187: Casting | KP187: Casting | KQ187: Casting | KR187: Casting | KS187: Casting | KT187: Casting | KU187: Casting | KV187: Casting | KW187: Casting | KX187: Casting | KY187: Casting | KZ187: Casting | LA187: Casting | LB187: Casting | LC187: Casting | LD187: Casting | LE187: Casting | LF187: Casting | LG187: Casting | LH187: Casting | LI187: Casting | LJ187: Casting | LK187: Casting | LL187: Casting | LM187: Casting | LN187: Casting | LO187: Casting | LP187: Casting | LQ187: Casting | LR187: Casting
B188: Stock or Non-Stock Item Designation | C188: Stock or Non-Stock Item | F188: Non-Stock Hatch | G188: Non-Stock Hatch | H188: Non-Stock | I188: Non-Stock | J188: Non-Stock | K188: Non-Stock | L188: Non-Stock | M188: Non-Stock | N188: Non-Stock | O188: Non-Stock | P188: Non-Stock | Q188: Non-Stock | R188: Non-Stock | S188: Stock | T188: Stock | U188: Stock | V188: Stock | W188: Stock | X188: Stock | Y188: Stock | Z188: Stock | AA188: Non-Stock | AB188: Non-Stock | AC188: Non-Stock | AD188: Non-Stock | AE188: Non-Stock | AF188: Non-Stock | AG188: Non-Stock | AH188: Non-Stock | AI188: Non-Stock | AJ188: Stock | AK188: Stock | AL188: Stock | AM188: Stock | AN188: Stock | AO188: Stock | AP188: Non-Stock | AQ188: Non-Stock | AR188: Non-Stock | AS188: Non-Stock | AT188: Non-Stock | AU188: Stock | AV188: Stock | AW188: Stock | AX188: Stock | AY188: Stock | AZ188: Stock | BA188: Stock | BB188: Non-Stock | BC188: Non-Stock | BD188: Non-Stock | BE188: Non-Stock | BF188: Non-Stock | BG188: Stock | BH188: Stock | BI188: Stock | BJ188: Non-Stock | BK188: Non-Stock | BL188: Non-Stock | BM188: Non-Stock | BN188: Non-Stock | BO188: Non-Stock | BP188: Stock | BQ188: Stock | BR188: Non-Stock | BS188: Non-Stock | BT188: Stock | BU188: Stock | BV188: Non-Stock | BW188: Non-Stock | BX188: Non-Stock | BY188: Non-Stock | BZ188: Non-Stock | CA188: Non-Stock | CB188: Non-Stock | CC188: Non-Stock | CD188: Non-Stock | CE188: Non-Stock | CF188: Stock | CG188: Non-Stock | CH188: Non-Stock | CI188: Non-Stock | CJ188: Non-Stock | CK188: Non-Stock | CL188: Non-Stock | CM188: Non-Stock | CN188: Stock | CO188: Non-Stock | CP188: Non-Stock | CQ188: Non-Stock | CR188: Stock | CS188: Non-Stock | CT188: Non-Stock | CU188: Non-Stock | CV188: Non-Stock | CW188: Stock | CX188: Non-Stock | CY188: Non-Stock | CZ188: Non-Stock | DA188: Non-Stock | DB188: Non-Stock | DC188: Non-Stock | DD188: Non-Stock | DE188: Non-Stock | DF188: Non-Stock | DG188: Stock | DH188: Non-Stock | DI188: Non-Stock | DJ188: Non-Stock | DK188: Non-Stock | DL188: Non-Stock | DM188: Non-Stock | DN188: Non-Stock | DO188: Non-Stock | DP188: Non-Stock | DQ188: Non-Stock | DR188: Non-Stock | DS188: Non-Stock | DT188: Non-Stock | DU188: Non-Stock | DV188: Non-Stock | DW188: Non-Stock | DX188: Non-Stock | DY188: Stock | DZ188: Non-Stock | EA188: Stock | EB188: Non-Stock | EC188: Non-Stock | ED188: Non-Stock | EE188: Non-Stock | EF188: Non-Stock | EG188: Non-Stock | EH188: Non-Stock | EI188: Non-Stock | EJ188: Non-Stock | EK188: Non-Stock | EL188: Non-Stock | EM188: Stock | EN188: Non-Stock | EO188: Non-Stock | EP188: Non-Stock | EQ188: Non-Stock | ER188: Non-Stock | ES188: Non-Stock | ET188: Non-Stock | EU188: Non-Stock | EV188: Non-Stock | EW188: Non-Stock | EX188: Non-Stock | EY188: Non-Stock | EZ188: Non-Stock | FA188: Non-Stock | FB188: Non-Stock | FC188: Non-Stock | FD188: Non-Stock | FE188: Non-Stock | FF188: Non-Stock | FG188: Non-Stock | FH188: Non-Stock | FI188: Non-Stock | FJ188: Non-Stock | FK188: Non-Stock | FL188: Non-Stock | FM188: Non-Stock | FN188: Non-Stock | FO188: Non-Stock | FP188: Non-Stock | FQ188: Non-Stock | FR188: Non-Stock | FS188: Non-Stock | FT188: Non-Stock | FU188: Non-Stock | FV188: Non-Stock | FW188: Non-Stock | FX188: Non-Stock | FY188: Non-Stock | FZ188: Non-Stock | GA188: Non-Stock | GB188: Non-Stock | GC188: Non-Stock | GD188: Non-Stock | GE188: Non-Stock | GF188: Non-Stock | GG188: Non-Stock | GH188: Non-Stock | GI188: Non-Stock | GJ188: Non-Stock | GK188: Non-Stock | GL188: Non-Stock | GM188: Non-Stock | GN188: Non-Stock | GO188: Non-Stock | GP188: Non-Stock | GQ188: Non-Stock | GR188: Non-Stock | GS188: Non-Stock | GT188: Non-Stock | GU188: Non-Stock | GV188: Non-Stock | GW188: Non-Stock | GX188: Non-Stock | GY188: Non-Stock | GZ188: Non-Stock | HA188: Non-Stock | HB188: Non-Stock | HC188: Non-Stock | HD188: Non-Stock | HE188: Non-Stock | HF188: Non-Stock | HG188: Non-Stock | HH188: Non-Stock | HI188: Non-Stock | HJ188: Non-Stock | HK188: Non-Stock | HL188: Non-Stock | HM188: Non-Stock | HN188: Non-Stock | HO188: Non-Stock | HP188: Non-Stock | HQ188: Non-Stock | HR188: Non-Stock | HS188: Non-Stock | HT188: Non-Stock | HU188: Non-Stock | HV188: Non-Stock | HW188: Non-Stock | HX188: Non-Stock | HY188: Non-Stock | HZ188: Non-Stock | IA188: Non-Stock | IB188: Non-Stock | IC188: Non-Stock | ID188: Non-Stock | IE188: Non-Stock | IF188: Non-Stock | IG188: Non-Stock | IH188: Non-Stock | II188: Non-Stock | IJ188: Non-Stock | IK188: Non-Stock | IL188: Non-Stock | IM188: Non-Stock | IN188: Non-Stock | IO188: Non-Stock | IP188: Non-Stock | IQ188: Non-Stock | IR188: Non-Stock | IS188: Non-Stock | IT188: Non-Stock | IU188: Non-Stock | IV188: Non-Stock | IW188: Non-Stock | IX188: Non-Stock | IY188: Non-Stock | IZ188: Non-Stock | JA188: Non-Stock | JB188: Non-Stock | JC188: Non-Stock | JD188: Non-Stock | JE188: Non-Stock | JF188: Non-Stock | JG188: Non-Stock | JH188: Non-Stock | JI188: Non-Stock | JJ188: Non-Stock | JK188: Non-Stock | JL188: Non-Stock | JM188: Non-Stock | JN188: Non-Stock | JO188: Non-Stock | JP188: Non-Stock | JQ188: Non-Stock | JR188: Non-Stock | JS188: Non-Stock | JT188: Non-Stock | JU188: Non-Stock | JV188: Non-Stock | JW188: Non-Stock | JX188: Non-Stock | JY188: Non-Stock | JZ188: Non-Stock | KA188: Non-Stock | KB188: Non-Stock | KC188: Non-Stock | KD188: Non-Stock | KE188: Non-Stock | KF188: Non-Stock | KG188: Non-Stock | KH188: Non-Stock | KI188: Non-Stock | KJ188: Non-Stock | KK188: Non-Stock | KL188: Non-Stock | KM188: Non-Stock | KN188: Non-Stock | KO188: Non-Stock | KP188: Non-Stock | KQ188: Non-Stock | KR188: Non-Stock | KS188: Non-Stock | KT188: Non-Stock | KU188: Non-Stock | KV188: Non-Stock | KW188: Non-Stock | KX188: Non-Stock | KY188: Non-Stock | KZ188: Non-Stock | LA188: Non-Stock | LB188: Non-Stock | LC188: Non-Stock | LD188: Non-Stock | LE188: Non-Stock | LF188: Non-Stock | LG188: Non-Stock | LH188: Non-Stock | LI188: Non-Stock | LJ188: Non-Stock | LK188: Non-Stock | LL188: Non-Stock | LM188: Non-Stock | LN188: Non-Stock | LO188: Non-Stock | LP188: Non-Stock | LQ188: Non-Stock | LR188: Non-Stock
B189: Casting Quick Reference | C189: Equivalent 1 | I189: JBS 1144 | J189: JBS 1144 | K189: JBS 1144 | L189: JBS 1144 | S189: JBS 1140 | T189: JBS 1140 | U189: JBS 1140 | V189: JBS 1140 | W189: JBS 1140 | X189: JBS 1140 | Y189: JBS 1140 | Z189: JBS 1140 | AA189: JBS 1140 | AB189: JBS 1140 | AJ189: JBS 1150 | AK189: JBS 1150 | AL189: JBS 1150 | AM189: JBS 1150 | AN189: JBS 1150 | AO189: JBS 1150 | AP189: JBS 1150 | AQ189: JBS 1150 | AX189: JBS 1072 | AY189: JBS 1072 | AZ189: JBS 1072 | BG189: JBS 2140 | BO189: JBS 2272 | BP189: JBS 2150 | BQ189: JBS 2280 | BU189: JBS 4075 | CC189: JBS 4275 | CD189: JBS 4254 | CF189: JBS 4315 | CI189: JBS 4260 | CM189: JBS 3700 | CO189: JBS 3105 | CQ189: JBS 3106 | CR189: JBS 3080 | CS189: JBS 3080 DBL | CV189: JBS 3070 | CW189: JBS 1077 | CX189: JBS 1123 Mod. | CY189: BOTTOMS DBI 1 | CZ189: BOTTOMS DBI 2 | DA189: BOTTOMS DBI 3 | DB189: BOTTOMS DBI 4 | DC189: BOTTOMS DBI 5 | DD189: BOTTOMS DBI 6 | DE189: BOTTOMS DBI 7 | DF189: JBS 2501D | DG189: JBS 3411 | DH189: JBS 5830 | DI189: JBS 5830 BOLTED | DJ189: JBS 3413 | DK189: JBS 3413D | DL189: JBS 2214 | DM189: JBS 2215 | DP189: BOTTOMS | DQ189: BOTTOMS | DR189: BOTTOMS | DS189: BOTTOMS | DT189: BOTTOMS | DU189: BOTTOMS | DV189: BOTTOMS | DW189: BOTTOMS | DX189: JBS 3450 | DY189: JBS 1077 | DZ189: JBS 3450 | EA189: JBS 3085 | EW189: HOE MCS-288 | EX189: HOE MCS-288 | EY189: HOE MCS-288 | EZ189: HOE MCS-288 | FA189: HOE KY-206 | FJ189: HOE KY-510 | FN189: HOE MC-315 | FO189: HOE MC-315 | FP189: HOE MC-315 | FQ189: HOE MC-315 | FR189: HOE WT-315-SAN | FS189: HOE WT-315-SAN | FT189: HOE MC-260 | FU189: HOE MC-260 | FV189: HOE MC-375 | FW189: HOE MC-375 | FX189: HOE MC-375 | FY189: HOE WT-375-SAN | GH189: HOE MC-375 | GI189: HOE MC-375 | GJ189: HOE MC-375 SS | GK189: HOE MC-375 SS | GL189: HOE WT-375-SAN | GO189: HOE MCB-315-B | GP189: HOE MCB-375-B | GQ189: HOE KY-210 | GR189: HOE KY-215 | GU189: HOE MCB-285-BH | GV189: EJ 4510 | GW189: HOE 525 | GX189: HOE KY-465 | HH189: HOE 360 | HI189: HOE 470 | HJ189: HOE 470 | HS189: HOE 360 | HT189: HOE 470 | HZ189: HOE KY-460-11 | IA189: HOE KY-240 | IB189: HOE KY-345 | IC189: HOE-700 | IF189: HOE-280T | IK189: HOE-518 | IL189: HOE-595 | IM189: HOE-580 | IN189: HOE-580 | IQ189: HOE 468 | IT189: HOE DBI 12 | IU189: HOE DBI 12A
B190: Casting Quick Reference | C190: Equivalent 2 | AJ190: JBS 1247DM | AK190: JBS 1247DM | AL190: JBS 1247DM | AM190: JBS 1247DM | AN190: JBS 1247DM | AO190: JBS 1247DM | AP190: JBS 1247DM | AQ190: JBS 1247DM
B191: Casting Quick Reference | C191: Equivalent 3
B192: Municipal or State Spec. | C192: Specification | CM192: LEX SI TY B | CO192: LOU SINGLE CI | CQ192: LOU DOUBLE CI | CR192: LEX TYPE D CI | CV192: BGMU CI | CW192: KY MH TY 1 | CX192: KY MH TY 2 | CY192: KY DBI TY 1 | CZ192: KY DBI TY 2 | DA192: KY DBI TY 3 | DB192: KY DBI TY 4 | DC192: KY DBI TY 5 | DD192: KY DBI TY 6 | DE192: KY DBI TY 7 | DF192: KY DBI TY 10 | DG192: KY DBI TY 11 | DH192: KY DBI TY 12 | DI192: KY DBI TY 12A | DJ192: KY DBI TY 13/16G | DK192: KY DBI TY 13/16S | DL192: KY DBI TY 14 | DM192: KY DBI TY 15 | DP192: 15"-18" SBO TY 1 | DQ192: 24" SBO TY 1 | DR192: 18" SFBIO | DS192: 24" SFBIO | DT192: 30" SFBIO | DU192: 36" SFBIO | DV192: SBIO TY 1 | DW192: SBIO TY 2 | DX192: KY CMBBI | DY192: KY CBI TY A | DZ192: KY CBI TY B | EA192: KY CBI TY F | EU192: TDOT Type 3 | EV192: TDOT Type 3 | FA192: KDOT Type 1 | FE192: LOU KY MH | FF192: LOU KY MH | FI192: NASHVILLE, TN MH | FJ192: KY MH TY 2 | FK192: KY MH TY 2 | GQ192: KY DBI TY 14 | GR192: KY DBI TY 15 | GV192: BGMU SCI | GX192: KY CBI TY F | HH192: LOU SINGLE CI | HI192: LOU DOUBLE CI | HJ192: LOU DOUBLE CI | HK192: TDOT Std. #12 | HL192: TDOT Std. Type 12 | HM192: TDOT Std. Type 13 | HN192: TDOT Std. Type 41 | HO192: TDOT Std. Type 41 | HP192: TDOT Std. Type 31 | HQ192: TDOT Std. Type 31 | HR192: TDOT Std. Type 31 | HU192: TDOT #10LPC | HZ192: KY DBI TY 11 | IA192: KY DBI TY 13/16G | IB192: KY CBI TY B | IC192: LFUCG TY B SI | IH192: TDOT STD. #42 | II192: TDOT STD. #42 | IJ192: TDOT STD. #42 | IM192: LOU DOUBLE SI | IN192: LOU DOUBLE SI | IT192: KY DBI TY 12 | IU192: KY DBI TY 12A
B193: Municipal or State Spec. | C193: Specification | IB193: KY CMBBI
B194: Municipal or State Spec. | C194: Specification
B197: Table 4 - Pipe Connection & Pipe Seal Product Data
C198: Cell
C199: Reference | D199: Unit | E199: Box Culvert (Grout) | F199: Link Seal (Others) | G199: 4" HDPE/PVC (Grout) | H199: 6" HDPE/PVC (Grout) | I199: 8" HDPE (Grout) | J199: 10" HDPE (Grout) | K199: 12" RCP/HDPE (Grout) | L199: 15" RCP/HDPE (Grout) | M199: 18" RCP/HDPE (Grout) | N199: 21" RCP (Grout) | O199: 24" RCP/HDPE (Grout) | P199: 30" RCP/HDPE (Grout) | Q199: 36" RCP/HDPE (Grout) | R199: 42" RCP/HDPE (Grout) | S199: 48" RCP/HDPE (Grout) | T199: 54" RCP/HDPE (Grout) | U199: 60" RCP/HDPE (Grout) | V199: 66" RCP/HDPE (Grout) | W199: 72" RCP/HDPE (Grout) | X199: 78" RCP (Grout) | Y199: 84" RCP (Grout) | Z199: 90" RCP (Grout) | AA199: 96" RCP (Grout) | AB199: 8" CMP/PVC (Grout) | AC199: 10" CMP/PVC (Grout) | AD199: 12" CMP/PVC (Grout) | AE199: 15" CMP/PVC (Grout) | AF199: 18" CMP/PVC (Grout) | AG199: 21" CMP/PVC (Grout) | AH199: 24" CMP/PVC (Grout) | AI199: 30" CMP (Grout) | AJ199: 36" CMP (Grout) | AK199: 42" CMP (Grout) | AL199: 48" CMP (Grout) | AM199: 54" CMP (Grout) | AN199: 60" CMP (Grout) | AO199: 72" CMP (Grout) | AP199: 14"x23" HERCP (Grout) | AQ199: 19"x30" HERCP (Grout) | AR199: 22"x34" HERCP (Grout) | AS199: 24"x38" HERCP (Grout) | AT199: 27"x42" HERCP (Grout) | AU199: 29"x45" HERCP (Grout) | AV199: 32"x49" HERCP (Grout) | AW199: 34"x53" HERCP (Grout) | AX199: 38"x60" HERCP (Grout) | AY199: 43"x68" HERCP (Grout) | AZ199: 48"x76" HERCP (Grout) | BA199: 4" PVC/DI Boot | BB199: 6" PVC/DI Boot | BC199: 8" PVC Boot | BD199: 8" DI Boot | BE199: 10" PVC/DI Boot | BF199: 12" PVC/DI Boot | BG199: 14" DI Boot | BH199: 15" PVC Boot | BI199: 16" DI Boot | BJ199: 18" PVC Boot | BK199: 18" DI Boot | BL199: 20" DI Boot | BM199: 21" PVC Boot | BN199: 24" PVC Boot | BO199: 24" DI Boot | BP199: 27" PVC Boot | BQ199: 30" PVC/DI Boot | BR199: 36" PVC/DI Boot | BS199: 42" PVC Boot | BT199: 48" PVC Boot | BU199: 4" PVC A-Lok | BV199: 4" DI A-Lok | BW199: 6" PVC A-Lok | BX199: 6" DI A-Lok | BY199: 8" PVC A-Lok | BZ199: 8" DI A-Lok | CA199: 10" PVC A-Lok | CB199: 10" DI A-Lok | CC199: 12" PVC A-Lok | CD199: 12" DI A-Lok | CE199: 15" PVC A-Lok | CF199: 18" PVC A-Lok | CG199: 21" PVC A-Lok | CH199: 24" PVC A-Lok | CI199: 30" PVC/DI A-Lok | CJ199: 36" PVC/DI A-Lok | CK199: 42" PVC A-Lok | CL199: 48" PVC A-Lok | CM199: 8" N-12 Boot W/Adapter | CN199: 10" N-12 Boot W/Adapter | CO199: 12" N-12 Boot W/Adapter | CP199: 15" N-12 Boot W/Adapter | CQ199: 18" N-12 Boot W/Adapter | CR199: 24" N-12 Boot W/Adapter (60" MH Min.) | CS199: 30" N-12 Boot W/Adapter (72" MH Min.) | CT199: 36" N-12 Boot W/Adapter (84" MH Min.) | CU199: 42" N-12 Boot W/Adapter (96" MH Min.) | CV199: Blank Slot 1 (A-Lok) | CW199: Blank Slot 2 (A-Lok) | CX199: Blank Slot 3 (A-Lok) | CY199: Blank Slot 4 (A-Lok) | CZ199: Blank Slot 5 (A-Lok) | DA199: Blank Slot 6 (A-Lok)
B200: Pipe Seal Cost | C200: Pipe Seal Cost | D200: Dollar | BA200: 41 | BB200: 28 | BC200: 28 | BD200: 35 | BE200: 49 | BF200: 49 | BG200: 92 | BH200: 92 | BI200: 114 | BJ200: 133 | BK200: 137 | BL200: 144 | BM200: 144 | BN200: 175 | BO200: 185 | BP200: 200 | BQ200: 241 | BR200: 269 | BS200: 393 | BT200: 825 | BU200: 29 | BV200: 29 | BW200: 29 | BX200: 29 | BY200: 31 | BZ200: 31 | CA200: 44 | CB200: 44 | CC200: 52 | CD200: 52 | CE200: 80 | CF200: 99 | CG200: 116 | CH200: 130 | CI200: 269 | CJ200: 327 | CK200: 380 | CL200: 434 | CM200: 59.57 | CN200: 73.9 | CO200: 79.09 | CP200: 150.1 | CQ200: 180.88 | CR200: 243.8 | CS200: 296.23 | CT200: 351.1 | CU200: 611.57
B201: Model Number | C201: Product ID | D201: Model | E201: Grout | F201: Link Seal (By Others) | G201: Grout | H201: Grout | I201: Grout | J201: Grout | K201: Grout | L201: Grout | M201: Grout | N201: Grout | O201: Grout | P201: Grout | Q201: Grout | R201: Grout | S201: Grout | T201: Grout | U201: Grout | V201: Grout | W201: Grout | X201: Grout | Y201: Grout | Z201: Grout | AA201: Grout | AB201: Grout | AC201: Grout | AD201: Grout | AE201: Grout | AF201: Grout | AG201: Grout | AH201: Grout | AI201: Grout | AJ201: Grout | AK201: Grout | AL201: Grout | AM201: Grout | AN201: Grout | AO201: Grout | AP201: Grout | AQ201: Grout | AR201: Grout | AS201: Grout | AT201: Grout | AU201: Grout | AV201: Grout | AW201: Grout | AX201: Grout | AY201: Grout | AZ201: Grout | BA201: 8 QRS PSX:DD | BB201: 12-06 NYLO DRIVE | BC201: 12-08 NYLO DRIVE | BD201: 12M NYLO DRIVE | BE201: 16Y NYLO DRIVE | BF201: 16M NYLO DRIVE | BG201: S206-18L | BH201: S206-18L | BJ201: S206-22 | BM201: S206-26 | BN201: S206-28 | BO201: S206-30 | BP201: S206-32 | BQ201: S206-36 | BR201: S206-42 | BS201: S206-48 | BT201: S206-54L | BU201: Model #140/150 | BV201: Model #160/165 | BW201: Model #200/210 | BX201: Model #225 | BY201: Model #285 | BZ201: Model #300/310 | CA201: Model #350 | CB201: Model #370 | CC201: Model #410 | CD201: Model #425 | CE201: Model #490/500 | CF201: Model #600/610 | CG201: Model #710 | CH201: Model #800/805 | CI201: Model #1040 | CJ201: Model #1235/1240 | CK201: Model #1430 | CL201: Model #1630/1640 | CM201: S106-12 / CGA-8A | CN201: S106-16A / CGA-10A | CO201: S106-16T / CGA-12A | CP201: S206-20L / CGA-15A | CQ201: S206-24L / CGA-18A | CR201: S206-30L-32 / CGA-24A | CS201: S206-38L / CGA-30A | CT201: S206-44L-46 / CGA-36A | CU201: S206-52L / CGA-42A
B202: Manufacturer | BA202: Press-Seal | BB202: Press-Seal | BC202: Press-Seal | BD202: Press-Seal | BE202: Press-Seal | BF202: Press-Seal | BG202: Trelleborg | BH202: Trelleborg | BI202: Trelleborg | BJ202: Trelleborg | BK202: Trelleborg | BL202: Trelleborg | BM202: Trelleborg | BN202: Trelleborg | BO202: Trelleborg | BP202: Trelleborg | BQ202: Trelleborg | BR202: Trelleborg | BS202: Trelleborg | BT202: Trelleborg | BU202: A-Lok | BV202: A-Lok | BW202: A-Lok | BX202: A-Lok | BY202: A-Lok | BZ202: A-Lok | CA202: A-Lok | CB202: A-Lok | CC202: A-Lok | CD202: A-Lok | CE202: A-Lok | CF202: A-Lok | CG202: A-Lok | CH202: A-Lok | CI202: A-Lok | CJ202: A-Lok | CK202: A-Lok | CL202: A-Lok | CM202: Trelleborg | CN202: Trelleborg | CO202: Trelleborg | CP202: Trelleborg | CQ202: Trelleborg | CR202: Trelleborg | CS202: Trelleborg | CT202: Trelleborg | CU202: Trelleborg
B203: Pipe Inside Diameter | C203: ID | D203: Inch | G203: 4 | H203: 6 | I203: 8 | J203: 10 | K203: 12 | L203: 15 | M203: 18 | N203: 21 | O203: 24 | P203: 30 | Q203: 36 | R203: 42 | S203: 48 | T203: 54 | U203: 60 | V203: 66 | W203: 72 | X203: 78 | Y203: 84 | Z203: 90 | AA203: 96 | AB203: 8 | AC203: 10 | AD203: 12 | AE203: 15 | AF203: 18 | AG203: 21 | AH203: 24 | AI203: 30 | AJ203: 36 | AK203: 42 | AL203: 48 | AM203: 54 | AN203: 60 | AO203: 72 | AP203: 14x23 | AQ203: 19x30 | AR203: 22x34 | AS203: 24x38 | AT203: 27x42 | AU203: 29x45 | AV203: 32x49 | AW203: 34x53 | AX203: 38x60 | AY203: 43x68 | AZ203: 48x76 | BA203: 4 | BB203: 6 | BC203: 8 | BD203: 8 | BE203: 10 | BF203: 12 | BG203: 14 | BH203: 15 | BI203: 16 | BJ203: 18 | BK203: 18 | BL203: 20 | BM203: 21 | BN203: 24 | BO203: 24 | BP203: 27 | BQ203: 30 | BR203: 36 | BS203: 42 | BT203: 48 | BU203: 4 | BV203: 4 | BW203: 6 | BX203: 6 | BY203: 8 | BZ203: 8 | CA203: 10 | CB203: 10 | CC203: 12 | CD203: 12 | CE203: 15 | CF203: 18 | CG203: 21 | CH203: 24 | CI203: 30 | CJ203: 36 | CK203: 42 | CL203: 48 | CM203: 8 | CN203: 10 | CO203: 12 | CP203: 15 | CQ203: 18 | CR203: 24 | CS203: 30 | CT203: 36 | CU203: 42
B204: Largest Pipe Thickness (Rounded Up) | C204: Rounded Up Largest Pipe Wall Thickness (Inches) | D204: Inch | E204: 8 | G204: 1 | H204: 1 | I204: 1 | J204: 2 | K204: 2 | L204: 2 | M204: 3 | N204: 3 | O204: 3 | P204: 4 | Q204: 4 | R204: 5 | S204: 5 | T204: 5 | U204: 6 | V204: 7 | W204: 7 | X204: 8 | Y204: 8 | Z204: 9 | AA204: 9 | AB204: 1 | AC204: 1 | AD204: 1 | AE204: 1 | AF204: 1 | AG204: 1 | AH204: 1 | AI204: 1 | AJ204: 1 | AK204: 1 | AL204: 1 | AM204: 1 | AN204: 1 | AO204: 1 | AP204: 4 | AQ204: 4 | AR204: 4 | AS204: 4 | AT204: 4 | AU204: 5 | AV204: 5 | AW204: 5 | AX204: 6 | AY204: 6 | AZ204: 7 | BA204: 2 | BB204: 2 | BC204: 2 | BD204: 2 | BE204: 2 | BF204: 2 | BG204: 2 | BH204: 2 | BI204: 2 | BJ204: 2 | BK204: 2 | BL204: 2 | BM204: 2 | BN204: 2 | BO204: 2 | BP204: 2 | BQ204: 2 | BR204: 2 | BS204: 2 | BT204: 2 | BU204: 2 | BV204: 2 | BW204: 2 | BX204: 2 | BY204: 2 | BZ204: 2 | CA204: 2 | CB204: 2 | CC204: 2 | CD204: 2 | CE204: 2 | CF204: 2 | CG204: 2 | CH204: 2 | CI204: 2 | CJ204: 2 | CK204: 2 | CL204: 2 | CM204: 1 | CN204: 2 | CO204: 2 | CP204: 2 | CQ204: 3 | CR204: 3 | CS204: 4 | CT204: 4 | CU204: 5
B205: Boot/Gasket Pipe O.D. Minimum | D205: Inch | BA205: 1.7 | BB205: 5.7 | BC205: 8 | BD205: 8 | BE205: 10 | BF205: 12.05 | BG205: 15 | BH205: 15 | BJ205: 17.625 | BM205: 21.625 | BN205: 23.625 | BO205: 25.625 | BP205: 27.625 | BQ205: 31.625 | BR205: 37.625 | BS205: 43.625 | BT205: 49.625 | BU205: 4 | BV205: 4.5 | BW205: 6 | BX205: 6.625 | BY205: 8.25 | BZ205: 8.75 | CA205: 10.25 | CB205: 11 | CC205: 12.25 | CD205: 12.75 | CE205: 15 | CF205: 18.25 | CG205: 21.75 | CH205: 23.75 | CI205: 31.75 | CJ205: 38.125 | CK205: 44.25 | CL205: 50.5 | CO205: 13
B206: Boot/Gasket Pipe O.D. Maximum | D206: Inch | BA206: 4.8 | BB206: 6.9 | BC206: 8.65 | BD206: 9.1 | BE206: 11.1 | BF206: 13.3 | BG206: 15.625 | BH206: 15.625 | BJ206: 19 | BM206: 23 | BN206: 25 | BO206: 27 | BP206: 29 | BQ206: 33 | BR206: 39 | BS206: 45 | BT206: 51 | BU206: 4.75 | BV206: 5.25 | BW206: 6.75 | BX206: 7.125 | BY206: 8.75 | BZ206: 9.5 | CA206: 10.75 | CB206: 11.5 | CC206: 12.75 | CD206: 13.25 | CE206: 15.75 | CF206: 19 | CG206: 22.25 | CH206: 24.25 | CI206: 32.25 | CJ206: 38.75 | CK206: 44.75 | CL206: 51 | CO206: 14.5
B207: Hole Size | D207: Inch | G207: 8 | H207: 10 | I207: 12 | J207: 14 | K207: 20 | L207: 24 | M207: 26 | N207: 30 | O207: 34 | P207: 40 | Q207: 48 | R207: 55 | S207: 62 | T207: 68 | U207: 75 | AB207: 12 | AC207: 14 | AD207: 16 | AE207: 20 | AF207: 22 | AG207: 26 | AH207: 28 | AI207: 34 | AJ207: 40 | AK207: 46 | AL207: 52 | AM207: 58 | AN207: 64 | AO207: 77 | AP207: 23x32 | AQ207: 29x40 | AR207: 33x45 | AS207: 35x49 | AT207: 39x54 | AU207: 41x58 | AV207: 46x64 | AW207: 50x69 | AX207: 55x76 | AY207: 60x86 | AZ207: 68x96 | BA207: 8 | BB207: 12 | BC207: 12 | BD207: 12 | BE207: 16 | BF207: 16 | BG207: 18 | BH207: 18 | BJ207: 22 | BL207: 26 | BM207: 26 | BN207: 28 | BO207: 30 | BP207: 32 | BQ207: 36 | BR207: 42 | BS207: 48 | BT207: 54 | CM207: 12 | CN207: 16 | CO207: 16 | CP207: 20 | CQ207: 24 | CR207: 30 | CS207: 38 | CT207: 44 | CU207: 52
B208: Minimum Manhole Size Required | D208: Inch | BA208: 48 | BB208: 48 | BC208: 48 | BD208: 48 | BE208: 48 | BF208: 48 | BG208: 48 | BH208: 48 | BI208: 48 | BJ208: 48 | BK208: 48 | BL208: 48 | BM208: 48 | BN208: 48 | BO208: 60 | BP208: 60 | BQ208: 72 | BR208: 72 | BS208: 96 | BT208: 96 | BU208: 48 | BV208: 48 | BW208: 48 | BX208: 48 | BY208: 48 | BZ208: 48 | CA208: 48 | CB208: 48 | CC208: 48 | CD208: 48 | CE208: 48 | CF208: 48 | CG208: 48 | CH208: 48 | CI208: 60 | CJ208: 60 | CK208: 72 | CL208: 72 | CM208: 48 | CN208: 48 | CO208: 48 | CP208: 48 | CQ208: 48 | CR208: 60 | CS208: 72 | CT208: 84 | CU208: 96
B209: Alternate 1 Model Number | BB209: 09-06 PSX:DD | BC209: 11-08 PSX:DD | BE209: 14M PSX:DD
B210: Alternate 1 Manufacturer | BB210: Press-Seal | BC210: Press-Seal | BE210: Press-Seal
... 740 more rows

Sheet Pipe Input
C1: Data Collection | E1: Formula - Unlock Password: I-Cast | I1: Hidden Items. Unide rows on the quote to use these items.
C2: Select RCP/HERCP Market Location: | E2: Price Per LF (Tennessee)
B3: Line Item # | C3: Bid Item # | D3: Pipe Specified | E3: Pipe Type Quoted | F3: Alternate Status | G3: Pipe Selection | H3: Pipe Size | I3: Line Item Description | J3: LF Selling Price | K3: List Price | L3: RCP List Price | M3: HERCP List Price | N3: Markup | O3: LF Selling Price | P3: Freight Per LF | Q3: Freight Per LF | R3: Extended Total RCP Price | S3: RCP % of Project | T3: Total RCP Weight | U3: Extended Total HERCP Price | V3: HERCP % of Project | W3: Total HERCP Weight | X3: Extended Total HDPE Price | Y3: HDPE % of Project | Z3: HDPE % of a Full Load | AA3: HDPE Full Load Fraction | AB3: Extended Total CMP Price | AC3: Pipe Weight | AD3: # of Sections | AE3: Exact Quantity | AF3: Quantity | AH3: INPUT PIPE RUN LENGTHS IN TABLE BELOW
B4: 1 | F4: =IF(AND(OR(D4="HDPE",D4="CMP"),E4="RCP"),"Alternate","") ->  | I4: =IFERROR(IF(E4="RCP",INDEX(Database!$E$305:$BF$305,MATCH('Pipe Input'!$I$3,Database!$C$305:$BF$305,0),MATCH('Pipe Input'!G4,Database!$E$303:$BF$303,0)),IF(E4="HERCP",INDEX(Database!$E$345:$S$345,MATCH('Pipe Input'!$I$3,Database!$C$345:$S$345,0),MATCH('Pipe Input'!G4,Database!$E$342:$S$342,0)),IF(E4="HDPE",INDEX(Database!$E$366:$S$366,MATCH('Pipe Input'!$I$3,Database!$C$366:$S$366,0),MATCH('Pipe Input'!G4,Database!$E$364:$S$364,0)),IF(E4="CMP",INDEX(Database!$E$383:$AS$383,MATCH('Pipe Input'!$I$3,Database!$C$383:$AS$383,0),MATCH('Pipe Input'!G4,Database!$E$381:$AS$381,0)),"")))),"") ->  | J4: =IFERROR(IF(AF4>0,(ROUNDUP((((K4+P4))/(1-N4/100)),2)),""), "") ->  | K4: =IFERROR(IF(E4="RCP",L4,IF(E4="HERCP",M4,IF(E4="HDPE",INDEX(Database!$E$370:$S$370,MATCH('Pipe Input'!$K$3,Database!$C$370:$S$370,0),MATCH('Pipe Input'!G4,Database!$E$364:$S$364,0)),IF(E4="CMP",INDEX(Database!$E$388:$AS$388,MATCH('Pipe Input'!$K$3,Database!$C$388:$AS$388,0),MATCH('Pipe Input'!G4,Database!$E$381:$AS$381,0)),"")))),"") ->  | L4: =IF(E4="RCP",INDEX(Database!$E$310:$BF$314,MATCH('Pipe Input'!$E$2,Database!$C$310:$C$314,0),MATCH('Pipe Input'!G4,Database!$E$303:$BF$303,0)),"") ->  | M4: =IF(E4="HERCP",INDEX(Database!$E$349:$S$353,MATCH('Pipe Input'!$E$2,Database!$C$349:$C$353,0),MATCH('Pipe Input'!G4,Database!$E$342:$S$342,0)),"") ->  | N4: =IF(E4="RCP",Summary!$AN$5,IF(E4="HERCP",Summary!$AN$33,IF(E4="HDPE",Summary!$AN$50,IF(E4="CMP",Summary!$AN$72, "")))) ->  | O4: =IFERROR(J4,"") ->  | P4: =IF(AF4>0,Q4, 0) -> 0 | Q4: =IFERROR(IF(E4="RCP",((S4*R37)/(AD4*8)),IF(E4="HERCP",((V4*U37)/(AD4*8)),IF(E4="HDPE",((Y4*X37)/(AD4*20)),0))), "") -> 0 | R4: =IFERROR(IF(E4="RCP",(J4*AF4), ""), "") ->  | S4: =IFERROR(IF(E4="RCP",(T4/T37), ""), "") ->  | T4: =IFERROR(IF(E4="RCP",AD4*8*AC4, ""), "") ->  | U4: =IFERROR(IF(E4="HERCP",(J4*AF4), ""), "") ->  | V4: =IFERROR(IF(E4="HERCP",(W4/W37), ""), "") ->  | W4: =IFERROR(IF(E4="HERCP",AD4*8*AC4, ""), "") ->  | X4: =IFERROR(IF(E4="HDPE",(J4*AF4), ""), "") ->  | Y4: =IFERROR(IF(E4="HDPE",(Z4/Z37), ""), "") ->  | Z4: =IFERROR(IF(E4="HDPE",(AA4*AD4), ""), "") ->  | AA4: =IFERROR(IF(E4="HDPE",INDEX(Database!$E$373:$S$373,MATCH('Pipe Input'!$AA$3,Database!$C$373:$S$373,0),MATCH('Pipe Input'!G4,Database!$E$364:$S$364,0)),""), "") ->  | AB4: =IFERROR(IF(E4="CMP",(J4*AF4), ""), "") ->  | AC4: =IFERROR(IF(E4="RCP",INDEX(Database!$E$316:$BF$316,MATCH('Pipe Input'!$AC$3,Database!$C$316:$BF$316,0),MATCH('Pipe Input'!G4,Database!$E$303:$BF$303,0)),IF(E4="HERCP",INDEX(Database!$E$355:$S$355,MATCH('Pipe Input'!$AC$3,Database!$C$355:$S$355,0),MATCH('Pipe Input'!G4,Database!$E$342:$S$342,0)),IF(E4="HDPE",INDEX(Database!$E$371:$S$371,MATCH('Pipe Input'!$AC$3,Database!$C$371:$S$371,0),MATCH('Pipe Input'!G4,Database!$E$364:$S$364,0)),IF(E4="CMP",INDEX(Database!$E$389:$AS$389,MATCH('Pipe Input'!$AC$3,Database!$C$389:$AS$389,0),MATCH('Pipe Input'!G4,Database!$E$381:$AS$381,0)),"")))),"") ->  | AD4: =IF(OR(E4="RCP",E4="HERCP"),(ROUNDUP(AE4/8,0)),IF(OR(E4="HDPE",E4="CMP"),(ROUNDUP(AE4/20,0)),0)) -> 0 | AE4: =SUM(AH4:AAG4) -> 0 | AF4: =IF(OR(E4="RCP",E4="HERCP"),(AD4*8),IF(OR(E4="HDPE",E4="CMP"),(AD4*20),0)) -> 0
B5: =B4+1 -> 2 | F5: =IF(AND(OR(D5="HDPE",D5="CMP"),E5="RCP"),"Alternate","") ->  | I5: =IFERROR(IF(E5="RCP",INDEX(Database!$E$305:$BF$305,MATCH('Pipe Input'!$I$3,Database!$C$305:$BF$305,0),MATCH('Pipe Input'!G5,Database!$E$303:$BF$303,0)),IF(E5="HERCP",INDEX(Database!$E$345:$S$345,MATCH('Pipe Input'!$I$3,Database!$C$345:$S$345,0),MATCH('Pipe Input'!G5,Database!$E$342:$S$342,0)),IF(E5="HDPE",INDEX(Database!$E$366:$S$366,MATCH('Pipe Input'!$I$3,Database!$C$366:$S$366,0),MATCH('Pipe Input'!G5,Database!$E$364:$S$364,0)),IF(E5="CMP",INDEX(Database!$E$383:$AS$383,MATCH('Pipe Input'!$I$3,Database!$C$383:$AS$383,0),MATCH('Pipe Input'!G5,Database!$E$381:$AS$381,0)),"")))),"") ->  | J5: =IFERROR(IF(AF5>0,(ROUNDUP((((K5+P5))/(1-N5/100)),2)),""), "") ->  | K5: =IFERROR(IF(E5="RCP",L5,IF(E5="HERCP",M5,IF(E5="HDPE",INDEX(Database!$E$370:$S$370,MATCH('Pipe Input'!$K$3,Database!$C$370:$S$370,0),MATCH('Pipe Input'!G5,Database!$E$364:$S$364,0)),IF(E5="CMP",INDEX(Database!$E$388:$AS$388,MATCH('Pipe Input'!$K$3,Database!$C$388:$AS$388,0),MATCH('Pipe Input'!G5,Database!$E$381:$AS$381,0)),"")))),"") ->  | L5: =IF(E5="RCP",INDEX(Database!$E$310:$BF$314,MATCH('Pipe Input'!$E$2,Database!$C$310:$C$314,0),MATCH('Pipe Input'!G5,Database!$E$303:$BF$303,0)),"") ->  | M5: =IF(E5="HERCP",INDEX(Database!$E$349:$S$353,MATCH('Pipe Input'!$E$2,Database!$C$349:$C$353,0),MATCH('Pipe Input'!G5,Database!$E$342:$S$342,0)),"") ->  | N5: =IF(E5="RCP",Summary!$AN$5,IF(E5="HERCP",Summary!$AN$33,IF(E5="HDPE",Summary!$AN$50,IF(E5="CMP",Summary!$AN$72, "")))) ->  | O5: =IFERROR(J5,"") ->  | P5: =IF(AF5>0,Q5, 0) -> 0 | Q5: =IFERROR(IF(E5="RCP",((S5*R38)/(AD5*8)),IF(E5="HERCP",((V5*U38)/(AD5*8)),IF(E5="HDPE",((Y5*X38)/(AD5*20)),0))), "") -> 0 | T5: =IFERROR(IF(E5="RCP",AD5*8*AC5, ""), "") ->  | X5: =IFERROR(IF(E5="HDPE",(J5*AF5), ""), "") ->  | Y5: =IFERROR(IF(E5="HDPE",(Z5/Z38), ""), "") ->  | Z5: =IFERROR(IF(E5="HDPE",(AA5*AD5), ""), "") ->  | AA5: =IFERROR(IF(E5="HDPE",INDEX(Database!$E$373:$S$373,MATCH('Pipe Input'!$AA$3,Database!$C$373:$S$373,0),MATCH('Pipe Input'!G5,Database!$E$364:$S$364,0)),""), "") ->  | AB5: =IFERROR(IF(E5="CMP",(J5*AF5), ""), "") ->  | AC5: =IFERROR(IF(E5="RCP",INDEX(Database!$E$316:$BF$316,MATCH('Pipe Input'!$AC$3,Database!$C$316:$BF$316,0),MATCH('Pipe Input'!G5,Database!$E$303:$BF$303,0)),IF(E5="HERCP",INDEX(Database!$E$355:$S$355,MATCH('Pipe Input'!$AC$3,Database!$C$355:$S$355,0),MATCH('Pipe Input'!G5,Database!$E$342:$S$342,0)),IF(E5="HDPE",INDEX(Database!$E$371:$S$371,MATCH('Pipe Input'!$AC$3,Database!$C$371:$S$371,0),MATCH('Pipe Input'!G5,Database!$E$364:$S$364,0)),IF(E5="CMP",INDEX(Database!$E$389:$AS$389,MATCH('Pipe Input'!$AC$3,Database!$C$389:$AS$389,0),MATCH('Pipe Input'!G5,Database!$E$381:$AS$381,0)),"")))),"") ->  | AD5: =IF(OR(E5="RCP",E5="HERCP"),(ROUNDUP(AE5/8,0)),IF(OR(E5="HDPE",E5="CMP"),(ROUNDUP(AE5/20,0)),0)) -> 0 | AE5: 0 | AF5: 0
B6: =B5+1 -> 3 | I6: =IFERROR(IF(E6="RCP",INDEX(Database!$E$305:$BF$305,MATCH('Pipe Input'!$I$3,Database!$C$305:$BF$305,0),MATCH('Pipe Input'!G6,Database!$E$303:$BF$303,0)),IF(E6="HERCP",INDEX(Database!$E$345:$S$345,MATCH('Pipe Input'!$I$3,Database!$C$345:$S$345,0),MATCH('Pipe Input'!G6,Database!$E$342:$S$342,0)),IF(E6="HDPE",INDEX(Database!$E$366:$S$366,MATCH('Pipe Input'!$I$3,Database!$C$366:$S$366,0),MATCH('Pipe Input'!G6,Database!$E$364:$S$364,0)),IF(E6="CMP",INDEX(Database!$E$383:$AS$383,MATCH('Pipe Input'!$I$3,Database!$C$383:$AS$383,0),MATCH('Pipe Input'!G6,Database!$E$381:$AS$381,0)),"")))),"") ->  | K6: =IFERROR(IF(E6="RCP",L6,IF(E6="HERCP",M6,IF(E6="HDPE",INDEX(Database!$E$370:$S$370,MATCH('Pipe Input'!$K$3,Database!$C$370:$S$370,0),MATCH('Pipe Input'!G6,Database!$E$364:$S$364,0)),IF(E6="CMP",INDEX(Database!$E$388:$AS$388,MATCH('Pipe Input'!$K$3,Database!$C$388:$AS$388,0),MATCH('Pipe Input'!G6,Database!$E$381:$AS$381,0)),"")))),"") ->  | L6: =IF(E6="RCP",INDEX(Database!$E$310:$BF$314,MATCH('Pipe Input'!$E$2,Database!$C$310:$C$314,0),MATCH('Pipe Input'!G6,Database!$E$303:$BF$303,0)),"") ->  | M6: =IF(E6="HERCP",INDEX(Database!$E$349:$S$353,MATCH('Pipe Input'!$E$2,Database!$C$349:$C$353,0),MATCH('Pipe Input'!G6,Database!$E$342:$S$342,0)),"") ->  | N6: =IF(E6="RCP",Summary!$AN$5,IF(E6="HERCP",Summary!$AN$33,IF(E6="HDPE",Summary!$AN$50,IF(E6="CMP",Summary!$AN$72, "")))) ->  | O6: =IFERROR(J6,"") ->  | P6: 0 | Q6: 0 | AA6: =IFERROR(IF(E6="HDPE",INDEX(Database!$E$373:$S$373,MATCH('Pipe Input'!$AA$3,Database!$C$373:$S$373,0),MATCH('Pipe Input'!G6,Database!$E$364:$S$364,0)),""), "") ->  | AC6: =IFERROR(IF(E6="RCP",INDEX(Database!$E$316:$BF$316,MATCH('Pipe Input'!$AC$3,Database!$C$316:$BF$316,0),MATCH('Pipe Input'!G6,Database!$E$303:$BF$303,0)),IF(E6="HERCP",INDEX(Database!$E$355:$S$355,MATCH('Pipe Input'!$AC$3,Database!$C$355:$S$355,0),MATCH('Pipe Input'!G6,Database!$E$342:$S$342,0)),IF(E6="HDPE",INDEX(Database!$E$371:$S$371,MATCH('Pipe Input'!$AC$3,Database!$C$371:$S$371,0),MATCH('Pipe Input'!G6,Database!$E$364:$S$364,0)),IF(E6="CMP",INDEX(Database!$E$389:$AS$389,MATCH('Pipe Input'!$AC$3,Database!$C$389:$AS$389,0),MATCH('Pipe Input'!G6,Database!$E$381:$AS$381,0)),"")))),"") ->  | AD6: 0 | AE6: =SUM(AH6:AAG6) -> 0 | AF6: 0
B7: 4 | I7: =IFERROR(IF(E7="RCP",INDEX(Database!$E$305:$BF$305,MATCH('Pipe Input'!$I$3,Database!$C$305:$BF$305,0),MATCH('Pipe Input'!G7,Database!$E$303:$BF$303,0)),IF(E7="HERCP",INDEX(Database!$E$345:$S$345,MATCH('Pipe Input'!$I$3,Database!$C$345:$S$345,0),MATCH('Pipe Input'!G7,Database!$E$342:$S$342,0)),IF(E7="HDPE",INDEX(Database!$E$366:$S$366,MATCH('Pipe Input'!$I$3,Database!$C$366:$S$366,0),MATCH('Pipe Input'!G7,Database!$E$364:$S$364,0)),IF(E7="CMP",INDEX(Database!$E$383:$AS$383,MATCH('Pipe Input'!$I$3,Database!$C$383:$AS$383,0),MATCH('Pipe Input'!G7,Database!$E$381:$AS$381,0)),"")))),"") ->  | K7: =IFERROR(IF(E7="RCP",L7,IF(E7="HERCP",M7,IF(E7="HDPE",INDEX(Database!$E$370:$S$370,MATCH('Pipe Input'!$K$3,Database!$C$370:$S$370,0),MATCH('Pipe Input'!G7,Database!$E$364:$S$364,0)),IF(E7="CMP",INDEX(Database!$E$388:$AS$388,MATCH('Pipe Input'!$K$3,Database!$C$388:$AS$388,0),MATCH('Pipe Input'!G7,Database!$E$381:$AS$381,0)),"")))),"") ->  | L7: =IF(E7="RCP",INDEX(Database!$E$310:$BF$314,MATCH('Pipe Input'!$E$2,Database!$C$310:$C$314,0),MATCH('Pipe Input'!G7,Database!$E$303:$BF$303,0)),"") ->  | M7: =IF(E7="HERCP",INDEX(Database!$E$349:$S$353,MATCH('Pipe Input'!$E$2,Database!$C$349:$C$353,0),MATCH('Pipe Input'!G7,Database!$E$342:$S$342,0)),"") ->  | N7: =IF(E7="RCP",Summary!$AN$5,IF(E7="HERCP",Summary!$AN$33,IF(E7="HDPE",Summary!$AN$50,IF(E7="CMP",Summary!$AN$72, "")))) ->  | O7: =IFERROR(J7,"") ->  | P7: 0 | Q7: 0 | AA7: =IFERROR(IF(E7="HDPE",INDEX(Database!$E$373:$S$373,MATCH('Pipe Input'!$AA$3,Database!$C$373:$S$373,0),MATCH('Pipe Input'!G7,Database!$E$364:$S$364,0)),""), "") ->  | AC7: =IFERROR(IF(E7="RCP",INDEX(Database!$E$316:$BF$316,MATCH('Pipe Input'!$AC$3,Database!$C$316:$BF$316,0),MATCH('Pipe Input'!G7,Database!$E$303:$BF$303,0)),IF(E7="HERCP",INDEX(Database!$E$355:$S$355,MATCH('Pipe Input'!$AC$3,Database!$C$355:$S$355,0),MATCH('Pipe Input'!G7,Database!$E$342:$S$342,0)),IF(E7="HDPE",INDEX(Database!$E$371:$S$371,MATCH('Pipe Input'!$AC$3,Database!$C$371:$S$371,0),MATCH('Pipe Input'!G7,Database!$E$364:$S$364,0)),IF(E7="CMP",INDEX(Database!$E$389:$AS$389,MATCH('Pipe Input'!$AC$3,Database!$C$389:$AS$389,0),MATCH('Pipe Input'!G7,Database!$E$381:$AS$381,0)),"")))),"") ->  | AD7: 0 | AE7: 0 | AF7: 0
B8: 5 | I8: =IFERROR(IF(E8="RCP",INDEX(Database!$E$305:$BF$305,MATCH('Pipe Input'!$I$3,Database!$C$305:$BF$305,0),MATCH('Pipe Input'!G8,Database!$E$303:$BF$303,0)),IF(E8="HERCP",INDEX(Database!$E$345:$S$345,MATCH('Pipe Input'!$I$3,Database!$C$345:$S$345,0),MATCH('Pipe Input'!G8,Database!$E$342:$S$342,0)),IF(E8="HDPE",INDEX(Database!$E$366:$S$366,MATCH('Pipe Input'!$I$3,Database!$C$366:$S$366,0),MATCH('Pipe Input'!G8,Database!$E$364:$S$364,0)),IF(E8="CMP",INDEX(Database!$E$383:$AS$383,MATCH('Pipe Input'!$I$3,Database!$C$383:$AS$383,0),MATCH('Pipe Input'!G8,Database!$E$381:$AS$381,0)),"")))),"") ->  | K8: =IFERROR(IF(E8="RCP",L8,IF(E8="HERCP",M8,IF(E8="HDPE",INDEX(Database!$E$370:$S$370,MATCH('Pipe Input'!$K$3,Database!$C$370:$S$370,0),MATCH('Pipe Input'!G8,Database!$E$364:$S$364,0)),IF(E8="CMP",INDEX(Database!$E$388:$AS$388,MATCH('Pipe Input'!$K$3,Database!$C$388:$AS$388,0),MATCH('Pipe Input'!G8,Database!$E$381:$AS$381,0)),"")))),"") ->  | L8: =IF(E8="RCP",INDEX(Database!$E$310:$BF$314,MATCH('Pipe Input'!$E$2,Database!$C$310:$C$314,0),MATCH('Pipe Input'!G8,Database!$E$303:$BF$303,0)),"") ->  | M8: =IF(E8="HERCP",INDEX(Database!$E$349:$S$353,MATCH('Pipe Input'!$E$2,Database!$C$349:$C$353,0),MATCH('Pipe Input'!G8,Database!$E$342:$S$342,0)),"") ->  | N8: =IF(E8="RCP",Summary!$AN$5,IF(E8="HERCP",Summary!$AN$33,IF(E8="HDPE",Summary!$AN$50,IF(E8="CMP",Summary!$AN$72, "")))) ->  | P8: 0 | Q8: 0 | AA8: =IFERROR(IF(E8="HDPE",INDEX(Database!$E$373:$S$373,MATCH('Pipe Input'!$AA$3,Database!$C$373:$S$373,0),MATCH('Pipe Input'!G8,Database!$E$364:$S$364,0)),""), "") ->  | AC8: =IFERROR(IF(E8="RCP",INDEX(Database!$E$316:$BF$316,MATCH('Pipe Input'!$AC$3,Database!$C$316:$BF$316,0),MATCH('Pipe Input'!G8,Database!$E$303:$BF$303,0)),IF(E8="HERCP",INDEX(Database!$E$355:$S$355,MATCH('Pipe Input'!$AC$3,Database!$C$355:$S$355,0),MATCH('Pipe Input'!G8,Database!$E$342:$S$342,0)),IF(E8="HDPE",INDEX(Database!$E$371:$S$371,MATCH('Pipe Input'!$AC$3,Database!$C$371:$S$371,0),MATCH('Pipe Input'!G8,Database!$E$364:$S$364,0)),IF(E8="CMP",INDEX(Database!$E$389:$AS$389,MATCH('Pipe Input'!$AC$3,Database!$C$389:$AS$389,0),MATCH('Pipe Input'!G8,Database!$E$381:$AS$381,0)),"")))),"") ->  | AD8: 0 | AE8: 0 | AF8: 0
B9: 6 | I9: =IFERROR(IF(E9="RCP",INDEX(Database!$E$305:$BF$305,MATCH('Pipe Input'!$I$3,Database!$C$305:$BF$305,0),MATCH('Pipe Input'!G9,Database!$E$303:$BF$303,0)),IF(E9="HERCP",INDEX(Database!$E$345:$S$345,MATCH('Pipe Input'!$I$3,Database!$C$345:$S$345,0),MATCH('Pipe Input'!G9,Database!$E$342:$S$342,0)),IF(E9="HDPE",INDEX(Database!$E$366:$S$366,MATCH('Pipe Input'!$I$3,Database!$C$366:$S$366,0),MATCH('Pipe Input'!G9,Database!$E$364:$S$364,0)),IF(E9="CMP",INDEX(Database!$E$383:$AS$383,MATCH('Pipe Input'!$I$3,Database!$C$383:$AS$383,0),MATCH('Pipe Input'!G9,Database!$E$381:$AS$381,0)),"")))),"") ->  | K9: =IFERROR(IF(E9="RCP",L9,IF(E9="HERCP",M9,IF(E9="HDPE",INDEX(Database!$E$370:$S$370,MATCH('Pipe Input'!$K$3,Database!$C$370:$S$370,0),MATCH('Pipe Input'!G9,Database!$E$364:$S$364,0)),IF(E9="CMP",INDEX(Database!$E$388:$AS$388,MATCH('Pipe Input'!$K$3,Database!$C$388:$AS$388,0),MATCH('Pipe Input'!G9,Database!$E$381:$AS$381,0)),"")))),"") ->  | L9: =IF(E9="RCP",INDEX(Database!$E$310:$BF$314,MATCH('Pipe Input'!$E$2,Database!$C$310:$C$314,0),MATCH('Pipe Input'!G9,Database!$E$303:$BF$303,0)),"") ->  | M9: =IF(E9="HERCP",INDEX(Database!$E$349:$S$353,MATCH('Pipe Input'!$E$2,Database!$C$349:$C$353,0),MATCH('Pipe Input'!G9,Database!$E$342:$S$342,0)),"") ->  | N9: =IF(E9="RCP",Summary!$AN$5,IF(E9="HERCP",Summary!$AN$33,IF(E9="HDPE",Summary!$AN$50,IF(E9="CMP",Summary!$AN$72, "")))) ->  | P9: 0 | Q9: 0 | AA9: =IFERROR(IF(E9="HDPE",INDEX(Database!$E$373:$S$373,MATCH('Pipe Input'!$AA$3,Database!$C$373:$S$373,0),MATCH('Pipe Input'!G9,Database!$E$364:$S$364,0)),""), "") ->  | AC9: =IFERROR(IF(E9="RCP",INDEX(Database!$E$316:$BF$316,MATCH('Pipe Input'!$AC$3,Database!$C$316:$BF$316,0),MATCH('Pipe Input'!G9,Database!$E$303:$BF$303,0)),IF(E9="HERCP",INDEX(Database!$E$355:$S$355,MATCH('Pipe Input'!$AC$3,Database!$C$355:$S$355,0),MATCH('Pipe Input'!G9,Database!$E$342:$S$342,0)),IF(E9="HDPE",INDEX(Database!$E$371:$S$371,MATCH('Pipe Input'!$AC$3,Database!$C$371:$S$371,0),MATCH('Pipe Input'!G9,Database!$E$364:$S$364,0)),IF(E9="CMP",INDEX(Database!$E$389:$AS$389,MATCH('Pipe Input'!$AC$3,Database!$C$389:$AS$389,0),MATCH('Pipe Input'!G9,Database!$E$381:$AS$381,0)),"")))),"") ->  | AD9: 0 | AE9: 0 | AF9: 0
B10: 7 | I10: =IFERROR(IF(E10="RCP",INDEX(Database!$E$305:$BF$305,MATCH('Pipe Input'!$I$3,Database!$C$305:$BF$305,0),MATCH('Pipe Input'!G10,Database!$E$303:$BF$303,0)),IF(E10="HERCP",INDEX(Database!$E$345:$S$345,MATCH('Pipe Input'!$I$3,Database!$C$345:$S$345,0),MATCH('Pipe Input'!G10,Database!$E$342:$S$342,0)),IF(E10="HDPE",INDEX(Database!$E$366:$S$366,MATCH('Pipe Input'!$I$3,Database!$C$366:$S$366,0),MATCH('Pipe Input'!G10,Database!$E$364:$S$364,0)),IF(E10="CMP",INDEX(Database!$E$383:$AS$383,MATCH('Pipe Input'!$I$3,Database!$C$383:$AS$383,0),MATCH('Pipe Input'!G10,Database!$E$381:$AS$381,0)),"")))),"") ->  | K10: =IFERROR(IF(E10="RCP",L10,IF(E10="HERCP",M10,IF(E10="HDPE",INDEX(Database!$E$370:$S$370,MATCH('Pipe Input'!$K$3,Database!$C$370:$S$370,0),MATCH('Pipe Input'!G10,Database!$E$364:$S$364,0)),IF(E10="CMP",INDEX(Database!$E$388:$AS$388,MATCH('Pipe Input'!$K$3,Database!$C$388:$AS$388,0),MATCH('Pipe Input'!G10,Database!$E$381:$AS$381,0)),"")))),"") ->  | L10: =IF(E10="RCP",INDEX(Database!$E$310:$BF$314,MATCH('Pipe Input'!$E$2,Database!$C$310:$C$314,0),MATCH('Pipe Input'!G10,Database!$E$303:$BF$303,0)),"") ->  | M10: =IF(E10="HERCP",INDEX(Database!$E$349:$S$353,MATCH('Pipe Input'!$E$2,Database!$C$349:$C$353,0),MATCH('Pipe Input'!G10,Database!$E$342:$S$342,0)),"") ->  | N10: =IF(E10="RCP",Summary!$AN$5,IF(E10="HERCP",Summary!$AN$33,IF(E10="HDPE",Summary!$AN$50,IF(E10="CMP",Summary!$AN$72, "")))) ->  | P10: 0 | Q10: 0 | AA10: =IFERROR(IF(E10="HDPE",INDEX(Database!$E$373:$S$373,MATCH('Pipe Input'!$AA$3,Database!$C$373:$S$373,0),MATCH('Pipe Input'!G10,Database!$E$364:$S$364,0)),""), "") ->  | AC10: =IFERROR(IF(E10="RCP",INDEX(Database!$E$316:$BF$316,MATCH('Pipe Input'!$AC$3,Database!$C$316:$BF$316,0),MATCH('Pipe Input'!G10,Database!$E$303:$BF$303,0)),IF(E10="HERCP",INDEX(Database!$E$355:$S$355,MATCH('Pipe Input'!$AC$3,Database!$C$355:$S$355,0),MATCH('Pipe Input'!G10,Database!$E$342:$S$342,0)),IF(E10="HDPE",INDEX(Database!$E$371:$S$371,MATCH('Pipe Input'!$AC$3,Database!$C$371:$S$371,0),MATCH('Pipe Input'!G10,Database!$E$364:$S$364,0)),IF(E10="CMP",INDEX(Database!$E$389:$AS$389,MATCH('Pipe Input'!$AC$3,Database!$C$389:$AS$389,0),MATCH('Pipe Input'!G10,Database!$E$381:$AS$381,0)),"")))),"") ->  | AD10: 0 | AE10: 0 | AF10: 0
B11: 8 | I11: =IFERROR(IF(E11="RCP",INDEX(Database!$E$305:$BF$305,MATCH('Pipe Input'!$I$3,Database!$C$305:$BF$305,0),MATCH('Pipe Input'!G11,Database!$E$303:$BF$303,0)),IF(E11="HERCP",INDEX(Database!$E$345:$S$345,MATCH('Pipe Input'!$I$3,Database!$C$345:$S$345,0),MATCH('Pipe Input'!G11,Database!$E$342:$S$342,0)),IF(E11="HDPE",INDEX(Database!$E$366:$S$366,MATCH('Pipe Input'!$I$3,Database!$C$366:$S$366,0),MATCH('Pipe Input'!G11,Database!$E$364:$S$364,0)),IF(E11="CMP",INDEX(Database!$E$383:$AS$383,MATCH('Pipe Input'!$I$3,Database!$C$383:$AS$383,0),MATCH('Pipe Input'!G11,Database!$E$381:$AS$381,0)),"")))),"") ->  | K11: =IFERROR(IF(E11="RCP",L11,IF(E11="HERCP",M11,IF(E11="HDPE",INDEX(Database!$E$370:$S$370,MATCH('Pipe Input'!$K$3,Database!$C$370:$S$370,0),MATCH('Pipe Input'!G11,Database!$E$364:$S$364,0)),IF(E11="CMP",INDEX(Database!$E$388:$AS$388,MATCH('Pipe Input'!$K$3,Database!$C$388:$AS$388,0),MATCH('Pipe Input'!G11,Database!$E$381:$AS$381,0)),"")))),"") ->  | L11: =IF(E11="RCP",INDEX(Database!$E$310:$BF$314,MATCH('Pipe Input'!$E$2,Database!$C$310:$C$314,0),MATCH('Pipe Input'!G11,Database!$E$303:$BF$303,0)),"") ->  | M11: =IF(E11="HERCP",INDEX(Database!$E$349:$S$353,MATCH('Pipe Input'!$E$2,Database!$C$349:$C$353,0),MATCH('Pipe Input'!G11,Database!$E$342:$S$342,0)),"") ->  | N11: =IF(E11="RCP",Summary!$AN$5,IF(E11="HERCP",Summary!$AN$33,IF(E11="HDPE",Summary!$AN$50,IF(E11="CMP",Summary!$AN$72, "")))) ->  | P11: 0 | Q11: 0 | AA11: =IFERROR(IF(E11="HDPE",INDEX(Database!$E$373:$S$373,MATCH('Pipe Input'!$AA$3,Database!$C$373:$S$373,0),MATCH('Pipe Input'!G11,Database!$E$364:$S$364,0)),""), "") ->  | AC11: =IFERROR(IF(E11="RCP",INDEX(Database!$E$316:$BF$316,MATCH('Pipe Input'!$AC$3,Database!$C$316:$BF$316,0),MATCH('Pipe Input'!G11,Database!$E$303:$BF$303,0)),IF(E11="HERCP",INDEX(Database!$E$355:$S$355,MATCH('Pipe Input'!$AC$3,Database!$C$355:$S$355,0),MATCH('Pipe Input'!G11,Database!$E$342:$S$342,0)),IF(E11="HDPE",INDEX(Database!$E$371:$S$371,MATCH('Pipe Input'!$AC$3,Database!$C$371:$S$371,0),MATCH('Pipe Input'!G11,Database!$E$364:$S$364,0)),IF(E11="CMP",INDEX(Database!$E$389:$AS$389,MATCH('Pipe Input'!$AC$3,Database!$C$389:$AS$389,0),MATCH('Pipe Input'!G11,Database!$E$381:$AS$381,0)),"")))),"") ->  | AD11: 0 | AE11: 0 | AF11: 0
B12: 9 | I12: =IFERROR(IF(E12="RCP",INDEX(Database!$E$305:$BF$305,MATCH('Pipe Input'!$I$3,Database!$C$305:$BF$305,0),MATCH('Pipe Input'!G12,Database!$E$303:$BF$303,0)),IF(E12="HERCP",INDEX(Database!$E$345:$S$345,MATCH('Pipe Input'!$I$3,Database!$C$345:$S$345,0),MATCH('Pipe Input'!G12,Database!$E$342:$S$342,0)),IF(E12="HDPE",INDEX(Database!$E$366:$S$366,MATCH('Pipe Input'!$I$3,Database!$C$366:$S$366,0),MATCH('Pipe Input'!G12,Database!$E$364:$S$364,0)),IF(E12="CMP",INDEX(Database!$E$383:$AS$383,MATCH('Pipe Input'!$I$3,Database!$C$383:$AS$383,0),MATCH('Pipe Input'!G12,Database!$E$381:$AS$381,0)),"")))),"") ->  | K12: =IFERROR(IF(E12="RCP",L12,IF(E12="HERCP",M12,IF(E12="HDPE",INDEX(Database!$E$370:$S$370,MATCH('Pipe Input'!$K$3,Database!$C$370:$S$370,0),MATCH('Pipe Input'!G12,Database!$E$364:$S$364,0)),IF(E12="CMP",INDEX(Database!$E$388:$AS$388,MATCH('Pipe Input'!$K$3,Database!$C$388:$AS$388,0),MATCH('Pipe Input'!G12,Database!$E$381:$AS$381,0)),"")))),"") ->  | L12: =IF(E12="RCP",INDEX(Database!$E$310:$BF$314,MATCH('Pipe Input'!$E$2,Database!$C$310:$C$314,0),MATCH('Pipe Input'!G12,Database!$E$303:$BF$303,0)),"") ->  | M12: =IF(E12="HERCP",INDEX(Database!$E$349:$S$353,MATCH('Pipe Input'!$E$2,Database!$C$349:$C$353,0),MATCH('Pipe Input'!G12,Database!$E$342:$S$342,0)),"") ->  | N12: =IF(E12="RCP",Summary!$AN$5,IF(E12="HERCP",Summary!$AN$33,IF(E12="HDPE",Summary!$AN$50,IF(E12="CMP",Summary!$AN$72, "")))) ->  | P12: 0 | Q12: 0 | AA12: =IFERROR(IF(E12="HDPE",INDEX(Database!$E$373:$S$373,MATCH('Pipe Input'!$AA$3,Database!$C$373:$S$373,0),MATCH('Pipe Input'!G12,Database!$E$364:$S$364,0)),""), "") ->  | AC12: =IFERROR(IF(E12="RCP",INDEX(Database!$E$316:$BF$316,MATCH('Pipe Input'!$AC$3,Database!$C$316:$BF$316,0),MATCH('Pipe Input'!G12,Database!$E$303:$BF$303,0)),IF(E12="HERCP",INDEX(Database!$E$355:$S$355,MATCH('Pipe Input'!$AC$3,Database!$C$355:$S$355,0),MATCH('Pipe Input'!G12,Database!$E$342:$S$342,0)),IF(E12="HDPE",INDEX(Database!$E$371:$S$371,MATCH('Pipe Input'!$AC$3,Database!$C$371:$S$371,0),MATCH('Pipe Input'!G12,Database!$E$364:$S$364,0)),IF(E12="CMP",INDEX(Database!$E$389:$AS$389,MATCH('Pipe Input'!$AC$3,Database!$C$389:$AS$389,0),MATCH('Pipe Input'!G12,Database!$E$381:$AS$381,0)),"")))),"") ->  | AD12: 0 | AE12: 0 | AF12: 0
B13: 10 | I13: =IFERROR(IF(E13="RCP",INDEX(Database!$E$305:$BF$305,MATCH('Pipe Input'!$I$3,Database!$C$305:$BF$305,0),MATCH('Pipe Input'!G13,Database!$E$303:$BF$303,0)),IF(E13="HERCP",INDEX(Database!$E$345:$S$345,MATCH('Pipe Input'!$I$3,Database!$C$345:$S$345,0),MATCH('Pipe Input'!G13,Database!$E$342:$S$342,0)),IF(E13="HDPE",INDEX(Database!$E$366:$S$366,MATCH('Pipe Input'!$I$3,Database!$C$366:$S$366,0),MATCH('Pipe Input'!G13,Database!$E$364:$S$364,0)),IF(E13="CMP",INDEX(Database!$E$383:$AS$383,MATCH('Pipe Input'!$I$3,Database!$C$383:$AS$383,0),MATCH('Pipe Input'!G13,Database!$E$381:$AS$381,0)),"")))),"") ->  | K13: =IFERROR(IF(E13="RCP",L13,IF(E13="HERCP",M13,IF(E13="HDPE",INDEX(Database!$E$370:$S$370,MATCH('Pipe Input'!$K$3,Database!$C$370:$S$370,0),MATCH('Pipe Input'!G13,Database!$E$364:$S$364,0)),IF(E13="CMP",INDEX(Database!$E$388:$AS$388,MATCH('Pipe Input'!$K$3,Database!$C$388:$AS$388,0),MATCH('Pipe Input'!G13,Database!$E$381:$AS$381,0)),"")))),"") ->  | L13: =IF(E13="RCP",INDEX(Database!$E$310:$BF$314,MATCH('Pipe Input'!$E$2,Database!$C$310:$C$314,0),MATCH('Pipe Input'!G13,Database!$E$303:$BF$303,0)),"") ->  | M13: =IF(E13="HERCP",INDEX(Database!$E$349:$S$353,MATCH('Pipe Input'!$E$2,Database!$C$349:$C$353,0),MATCH('Pipe Input'!G13,Database!$E$342:$S$342,0)),"") ->  | N13: =IF(E13="RCP",Summary!$AN$5,IF(E13="HERCP",Summary!$AN$33,IF(E13="HDPE",Summary!$AN$50,IF(E13="CMP",Summary!$AN$72, "")))) ->  | P13: 0 | Q13: 0 | AA13: =IFERROR(IF(E13="HDPE",INDEX(Database!$E$373:$S$373,MATCH('Pipe Input'!$AA$3,Database!$C$373:$S$373,0),MATCH('Pipe Input'!G13,Database!$E$364:$S$364,0)),""), "") ->  | AC13: =IFERROR(IF(E13="RCP",INDEX(Database!$E$316:$BF$316,MATCH('Pipe Input'!$AC$3,Database!$C$316:$BF$316,0),MATCH('Pipe Input'!G13,Database!$E$303:$BF$303,0)),IF(E13="HERCP",INDEX(Database!$E$355:$S$355,MATCH('Pipe Input'!$AC$3,Database!$C$355:$S$355,0),MATCH('Pipe Input'!G13,Database!$E$342:$S$342,0)),IF(E13="HDPE",INDEX(Database!$E$371:$S$371,MATCH('Pipe Input'!$AC$3,Database!$C$371:$S$371,0),MATCH('Pipe Input'!G13,Database!$E$364:$S$364,0)),IF(E13="CMP",INDEX(Database!$E$389:$AS$389,MATCH('Pipe Input'!$AC$3,Database!$C$389:$AS$389,0),MATCH('Pipe Input'!G13,Database!$E$381:$AS$381,0)),"")))),"") ->  | AD13: 0 | AE13: 0 | AF13: 0
B14: 11 | I14: =IFERROR(IF(E14="RCP",INDEX(Database!$E$305:$BF$305,MATCH('Pipe Input'!$I$3,Database!$C$305:$BF$305,0),MATCH('Pipe Input'!G14,Database!$E$303:$BF$303,0)),IF(E14="HERCP",INDEX(Database!$E$345:$S$345,MATCH('Pipe Input'!$I$3,Database!$C$345:$S$345,0),MATCH('Pipe Input'!G14,Database!$E$342:$S$342,0)),IF(E14="HDPE",INDEX(Database!$E$366:$S$366,MATCH('Pipe Input'!$I$3,Database!$C$366:$S$366,0),MATCH('Pipe Input'!G14,Database!$E$364:$S$364,0)),IF(E14="CMP",INDEX(Database!$E$383:$AS$383,MATCH('Pipe Input'!$I$3,Database!$C$383:$AS$383,0),MATCH('Pipe Input'!G14,Database!$E$381:$AS$381,0)),"")))),"") ->  | K14: =IFERROR(IF(E14="RCP",L14,IF(E14="HERCP",M14,IF(E14="HDPE",INDEX(Database!$E$370:$S$370,MATCH('Pipe Input'!$K$3,Database!$C$370:$S$370,0),MATCH('Pipe Input'!G14,Database!$E$364:$S$364,0)),IF(E14="CMP",INDEX(Database!$E$388:$AS$388,MATCH('Pipe Input'!$K$3,Database!$C$388:$AS$388,0),MATCH('Pipe Input'!G14,Database!$E$381:$AS$381,0)),"")))),"") ->  | L14: =IF(E14="RCP",INDEX(Database!$E$310:$BF$314,MATCH('Pipe Input'!$E$2,Database!$C$310:$C$314,0),MATCH('Pipe Input'!G14,Database!$E$303:$BF$303,0)),"") ->  | M14: =IF(E14="HERCP",INDEX(Database!$E$349:$S$353,MATCH('Pipe Input'!$E$2,Database!$C$349:$C$353,0),MATCH('Pipe Input'!G14,Database!$E$342:$S$342,0)),"") ->  | N14: =IF(E14="RCP",Summary!$AN$5,IF(E14="HERCP",Summary!$AN$33,IF(E14="HDPE",Summary!$AN$50,IF(E14="CMP",Summary!$AN$72, "")))) ->  | P14: 0 | Q14: 0 | AA14: =IFERROR(IF(E14="HDPE",INDEX(Database!$E$373:$S$373,MATCH('Pipe Input'!$AA$3,Database!$C$373:$S$373,0),MATCH('Pipe Input'!G14,Database!$E$364:$S$364,0)),""), "") ->  | AC14: =IFERROR(IF(E14="RCP",INDEX(Database!$E$316:$BF$316,MATCH('Pipe Input'!$AC$3,Database!$C$316:$BF$316,0),MATCH('Pipe Input'!G14,Database!$E$303:$BF$303,0)),IF(E14="HERCP",INDEX(Database!$E$355:$S$355,MATCH('Pipe Input'!$AC$3,Database!$C$355:$S$355,0),MATCH('Pipe Input'!G14,Database!$E$342:$S$342,0)),IF(E14="HDPE",INDEX(Database!$E$371:$S$371,MATCH('Pipe Input'!$AC$3,Database!$C$371:$S$371,0),MATCH('Pipe Input'!G14,Database!$E$364:$S$364,0)),IF(E14="CMP",INDEX(Database!$E$389:$AS$389,MATCH('Pipe Input'!$AC$3,Database!$C$389:$AS$389,0),MATCH('Pipe Input'!G14,Database!$E$381:$AS$381,0)),"")))),"") ->  | AD14: 0 | AE14: 0 | AF14: 0
B15: =B14+1 -> 12 | I15: =IFERROR(IF(E15="RCP",INDEX(Database!$E$305:$BF$305,MATCH('Pipe Input'!$I$3,Database!$C$305:$BF$305,0),MATCH('Pipe Input'!G15,Database!$E$303:$BF$303,0)),IF(E15="HERCP",INDEX(Database!$E$345:$S$345,MATCH('Pipe Input'!$I$3,Database!$C$345:$S$345,0),MATCH('Pipe Input'!G15,Database!$E$342:$S$342,0)),IF(E15="HDPE",INDEX(Database!$E$366:$S$366,MATCH('Pipe Input'!$I$3,Database!$C$366:$S$366,0),MATCH('Pipe Input'!G15,Database!$E$364:$S$364,0)),IF(E15="CMP",INDEX(Database!$E$383:$AS$383,MATCH('Pipe Input'!$I$3,Database!$C$383:$AS$383,0),MATCH('Pipe Input'!G15,Database!$E$381:$AS$381,0)),"")))),"") ->  | K15: =IFERROR(IF(E15="RCP",L15,IF(E15="HERCP",M15,IF(E15="HDPE",INDEX(Database!$E$370:$S$370,MATCH('Pipe Input'!$K$3,Database!$C$370:$S$370,0),MATCH('Pipe Input'!G15,Database!$E$364:$S$364,0)),IF(E15="CMP",INDEX(Database!$E$388:$AS$388,MATCH('Pipe Input'!$K$3,Database!$C$388:$AS$388,0),MATCH('Pipe Input'!G15,Database!$E$381:$AS$381,0)),"")))),"") ->  | L15: =IF(E15="RCP",INDEX(Database!$E$310:$BF$314,MATCH('Pipe Input'!$E$2,Database!$C$310:$C$314,0),MATCH('Pipe Input'!G15,Database!$E$303:$BF$303,0)),"") ->  | M15: =IF(E15="HERCP",INDEX(Database!$E$349:$S$353,MATCH('Pipe Input'!$E$2,Database!$C$349:$C$353,0),MATCH('Pipe Input'!G15,Database!$E$342:$S$342,0)),"") ->  | N15: =IF(E15="RCP",Summary!$AN$5,IF(E15="HERCP",Summary!$AN$33,IF(E15="HDPE",Summary!$AN$50,IF(E15="CMP",Summary!$AN$72, "")))) ->  | P15: 0 | Q15: 0 | AA15: =IFERROR(IF(E15="HDPE",INDEX(Database!$E$373:$S$373,MATCH('Pipe Input'!$AA$3,Database!$C$373:$S$373,0),MATCH('Pipe Input'!G15,Database!$E$364:$S$364,0)),""), "") ->  | AC15: =IFERROR(IF(E15="RCP",INDEX(Database!$E$316:$BF$316,MATCH('Pipe Input'!$AC$3,Database!$C$316:$BF$316,0),MATCH('Pipe Input'!G15,Database!$E$303:$BF$303,0)),IF(E15="HERCP",INDEX(Database!$E$355:$S$355,MATCH('Pipe Input'!$AC$3,Database!$C$355:$S$355,0),MATCH('Pipe Input'!G15,Database!$E$342:$S$342,0)),IF(E15="HDPE",INDEX(Database!$E$371:$S$371,MATCH('Pipe Input'!$AC$3,Database!$C$371:$S$371,0),MATCH('Pipe Input'!G15,Database!$E$364:$S$364,0)),IF(E15="CMP",INDEX(Database!$E$389:$AS$389,MATCH('Pipe Input'!$AC$3,Database!$C$389:$AS$389,0),MATCH('Pipe Input'!G15,Database!$E$381:$AS$381,0)),"")))),"") ->  | AD15: 0 | AE15: 0 | AF15: 0
B16: 13 | I16: =IFERROR(IF(E16="RCP",INDEX(Database!$E$305:$BF$305,MATCH('Pipe Input'!$I$3,Database!$C$305:$BF$305,0),MATCH('Pipe Input'!G16,Database!$E$303:$BF$303,0)),IF(E16="HERCP",INDEX(Database!$E$345:$S$345,MATCH('Pipe Input'!$I$3,Database!$C$345:$S$345,0),MATCH('Pipe Input'!G16,Database!$E$342:$S$342,0)),IF(E16="HDPE",INDEX(Database!$E$366:$S$366,MATCH('Pipe Input'!$I$3,Database!$C$366:$S$366,0),MATCH('Pipe Input'!G16,Database!$E$364:$S$364,0)),IF(E16="CMP",INDEX(Database!$E$383:$AS$383,MATCH('Pipe Input'!$I$3,Database!$C$383:$AS$383,0),MATCH('Pipe Input'!G16,Database!$E$381:$AS$381,0)),"")))),"") ->  | K16: =IFERROR(IF(E16="RCP",L16,IF(E16="HERCP",M16,IF(E16="HDPE",INDEX(Database!$E$370:$S$370,MATCH('Pipe Input'!$K$3,Database!$C$370:$S$370,0),MATCH('Pipe Input'!G16,Database!$E$364:$S$364,0)),IF(E16="CMP",INDEX(Database!$E$388:$AS$388,MATCH('Pipe Input'!$K$3,Database!$C$388:$AS$388,0),MATCH('Pipe Input'!G16,Database!$E$381:$AS$381,0)),"")))),"") ->  | L16: =IF(E16="RCP",INDEX(Database!$E$310:$BF$314,MATCH('Pipe Input'!$E$2,Database!$C$310:$C$314,0),MATCH('Pipe Input'!G16,Database!$E$303:$BF$303,0)),"") ->  | M16: =IF(E16="HERCP",INDEX(Database!$E$349:$S$353,MATCH('Pipe Input'!$E$2,Database!$C$349:$C$353,0),MATCH('Pipe Input'!G16,Database!$E$342:$S$342,0)),"") ->  | N16: =IF(E16="RCP",Summary!$AN$5,IF(E16="HERCP",Summary!$AN$33,IF(E16="HDPE",Summary!$AN$50,IF(E16="CMP",Summary!$AN$72, "")))) ->  | P16: 0 | Q16: 0 | AA16: =IFERROR(IF(E16="HDPE",INDEX(Database!$E$373:$S$373,MATCH('Pipe Input'!$AA$3,Database!$C$373:$S$373,0),MATCH('Pipe Input'!G16,Database!$E$364:$S$364,0)),""), "") ->  | AC16: =IFERROR(IF(E16="RCP",INDEX(Database!$E$316:$BF$316,MATCH('Pipe Input'!$AC$3,Database!$C$316:$BF$316,0),MATCH('Pipe Input'!G16,Database!$E$303:$BF$303,0)),IF(E16="HERCP",INDEX(Database!$E$355:$S$355,MATCH('Pipe Input'!$AC$3,Database!$C$355:$S$355,0),MATCH('Pipe Input'!G16,Database!$E$342:$S$342,0)),IF(E16="HDPE",INDEX(Database!$E$371:$S$371,MATCH('Pipe Input'!$AC$3,Database!$C$371:$S$371,0),MATCH('Pipe Input'!G16,Database!$E$364:$S$364,0)),IF(E16="CMP",INDEX(Database!$E$389:$AS$389,MATCH('Pipe Input'!$AC$3,Database!$C$389:$AS$389,0),MATCH('Pipe Input'!G16,Database!$E$381:$AS$381,0)),"")))),"") ->  | AD16: 0 | AE16: 0 | AF16: 0
B17: 14 | I17: =IFERROR(IF(E17="RCP",INDEX(Database!$E$305:$BF$305,MATCH('Pipe Input'!$I$3,Database!$C$305:$BF$305,0),MATCH('Pipe Input'!G17,Database!$E$303:$BF$303,0)),IF(E17="HERCP",INDEX(Database!$E$345:$S$345,MATCH('Pipe Input'!$I$3,Database!$C$345:$S$345,0),MATCH('Pipe Input'!G17,Database!$E$342:$S$342,0)),IF(E17="HDPE",INDEX(Database!$E$366:$S$366,MATCH('Pipe Input'!$I$3,Database!$C$366:$S$366,0),MATCH('Pipe Input'!G17,Database!$E$364:$S$364,0)),IF(E17="CMP",INDEX(Database!$E$383:$AS$383,MATCH('Pipe Input'!$I$3,Database!$C$383:$AS$383,0),MATCH('Pipe Input'!G17,Database!$E$381:$AS$381,0)),"")))),"") ->  | K17: =IFERROR(IF(E17="RCP",L17,IF(E17="HERCP",M17,IF(E17="HDPE",INDEX(Database!$E$370:$S$370,MATCH('Pipe Input'!$K$3,Database!$C$370:$S$370,0),MATCH('Pipe Input'!G17,Database!$E$364:$S$364,0)),IF(E17="CMP",INDEX(Database!$E$388:$AS$388,MATCH('Pipe Input'!$K$3,Database!$C$388:$AS$388,0),MATCH('Pipe Input'!G17,Database!$E$381:$AS$381,0)),"")))),"") ->  | L17: =IF(E17="RCP",INDEX(Database!$E$310:$BF$314,MATCH('Pipe Input'!$E$2,Database!$C$310:$C$314,0),MATCH('Pipe Input'!G17,Database!$E$303:$BF$303,0)),"") ->  | M17: =IF(E17="HERCP",INDEX(Database!$E$349:$S$353,MATCH('Pipe Input'!$E$2,Database!$C$349:$C$353,0),MATCH('Pipe Input'!G17,Database!$E$342:$S$342,0)),"") ->  | N17: =IF(E17="RCP",Summary!$AN$5,IF(E17="HERCP",Summary!$AN$33,IF(E17="HDPE",Summary!$AN$50,IF(E17="CMP",Summary!$AN$72, "")))) ->  | P17: 0 | Q17: 0 | AA17: =IFERROR(IF(E17="HDPE",INDEX(Database!$E$373:$S$373,MATCH('Pipe Input'!$AA$3,Database!$C$373:$S$373,0),MATCH('Pipe Input'!G17,Database!$E$364:$S$364,0)),""), "") ->  | AC17: =IFERROR(IF(E17="RCP",INDEX(Database!$E$316:$BF$316,MATCH('Pipe Input'!$AC$3,Database!$C$316:$BF$316,0),MATCH('Pipe Input'!G17,Database!$E$303:$BF$303,0)),IF(E17="HERCP",INDEX(Database!$E$355:$S$355,MATCH('Pipe Input'!$AC$3,Database!$C$355:$S$355,0),MATCH('Pipe Input'!G17,Database!$E$342:$S$342,0)),IF(E17="HDPE",INDEX(Database!$E$371:$S$371,MATCH('Pipe Input'!$AC$3,Database!$C$371:$S$371,0),MATCH('Pipe Input'!G17,Database!$E$364:$S$364,0)),IF(E17="CMP",INDEX(Database!$E$389:$AS$389,MATCH('Pipe Input'!$AC$3,Database!$C$389:$AS$389,0),MATCH('Pipe Input'!G17,Database!$E$381:$AS$381,0)),"")))),"") ->  | AD17: 0 | AE17: 0 | AF17: 0
B18: 15 | I18: =IFERROR(IF(E18="RCP",INDEX(Database!$E$305:$BF$305,MATCH('Pipe Input'!$I$3,Database!$C$305:$BF$305,0),MATCH('Pipe Input'!G18,Database!$E$303:$BF$303,0)),IF(E18="HERCP",INDEX(Database!$E$345:$S$345,MATCH('Pipe Input'!$I$3,Database!$C$345:$S$345,0),MATCH('Pipe Input'!G18,Database!$E$342:$S$342,0)),IF(E18="HDPE",INDEX(Database!$E$366:$S$366,MATCH('Pipe Input'!$I$3,Database!$C$366:$S$366,0),MATCH('Pipe Input'!G18,Database!$E$364:$S$364,0)),IF(E18="CMP",INDEX(Database!$E$383:$AS$383,MATCH('Pipe Input'!$I$3,Database!$C$383:$AS$383,0),MATCH('Pipe Input'!G18,Database!$E$381:$AS$381,0)),"")))),"") ->  | K18: =IFERROR(IF(E18="RCP",L18,IF(E18="HERCP",M18,IF(E18="HDPE",INDEX(Database!$E$370:$S$370,MATCH('Pipe Input'!$K$3,Database!$C$370:$S$370,0),MATCH('Pipe Input'!G18,Database!$E$364:$S$364,0)),IF(E18="CMP",INDEX(Database!$E$388:$AS$388,MATCH('Pipe Input'!$K$3,Database!$C$388:$AS$388,0),MATCH('Pipe Input'!G18,Database!$E$381:$AS$381,0)),"")))),"") ->  | L18: =IF(E18="RCP",INDEX(Database!$E$310:$BF$314,MATCH('Pipe Input'!$E$2,Database!$C$310:$C$314,0),MATCH('Pipe Input'!G18,Database!$E$303:$BF$303,0)),"") ->  | M18: =IF(E18="HERCP",INDEX(Database!$E$349:$S$353,MATCH('Pipe Input'!$E$2,Database!$C$349:$C$353,0),MATCH('Pipe Input'!G18,Database!$E$342:$S$342,0)),"") ->  | N18: =IF(E18="RCP",Summary!$AN$5,IF(E18="HERCP",Summary!$AN$33,IF(E18="HDPE",Summary!$AN$50,IF(E18="CMP",Summary!$AN$72, "")))) ->  | O18: =IFERROR(J18,"") ->  | P18: 0 | Q18: 0 | AA18: =IFERROR(IF(E18="HDPE",INDEX(Database!$E$373:$S$373,MATCH('Pipe Input'!$AA$3,Database!$C$373:$S$373,0),MATCH('Pipe Input'!G18,Database!$E$364:$S$364,0)),""), "") ->  | AC18: =IFERROR(IF(E18="RCP",INDEX(Database!$E$316:$BF$316,MATCH('Pipe Input'!$AC$3,Database!$C$316:$BF$316,0),MATCH('Pipe Input'!G18,Database!$E$303:$BF$303,0)),IF(E18="HERCP",INDEX(Database!$E$355:$S$355,MATCH('Pipe Input'!$AC$3,Database!$C$355:$S$355,0),MATCH('Pipe Input'!G18,Database!$E$342:$S$342,0)),IF(E18="HDPE",INDEX(Database!$E$371:$S$371,MATCH('Pipe Input'!$AC$3,Database!$C$371:$S$371,0),MATCH('Pipe Input'!G18,Database!$E$364:$S$364,0)),IF(E18="CMP",INDEX(Database!$E$389:$AS$389,MATCH('Pipe Input'!$AC$3,Database!$C$389:$AS$389,0),MATCH('Pipe Input'!G18,Database!$E$381:$AS$381,0)),"")))),"") ->  | AD18: 0 | AE18: =SUM(AH18:AAG18) -> 0 | AF18: 0
B19: 16 | F19: =IF(AND(OR(D19="HDPE",D19="CMP"),E19="RCP"),"Alternate","") ->  | I19: =IFERROR(IF(E19="RCP",INDEX(Database!$E$305:$BF$305,MATCH('Pipe Input'!$I$3,Database!$C$305:$BF$305,0),MATCH('Pipe Input'!G19,Database!$E$303:$BF$303,0)),IF(E19="HERCP",INDEX(Database!$E$345:$S$345,MATCH('Pipe Input'!$I$3,Database!$C$345:$S$345,0),MATCH('Pipe Input'!G19,Database!$E$342:$S$342,0)),IF(E19="HDPE",INDEX(Database!$E$366:$S$366,MATCH('Pipe Input'!$I$3,Database!$C$366:$S$366,0),MATCH('Pipe Input'!G19,Database!$E$364:$S$364,0)),IF(E19="CMP",INDEX(Database!$E$383:$AS$383,MATCH('Pipe Input'!$I$3,Database!$C$383:$AS$383,0),MATCH('Pipe Input'!G19,Database!$E$381:$AS$381,0)),"")))),"") ->  | K19: =IFERROR(IF(E19="RCP",L19,IF(E19="HERCP",M19,IF(E19="HDPE",INDEX(Database!$E$370:$S$370,MATCH('Pipe Input'!$K$3,Database!$C$370:$S$370,0),MATCH('Pipe Input'!G19,Database!$E$364:$S$364,0)),IF(E19="CMP",INDEX(Database!$E$388:$AS$388,MATCH('Pipe Input'!$K$3,Database!$C$388:$AS$388,0),MATCH('Pipe Input'!G19,Database!$E$381:$AS$381,0)),"")))),"") ->  | L19: =IF(E19="RCP",INDEX(Database!$E$310:$BF$314,MATCH('Pipe Input'!$E$2,Database!$C$310:$C$314,0),MATCH('Pipe Input'!G19,Database!$E$303:$BF$303,0)),"") ->  | M19: =IF(E19="HERCP",INDEX(Database!$E$349:$S$353,MATCH('Pipe Input'!$E$2,Database!$C$349:$C$353,0),MATCH('Pipe Input'!G19,Database!$E$342:$S$342,0)),"") ->  | N19: =IF(E19="RCP",Summary!$AN$5,IF(E19="HERCP",Summary!$AN$33,IF(E19="HDPE",Summary!$AN$50,IF(E19="CMP",Summary!$AN$72, "")))) ->  | P19: =IF(AF19>0,Q19, 0) -> 0 | Q19: 0 | AA19: =IFERROR(IF(E19="HDPE",INDEX(Database!$E$373:$S$373,MATCH('Pipe Input'!$AA$3,Database!$C$373:$S$373,0),MATCH('Pipe Input'!G19,Database!$E$364:$S$364,0)),""), "") ->  | AC19: =IFERROR(IF(E19="RCP",INDEX(Database!$E$316:$BF$316,MATCH('Pipe Input'!$AC$3,Database!$C$316:$BF$316,0),MATCH('Pipe Input'!G19,Database!$E$303:$BF$303,0)),IF(E19="HERCP",INDEX(Database!$E$355:$S$355,MATCH('Pipe Input'!$AC$3,Database!$C$355:$S$355,0),MATCH('Pipe Input'!G19,Database!$E$342:$S$342,0)),IF(E19="HDPE",INDEX(Database!$E$371:$S$371,MATCH('Pipe Input'!$AC$3,Database!$C$371:$S$371,0),MATCH('Pipe Input'!G19,Database!$E$364:$S$364,0)),IF(E19="CMP",INDEX(Database!$E$389:$AS$389,MATCH('Pipe Input'!$AC$3,Database!$C$389:$AS$389,0),MATCH('Pipe Input'!G19,Database!$E$381:$AS$381,0)),"")))),"") ->  | AD19: 0 | AE19: 0 | AF19: 0
B20: 17 | I20: =IFERROR(IF(E20="RCP",INDEX(Database!$E$305:$BF$305,MATCH('Pipe Input'!$I$3,Database!$C$305:$BF$305,0),MATCH('Pipe Input'!G20,Database!$E$303:$BF$303,0)),IF(E20="HERCP",INDEX(Database!$E$345:$S$345,MATCH('Pipe Input'!$I$3,Database!$C$345:$S$345,0),MATCH('Pipe Input'!G20,Database!$E$342:$S$342,0)),IF(E20="HDPE",INDEX(Database!$E$366:$S$366,MATCH('Pipe Input'!$I$3,Database!$C$366:$S$366,0),MATCH('Pipe Input'!G20,Database!$E$364:$S$364,0)),IF(E20="CMP",INDEX(Database!$E$383:$AS$383,MATCH('Pipe Input'!$I$3,Database!$C$383:$AS$383,0),MATCH('Pipe Input'!G20,Database!$E$381:$AS$381,0)),"")))),"") ->  | K20: =IFERROR(IF(E20="RCP",L20,IF(E20="HERCP",M20,IF(E20="HDPE",INDEX(Database!$E$370:$S$370,MATCH('Pipe Input'!$K$3,Database!$C$370:$S$370,0),MATCH('Pipe Input'!G20,Database!$E$364:$S$364,0)),IF(E20="CMP",INDEX(Database!$E$388:$AS$388,MATCH('Pipe Input'!$K$3,Database!$C$388:$AS$388,0),MATCH('Pipe Input'!G20,Database!$E$381:$AS$381,0)),"")))),"") ->  | L20: =IF(E20="RCP",INDEX(Database!$E$310:$BF$314,MATCH('Pipe Input'!$E$2,Database!$C$310:$C$314,0),MATCH('Pipe Input'!G20,Database!$E$303:$BF$303,0)),"") ->  | M20: =IF(E20="HERCP",INDEX(Database!$E$349:$S$353,MATCH('Pipe Input'!$E$2,Database!$C$349:$C$353,0),MATCH('Pipe Input'!G20,Database!$E$342:$S$342,0)),"") ->  | N20: =IF(E20="RCP",Summary!$AN$5,IF(E20="HERCP",Summary!$AN$33,IF(E20="HDPE",Summary!$AN$50,IF(E20="CMP",Summary!$AN$72, "")))) ->  | P20: =IF(AF20>0,Q20, 0) -> 0 | Q20: 0 | AA20: =IFERROR(IF(E20="HDPE",INDEX(Database!$E$373:$S$373,MATCH('Pipe Input'!$AA$3,Database!$C$373:$S$373,0),MATCH('Pipe Input'!G20,Database!$E$364:$S$364,0)),""), "") ->  | AC20: =IFERROR(IF(E20="RCP",INDEX(Database!$E$316:$BF$316,MATCH('Pipe Input'!$AC$3,Database!$C$316:$BF$316,0),MATCH('Pipe Input'!G20,Database!$E$303:$BF$303,0)),IF(E20="HERCP",INDEX(Database!$E$355:$S$355,MATCH('Pipe Input'!$AC$3,Database!$C$355:$S$355,0),MATCH('Pipe Input'!G20,Database!$E$342:$S$342,0)),IF(E20="HDPE",INDEX(Database!$E$371:$S$371,MATCH('Pipe Input'!$AC$3,Database!$C$371:$S$371,0),MATCH('Pipe Input'!G20,Database!$E$364:$S$364,0)),IF(E20="CMP",INDEX(Database!$E$389:$AS$389,MATCH('Pipe Input'!$AC$3,Database!$C$389:$AS$389,0),MATCH('Pipe Input'!G20,Database!$E$381:$AS$381,0)),"")))),"") ->  | AD20: 0 | AE20: 0 | AF20: 0
B21: 18 | I21: =IFERROR(IF(E21="RCP",INDEX(Database!$E$305:$BF$305,MATCH('Pipe Input'!$I$3,Database!$C$305:$BF$305,0),MATCH('Pipe Input'!G21,Database!$E$303:$BF$303,0)),IF(E21="HERCP",INDEX(Database!$E$345:$S$345,MATCH('Pipe Input'!$I$3,Database!$C$345:$S$345,0),MATCH('Pipe Input'!G21,Database!$E$342:$S$342,0)),IF(E21="HDPE",INDEX(Database!$E$366:$S$366,MATCH('Pipe Input'!$I$3,Database!$C$366:$S$366,0),MATCH('Pipe Input'!G21,Database!$E$364:$S$364,0)),IF(E21="CMP",INDEX(Database!$E$383:$AS$383,MATCH('Pipe Input'!$I$3,Database!$C$383:$AS$383,0),MATCH('Pipe Input'!G21,Database!$E$381:$AS$381,0)),"")))),"") ->  | K21: =IFERROR(IF(E21="RCP",L21,IF(E21="HERCP",M21,IF(E21="HDPE",INDEX(Database!$E$370:$S$370,MATCH('Pipe Input'!$K$3,Database!$C$370:$S$370,0),MATCH('Pipe Input'!G21,Database!$E$364:$S$364,0)),IF(E21="CMP",INDEX(Database!$E$388:$AS$388,MATCH('Pipe Input'!$K$3,Database!$C$388:$AS$388,0),MATCH('Pipe Input'!G21,Database!$E$381:$AS$381,0)),"")))),"") ->  | L21: =IF(E21="RCP",INDEX(Database!$E$310:$BF$314,MATCH('Pipe Input'!$E$2,Database!$C$310:$C$314,0),MATCH('Pipe Input'!G21,Database!$E$303:$BF$303,0)),"") ->  | M21: =IF(E21="HERCP",INDEX(Database!$E$349:$S$353,MATCH('Pipe Input'!$E$2,Database!$C$349:$C$353,0),MATCH('Pipe Input'!G21,Database!$E$342:$S$342,0)),"") ->  | N21: =IF(E21="RCP",Summary!$AN$5,IF(E21="HERCP",Summary!$AN$33,IF(E21="HDPE",Summary!$AN$50,IF(E21="CMP",Summary!$AN$72, "")))) ->  | P21: 0 | Q21: 0 | AA21: =IFERROR(IF(E21="HDPE",INDEX(Database!$E$373:$S$373,MATCH('Pipe Input'!$AA$3,Database!$C$373:$S$373,0),MATCH('Pipe Input'!G21,Database!$E$364:$S$364,0)),""), "") ->  | AC21: =IFERROR(IF(E21="RCP",INDEX(Database!$E$316:$BF$316,MATCH('Pipe Input'!$AC$3,Database!$C$316:$BF$316,0),MATCH('Pipe Input'!G21,Database!$E$303:$BF$303,0)),IF(E21="HERCP",INDEX(Database!$E$355:$S$355,MATCH('Pipe Input'!$AC$3,Database!$C$355:$S$355,0),MATCH('Pipe Input'!G21,Database!$E$342:$S$342,0)),IF(E21="HDPE",INDEX(Database!$E$371:$S$371,MATCH('Pipe Input'!$AC$3,Database!$C$371:$S$371,0),MATCH('Pipe Input'!G21,Database!$E$364:$S$364,0)),IF(E21="CMP",INDEX(Database!$E$389:$AS$389,MATCH('Pipe Input'!$AC$3,Database!$C$389:$AS$389,0),MATCH('Pipe Input'!G21,Database!$E$381:$AS$381,0)),"")))),"") ->  | AD21: 0 | AE21: 0 | AF21: 0
B22: 19 | I22: =IFERROR(IF(E22="RCP",INDEX(Database!$E$305:$BF$305,MATCH('Pipe Input'!$I$3,Database!$C$305:$BF$305,0),MATCH('Pipe Input'!G22,Database!$E$303:$BF$303,0)),IF(E22="HERCP",INDEX(Database!$E$345:$S$345,MATCH('Pipe Input'!$I$3,Database!$C$345:$S$345,0),MATCH('Pipe Input'!G22,Database!$E$342:$S$342,0)),IF(E22="HDPE",INDEX(Database!$E$366:$S$366,MATCH('Pipe Input'!$I$3,Database!$C$366:$S$366,0),MATCH('Pipe Input'!G22,Database!$E$364:$S$364,0)),IF(E22="CMP",INDEX(Database!$E$383:$AS$383,MATCH('Pipe Input'!$I$3,Database!$C$383:$AS$383,0),MATCH('Pipe Input'!G22,Database!$E$381:$AS$381,0)),"")))),"") ->  | K22: =IFERROR(IF(E22="RCP",L22,IF(E22="HERCP",M22,IF(E22="HDPE",INDEX(Database!$E$370:$S$370,MATCH('Pipe Input'!$K$3,Database!$C$370:$S$370,0),MATCH('Pipe Input'!G22,Database!$E$364:$S$364,0)),IF(E22="CMP",INDEX(Database!$E$388:$AS$388,MATCH('Pipe Input'!$K$3,Database!$C$388:$AS$388,0),MATCH('Pipe Input'!G22,Database!$E$381:$AS$381,0)),"")))),"") ->  | L22: =IF(E22="RCP",INDEX(Database!$E$310:$BF$314,MATCH('Pipe Input'!$E$2,Database!$C$310:$C$314,0),MATCH('Pipe Input'!G22,Database!$E$303:$BF$303,0)),"") ->  | M22: =IF(E22="HERCP",INDEX(Database!$E$349:$S$353,MATCH('Pipe Input'!$E$2,Database!$C$349:$C$353,0),MATCH('Pipe Input'!G22,Database!$E$342:$S$342,0)),"") ->  | N22: =IF(E22="RCP",Summary!$AN$5,IF(E22="HERCP",Summary!$AN$33,IF(E22="HDPE",Summary!$AN$50,IF(E22="CMP",Summary!$AN$72, "")))) ->  | P22: 0 | Q22: 0 | AA22: =IFERROR(IF(E22="HDPE",INDEX(Database!$E$373:$S$373,MATCH('Pipe Input'!$AA$3,Database!$C$373:$S$373,0),MATCH('Pipe Input'!G22,Database!$E$364:$S$364,0)),""), "") ->  | AC22: =IFERROR(IF(E22="RCP",INDEX(Database!$E$316:$BF$316,MATCH('Pipe Input'!$AC$3,Database!$C$316:$BF$316,0),MATCH('Pipe Input'!G22,Database!$E$303:$BF$303,0)),IF(E22="HERCP",INDEX(Database!$E$355:$S$355,MATCH('Pipe Input'!$AC$3,Database!$C$355:$S$355,0),MATCH('Pipe Input'!G22,Database!$E$342:$S$342,0)),IF(E22="HDPE",INDEX(Database!$E$371:$S$371,MATCH('Pipe Input'!$AC$3,Database!$C$371:$S$371,0),MATCH('Pipe Input'!G22,Database!$E$364:$S$364,0)),IF(E22="CMP",INDEX(Database!$E$389:$AS$389,MATCH('Pipe Input'!$AC$3,Database!$C$389:$AS$389,0),MATCH('Pipe Input'!G22,Database!$E$381:$AS$381,0)),"")))),"") ->  | AD22: 0 | AE22: 0 | AF22: 0
B23: 20 | I23: =IFERROR(IF(E23="RCP",INDEX(Database!$E$305:$BF$305,MATCH('Pipe Input'!$I$3,Database!$C$305:$BF$305,0),MATCH('Pipe Input'!G23,Database!$E$303:$BF$303,0)),IF(E23="HERCP",INDEX(Database!$E$345:$S$345,MATCH('Pipe Input'!$I$3,Database!$C$345:$S$345,0),MATCH('Pipe Input'!G23,Database!$E$342:$S$342,0)),IF(E23="HDPE",INDEX(Database!$E$366:$S$366,MATCH('Pipe Input'!$I$3,Database!$C$366:$S$366,0),MATCH('Pipe Input'!G23,Database!$E$364:$S$364,0)),IF(E23="CMP",INDEX(Database!$E$383:$AS$383,MATCH('Pipe Input'!$I$3,Database!$C$383:$AS$383,0),MATCH('Pipe Input'!G23,Database!$E$381:$AS$381,0)),"")))),"") ->  | K23: =IFERROR(IF(E23="RCP",L23,IF(E23="HERCP",M23,IF(E23="HDPE",INDEX(Database!$E$370:$S$370,MATCH('Pipe Input'!$K$3,Database!$C$370:$S$370,0),MATCH('Pipe Input'!G23,Database!$E$364:$S$364,0)),IF(E23="CMP",INDEX(Database!$E$388:$AS$388,MATCH('Pipe Input'!$K$3,Database!$C$388:$AS$388,0),MATCH('Pipe Input'!G23,Database!$E$381:$AS$381,0)),"")))),"") ->  | L23: =IF(E23="RCP",INDEX(Database!$E$310:$BF$314,MATCH('Pipe Input'!$E$2,Database!$C$310:$C$314,0),MATCH('Pipe Input'!G23,Database!$E$303:$BF$303,0)),"") ->  | M23: =IF(E23="HERCP",INDEX(Database!$E$349:$S$353,MATCH('Pipe Input'!$E$2,Database!$C$349:$C$353,0),MATCH('Pipe Input'!G23,Database!$E$342:$S$342,0)),"") ->  | N23: =IF(E23="RCP",Summary!$AN$5,IF(E23="HERCP",Summary!$AN$33,IF(E23="HDPE",Summary!$AN$50,IF(E23="CMP",Summary!$AN$72, "")))) ->  | P23: 0 | Q23: 0 | AA23: =IFERROR(IF(E23="HDPE",INDEX(Database!$E$373:$S$373,MATCH('Pipe Input'!$AA$3,Database!$C$373:$S$373,0),MATCH('Pipe Input'!G23,Database!$E$364:$S$364,0)),""), "") ->  | AC23: =IFERROR(IF(E23="RCP",INDEX(Database!$E$316:$BF$316,MATCH('Pipe Input'!$AC$3,Database!$C$316:$BF$316,0),MATCH('Pipe Input'!G23,Database!$E$303:$BF$303,0)),IF(E23="HERCP",INDEX(Database!$E$355:$S$355,MATCH('Pipe Input'!$AC$3,Database!$C$355:$S$355,0),MATCH('Pipe Input'!G23,Database!$E$342:$S$342,0)),IF(E23="HDPE",INDEX(Database!$E$371:$S$371,MATCH('Pipe Input'!$AC$3,Database!$C$371:$S$371,0),MATCH('Pipe Input'!G23,Database!$E$364:$S$364,0)),IF(E23="CMP",INDEX(Database!$E$389:$AS$389,MATCH('Pipe Input'!$AC$3,Database!$C$389:$AS$389,0),MATCH('Pipe Input'!G23,Database!$E$381:$AS$381,0)),"")))),"") ->  | AD23: 0 | AE23: 0 | AF23: 0
B24: 21 | I24: =IFERROR(IF(E24="RCP",INDEX(Database!$E$305:$BF$305,MATCH('Pipe Input'!$I$3,Database!$C$305:$BF$305,0),MATCH('Pipe Input'!G24,Database!$E$303:$BF$303,0)),IF(E24="HERCP",INDEX(Database!$E$345:$S$345,MATCH('Pipe Input'!$I$3,Database!$C$345:$S$345,0),MATCH('Pipe Input'!G24,Database!$E$342:$S$342,0)),IF(E24="HDPE",INDEX(Database!$E$366:$S$366,MATCH('Pipe Input'!$I$3,Database!$C$366:$S$366,0),MATCH('Pipe Input'!G24,Database!$E$364:$S$364,0)),IF(E24="CMP",INDEX(Database!$E$383:$AS$383,MATCH('Pipe Input'!$I$3,Database!$C$383:$AS$383,0),MATCH('Pipe Input'!G24,Database!$E$381:$AS$381,0)),"")))),"") ->  | K24: =IFERROR(IF(E24="RCP",L24,IF(E24="HERCP",M24,IF(E24="HDPE",INDEX(Database!$E$370:$S$370,MATCH('Pipe Input'!$K$3,Database!$C$370:$S$370,0),MATCH('Pipe Input'!G24,Database!$E$364:$S$364,0)),IF(E24="CMP",INDEX(Database!$E$388:$AS$388,MATCH('Pipe Input'!$K$3,Database!$C$388:$AS$388,0),MATCH('Pipe Input'!G24,Database!$E$381:$AS$381,0)),"")))),"") ->  | L24: =IF(E24="RCP",INDEX(Database!$E$310:$BF$314,MATCH('Pipe Input'!$E$2,Database!$C$310:$C$314,0),MATCH('Pipe Input'!G24,Database!$E$303:$BF$303,0)),"") ->  | M24: =IF(E24="HERCP",INDEX(Database!$E$349:$S$353,MATCH('Pipe Input'!$E$2,Database!$C$349:$C$353,0),MATCH('Pipe Input'!G24,Database!$E$342:$S$342,0)),"") ->  | N24: =IF(E24="RCP",Summary!$AN$5,IF(E24="HERCP",Summary!$AN$33,IF(E24="HDPE",Summary!$AN$50,IF(E24="CMP",Summary!$AN$72, "")))) ->  | P24: 0 | Q24: 0 | AA24: =IFERROR(IF(E24="HDPE",INDEX(Database!$E$373:$S$373,MATCH('Pipe Input'!$AA$3,Database!$C$373:$S$373,0),MATCH('Pipe Input'!G24,Database!$E$364:$S$364,0)),""), "") ->  | AC24: =IFERROR(IF(E24="RCP",INDEX(Database!$E$316:$BF$316,MATCH('Pipe Input'!$AC$3,Database!$C$316:$BF$316,0),MATCH('Pipe Input'!G24,Database!$E$303:$BF$303,0)),IF(E24="HERCP",INDEX(Database!$E$355:$S$355,MATCH('Pipe Input'!$AC$3,Database!$C$355:$S$355,0),MATCH('Pipe Input'!G24,Database!$E$342:$S$342,0)),IF(E24="HDPE",INDEX(Database!$E$371:$S$371,MATCH('Pipe Input'!$AC$3,Database!$C$371:$S$371,0),MATCH('Pipe Input'!G24,Database!$E$364:$S$364,0)),IF(E24="CMP",INDEX(Database!$E$389:$AS$389,MATCH('Pipe Input'!$AC$3,Database!$C$389:$AS$389,0),MATCH('Pipe Input'!G24,Database!$E$381:$AS$381,0)),"")))),"") ->  | AD24: 0 | AE24: 0 | AF24: 0
B25: 22 | I25: =IFERROR(IF(E25="RCP",INDEX(Database!$E$305:$BF$305,MATCH('Pipe Input'!$I$3,Database!$C$305:$BF$305,0),MATCH('Pipe Input'!G25,Database!$E$303:$BF$303,0)),IF(E25="HERCP",INDEX(Database!$E$345:$S$345,MATCH('Pipe Input'!$I$3,Database!$C$345:$S$345,0),MATCH('Pipe Input'!G25,Database!$E$342:$S$342,0)),IF(E25="HDPE",INDEX(Database!$E$366:$S$366,MATCH('Pipe Input'!$I$3,Database!$C$366:$S$366,0),MATCH('Pipe Input'!G25,Database!$E$364:$S$364,0)),IF(E25="CMP",INDEX(Database!$E$383:$AS$383,MATCH('Pipe Input'!$I$3,Database!$C$383:$AS$383,0),MATCH('Pipe Input'!G25,Database!$E$381:$AS$381,0)),"")))),"") ->  | K25: =IFERROR(IF(E25="RCP",L25,IF(E25="HERCP",M25,IF(E25="HDPE",INDEX(Database!$E$370:$S$370,MATCH('Pipe Input'!$K$3,Database!$C$370:$S$370,0),MATCH('Pipe Input'!G25,Database!$E$364:$S$364,0)),IF(E25="CMP",INDEX(Database!$E$388:$AS$388,MATCH('Pipe Input'!$K$3,Database!$C$388:$AS$388,0),MATCH('Pipe Input'!G25,Database!$E$381:$AS$381,0)),"")))),"") ->  | L25: =IF(E25="RCP",INDEX(Database!$E$310:$BF$314,MATCH('Pipe Input'!$E$2,Database!$C$310:$C$314,0),MATCH('Pipe Input'!G25,Database!$E$303:$BF$303,0)),"") ->  | M25: =IF(E25="HERCP",INDEX(Database!$E$349:$S$353,MATCH('Pipe Input'!$E$2,Database!$C$349:$C$353,0),MATCH('Pipe Input'!G25,Database!$E$342:$S$342,0)),"") ->  | N25: =IF(E25="RCP",Summary!$AN$5,IF(E25="HERCP",Summary!$AN$33,IF(E25="HDPE",Summary!$AN$50,IF(E25="CMP",Summary!$AN$72, "")))) ->  | P25: 0 | Q25: 0 | AA25: =IFERROR(IF(E25="HDPE",INDEX(Database!$E$373:$S$373,MATCH('Pipe Input'!$AA$3,Database!$C$373:$S$373,0),MATCH('Pipe Input'!G25,Database!$E$364:$S$364,0)),""), "") ->  | AC25: =IFERROR(IF(E25="RCP",INDEX(Database!$E$316:$BF$316,MATCH('Pipe Input'!$AC$3,Database!$C$316:$BF$316,0),MATCH('Pipe Input'!G25,Database!$E$303:$BF$303,0)),IF(E25="HERCP",INDEX(Database!$E$355:$S$355,MATCH('Pipe Input'!$AC$3,Database!$C$355:$S$355,0),MATCH('Pipe Input'!G25,Database!$E$342:$S$342,0)),IF(E25="HDPE",INDEX(Database!$E$371:$S$371,MATCH('Pipe Input'!$AC$3,Database!$C$371:$S$371,0),MATCH('Pipe Input'!G25,Database!$E$364:$S$364,0)),IF(E25="CMP",INDEX(Database!$E$389:$AS$389,MATCH('Pipe Input'!$AC$3,Database!$C$389:$AS$389,0),MATCH('Pipe Input'!G25,Database!$E$381:$AS$381,0)),"")))),"") ->  | AD25: 0 | AE25: 0 | AF25: 0
B26: 23 | I26: =IFERROR(IF(E26="RCP",INDEX(Database!$E$305:$BF$305,MATCH('Pipe Input'!$I$3,Database!$C$305:$BF$305,0),MATCH('Pipe Input'!G26,Database!$E$303:$BF$303,0)),IF(E26="HERCP",INDEX(Database!$E$345:$S$345,MATCH('Pipe Input'!$I$3,Database!$C$345:$S$345,0),MATCH('Pipe Input'!G26,Database!$E$342:$S$342,0)),IF(E26="HDPE",INDEX(Database!$E$366:$S$366,MATCH('Pipe Input'!$I$3,Database!$C$366:$S$366,0),MATCH('Pipe Input'!G26,Database!$E$364:$S$364,0)),IF(E26="CMP",INDEX(Database!$E$383:$AS$383,MATCH('Pipe Input'!$I$3,Database!$C$383:$AS$383,0),MATCH('Pipe Input'!G26,Database!$E$381:$AS$381,0)),"")))),"") ->  | K26: =IFERROR(IF(E26="RCP",L26,IF(E26="HERCP",M26,IF(E26="HDPE",INDEX(Database!$E$370:$S$370,MATCH('Pipe Input'!$K$3,Database!$C$370:$S$370,0),MATCH('Pipe Input'!G26,Database!$E$364:$S$364,0)),IF(E26="CMP",INDEX(Database!$E$388:$AS$388,MATCH('Pipe Input'!$K$3,Database!$C$388:$AS$388,0),MATCH('Pipe Input'!G26,Database!$E$381:$AS$381,0)),"")))),"") ->  | L26: =IF(E26="RCP",INDEX(Database!$E$310:$BF$314,MATCH('Pipe Input'!$E$2,Database!$C$310:$C$314,0),MATCH('Pipe Input'!G26,Database!$E$303:$BF$303,0)),"") ->  | M26: =IF(E26="HERCP",INDEX(Database!$E$349:$S$353,MATCH('Pipe Input'!$E$2,Database!$C$349:$C$353,0),MATCH('Pipe Input'!G26,Database!$E$342:$S$342,0)),"") ->  | N26: =IF(E26="RCP",Summary!$AN$5,IF(E26="HERCP",Summary!$AN$33,IF(E26="HDPE",Summary!$AN$50,IF(E26="CMP",Summary!$AN$72, "")))) ->  | P26: 0 | Q26: 0 | AA26: =IFERROR(IF(E26="HDPE",INDEX(Database!$E$373:$S$373,MATCH('Pipe Input'!$AA$3,Database!$C$373:$S$373,0),MATCH('Pipe Input'!G26,Database!$E$364:$S$364,0)),""), "") ->  | AC26: =IFERROR(IF(E26="RCP",INDEX(Database!$E$316:$BF$316,MATCH('Pipe Input'!$AC$3,Database!$C$316:$BF$316,0),MATCH('Pipe Input'!G26,Database!$E$303:$BF$303,0)),IF(E26="HERCP",INDEX(Database!$E$355:$S$355,MATCH('Pipe Input'!$AC$3,Database!$C$355:$S$355,0),MATCH('Pipe Input'!G26,Database!$E$342:$S$342,0)),IF(E26="HDPE",INDEX(Database!$E$371:$S$371,MATCH('Pipe Input'!$AC$3,Database!$C$371:$S$371,0),MATCH('Pipe Input'!G26,Database!$E$364:$S$364,0)),IF(E26="CMP",INDEX(Database!$E$389:$AS$389,MATCH('Pipe Input'!$AC$3,Database!$C$389:$AS$389,0),MATCH('Pipe Input'!G26,Database!$E$381:$AS$381,0)),"")))),"") ->  | AD26: 0 | AE26: 0 | AF26: 0
B27: 24 | I27: =IFERROR(IF(E27="RCP",INDEX(Database!$E$305:$BF$305,MATCH('Pipe Input'!$I$3,Database!$C$305:$BF$305,0),MATCH('Pipe Input'!G27,Database!$E$303:$BF$303,0)),IF(E27="HERCP",INDEX(Database!$E$345:$S$345,MATCH('Pipe Input'!$I$3,Database!$C$345:$S$345,0),MATCH('Pipe Input'!G27,Database!$E$342:$S$342,0)),IF(E27="HDPE",INDEX(Database!$E$366:$S$366,MATCH('Pipe Input'!$I$3,Database!$C$366:$S$366,0),MATCH('Pipe Input'!G27,Database!$E$364:$S$364,0)),IF(E27="CMP",INDEX(Database!$E$383:$AS$383,MATCH('Pipe Input'!$I$3,Database!$C$383:$AS$383,0),MATCH('Pipe Input'!G27,Database!$E$381:$AS$381,0)),"")))),"") ->  | K27: =IFERROR(IF(E27="RCP",L27,IF(E27="HERCP",M27,IF(E27="HDPE",INDEX(Database!$E$370:$S$370,MATCH('Pipe Input'!$K$3,Database!$C$370:$S$370,0),MATCH('Pipe Input'!G27,Database!$E$364:$S$364,0)),IF(E27="CMP",INDEX(Database!$E$388:$AS$388,MATCH('Pipe Input'!$K$3,Database!$C$388:$AS$388,0),MATCH('Pipe Input'!G27,Database!$E$381:$AS$381,0)),"")))),"") ->  | L27: =IF(E27="RCP",INDEX(Database!$E$310:$BF$314,MATCH('Pipe Input'!$E$2,Database!$C$310:$C$314,0),MATCH('Pipe Input'!G27,Database!$E$303:$BF$303,0)),"") ->  | M27: =IF(E27="HERCP",INDEX(Database!$E$349:$S$353,MATCH('Pipe Input'!$E$2,Database!$C$349:$C$353,0),MATCH('Pipe Input'!G27,Database!$E$342:$S$342,0)),"") ->  | N27: =IF(E27="RCP",Summary!$AN$5,IF(E27="HERCP",Summary!$AN$33,IF(E27="HDPE",Summary!$AN$50,IF(E27="CMP",Summary!$AN$72, "")))) ->  | P27: 0 | Q27: 0 | AA27: =IFERROR(IF(E27="HDPE",INDEX(Database!$E$373:$S$373,MATCH('Pipe Input'!$AA$3,Database!$C$373:$S$373,0),MATCH('Pipe Input'!G27,Database!$E$364:$S$364,0)),""), "") ->  | AC27: =IFERROR(IF(E27="RCP",INDEX(Database!$E$316:$BF$316,MATCH('Pipe Input'!$AC$3,Database!$C$316:$BF$316,0),MATCH('Pipe Input'!G27,Database!$E$303:$BF$303,0)),IF(E27="HERCP",INDEX(Database!$E$355:$S$355,MATCH('Pipe Input'!$AC$3,Database!$C$355:$S$355,0),MATCH('Pipe Input'!G27,Database!$E$342:$S$342,0)),IF(E27="HDPE",INDEX(Database!$E$371:$S$371,MATCH('Pipe Input'!$AC$3,Database!$C$371:$S$371,0),MATCH('Pipe Input'!G27,Database!$E$364:$S$364,0)),IF(E27="CMP",INDEX(Database!$E$389:$AS$389,MATCH('Pipe Input'!$AC$3,Database!$C$389:$AS$389,0),MATCH('Pipe Input'!G27,Database!$E$381:$AS$381,0)),"")))),"") ->  | AD27: 0 | AE27: 0 | AF27: 0
B28: 25 | I28: =IFERROR(IF(E28="RCP",INDEX(Database!$E$305:$BF$305,MATCH('Pipe Input'!$I$3,Database!$C$305:$BF$305,0),MATCH('Pipe Input'!G28,Database!$E$303:$BF$303,0)),IF(E28="HERCP",INDEX(Database!$E$345:$S$345,MATCH('Pipe Input'!$I$3,Database!$C$345:$S$345,0),MATCH('Pipe Input'!G28,Database!$E$342:$S$342,0)),IF(E28="HDPE",INDEX(Database!$E$366:$S$366,MATCH('Pipe Input'!$I$3,Database!$C$366:$S$366,0),MATCH('Pipe Input'!G28,Database!$E$364:$S$364,0)),IF(E28="CMP",INDEX(Database!$E$383:$AS$383,MATCH('Pipe Input'!$I$3,Database!$C$383:$AS$383,0),MATCH('Pipe Input'!G28,Database!$E$381:$AS$381,0)),"")))),"") ->  | K28: =IFERROR(IF(E28="RCP",L28,IF(E28="HERCP",M28,IF(E28="HDPE",INDEX(Database!$E$370:$S$370,MATCH('Pipe Input'!$K$3,Database!$C$370:$S$370,0),MATCH('Pipe Input'!G28,Database!$E$364:$S$364,0)),IF(E28="CMP",INDEX(Database!$E$388:$AS$388,MATCH('Pipe Input'!$K$3,Database!$C$388:$AS$388,0),MATCH('Pipe Input'!G28,Database!$E$381:$AS$381,0)),"")))),"") ->  | L28: =IF(E28="RCP",INDEX(Database!$E$310:$BF$314,MATCH('Pipe Input'!$E$2,Database!$C$310:$C$314,0),MATCH('Pipe Input'!G28,Database!$E$303:$BF$303,0)),"") ->  | M28: =IF(E28="HERCP",INDEX(Database!$E$349:$S$353,MATCH('Pipe Input'!$E$2,Database!$C$349:$C$353,0),MATCH('Pipe Input'!G28,Database!$E$342:$S$342,0)),"") ->  | N28: =IF(E28="RCP",Summary!$AN$5,IF(E28="HERCP",Summary!$AN$33,IF(E28="HDPE",Summary!$AN$50,IF(E28="CMP",Summary!$AN$72, "")))) ->  | P28: 0 | Q28: 0 | AA28: =IFERROR(IF(E28="HDPE",INDEX(Database!$E$373:$S$373,MATCH('Pipe Input'!$AA$3,Database!$C$373:$S$373,0),MATCH('Pipe Input'!G28,Database!$E$364:$S$364,0)),""), "") ->  | AC28: =IFERROR(IF(E28="RCP",INDEX(Database!$E$316:$BF$316,MATCH('Pipe Input'!$AC$3,Database!$C$316:$BF$316,0),MATCH('Pipe Input'!G28,Database!$E$303:$BF$303,0)),IF(E28="HERCP",INDEX(Database!$E$355:$S$355,MATCH('Pipe Input'!$AC$3,Database!$C$355:$S$355,0),MATCH('Pipe Input'!G28,Database!$E$342:$S$342,0)),IF(E28="HDPE",INDEX(Database!$E$371:$S$371,MATCH('Pipe Input'!$AC$3,Database!$C$371:$S$371,0),MATCH('Pipe Input'!G28,Database!$E$364:$S$364,0)),IF(E28="CMP",INDEX(Database!$E$389:$AS$389,MATCH('Pipe Input'!$AC$3,Database!$C$389:$AS$389,0),MATCH('Pipe Input'!G28,Database!$E$381:$AS$381,0)),"")))),"") ->  | AD28: 0 | AE28: 0 | AF28: 0
B29: 26 | I29: =IFERROR(IF(E29="RCP",INDEX(Database!$E$305:$BF$305,MATCH('Pipe Input'!$I$3,Database!$C$305:$BF$305,0),MATCH('Pipe Input'!G29,Database!$E$303:$BF$303,0)),IF(E29="HERCP",INDEX(Database!$E$345:$S$345,MATCH('Pipe Input'!$I$3,Database!$C$345:$S$345,0),MATCH('Pipe Input'!G29,Database!$E$342:$S$342,0)),IF(E29="HDPE",INDEX(Database!$E$366:$S$366,MATCH('Pipe Input'!$I$3,Database!$C$366:$S$366,0),MATCH('Pipe Input'!G29,Database!$E$364:$S$364,0)),IF(E29="CMP",INDEX(Database!$E$383:$AS$383,MATCH('Pipe Input'!$I$3,Database!$C$383:$AS$383,0),MATCH('Pipe Input'!G29,Database!$E$381:$AS$381,0)),"")))),"") ->  | K29: =IFERROR(IF(E29="RCP",L29,IF(E29="HERCP",M29,IF(E29="HDPE",INDEX(Database!$E$370:$S$370,MATCH('Pipe Input'!$K$3,Database!$C$370:$S$370,0),MATCH('Pipe Input'!G29,Database!$E$364:$S$364,0)),IF(E29="CMP",INDEX(Database!$E$388:$AS$388,MATCH('Pipe Input'!$K$3,Database!$C$388:$AS$388,0),MATCH('Pipe Input'!G29,Database!$E$381:$AS$381,0)),"")))),"") ->  | L29: =IF(E29="RCP",INDEX(Database!$E$310:$BF$314,MATCH('Pipe Input'!$E$2,Database!$C$310:$C$314,0),MATCH('Pipe Input'!G29,Database!$E$303:$BF$303,0)),"") ->  | M29: =IF(E29="HERCP",INDEX(Database!$E$349:$S$353,MATCH('Pipe Input'!$E$2,Database!$C$349:$C$353,0),MATCH('Pipe Input'!G29,Database!$E$342:$S$342,0)),"") ->  | N29: =IF(E29="RCP",Summary!$AN$5,IF(E29="HERCP",Summary!$AN$33,IF(E29="HDPE",Summary!$AN$50,IF(E29="CMP",Summary!$AN$72, "")))) ->  | P29: 0 | Q29: 0 | AA29: =IFERROR(IF(E29="HDPE",INDEX(Database!$E$373:$S$373,MATCH('Pipe Input'!$AA$3,Database!$C$373:$S$373,0),MATCH('Pipe Input'!G29,Database!$E$364:$S$364,0)),""), "") ->  | AC29: =IFERROR(IF(E29="RCP",INDEX(Database!$E$316:$BF$316,MATCH('Pipe Input'!$AC$3,Database!$C$316:$BF$316,0),MATCH('Pipe Input'!G29,Database!$E$303:$BF$303,0)),IF(E29="HERCP",INDEX(Database!$E$355:$S$355,MATCH('Pipe Input'!$AC$3,Database!$C$355:$S$355,0),MATCH('Pipe Input'!G29,Database!$E$342:$S$342,0)),IF(E29="HDPE",INDEX(Database!$E$371:$S$371,MATCH('Pipe Input'!$AC$3,Database!$C$371:$S$371,0),MATCH('Pipe Input'!G29,Database!$E$364:$S$364,0)),IF(E29="CMP",INDEX(Database!$E$389:$AS$389,MATCH('Pipe Input'!$AC$3,Database!$C$389:$AS$389,0),MATCH('Pipe Input'!G29,Database!$E$381:$AS$381,0)),"")))),"") ->  | AD29: 0 | AE29: 0 | AF29: 0
B30: 27 | I30: =IFERROR(IF(E30="RCP",INDEX(Database!$E$305:$BF$305,MATCH('Pipe Input'!$I$3,Database!$C$305:$BF$305,0),MATCH('Pipe Input'!G30,Database!$E$303:$BF$303,0)),IF(E30="HERCP",INDEX(Database!$E$345:$S$345,MATCH('Pipe Input'!$I$3,Database!$C$345:$S$345,0),MATCH('Pipe Input'!G30,Database!$E$342:$S$342,0)),IF(E30="HDPE",INDEX(Database!$E$366:$S$366,MATCH('Pipe Input'!$I$3,Database!$C$366:$S$366,0),MATCH('Pipe Input'!G30,Database!$E$364:$S$364,0)),IF(E30="CMP",INDEX(Database!$E$383:$AS$383,MATCH('Pipe Input'!$I$3,Database!$C$383:$AS$383,0),MATCH('Pipe Input'!G30,Database!$E$381:$AS$381,0)),"")))),"") ->  | K30: =IFERROR(IF(E30="RCP",L30,IF(E30="HERCP",M30,IF(E30="HDPE",INDEX(Database!$E$370:$S$370,MATCH('Pipe Input'!$K$3,Database!$C$370:$S$370,0),MATCH('Pipe Input'!G30,Database!$E$364:$S$364,0)),IF(E30="CMP",INDEX(Database!$E$388:$AS$388,MATCH('Pipe Input'!$K$3,Database!$C$388:$AS$388,0),MATCH('Pipe Input'!G30,Database!$E$381:$AS$381,0)),"")))),"") ->  | L30: =IF(E30="RCP",INDEX(Database!$E$310:$BF$314,MATCH('Pipe Input'!$E$2,Database!$C$310:$C$314,0),MATCH('Pipe Input'!G30,Database!$E$303:$BF$303,0)),"") ->  | M30: =IF(E30="HERCP",INDEX(Database!$E$349:$S$353,MATCH('Pipe Input'!$E$2,Database!$C$349:$C$353,0),MATCH('Pipe Input'!G30,Database!$E$342:$S$342,0)),"") ->  | N30: =IF(E30="RCP",Summary!$AN$5,IF(E30="HERCP",Summary!$AN$33,IF(E30="HDPE",Summary!$AN$50,IF(E30="CMP",Summary!$AN$72, "")))) ->  | P30: 0 | Q30: 0 | AA30: =IFERROR(IF(E30="HDPE",INDEX(Database!$E$373:$S$373,MATCH('Pipe Input'!$AA$3,Database!$C$373:$S$373,0),MATCH('Pipe Input'!G30,Database!$E$364:$S$364,0)),""), "") ->  | AC30: =IFERROR(IF(E30="RCP",INDEX(Database!$E$316:$BF$316,MATCH('Pipe Input'!$AC$3,Database!$C$316:$BF$316,0),MATCH('Pipe Input'!G30,Database!$E$303:$BF$303,0)),IF(E30="HERCP",INDEX(Database!$E$355:$S$355,MATCH('Pipe Input'!$AC$3,Database!$C$355:$S$355,0),MATCH('Pipe Input'!G30,Database!$E$342:$S$342,0)),IF(E30="HDPE",INDEX(Database!$E$371:$S$371,MATCH('Pipe Input'!$AC$3,Database!$C$371:$S$371,0),MATCH('Pipe Input'!G30,Database!$E$364:$S$364,0)),IF(E30="CMP",INDEX(Database!$E$389:$AS$389,MATCH('Pipe Input'!$AC$3,Database!$C$389:$AS$389,0),MATCH('Pipe Input'!G30,Database!$E$381:$AS$381,0)),"")))),"") ->  | AD30: 0 | AE30: 0 | AF30: 0
B31: 28 | I31: =IFERROR(IF(E31="RCP",INDEX(Database!$E$305:$BF$305,MATCH('Pipe Input'!$I$3,Database!$C$305:$BF$305,0),MATCH('Pipe Input'!G31,Database!$E$303:$BF$303,0)),IF(E31="HERCP",INDEX(Database!$E$345:$S$345,MATCH('Pipe Input'!$I$3,Database!$C$345:$S$345,0),MATCH('Pipe Input'!G31,Database!$E$342:$S$342,0)),IF(E31="HDPE",INDEX(Database!$E$366:$S$366,MATCH('Pipe Input'!$I$3,Database!$C$366:$S$366,0),MATCH('Pipe Input'!G31,Database!$E$364:$S$364,0)),IF(E31="CMP",INDEX(Database!$E$383:$AS$383,MATCH('Pipe Input'!$I$3,Database!$C$383:$AS$383,0),MATCH('Pipe Input'!G31,Database!$E$381:$AS$381,0)),"")))),"") ->  | K31: =IFERROR(IF(E31="RCP",L31,IF(E31="HERCP",M31,IF(E31="HDPE",INDEX(Database!$E$370:$S$370,MATCH('Pipe Input'!$K$3,Database!$C$370:$S$370,0),MATCH('Pipe Input'!G31,Database!$E$364:$S$364,0)),IF(E31="CMP",INDEX(Database!$E$388:$AS$388,MATCH('Pipe Input'!$K$3,Database!$C$388:$AS$388,0),MATCH('Pipe Input'!G31,Database!$E$381:$AS$381,0)),"")))),"") ->  | L31: =IF(E31="RCP",INDEX(Database!$E$310:$BF$314,MATCH('Pipe Input'!$E$2,Database!$C$310:$C$314,0),MATCH('Pipe Input'!G31,Database!$E$303:$BF$303,0)),"") ->  | M31: =IF(E31="HERCP",INDEX(Database!$E$349:$S$353,MATCH('Pipe Input'!$E$2,Database!$C$349:$C$353,0),MATCH('Pipe Input'!G31,Database!$E$342:$S$342,0)),"") ->  | N31: =IF(E31="RCP",Summary!$AN$5,IF(E31="HERCP",Summary!$AN$33,IF(E31="HDPE",Summary!$AN$50,IF(E31="CMP",Summary!$AN$72, "")))) ->  | P31: 0 | Q31: 0 | AA31: =IFERROR(IF(E31="HDPE",INDEX(Database!$E$373:$S$373,MATCH('Pipe Input'!$AA$3,Database!$C$373:$S$373,0),MATCH('Pipe Input'!G31,Database!$E$364:$S$364,0)),""), "") ->  | AC31: =IFERROR(IF(E31="RCP",INDEX(Database!$E$316:$BF$316,MATCH('Pipe Input'!$AC$3,Database!$C$316:$BF$316,0),MATCH('Pipe Input'!G31,Database!$E$303:$BF$303,0)),IF(E31="HERCP",INDEX(Database!$E$355:$S$355,MATCH('Pipe Input'!$AC$3,Database!$C$355:$S$355,0),MATCH('Pipe Input'!G31,Database!$E$342:$S$342,0)),IF(E31="HDPE",INDEX(Database!$E$371:$S$371,MATCH('Pipe Input'!$AC$3,Database!$C$371:$S$371,0),MATCH('Pipe Input'!G31,Database!$E$364:$S$364,0)),IF(E31="CMP",INDEX(Database!$E$389:$AS$389,MATCH('Pipe Input'!$AC$3,Database!$C$389:$AS$389,0),MATCH('Pipe Input'!G31,Database!$E$381:$AS$381,0)),"")))),"") ->  | AD31: 0 | AE31: 0 | AF31: 0
B32: 29 | I32: =IFERROR(IF(E32="RCP",INDEX(Database!$E$305:$BF$305,MATCH('Pipe Input'!$I$3,Database!$C$305:$BF$305,0),MATCH('Pipe Input'!G32,Database!$E$303:$BF$303,0)),IF(E32="HERCP",INDEX(Database!$E$345:$S$345,MATCH('Pipe Input'!$I$3,Database!$C$345:$S$345,0),MATCH('Pipe Input'!G32,Database!$E$342:$S$342,0)),IF(E32="HDPE",INDEX(Database!$E$366:$S$366,MATCH('Pipe Input'!$I$3,Database!$C$366:$S$366,0),MATCH('Pipe Input'!G32,Database!$E$364:$S$364,0)),IF(E32="CMP",INDEX(Database!$E$383:$AS$383,MATCH('Pipe Input'!$I$3,Database!$C$383:$AS$383,0),MATCH('Pipe Input'!G32,Database!$E$381:$AS$381,0)),"")))),"") ->  | K32: =IFERROR(IF(E32="RCP",L32,IF(E32="HERCP",M32,IF(E32="HDPE",INDEX(Database!$E$370:$S$370,MATCH('Pipe Input'!$K$3,Database!$C$370:$S$370,0),MATCH('Pipe Input'!G32,Database!$E$364:$S$364,0)),IF(E32="CMP",INDEX(Database!$E$388:$AS$388,MATCH('Pipe Input'!$K$3,Database!$C$388:$AS$388,0),MATCH('Pipe Input'!G32,Database!$E$381:$AS$381,0)),"")))),"") ->  | L32: =IF(E32="RCP",INDEX(Database!$E$310:$BF$314,MATCH('Pipe Input'!$E$2,Database!$C$310:$C$314,0),MATCH('Pipe Input'!G32,Database!$E$303:$BF$303,0)),"") ->  | M32: =IF(E32="HERCP",INDEX(Database!$E$349:$S$353,MATCH('Pipe Input'!$E$2,Database!$C$349:$C$353,0),MATCH('Pipe Input'!G32,Database!$E$342:$S$342,0)),"") ->  | N32: =IF(E32="RCP",Summary!$AN$5,IF(E32="HERCP",Summary!$AN$33,IF(E32="HDPE",Summary!$AN$50,IF(E32="CMP",Summary!$AN$72, "")))) ->  | P32: 0 | Q32: 0 | AA32: =IFERROR(IF(E32="HDPE",INDEX(Database!$E$373:$S$373,MATCH('Pipe Input'!$AA$3,Database!$C$373:$S$373,0),MATCH('Pipe Input'!G32,Database!$E$364:$S$364,0)),""), "") ->  | AC32: =IFERROR(IF(E32="RCP",INDEX(Database!$E$316:$BF$316,MATCH('Pipe Input'!$AC$3,Database!$C$316:$BF$316,0),MATCH('Pipe Input'!G32,Database!$E$303:$BF$303,0)),IF(E32="HERCP",INDEX(Database!$E$355:$S$355,MATCH('Pipe Input'!$AC$3,Database!$C$355:$S$355,0),MATCH('Pipe Input'!G32,Database!$E$342:$S$342,0)),IF(E32="HDPE",INDEX(Database!$E$371:$S$371,MATCH('Pipe Input'!$AC$3,Database!$C$371:$S$371,0),MATCH('Pipe Input'!G32,Database!$E$364:$S$364,0)),IF(E32="CMP",INDEX(Database!$E$389:$AS$389,MATCH('Pipe Input'!$AC$3,Database!$C$389:$AS$389,0),MATCH('Pipe Input'!G32,Database!$E$381:$AS$381,0)),"")))),"") ->  | AD32: 0 | AE32: 0 | AF32: 0
B33: 30 | I33: =IFERROR(IF(E33="RCP",INDEX(Database!$E$305:$BF$305,MATCH('Pipe Input'!$I$3,Database!$C$305:$BF$305,0),MATCH('Pipe Input'!G33,Database!$E$303:$BF$303,0)),IF(E33="HERCP",INDEX(Database!$E$345:$S$345,MATCH('Pipe Input'!$I$3,Database!$C$345:$S$345,0),MATCH('Pipe Input'!G33,Database!$E$342:$S$342,0)),IF(E33="HDPE",INDEX(Database!$E$366:$S$366,MATCH('Pipe Input'!$I$3,Database!$C$366:$S$366,0),MATCH('Pipe Input'!G33,Database!$E$364:$S$364,0)),IF(E33="CMP",INDEX(Database!$E$383:$AS$383,MATCH('Pipe Input'!$I$3,Database!$C$383:$AS$383,0),MATCH('Pipe Input'!G33,Database!$E$381:$AS$381,0)),"")))),"") ->  | K33: =IFERROR(IF(E33="RCP",L33,IF(E33="HERCP",M33,IF(E33="HDPE",INDEX(Database!$E$370:$S$370,MATCH('Pipe Input'!$K$3,Database!$C$370:$S$370,0),MATCH('Pipe Input'!G33,Database!$E$364:$S$364,0)),IF(E33="CMP",INDEX(Database!$E$388:$AS$388,MATCH('Pipe Input'!$K$3,Database!$C$388:$AS$388,0),MATCH('Pipe Input'!G33,Database!$E$381:$AS$381,0)),"")))),"") ->  | L33: =IF(E33="RCP",INDEX(Database!$E$310:$BF$314,MATCH('Pipe Input'!$E$2,Database!$C$310:$C$314,0),MATCH('Pipe Input'!G33,Database!$E$303:$BF$303,0)),"") ->  | M33: =IF(E33="HERCP",INDEX(Database!$E$349:$S$353,MATCH('Pipe Input'!$E$2,Database!$C$349:$C$353,0),MATCH('Pipe Input'!G33,Database!$E$342:$S$342,0)),"") ->  | N33: =IF(E33="RCP",Summary!$AN$5,IF(E33="HERCP",Summary!$AN$33,IF(E33="HDPE",Summary!$AN$50,IF(E33="CMP",Summary!$AN$72, "")))) ->  | P33: 0 | Q33: 0 | AA33: =IFERROR(IF(E33="HDPE",INDEX(Database!$E$373:$S$373,MATCH('Pipe Input'!$AA$3,Database!$C$373:$S$373,0),MATCH('Pipe Input'!G33,Database!$E$364:$S$364,0)),""), "") ->  | AC33: =IFERROR(IF(E33="RCP",INDEX(Database!$E$316:$BF$316,MATCH('Pipe Input'!$AC$3,Database!$C$316:$BF$316,0),MATCH('Pipe Input'!G33,Database!$E$303:$BF$303,0)),IF(E33="HERCP",INDEX(Database!$E$355:$S$355,MATCH('Pipe Input'!$AC$3,Database!$C$355:$S$355,0),MATCH('Pipe Input'!G33,Database!$E$342:$S$342,0)),IF(E33="HDPE",INDEX(Database!$E$371:$S$371,MATCH('Pipe Input'!$AC$3,Database!$C$371:$S$371,0),MATCH('Pipe Input'!G33,Database!$E$364:$S$364,0)),IF(E33="CMP",INDEX(Database!$E$389:$AS$389,MATCH('Pipe Input'!$AC$3,Database!$C$389:$AS$389,0),MATCH('Pipe Input'!G33,Database!$E$381:$AS$381,0)),"")))),"") ->  | AD33: 0 | AE33: 0 | AF33: 0
R35: Truck Rate | S35: =(Summary!AN4) -> 0 | T35: RCP | U35: Truck Rate | V35: =Summary!AN32 -> 0 | W35: HERCP | X35: Truck Rate | Y35: =Summary!AN49 -> 0 | AA35: HDPE
R36: Truck $ Total | S36: # of Trucks | T36: Total Wt. | U36: Truck $ Total | V36: # of Trucks | W36: Total Wt. | X36: Truck $ Total | Y36: # of Trucks | Z36: % Load Sum | AA36: Load Count
R37: =(S37*S35) -> 0 | S37: =(Summary!AN2) -> 0 | T37: =SUM(T4:T33) -> 0 | U37: =(V37*V35) -> 0 | V37: =Summary!AN30 -> 0 | W37: =SUM(W4:W33) -> 0 | X37: =(Y37*Y35) -> 0 | Y37: =(Summary!AN48) -> 0 | Z37: =SUM(Z4:Z33) -> 0 | AA37: =(Z37/100) -> 0
R38: =(R37) -> 0 | S38: 0 | T38: 0 | U38: 0 | V38: 0 | W38: 0 | X38: 0 | Y38: 0 | Z38: 0 | AA38: =(Z38/100) -> 0
R39: =(R38) -> 0 | S39: =(S38) -> 0 | T39: =(T38) -> 0 | U39: =(U38) -> 0 | V39: =(V38) -> 0 | W39: =(W38) -> 0 | X39: 0 | Y39: =(Y38) -> 0 | Z39: =(Z38) -> 0 | AA39: 0
R40: 0 | S40: 0 | T40: 0 | U40: 0 | V40: 0 | W40: 0 | X40: 0 | Y40: 0 | Z40: 0 | AA40: 0
R41: 0 | S41: 0 | T41: 0 | U41: 0 | V41: 0 | W41: 0 | X41: 0 | Y41: 0 | Z41: 0 | AA41: 0
R42: 0 | S42: 0 | T42: 0 | U42: 0 | V42: 0 | W42: 0 | X42: 0 | Y42: 0 | Z42: 0 | AA42: 0
R43: 0 | S43: 0 | T43: 0 | U43: 0 | V43: 0 | W43: 0 | X43: 0 | Y43: 0 | Z43: 0 | AA43: 0
R44: 0 | S44: 0 | T44: 0 | U44: 0 | V44: 0 | W44: 0 | X44: 0 | Y44: 0 | Z44: 0 | AA44: 0
R45: 0 | S45: 0 | T45: 0 | U45: 0 | V45: 0 | W45: 0 | X45: 0 | Y45: 0 | Z45: 0 | AA45: 0
R46: 0 | S46: 0 | T46: 0 | U46: 0 | V46: 0 | W46: 0 | X46: 0 | Y46: 0 | Z46: 0 | AA46: 0
R47: 0 | S47: 0 | T47: 0 | U47: 0 | V47: 0 | W47: 0 | X47: 0 | Y47: 0 | Z47: 0 | AA47: 0
R48: 0 | S48: 0 | T48: 0 | U48: 0 | V48: 0 | W48: 0 | X48: 0 | Y48: 0 | Z48: 0 | AA48: 0
R49: 0 | S49: 0 | T49: 0 | U49: 0 | V49: 0 | W49: 0 | X49: 0 | Y49: 0 | Z49: 0 | AA49: 0
R50: 0 | S50: 0 | T50: 0 | U50: 0 | V50: 0 | W50: 0 | X50: 0 | Y50: 0 | Z50: 0 | AA50: 0
R51: 0 | S51: 0 | T51: 0 | U51: 0 | V51: 0 | W51: 0 | X51: 0 | Y51: 0 | Z51: 0 | AA51: 0
R52: 0 | S52: 0 | T52: 0 | U52: 0 | V52: 0 | W52: 0 | X52: 0 | Y52: 0 | Z52: 0 | AA52: 0
R53: 0 | S53: 0 | T53: 0 | U53: 0 | V53: 0 | W53: 0 | X53: 0 | Y53: 0 | Z53: 0 | AA53: 0
R54: 0 | S54: 0 | T54: 0 | U54: 0 | V54: 0 | W54: 0 | X54: 0 | Y54: 0 | Z54: 0 | AA54: 0
R55: 0 | S55: 0 | T55: 0 | U55: 0 | V55: 0 | W55: 0 | X55: 0 | Y55: 0 | Z55: 0 | AA55: 0
R56: 0 | S56: 0 | T56: 0 | U56: 0 | V56: 0 | W56: 0 | X56: 0 | Y56: 0 | Z56: 0 | AA56: 0
R57: 0 | S57: 0 | T57: 0 | U57: 0 | V57: 0 | W57: 0 | X57: 0 | Y57: 0 | Z57: 0 | AA57: 0
R58: 0 | S58: 0 | T58: 0 | U58: 0 | V58: 0 | W58: 0 | X58: 0 | Y58: 0 | Z58: 0 | AA58: 0
R59: 0 | S59: 0 | T59: 0 | U59: 0 | V59: 0 | W59: 0 | X59: 0 | Y59: 0 | Z59: 0 | AA59: 0
R60: 0 | S60: 0 | T60: 0 | U60: 0 | V60: 0 | W60: 0 | X60: 0 | Y60: 0 | Z60: 0 | AA60: 0
R61: 0 | S61: 0 | T61: 0 | U61: 0 | V61: 0 | W61: 0 | X61: 0 | Y61: 0 | Z61: 0 | AA61: 0
R62: 0 | S62: 0 | T62: 0 | U62: 0 | V62: 0 | W62: 0 | X62: 0 | Y62: 0 | Z62: 0 | AA62: 0
R63: 0 | S63: 0 | T63: 0 | U63: 0 | V63: 0 | W63: 0 | X63: 0 | Y63: 0 | Z63: 0 | AA63: 0
R64: 0 | S64: 0 | T64: 0 | U64: 0 | V64: 0 | W64: 0 | X64: 0 | Y64: 0 | Z64: 0 | AA64: 0
R65: 0 | S65: 0 | T65: 0 | U65: 0 | V65: 0 | W65: 0 | X65: 0 | Y65: 0 | Z65: 0 | AA65: 0
R66: 0 | S66: 0 | T66: 0 | U66: 0 | V66: 0 | W66: 0 | X66: 0 | Y66: 0 | Z66: 0 | AA66: 0
R67: 0 | S67: 0 | T67: 0 | U67: 0 | V67: 0 | W67: =(W66) -> 0 | X67: =(X66) -> 0 | Y67: 0 | Z67: 0 | AA67: 0

Sheet Structure Input
A7: Data Collection: Unlocked Cells. Fill out all yellow boxes | R7: Number of Truck Loads Required | W7: =(Summary!AC9) -> 64.47667852 | X7: =(Summary!AD9) -> 65 | AJ7: Rounded Up Largest Pipe Wall Thickness (Inches) | AR7: Dimension inputs are not required for standard GT's, Tanks if using the component price function in column G. | AW7: Minimum I-Cast Configurations: (Storm - 1" CS-102) (Sanitary - 1" CS-102 Dbl, 6" CS-212) (Wet Well - 1" CS-231 Dbl, 12" MacWrap) | BI7: Rectangle | BJ7: Rectangle | BK7: Rectangle or Round Thicknesses (Inches) | CN7: Freight Category: 1 = (Standard Load), 2 = (8'7" to 12'5"), 3 = (12'6" to 13'11"), 4 = (14'0" to 16'0") | DB7: Component Tons Each | DC7: Estimators Internal Comments in Grey Cell | DG7: Over Weight Load (Single Piece over 45,000 LBS) | DH7: Dedicate freight to only this Item # (No loads to be combined with other Item #'s) | GN7: INPUT ACTUAL COST ON RESALE ITEMS, WITHOUT MARKUP | HY7: Add Load Total Freight Fee for Wide Load
A8: Index Formula Cells: Type value in cell to overide formula. Unlock Password: I-Cast | J8: Elevation | O8: Pipe Info (Enter Largest Pipe as Pipe 1) | W8: Casting Quick Ref. (Y-AE) | AK8: Add for Min. Depth or Sump (feet) | AM8: Transition | AR8: Structure Configuration | BO8: Transition | BT8: External Perimeter | BW8: Internal Perimeter | BZ8: Pipe Chamber Round Volume | CD8: Pipe Chamber Rectangle Volume | CH8: Transition Volume | CK8: Load Width | CP8: Total Load Count | CT8: Load Tonnage | DC8: Estimators External Comments in Yellow Cell | DR8: List Prices | EB8: KO Structrue Height in Inches + Pipe WT - Casting Ht. | EC8: KO Str. | FV8: VF Cost Rate | GA8: List Prices | GN8: Cost, Multiplier & Selling Price | HV8: Freight Fee for Piece Weight over 45K Lbs | HX8: Load 1 Freight Total Fee for Wide Load | HZ8: Total freight Amount (Base Rate + Fees)
A9: Line Item # | B9: Bid Item # | C9: Quantity | D9: Type | E9: Stack-It Specification Translation | F9: Sub Type | G9: Structure Description | H9: Component Type: (Headwall, Top Phase, Riser Section, Tops, KO) | I9: STR # | J9: Rim | K9: Pipe / Floor / Sump | L9: Pipe Defference | M9: Eligible for a Drop | N9: Drop Depth | O9: # | P9: ID | Q9: Type | R9: Angle | S9: Pipe ID, Type & Connection Type (Default to RCP/HDPE for open storm pipe spec's) | T9: Pipe Seal Legend # | U9: Product ID | V9: Pipe Seal Cost | W9: Casting or Hatch Model# (Yellow) Type: "Casting" or "Hatch" (Orange) Accessory Selection (Green) | X9: Casting Height | Y9: Casting Qty Per Structure | Z9: Clear Opening | AA9: Precast Opening Size | AB9: Stock or Non-Stock Item | AC9: Number of Non-Stock Items | AD9: Equivalent 1 | AE9: Equivalent 2 | AF9: Equivalent 3 | AG9: Specification | AH9: Specification | AI9: Grade Ring Height | AL9: Total Str. Rim- Inv. Depth (ft) | AM9: Pipe Chamber Depth (ft) | AN9: Transition Depth (Ft) | AO9: Transition Status | AP9: Structure Type | AQ9: Min. Base Ht. For Trans. Str. | AR9: Structure Size | AS9: Top/Trans Slab Required | AT9: Base Slab Required | AU9: Plain Concrete or Special Admixture | AV9: Open Bottom or Open Top | AW9: Joint Sealant | AX9: Joint Sealant Legend # | AY9: Exterior Joint Wrap | AZ9: Exterior Joint Wrap Legend # | BA9: MH Step | BB9: Exterior Coating (Yellow) or Interior Coating (Green) | BC9: Coating Legend # | BD9: Coating Legend # | BE9: Round Shaped Invert | BF9: Round Shaped Invert | BG9: Standard Base Extension | BH9: Dia (inches) | BI9: Width (inches) | BJ9: Length (inches) | BK9: Base | BL9: Lid | BM9: Walls | BN9: Base Ext | BO9: Dia (inches) | BP9: Width (inches) | BQ9: Length (inches) | BR9: Lid | BS9: Walls | BT9: Round Perimeter (Feet) | BU9: Flat Wall Perimeter (Feet) | BV9: Perimeter (Feet) | BW9: Round Perimeter (Feet) | BX9: Flat Wall Perimeter (Feet) | BY9: Perimeter (Feet) | BZ9: Base | CA9: Wall | CB9: Lid | CC9: Total | CD9: Base | CE9: Wall | CF9: Lid | CG9: Total | CH9: Wall | CI9: Lid | CJ9: Total | CK9: Initial Load Width (Base Slab Dimension) | CL9: Additonal Load Width (Riser Dimension) | CM9: Component Load Width | CN9: Initial Load Category | CO9: Additonal Load Category | CP9: Initial Load Count | CQ9: Additonal Load Count | CR9: Total Load Count for Item | CS9: Load Count Added to Item | CT9: Initial Load Tons Each (Base Slab) | CU9: Additonal Load Tons Each (Riser,Top) | CV9: Total Load 1 Tons (Base Slab) | CW9: Total Additonal Load Tons (Riser,Top) | CX9: Category 1 Tonnage | CY9: Category 2 Tonnage | CZ9: Category 3 Tonnage | DA9: Category 4 Tonnage | DE9: Jon Comments | DF9: # Loads over 45,000 LBS | DI9: Standard Cubic Feet | DJ9: Total Tons | DK9: Tons Each | DL9: Custom Cubic Feet | DM9: Custom Rate per CF | DN9: Plain / Xypex / MIC / Xypex+MIC | DO9: Admixture Legend # | DP9: Pipe Chamber Depth (ft) | DQ9: Structure Type | DR9: Base Price Depth | DS9: Round Base & Top | DT9: Flat Wall Base | DU9: Flat Wall Lid Adder | DV9: VF Adder Rate | DW9: Round Component Price | DX9: Trans. Riser | DY9: Trans. Top | DZ9: Round Base Slab Deduct | EA9: Round Lid Slab Deduct | EC9: KO Base Height Inches | ED9: KO Base Price | EE9: KO Base Weight | EF9: KO Base Product ID | EG9: KO Lid Height Inches | EH9: KO Lid Price | EI9: KO Lid Weight | EJ9: Lid for KO Structure Product ID | EK9: Remaining Height After Base, Lid and Casting | EL9: KO Riser #1 Height Inches | EM9: KO Riser Price | EN9: KO Riser Weight | EO9: Riser Product ID | EP9: Remaining Height After Base, Lid, Riser 1 and Casting | EQ9: KO Riser #2 Height Inches | ER9: KO Riser Price | ES9: KO Riser Weight | ET9: Riser Product ID | EU9: Remaining Height After Base, Lid, Riser 1,2 and Casting | EV9: KO Riser #3 Height Inches | EW9: KO Riser Price | EX9: KO Riser Weight | EY9: Riser Product ID | EZ9: Remaining Height After Base, Lid, Riser 1,2,3 and Casting | FA9: KO Riser #4 Height Inches | FB9: KO Riser Price | FC9: KO Riser Weight | FD9: Riser Product ID | FE9: Remaining Height After Base, Lid, Riser 1,2,3 and Casting | FF9: KO Riser #5 Height Inches | FG9: KO Riser Price | FH9: KO Riser Weight | FI9: Riser Product ID | FJ9: Remaining Height After Base, Lid, Riser 1,2,3,4 and Casting | FK9: KO Grade Ring 1 Height | FL9: KO Grade Ring 1 Price | FM9: Grade Ring Product ID | FN9: Remaining Height After Base, Lid, Riser 1,2,3,4,GR1 and Casting | FO9: KO Grade Ring 2 Height | FP9: KO Grade Ring 2 Price | FQ9: Grade Ring Product ID | FR9: Grout Field Adjustment or Negative Sump In Inches | FS9: KO Structure Total Price | FT9: KO Structure Total Weight (Tons) | FU9: Joint Sealant Cost Per LF | FV9: Joint Sealant Cost Rate | FW9: Exterior Wrap Cost Per LF | FX9: Exterior Joint Wrap Cost Rate | FY9: MH Step Cost Rate | FZ9: Coating Cost Per Sq. Ft. | GA9: Exterior Coating Rate | GB9: Interior Coating Rate | GC9: Largest Actual Pipe Size | GD9: Largest Invert Size | GE9: Shaped Invert | GF9: Base Ext Adder | GG9: Grade Ring Adder | GH9: Casting In Frame or Hatch Adder | GI9: Weir Wall Adder | GJ9: V-Notch or other Shape Adder | GK9: WQU or Detention System | GL9: Grease Oil Sep Septic Tank | GM9: Headwall or Top Phase List Price | GN9: Casting Price | GO9: Used for Casting Price Total | GP9: Used for Hatch Price Total | GQ9: Used for Casting Cost Total | GR9: Used for Hatch Cost Total | GS9: Item Casting Total Quantity | GT9: Item Hatch Total Quantity | GU9: Casting Fraction of the Total | GV9: Hatch Fraction of the Total | GW9: Accessory 1 Selling Price | GX9: Accessory 2 Selling Price | GY9: Exterior Drop Multiplier | GZ9: Exterior Drop Rate | HA9: Exterior Drop Depth (4' Min) | HB9: STR ID | HC9: VF over Base | HD9: VF of Trans. Riser | HE9: Joint Sealant Cost | HF9: Joint Wrap Cost | HG9: Pipe Connector Cost | HH9: MH Step Cost | HI9: Sealant Connector Step Selling Price | HJ9: Sealant Connector Step Selling Price | HK9: Exterior Drop | HL9: Exterior Coating | HM9: Interior Coating | HN9: Custom Products | HO9: Unit Freight | HP9: Total Selling Price | HQ9: Rate/CF | HR9: Base Rate Total Freight | HS9: Total Not Used | HT9: Rate/CF Not used | HU9: Freight % | HW9: Dedicated load Fee | IA9: Unit Freight W/Fees Not Used | IB9: Precast Multiplier | IC9: Total PC $ w/frt & Accessories | ID9: Total PC $ w/frt w/o Accessories (Precast Only) | IE9: Total PC $ No Frt w/o Accessories (Precast Only)
A10: Master Configuration Chart / Kits | AR10: Master Configuration Chart / Kits (Note: individual structure overrides may differ)
A11: A | D11: Storm | AR11: Storm | AU11: Plain | AV11: =IFERROR(IF(AND(OR(AS11="Yes Top",AS11="Trans 48""R W/Top",AS11="Trans 60""R W/Top",AS11="Trans 24""x24"" Riser",AS11="Trans 24""x24"" W/Top",AS11="Trans 24""x30"" Riser",AS11="Trans 24""x30"" W/Top",AS11="Trans 24""x36"" Riser",AS11="Trans 24""x36"" W/Top",AS11="Trans 36""x36"" Riser",AS11="Trans 36""x36"" W/Top"),J11>0,AT11="W/Base"),"No",IF(AND(OR(AS11="Yes Top",AS11="Trans 48""R W/Top",AS11="Trans 60""R W/Top",AS11="Trans 24""x24"" Riser",AS11="Trans 24""x24"" W/Top",AS11="Trans 24""x30"" Riser",AS11="Trans 24""x30"" W/Top",AS11="Trans 24""x36"" Riser",AS11="Trans 24""x36"" W/Top",AS11="Trans 36""x36"" Riser",AS11="Trans 36""x36"" W/Top"),J11>0,AT11="No Base"),"OB",IF(AND(AS11="No Top",J11>0,W11=0,AT11="W/Base"),"OT",IF(AND(AS11="No Top",J11>0,W11>0,AT11="W/Base"),"No",IF(AND(AS11="No Top",J11>0,W11=0,AT11="No Base"),"OB & OT",IF(AND(AS11="No Top",J11>0,W11>0,AT11="No Base"),"OB","")))))),"") ->  | AW11: 1" CS-102 | AX11: =IF(AW11="1"" CS-102",1,IF(AW11="1"" CS-102 Dbl",2,IF(AW11="1.25"" CS-102",3,IF(AW11="1.25"" CS-102 Dbl",4,IF(AW11="1"" CS-231",5,IF(AW11="1"" CS-231 Dbl",6,IF(AW11="1.25"" CS-231",7,IF(AW11="1.25"" CS-231 Dbl",8,IF(AW11="3/4"" CS-440",9,IF(AW11="HK TSS Gasket",10,IF(AND(C11>0,AW11=""),"No",""))))))))))) -> 1 | AZ11: =IF(AY11="6"" CS-212",1,IF(AY11="12"" CS-212",2,IF(AY11="12"" MacWrap",3,IF(AND(C11>0,AY11=""),"No","")))) ->  | BC11: =IF(ISNUMBER(SEARCH("CS-55",BB11)),"1",IF(ISNUMBER(SEARCH("Carboline 300M",BB11)),"2",IF(ISNUMBER(SEARCH("Masterseal 610",BB11)),"3",IF(ISNUMBER(SEARCH("HLM 5000",BB11)),"4",IF(AND(C11>0,BB11=""),"No",""))))) ->  | BD11: =IF(AND(BC11="No",BC13="No"),"No",IF(AND(BC11>0,BC13="No"),BC11,IF(AND(BC13>0,BC11="No"),BC13,IF(AND(BC13>0,BC11>0,C11>0),BC11&","&BC13,"")))) ->  | BF11: =IF(BE11="Yes","Yes",IF(BE11="Exclude","Exclude",IF(BE11="No","No",IF(AND(J11>0,BE11=""),"No", "")))) -> 
A12: B | D12: Sanitary | AR12: Sanitary | AU12: Plain | AW12: 1" CS-102 Dbl | AX12: 2 | AY12: 6" CS-212 | AZ12: 1 | BA12: Yes | BE12: Yes | BF12: Yes
A13: C | D13: Wet Well | AR13: Wet Well | AU13: Plain | AW13: 1" CS-231 Dbl | AX13: 6 | AY13: 12" MacWrap | AZ13: 3
A14: D | D14: Vault | AR14: Vault | AU14: Plain | AW14: 1" CS-102 Dbl | AX14: 2 | BD14: =IF(AND(BC14="No",#REF!="No"),"No",IF(AND(BC14>0,#REF!="No"),BC14,IF(AND(#REF!>0,BC14="No"),#REF!,IF(AND(#REF!>0,BC14>0,C14>0),BC14&","&#REF!,"")))) -> 
A15: E | D15: GT/ Oil Sep. | AR15: Grease Trap / Oil Seperator | AU15: Plain | AW15: 1" CS-102 Dbl | AX15: 2 | BD15: =IF(AND(BC15="No",BC16="No"),"No",IF(AND(BC15>0,BC16="No"),BC15,IF(AND(BC16>0,BC15="No"),BC16,IF(AND(BC16>0,BC15>0,C15>0),BC15&","&BC16,"")))) -> 
A16: F | D16: Septic | AR16: Septic | AU16: Plain | AW16: 1" CS-102 Dbl | AX16: 2 | AY16: 6" CS-212 | AZ16: 1
A17: G | D17: Water/SS ARV | AR17: Water/SS ARV | AU17: Plain | AW17: 1" CS-102 Dbl | AX17: 2
A19: Master Casting Chart | H19: Master Casting Override | J19: (Note: individual structure overrides may differ) | S19: Preset Standard Spec. Selection | W19: Master Casting List
A20: A | D20: Sanitary | G20: Manhole | W20: =IF(H20>0,H20,IF(AND(H20="",(Database!E547)>0),Database!E547,"")) -> 
A21: B | D21: Sanitary | G21: Manhole W/Exterior Drop | W21: =IF(H21>0,H21,IF(AND(H21="",(Database!F547)>0),Database!F547,"")) -> 
A22: C | D22: Sanitary | G22: Manhole (Drop Excluded) | S22: Note: DOT structures are already preset. | W22: =IF(H22>0,H22,IF(AND(H22="",(Database!G547)>0),Database!G547,"")) -> 
A23: D | D23: Sanitary | G23: Manhole (Doghouse) | W23: =IF(H23>0,H23,IF(AND(H23="",(Database!H547)>0),Database!H547,"")) -> 
A24: E | D24: Storm | G24: Manhole | W24: =IF(H24>0,H24,IF(AND(H24="",(Database!I547)>0),Database!I547,"")) -> 
A25: F | D25: Storm | G25: Area Drain | W25: =IF(H25>0,H25,IF(AND(H25="",(Database!J547)>0),Database!J547,"")) -> 
A26: G | D26: Storm | G26: Catch Basin (Single) | W26: =IF(H26>0,H26,IF(AND(H26="",(Database!K547)>0),Database!K547,"")) -> 
A27: H | D27: Storm | G27: Catch Basin (Double) | W27: =IF(H27>0,H27,IF(AND(H27="",(Database!L547)>0),Database!L547,"")) -> 
A28: I | D28: Storm | G28: Catch Basin (Triple) | W28: =IF(H28>0,H28,IF(AND(H28="",(Database!M547)>0),Database!M547,"")) -> 
A29: J | D29: Storm | G29: Curb Inlet (Single) | W29: =IF(H29>0,H29,IF(AND(H29="",(Database!N547)>0),Database!N547,"")) -> 
A30: K | D30: Storm | G30: Curb Inlet (Double) | W30: =IF(H30>0,H30,IF(AND(H30="",(Database!O547)>0),Database!O547,"")) -> 
A31: L | D31: Storm | G31: Curb Inlet (Triple) | W31: =IF(H31>0,H31,IF(AND(H31="",(Database!P547)>0),Database!P547,"")) -> 
A32: M | D32: Storm | G32: Diversion Structure | W32: =IF(H32>0,H32,IF(AND(H32="",(Database!Q547)>0),Database!Q547,"")) -> 
A33: N | D33: Storm | G33: Drop Box Inlet | W33: =IF(H33>0,H33,IF(AND(H33="",(Database!R547)>0),Database!R547,"")) -> 
A34: O | D34: Storm | G34: Inlet | W34: =IF(H34>0,H34,IF(AND(H34="",(Database!S547)>0),Database!S547,"")) -> 
A35: P | D35: Storm | G35: Junction Box | W35: =IF(H35>0,H35,IF(AND(H35="",(Database!T547)>0),Database!T547,"")) -> 
A36: Q | D36: Storm | G36: Outlet Control Structure | W36: =IF(H36>0,H36,IF(AND(H36="",(Database!U547)>0),Database!U547,"")) -> 
A37: R | D37: Water/SS ARV | G37: Sanitary ARV | W37: =IF(H37>0,H37,IF(AND(H37="",(Database!V547)>0),Database!V547,"")) -> 
A38: S | D38: Water/SS ARV | G38: Water ARV | W38: =IF(H38>0,H38,IF(AND(H38="",(Database!W547)>0),Database!W547,"")) -> 
A39: T | D39: Storm | G39: Yard Drain | W39: =IF(H39>0,H39,IF(AND(H39="",(Database!X547)>0),Database!X547,"")) -> 
A40: U | D40: Enter ==> | G40: Custom Description 1 | W40: =IF(H40>0,H40,"") -> 
A41: V | D41: Enter ==> | G41: Custom Description 2 | W41: =IF(H41>0,H41,"") -> 
A42: W | D42: Enter ==> | G42: Custom Description 3 | W42: =IF(H42>0,H42,"") -> 
A45: 1 | N45: =IF(AND(OR(L46>2.1,L47>2.1,L48>2.1,L49>2.1,L50>2.1), J45>0,D45="Sanitary"), "Yes", IF(AND(OR(L46<2.1,L47<2.1,L48<2.1,L49<2.1,L50<2.1), J45>0,D45="Sanitary"), "No",IF(J45=0, "", ""))) ->  | O45: 1 | P45: =IFERROR(INDEX(Database!$E$203:$DA$203,MATCH('Structure Input'!$P$9,Database!$C$203:$DA$203,0), MATCH('Structure Input'!S45,Database!$E$199:$DA$199,0)), "") ->  | R45: 0 | T45: =IF(ISNUMBER(SEARCH("Grout",S45)),"1",IF(ISNUMBER(SEARCH("Link Seal",S45)),"4",IF(ISNUMBER(SEARCH("Boot",S45)),"2",IF(ISNUMBER(SEARCH("A-Lok",S45)),"3",IF(AND(C45>0,S45=""),"1",""))))) ->  | U45: =IFERROR(INDEX(Database!$E$201:$DA$201,MATCH('Structure Input'!$U$9,Database!$C$201:$DA$201,0), MATCH('Structure Input'!S45,Database!$E$199:$DA$199,0)), "n/a") -> n/a | V45: =IFERROR(INDEX(Database!$E$200:$DA$200,MATCH('Structure Input'!$V$9,Database!$C$200:$DA$200,0), MATCH('Structure Input'!S45,Database!$E$199:$DA$199,0)), 0) -> 0 | W45: =IFERROR(IF(W47>0,W47,IF(AND(W47=0,G45>0,H45=0),(INDEX(Database!$E$547:$FO$547,MATCH('Structure Input'!$W$19,Database!$C$547:$FO$547,0), MATCH('Structure Input'!G45,Database!$E$546:$FO$546,0))),IF(AND(W47=0,G45=0,H45>0),(INDEX(Database!$E$227:$JS$227,MATCH('Structure Input'!$W$19,Database!$C$227:$C$227,0), MATCH('Structure Input'!H45,Database!$E$218:$JS$218,0))),""))),"") ->  | X45: =IFERROR(INDEX(Database!$F$181:$LR$181,MATCH('Structure Input'!$X$9,Database!$C$181:$LR$181,0), MATCH('Structure Input'!W45,Database!$F$180:$LR$180,0)), 0) -> 0 | Y45: =IF(OR(W45>"",W47>0), 1, "") ->  | Z45: =IFERROR(INDEX(Database!$I$183:$LR$183,MATCH('Structure Input'!$Z$9,Database!$C$183:$LR$183,0), MATCH('Structure Input'!W45,Database!$I$180:$LR$180,0)), 0) -> 0 | AA45: =IFERROR(INDEX(Database!$I$184:$LR$184,MATCH('Structure Input'!$AA$9,Database!$C$184:$LR$184,0), MATCH('Structure Input'!W45,Database!$I$180:$LR$180,0)), 0) -> 0 | AB45: =IFERROR(INDEX(Database!$F$188:$LR$188,MATCH('Structure Input'!$AB$9,Database!$C$188:$LR$188,0), MATCH('Structure Input'!W45,Database!$F$180:$LR$180,0)), 0) -> 0 | AC45: =IF(AB45="Non-Stock",1*C45*Y45,0) -> 0 | AD45: =IFERROR(INDEX(Database!$I$189:$LR$189,MATCH('Structure Input'!$AD$9,Database!$C$189:$LR$189,0), MATCH('Structure Input'!W45,Database!$I$180:$LR$180,0)), 0) -> 0 | AE45: =IFERROR(INDEX(Database!$I$190:$LR$190,MATCH('Structure Input'!$AE$9,Database!$C$190:$LR$190,0), MATCH('Structure Input'!W45,Database!$I$180:$LR$180,0)), 0) -> 0 | AF45: =IFERROR(INDEX(Database!$I$191:$LR$191,MATCH('Structure Input'!$AF$9,Database!$C$191:$LR$191,0), MATCH('Structure Input'!W45,Database!$I$180:$LR$180,0)), 0) -> 0 | AG45: =IFERROR(INDEX(Database!$I$192:$LR$192,MATCH('Structure Input'!$AG$9,Database!$C$192:$LR$192,0), MATCH('Structure Input'!W45,Database!$I$180:$LR$180,0)), 0) -> 0 | AH45: =IFERROR(INDEX(Database!$I$193:$LR$193,MATCH('Structure Input'!$AH$9,Database!$C$193:$LR$193,0), MATCH('Structure Input'!W45,Database!$I$180:$LR$180,0)), 0) -> 0 | AJ45: =IFERROR(INDEX(Database!$E$204:$DA$204,MATCH('Structure Input'!$AJ$7,Database!$C$204:$DA$204,0), MATCH('Structure Input'!S45,Database!$E$199:$DA$199,0)),0) -> 0 | AL45: =(J45-K45)+AK45 -> 0 | AM45: =AL45-AN45 -> 0 | AN45: =IF(AND(AQ45>0, AO45="Transition"), AL45-AQ45, 0) -> 0 | AO45: =IFERROR(INDEX(Database!$E$165:$P$165,MATCH('Structure Input'!$AO$9,Database!$C$165:$P$165, 0), MATCH('Structure Input'!AS45,Database!$E$156:$P$156,0)), "") -> Top Slab | AP45: =IFERROR(INDEX(Database!$E$164:$P$164,MATCH('Structure Input'!$AP$9,Database!$C$164:$P$164, 0), MATCH('Structure Input'!AS45,Database!$E$156:$P$156,0)), "") -> 0 | AS45: =IF(AS46>0,AS46,IF(AND(AS46=0,AR45>0),INDEX(Database!$E$13:$BQ$13,MATCH('Structure Input'!$AS$9,Database!$C$13:$C$13,0), MATCH('Structure Input'!AR45,Database!$E$4:$BQ$4,0)),"Yes Top")) -> Yes Top | AT45: =IF(AT46>0,AT46,"W/Base") -> W/Base | AU45: =IF(AU46>0,AU46,IF(AND($D45="Storm",AU46=0,$AU$11>0),$AU$11,IF(AND($D45="Sanitary",AU46=0,$AU$12>0),$AU$12,IF(AND($D45="Wet Well",AU46=0,$AU$13>0),$AU$13,IF(AND($D45="Vault",AU46=0,$AU$14>0),$AU$14,IF(AND($D45="Grease Trap",AU46=0,$AU$15>0),$AU$15,IF(AND($D45="Oil Seperator",AU46=0,$AU$15>0),$AU$15,IF(AND($D45="Septic",AU46=0,$AU$16>0),$AU$16,IF(AND($D45="Water/SS ARV",AU46=0,$AU$17>0),$AU$17,"Plain"))))))))) -> Plain | AV45: =IFERROR(IF(AND(OR(AS45="Yes Top",AS45="Trans 48""R W/Top",AS45="Trans 60""R W/Top",AS45="Trans 24""x24"" Riser",AS45="Trans 24""x24"" W/Top",AS45="Trans 24""x30"" Riser",AS45="Trans 24""x30"" W/Top",AS45="Trans 24""x36"" Riser",AS45="Trans 24""x36"" W/Top",AS45="Trans 36""x36"" Riser",AS45="Trans 36""x36"" W/Top"),J45>0,AT45="W/Base"),"No",IF(AND(OR(AS45="Yes Top",AS45="Trans 48""R W/Top",AS45="Trans 60""R W/Top",AS45="Trans 24""x24"" Riser",AS45="Trans 24""x24"" W/Top",AS45="Trans 24""x30"" Riser",AS45="Trans 24""x30"" W/Top",AS45="Trans 24""x36"" Riser",AS45="Trans 24""x36"" W/Top",AS45="Trans 36""x36"" Riser",AS45="Trans 36""x36"" W/Top"),J45>0,AT45="No Base"),"OB",IF(AND(AS45="No Top",J45>0,OR(W45="",W45="No Casting"),AT45="W/Base"),"OT",IF(AND(AS45="No Top",J45>0,W45>0,AT45="W/Base"),"No",IF(AND(AS45="No Top",J45>0,OR(W45="",W45="No Casting"),AT45="No Base"),"OB & OT",IF(AND(AS45="No Top",J45>0,W45>0,AT45="No Base"),"OB","")))))),"") ->  | AW45: =IF(AW46>0,AW46,IF(AND($D45="Storm",AW46=0,$AW$11>0),$AW$11,IF(AND($D45="Sanitary",AW46=0,$AW$12>0),$AW$12,IF(AND($D45="Wet Well",AW46=0,$AW$13>0),$AW$13,IF(AND($D45="Vault",AW46=0,$AW$14>0),$AW$14,IF(AND($D45="Grease Trap",AW46=0,$AW$15>0),$AW$15,IF(AND($D45="Oil Seperator",AW46=0,$AW$15>0),$AW$15,IF(AND($D45="Septic",AW46=0,$AW$16>0),$AW$16,IF(AND($D45="Water/SS ARV",AW46=0,$AW$17>0),$AW$17,""))))))))) ->  | AX45: =IF(AW45="1"" CS-102",1,IF(AW45="1"" CS-102 Dbl",2,IF(AW45="1.25"" CS-102",3,IF(AW45="1.25"" CS-102 Dbl",4,IF(AW45="1"" CS-231",5,IF(AW45="1"" CS-231 Dbl",6,IF(AW45="1.25"" CS-231",7,IF(AW45="1.25"" CS-231 Dbl",8,IF(AW45="3/4"" CS-440",9,IF(AW45="HK TSS Gasket",10,IF(AND(C45>0,AW45=""),"No",""))))))))))) ->  | AY45: =IF(AY46>0,AY46,IF(AND($D45="Storm",AY46=0,$AY$11>0),$AY$11,IF(AND($D45="Sanitary",AY46=0,$AY$12>0),$AY$12,IF(AND($D45="Wet Well",AY46=0,$AY$13>0),$AY$13,IF(AND($D45="Vault",AY46=0,$AY$14>0),$AY$14,IF(AND($D45="Grease Trap",AY46=0,$AY$15>0),$AY$15,IF(AND($D45="Oil Seperator",AY46=0,$AY$15>0),$AY$15,IF(AND($D45="Septic",AY46=0,$AY$16>0),$AY$16,IF(AND($D45="Water/SS ARV",AY46=0,$AY$17>0),$AY$17,""))))))))) ->  | AZ45: =IF(AY45="6"" CS-212",1,IF(AY45="12"" CS-212",2,IF(AY45="12"" MacWrap",3,IF(AND(C45>0,AY45=""),"No","")))) ->  | BA45: =IF(BA46>0,BA46,IF(AND($D45="Storm",BA46=0,$BA$11>0),$BA$11,IF(AND($D45="Sanitary",BA46=0,$BA$12>0),$BA$12,IF(AND($D45="Wet Well",BA46=0,$BA$13>0),$BA$13,IF(AND($D45="Vault",BA46=0,$BA$14>0),$BA$14,IF(AND($D45="Grease Trap",BA46=0,$BA$15>0),$BA$15,IF(AND($D45="Oil Seperator",BA46=0,$BA$15>0),$BA$15,IF(AND($D45="Septic",BA46=0,$BA$16>0),$BA$16,IF(AND($D45="Water/SS ARV",BA46=0,$BA$17>0),$BA$17,""))))))))) ->  | BB45: =IF(BB46>0,BB46,IF(AND($D45="Storm",BB46=0,$BB$11>0),$BB$11,IF(AND($D45="Sanitary",BB46=0,$BB$12>0),$BB$12,IF(AND($D45="Wet Well",BB46=0,$BB$13>0),$BB$13,IF(AND($D45="Vault",BB46=0,$BB$14>0),$BB$14,IF(AND($D45="Grease Trap",BB46=0,$BB$15>0),$BB$15,IF(AND($D45="Oil Seperator",BB46=0,$BB$15>0),$BB$15,IF(AND($D45="Septic",BB46=0,$BB$16>0),$BB$16,IF(AND($D45="Water/SS ARV",BB46=0,$BB$17>0),$BB$17,""))))))))) ->  | BC45: =IF(ISNUMBER(SEARCH("CS-55",BB45)),"1",IF(ISNUMBER(SEARCH("Carboline 300M",BB45)),"2",IF(ISNUMBER(SEARCH("Masterseal 610",BB45)),"3",IF(ISNUMBER(SEARCH("HLM 5000",BB45)),"4",IF(AND(C45>0,BB45=""),"No",""))))) ->  | BD45: =IF(AND(BC45="No",BC47="No"),"No",IF(AND(BC45>0,BC47="No"),BC45,IF(AND(BC47>0,BC45="No"),BC47,IF(AND(BC47>0,BC45>0,C45>0),BC45&","&BC47,"")))) ->  | BE45: =IF(BE46>0,BE46,IF(AND($D45="Storm",BE46=0,$BE$11>0),$BE$11,IF(AND($D45="Sanitary",BE46=0,$BE$12>0),$BE$12,""))) ->  | BF45: =IF(BE45="Yes","Yes",IF(BE45="Exclude","Exclude",IF(BE45="No","No",IF(AND(J45>0,BE45=""),"No", "")))) ->  | BG45: =IF(BG46>0,BG46,IF(AND($D45="Storm",BG46=0,$BG$11>0),$BG$11,IF(AND($D45="Sanitary",BG46=0,$BG$12>0),$BG$12,IF(AND($D45="Wet Well",BG46=0,$BG$13>0),$BG$13,IF(AND($D45="Vault",BG46=0,$BG$14>0),$BG$14,IF(AND($D45="Grease Trap",BG46=0,$BG$15>0),$BG$15,IF(AND($D45="Oil Seperator",BG46=0,$BG$15>0),$BG$15,IF(AND($D45="Septic",BG46=0,$BG$16>0),$BG$16,IF(AND($D45="Water/SS ARV",BG46=0,$BG$17>0),$BG$17,""))))))))) ->  | BH45: =IFERROR(INDEX(Database!$G$5:$BN$5,MATCH('Structure Input'!$BH$9,Database!$C$5:$BN$5,0), MATCH('Structure Input'!AR45,Database!$G$4:$BN$4,0)), 0) -> 0 | BI45: =IFERROR(INDEX(Database!$S$6:$BN$6,MATCH('Structure Input'!$BI$9,Database!$C$6:$BN$6,0), MATCH('Structure Input'!AR45,Database!$S$4:$BN$4,0)), 0) -> 0 | BJ45: =IFERROR(INDEX(Database!$S$7:$BN$7,MATCH('Structure Input'!$BJ$9,Database!$C$7:$BN$7,0), MATCH('Structure Input'!AR45,Database!$S$4:$BN$4,0)), 0) -> 0 | BN45: =IFERROR(IF(BG45="Yes",INDEX(Database!$E$57:$AX$57,MATCH('Structure Input'!$BN$9,Database!$C$57:$AX$57,0), MATCH('Structure Input'!AR45,Database!$E$4:$AX$4,0)), 0), 0) -> 0 | BO45: =IFERROR(INDEX(Database!$E$157:$P$157,MATCH('Structure Input'!$BO$9,Database!$C$157:$P$157,0), MATCH('Structure Input'!AS45,Database!$E$156:$P$156,0)), 0) -> 0 | BP45: =IFERROR(INDEX(Database!$E$158:$P$158,MATCH('Structure Input'!$BP$9,Database!$C$158:$P$158,0), MATCH('Structure Input'!AS45,Database!$E$156:$P$156,0)), 0) -> 0 | BQ45: =IFERROR(INDEX(Database!$E$159:$P$159,MATCH('Structure Input'!$BQ$9,Database!$C$159:$P$159,0), MATCH('Structure Input'!AS45,Database!$E$156:$P$156,0)), 0) -> 0 | BR45: =IFERROR(INDEX(Database!$E$160:$P$160,MATCH('Structure Input'!$BR$9,Database!$C$160:$P$160,0), MATCH('Structure Input'!AS45,Database!$E$156:$P$156,0)), 0) -> 0 | BS45: =IFERROR(INDEX(Database!$E$161:$P$161,MATCH('Structure Input'!$BS$9,Database!$C$161:$P$161,0), MATCH('Structure Input'!AS45,Database!$E$156:$P$156,0)), 0) -> 0 | BT45: =IF(BH45>0,((BH45+(BM45*2))*(22/7))/12,0) -> 0 | BU45: =IF(BI45>0,(((BI45+(BM45*2))*2)+((BJ45+(BM45*2))*2))/12,0) -> 0 | BV45: =BT45+BU45 -> 0 | BW45: =IF(BH45>0,(BH45*3.14159)/12,0) -> 0 | BX45: =IF(BI45>0,((BI45*2)+(BJ45*2))/12,0) -> 0 | BY45: =BW45+BX45 -> 0 | BZ45: =(BH45/2+BM45+BN45)*(BH45/2+BM45+BN45)/144*3.14*BK45/12 -> 0 | CA45: =((BH45/2+BM45)*(BH45/2+BM45)-(BH45/2)*(BH45/2))/144*3.14*(AM45-(X45+BL45+AI45-3)/12) -> 0 | CB45: =(BH45/2+BM45)*(BH45/2+BM45)/144*3.14*BL45/12 -> 0 | CC45: =SUM(BZ45:CB45) -> 0 | CD45: =((BI45+2*BM45+2*BN45)*(BJ45+2*BM45+2*BN45)/144*BK45/12) -> 0 | CE45: =((BI45+2*BM45)*(BJ45+2*BM45)-(BI45*BJ45))/144*(AM45-(BL45+X45+AI45-AJ45)/12) -> 0 | CF45: =(BI45+2*BM45)*(BJ45+2*BM45)/144*BL45/12 -> 0 | CG45: =(CF45+CE45+CD45) -> 0 | CH45: =IF(AP45="Round", ((BO45/2+BS45)*(BO45/2+BS45)-(BO45/2)*(BO45/2))/144*3.14*(AN45-(BR45-3)/12),IF(AP45="Flat Wall", ((BP45+2*BS45)*(BQ45+2*BS45)-(BP45*BQ45))/144*(AN45-(BR45)/12), 0)) -> 0 | CI45: =IF(AP45="Round", ((BO45/2+BS45)*(BO45/2+BS45)/144*3.14*BR45/12),IF(AP45="Flat Wall", ((BP45+2*BS45)*(BQ45+2*BS45)/144*BR45/12), 0)) -> 0 | CJ45: =(CH45+CI45) -> 0 | CK45: =BH45+BI45+(BM45*2)+(BN45*2) -> 0 | CL45: =BH45+BI45+(BM45*2) -> 0 | CM45: =IFERROR(INDEX(Database!$E$224:$JS$224,MATCH('Structure Input'!$CM$9,Database!$C$224:$JS$224,0), MATCH('Structure Input'!H45,Database!$E$218:$JS$218,0)), 0) -> 0 | CN45: =IF(AND(CK45>=103,CK45<150,CM45=0),2,IF(AND(CK45>=150,CK45<167,CM45=0),3,IF(AND(CK45>=168,CM45=0),4,IF(AND(CM45>=103,CM45<150),2,IF(AND(CM45>=150,CM45<167),3,IF(CM45>=168,4,1)))))) -> 1 | CO45: =IF(AND(CL45>=103,CL45<150),2,IF(AND(CL45>=150,CL45<167),3,IF(CL45>=168,4,1))) -> 1 | CP45: =IF(OR(DH45="Yes",DH45="Yes +1 Ld",DH45="Yes +2 Lds",DH45="Yes +3 Lds",DH45="Yes +4 Lds",DH45="Yes +5 Lds"),ROUNDUP((CV45/20),0),CV45/20) -> 0 | CQ45: =IF(AND(OR(DH45="Yes",DH45="Yes +1 Ld",DH45="Yes +2 Lds",DH45="Yes +3 Lds",DH45="Yes +4 Lds",DH45="Yes +5 Lds"),CT45=20,CU45>0),ROUNDUP((CW45/20),0),CW45/20)+IF(DH45="Yes +1 Ld",1,IF(DH45="Yes +2 Lds",2,IF(DH45="Yes +3 Lds",3,IF(DH45="Yes +4 Lds",4,IF(DH45="Yes +5 Lds",5,0))))) -> 0 | CR45: =CP45+CQ45 -> 0 | CS45: =CR45-((CV45/20)+(CW45/20)) -> 0 | CT45: =IF(DK45<=20,DK45,20) -> 0 | CU45: =(DK45-CT45) -> 0 | CV45: =IF(DK45<=20,DK45,20)*C45 -> 0 | CW45: =(DJ45-CV45) -> 0 | CX45: =IF(CN45=1,CV45,0)+IF(CO45=1,CW45,0) -> 0 | CY45: =IF(CN45=2,CV45,0)+IF(CO45=2,CW45,0) -> 0 | CZ45: =IF(CN45=3,CV45,0)+IF(CO45=3,CW45,0) -> 0 | DA45: =IF(CN45=4,CV45,0)+IF(CO45=4,CW45,0) -> 0 | DB45: =IFERROR(INDEX(Database!$E$220:$JS$220,MATCH('Structure Input'!$DB$7,Database!$C$220:$JS$220,0), MATCH('Structure Input'!H45,Database!$E$218:$JS$218,0)), 0) -> 0 | DD45: =IF(AND(C45>0,DC48>0),"(Item "&A45&" - "&"Structure "&I45&") "&DC48,"") ->  | DF45: =IF(DG45="1 Piece",1,IF(DG45="2 Pieces",2,IF(DG45="3 Pieces",3,IF(DG45="4 Pieces",4,"")))) ->  | DI45: =IF(BH45>0,(CC45+CJ45),(CG45+CJ45)) -> 0 | DJ45: =IF(C45>0,DK45*C45,DK45) -> 0 | DK45: =((DI45/13.5)+GE45/21*148/2000+(HA45*25*22/144*148/2000)+DB45+FT45+(DL45*148/2000)) -> 0 | DM45: =IF(ISNUMBER(SEARCH("Panel Form Structure",AR45)),"30","") ->  | DN45: =AU45 -> Plain | DO45: =IF(AND(DN45="Plain",C45>0),"No",IF(AND(DN45="Xypex",C45>0),2,IF(AND(DN45="MIC",C45>0),3,IF(AND(DN45="Xypex+MIC",C45>0),4,"")))) ->  | DP45: =(AM45) -> 0 | DQ45: =IFERROR(INDEX(Database!$E$12:$BQ$12,MATCH('Structure Input'!$DQ$9,Database!$C$12:$BQ$12,0), MATCH('Structure Input'!AR45,Database!$E$4:$BQ$4,0)), 0) -> 0 | DR45: =IFERROR(IF(AND(DQ45="Flat Wall",AT45="W/Base"),(INDEX(Database!$S$14:$AX$14,MATCH('Structure Input'!$DR$9,Database!$C$14:$AX$14,0),MATCH('Structure Input'!AR45,Database!$S$4:$AX$4,0))),IF(AND(DQ45="Round",DP45>=10),10,IF(AND(DQ45="Round",DP45<10,DP45>2),ROUNDDOWN(DP45,0),IF(AND(DQ45="Round",DP45<=2),2,0)))),0) -> 0 | DS45: =IFERROR(IF(AND(DN45="Plain",DQ45="Round"),INDEX(Database!$G$58:$L$66,MATCH('Structure Input'!DR45,Database!$C$58:$C$66,0),MATCH('Structure Input'!AR45,Database!$G$4:$L$4,0)),IF(AND(DN45="Xypex",DQ45="Round"),INDEX(Database!$G$81:$L$89,MATCH('Structure Input'!DR45,Database!$C$81:$C$89,0),MATCH('Structure Input'!AR45,Database!$G$4:$L$4,0)),IF(AND(DN45="MIC",DQ45="Round"),INDEX(Database!$G$104:$L$112,MATCH('Structure Input'!DR45,Database!$C$104:$C$112,0),MATCH('Structure Input'!AR45,Database!$G$4:$L$4,0)), IF(AND(DN45="Xypex+MIC", DQ45="Round"), INDEX(Database!$G$127:$L$135,MATCH('Structure Input'!DR45,Database!$C$127:$C$135,0),MATCH('Structure Input'!AR45,Database!$G$4:$L$4,0)), 0)))), 0) -> 0 | DT45: =IFERROR(IF(AND(AT45="W/Base",DN45="Plain"),(INDEX(Database!$S$15:$BQ$15,MATCH('Structure Input'!$DT$9,Database!$C$15:$BQ$15,0),MATCH('Structure Input'!AR45,Database!$S$4:$BQ$4,0))),IF(AND(AT45="No Base",DN45="Xypex",DN45="MIC", DN45="Xypex+MIC"),0,0)), 0) -> 0 | DU45: =IFERROR(IF(AND(OR(AS45="Yes Top",AS45="Trans 48""R W/Top",AS45="Trans 60""R W/Top",AS45="Trans 24""x24"" Riser",AS45="Trans 24""x24"" W/Top",AS45="Trans 24""x30"" Riser",AS45="Trans 24""x30"" W/Top",AS45="Trans 24""x36"" Riser",AS45="Trans 24""x36"" W/Top",AS45="Trans 36""x36"" Riser",AS45="Trans 36""x36"" W/Top"),DN45="Plain"),(INDEX(Database!$S$16:$BQ$16,MATCH('Structure Input'!$DU$9,Database!$C$16:$BQ$16,0),MATCH('Structure Input'!AR45,Database!$S$4:$BQ$4,0))),IF(AND(AS45="No Top",DN45="Xypex",DN45="MIC", DN45="Xypex+MIC"),0,0)), 0) -> 0 | DV45: =IFERROR(IF(DN45="Plain", INDEX(Database!$G$17:$BQ$17,MATCH('Structure Input'!$DV$9,Database!$C$17:$BQ$17,0), MATCH('Structure Input'!AR45,Database!$G$4:$BQ$4,0)), IF(DN45="Xypex", INDEX(Database!$G$90:$L$90,MATCH('Structure Input'!$DV$9,Database!$C$90:$L$90,0), MATCH('Structure Input'!AR45,Database!$G$4:$L$4,0)), IF(DN45="MIC", INDEX(Database!$G$113:$L$113,MATCH('Structure Input'!$DV$9,Database!$C$113:$L$113,0), MATCH('Structure Input'!AR45,Database!$G$4:$L$4,0)), IF(DN45="Xypex+MIC", INDEX(Database!$G$136:$L$136,MATCH('Structure Input'!$DV$9,Database!$C$136:$L$136,0), MATCH('Structure Input'!AR45,Database!$G$4:$L$4,0)), 0)))), 0) -> 0 | DW45: =IFERROR(IF(DN45="Plain", INDEX(Database!$GN$228:$JS$228,MATCH('Structure Input'!$DW$9,Database!$C$228:$JS$228,0), MATCH('Structure Input'!H45,Database!$GN$218:$JS$218,0)), IF(DN45="Xypex", INDEX(Database!$GN$229:$JS$229,MATCH('Structure Input'!$DW$9,Database!$C$229:$JS$229,0), MATCH('Structure Input'!H45,Database!$GN$218:$JS$218,0)), IF(DN45="MIC", INDEX(Database!$GN$230:$JS$230,MATCH('Structure Input'!$DW$9,Database!$C$230:$JS$230,0), MATCH('Structure Input'!H45,Database!$GN$218:$JS$218,0)), IF(DN45="Xypex+MIC", INDEX(Database!$GN$231:$JS$231,MATCH('Structure Input'!$DW$9,Database!$C$231:$JS$231,0), MATCH('Structure Input'!H45,Database!$GN$218:$JS$218,0)), 0)))), 0) -> 0 | DX45: =IF(AU45="Plain",INDEX(Database!$E$168:$P$168,MATCH('Structure Input'!$DX$9,Database!$C$168:$P$168,0), MATCH('Structure Input'!AS45,Database!$E$156:$P$156,0)),IF(AU45="Xypex",INDEX(Database!$E$170:$P$170,MATCH('Structure Input'!$DX$9,Database!$C$170:$P$170,0), MATCH('Structure Input'!AS45,Database!$E$156:$P$156,0)),IF(AU45="MIC",INDEX(Database!$E$172:$P$172,MATCH('Structure Input'!$DX$9,Database!$C$172:$P$172,0), MATCH('Structure Input'!AS45,Database!$E$156:$P$156,0)),IF(AU45="Xypex+MIC",INDEX(Database!$E$174:$P$174,MATCH('Structure Input'!$DX$9,Database!$C$174:$P$174,0), MATCH('Structure Input'!AS45,Database!$E$156:$P$156,0)),0)))) -> 0 | DY45: =IF(AU45="Plain",INDEX(Database!$E$167:$P$167,MATCH('Structure Input'!$DY$9,Database!$C$167:$P$167,0), MATCH('Structure Input'!AS45,Database!$E$156:$P$156,0)),IF(AU45="Xypex",INDEX(Database!$E$169:$P$169,MATCH('Structure Input'!$DY$9,Database!$C$169:$P$169,0), MATCH('Structure Input'!AS45,Database!$E$156:$P$156,0)),IF(AU45="MIC",INDEX(Database!$E$171:$P$171,MATCH('Structure Input'!$DY$9,Database!$C$171:$P$171,0), MATCH('Structure Input'!AS45,Database!$E$156:$P$156,0)),IF(AU45="Xypex+MIC",INDEX(Database!$E$173:$P$173,MATCH('Structure Input'!$DY$9,Database!$C$173:$P$173,0), MATCH('Structure Input'!AS45,Database!$E$156:$P$156,0)),0)))) -> 0 | DZ45: =IFERROR(IF(AND(DN45="Plain",DQ45="Round",AT45="No Base"),INDEX(Database!$G$68:$L$68,MATCH($DZ$9,Database!$C$68:$C$68,0),MATCH('Structure Input'!AR45,Database!$G$4:$L$4,0)),IF(AND(DN45="Xypex",DQ45="Round",AT45="No Base"),INDEX(Database!$G$91:$L$91,MATCH($DZ$9,Database!$C$91:$C$91,0),MATCH('Structure Input'!AR45,Database!$G$4:$L$4,0)),IF(AND(DN45="MIC",DQ45="Round",AT45="No Base"),INDEX(Database!$G$114:$L$114,MATCH($DZ$9,Database!$C$114:$C$114,0),MATCH('Structure Input'!AR45,Database!$G$4:$L$4,0)), IF(AND(DN45="Xypex+MIC", DQ45="Round",AT45="No Base"), INDEX(Database!$G$137:$L$137,MATCH($DZ$9,Database!$C$137:$C$137,0),MATCH('Structure Input'!AR45,Database!$G$4:$L$4,0)), 0)))), 0) -> 0 | EA45: =IFERROR(IF(AND(DN45="Plain",DQ45="Round",AS45="No Top"),INDEX(Database!$G$69:$L$69,MATCH($EA$9,Database!$C$69:$C$69,0),MATCH('Structure Input'!AR45,Database!$G$4:$L$4,0)),IF(AND(DN45="Xypex",DQ45="Round",AS45="No Top"),INDEX(Database!$G$92:$L$92,MATCH($EA$9,Database!$C$92:$C$92,0),MATCH('Structure Input'!AR45,Database!$G$4:$L$4,0)),IF(AND(DN45="MIC",DQ45="Round",AS45="No Top"),INDEX(Database!$G$115:$L$115,MATCH($EA$9,Database!$C$115:$C$115,0),MATCH('Structure Input'!AR45,Database!$G$4:$L$4,0)), IF(AND(DN45="Xypex+MIC", DQ45="Round",AS45="No Top"), INDEX(Database!$G$138:$L$138,MATCH($EA$9,Database!$C$138:$C$138,0),MATCH('Structure Input'!AR45,Database!$G$4:$L$4,0)), 0)))), 0) -> 0 | EB45: =IF(AND(OR(DQ45="Round Knockout",DQ45="FW Knockout"),AL45<14.01),(AL45*12)+AJ45-X45,0) -> 0 | EC45: =IFERROR(IF(AND(OR(DQ45="Round Knockout",DQ45="FW Knockout"),AT45="W/Base",DN45="Plain",AL45<14.01),(INDEX(Database!$AY$21:$BN$21,MATCH('Structure Input'!$EC$9,Database!$C$21:$BN$21,0),MATCH('Structure Input'!AR45,Database!$AY$4:$BN$4,0))),IF(AND(AT45="No Base",DN45="Xypex",DN45="MIC", DN45="Xypex+MIC"),0,0)), 0) -> 0 | ED45: =IFERROR(IF(AND(AT45="W/Base",DN45="Plain",AL45<14.01),(INDEX(Database!$AY$19:$BN$19,MATCH('Structure Input'!$ED$9,Database!$C$19:$BN$19,0),MATCH('Structure Input'!AR45,Database!$AY$4:$BN$4,0))),IF(AND(AT45="No Base",DN45="Xypex",DN45="MIC", DN45="Xypex+MIC"),0,0)), 0) -> 0 | EE45: =IFERROR(IF(AND(AT45="W/Base",DN45="Plain",AL45<14.01),(INDEX(Database!$AY$20:$BN$20,MATCH('Structure Input'!$EE$9,Database!$C$20:$BN$20,0),MATCH('Structure Input'!AR45,Database!$AY$4:$BN$4,0))),IF(AND(AT45="No Base",DN45="Xypex",DN45="MIC", DN45="Xypex+MIC"),0,0)), 0) -> 0 | EF45: =IFERROR(IF(AND(AT45="W/Base",DN45="Plain",AL45<14.01),(INDEX(Database!$AY$22:$BN$22,MATCH('Structure Input'!$EF$9,Database!$C$22:$BN$22,0),MATCH('Structure Input'!AR45,Database!$AY$4:$BN$4,0))),IF(AND(AT45="No Base",DN45="Xypex",DN45="MIC", DN45="Xypex+MIC"),0,0)), 0) -> 0 | EG45: =IFERROR(IF(AND(OR(AS45="Yes Top",AO45="Transition"),OR(DQ45="Round Knockout",DQ45="FW Knockout"),DN45="Plain",AL45<14.01),(INDEX(Database!$AY$25:$BN$25,MATCH('Structure Input'!$EG$9,Database!$C$25:$BN$25,0),MATCH('Structure Input'!AR45,Database!$AY$4:$BN$4,0))),IF(AND(AS45="No Top",DN45="Xypex",DN45="MIC", DN45="Xypex+MIC"),0,0)), 0) -> 0 | EH45: =IFERROR(IF(AND(OR(AS45="Yes Top",AO45="Transition"),OR(DQ45="Round Knockout",DQ45="FW Knockout"),DN45="Plain",AL45<14.01),(INDEX(Database!$AY$23:$BN$23,MATCH('Structure Input'!$EH$9,Database!$C$23:$BN$23,0),MATCH('Structure Input'!AR45,Database!$AY$4:$BN$4,0))),IF(AND(AS45="No Top",DN45="Xypex",DN45="MIC", DN45="Xypex+MIC"),0,0)), 0) -> 0 | EI45: =IFERROR(IF(AND(OR(AS45="Yes Top",AO45="Transition"),OR(DQ45="Round Knockout",DQ45="FW Knockout"),DN45="Plain",AL45<14.01),(INDEX(Database!$AY$24:$BN$24,MATCH('Structure Input'!$EI$9,Database!$C$24:$BN$24,0),MATCH('Structure Input'!AR45,Database!$AY$4:$BN$4,0))),IF(AND(AS45="No Top",DN45="Xypex",DN45="MIC", DN45="Xypex+MIC"),0,0)), 0) -> 0 | EJ45: =IFERROR(IF(AND(OR(AS45="Yes Top",AO45="Transition"),OR(DQ45="Round Knockout",DQ45="FW Knockout"),DN45="Plain",AL45<14.01),(INDEX(Database!$AY$26:$BN$38,MATCH('Structure Input'!AA45,Database!$C$26:$C$38,0),MATCH('Structure Input'!AR45,Database!$AY$4:$BN$4,0))),IF(AND(AS45="No Top",DN45="Xypex",DN45="MIC", DN45="Xypex+MIC"),0,0)), 0) -> 0 | EK45: =IF(OR(DQ45="Round Knockout",DQ45="FW Knockout"),(EB45-EC45-EG45-X45),0) -> 0 | EL45: =IF(AND(DQ45="Round Knockout",EK45>59.9),60,IF(AND(DQ45="Round Knockout",EK45>47.9,EK45<59.9),48,IF(AND(DQ45="Round Knockout",EK45>35.9,EK45<47.9),36,IF(AND(DQ45="Round Knockout",EK45>23.9,EK45<35.9),24,IF(AND(DQ45="FW Knockout",EK45>23.9),24,IF(AND(OR(DQ45="FW Knockout",DQ45="Round Knockout"),EK45<23.9,EK45>9.9),12,0)))))) -> 0 | EM45: =IFERROR(IF(AND(AT45="W/Base",DN45="Plain",AL45<14.01,EL45=12),(INDEX(Database!$AY$39:$BN$39,MATCH('Structure Input'!$EM$9,Database!$C$39:$BN$39,0),MATCH('Structure Input'!AR45,Database!$AY$4:$BN$4,0))),IF(AND(AT45="W/Base",DN45="Plain",AL45<14.01,EL45=24),(INDEX(Database!$AY$42:$BN$42,MATCH('Structure Input'!$EM$9,Database!$C$42:$BN$42,0),MATCH('Structure Input'!AR45,Database!$AY$4:$BN$4,0))),IF(AND(AT45="No Base",DN45="Xypex",DN45="MIC", DN45="Xypex+MIC"),0,0))), 0) -> 0 | EN45: =IFERROR(IF(AND(AT45="W/Base",DN45="Plain",AL45<14.01,EL45=12),(INDEX(Database!$AY$40:$BN$40,MATCH('Structure Input'!$EN$9,Database!$C$40:$BN$40,0),MATCH('Structure Input'!AR45,Database!$AY$4:$BN$4,0))),IF(AND(AT45="W/Base",DN45="Plain",AL45<14.01,EL45=24),(INDEX(Database!$AY$43:$BN$43,MATCH('Structure Input'!$EN$9,Database!$C$43:$BN$43,0),MATCH('Structure Input'!AR45,Database!$AY$4:$BN$4,0))),IF(AND(AT45="No Base",DN45="Xypex",DN45="MIC", DN45="Xypex+MIC"),0,0))), 0) -> 0 | EP45: =IF(OR(DQ45="Round Knockout",DQ45="FW Knockout"),(EB45-EC45-EG45-X45-EL45),0) -> 0 | EQ45: =IF(AND(DQ45="Knockout",EP45>23.9),24,IF(AND(DQ45="Knockout",EP45<23.9,EP45>9.9),12,0)) -> 0 | ER45: =IFERROR(IF(AND(AT45="W/Base",DN45="Plain",AL45<14.01,EQ45=12),(INDEX(Database!$AY$39:$BN$39,MATCH('Structure Input'!$ER$9,Database!$C$39:$BN$39,0),MATCH('Structure Input'!AR45,Database!$AY$4:$BN$4,0))),IF(AND(AT45="W/Base",DN45="Plain",AL45<14.01,EQ45=24),(INDEX(Database!$AY$42:$BN$42,MATCH('Structure Input'!$ER$9,Database!$C$42:$BN$42,0),MATCH('Structure Input'!AR45,Database!$AY$4:$BN$4,0))),IF(AND(AT45="No Base",DN45="Xypex",DN45="MIC", DN45="Xypex+MIC"),0,0))), 0) -> 0 | ES45: =IFERROR(IF(AND(AT45="W/Base",DN45="Plain",AL45<14.01,EQ45=12),(INDEX(Database!$AY$40:$BN$40,MATCH('Structure Input'!$ES$9,Database!$C$40:$BN$40,0),MATCH('Structure Input'!AR45,Database!$AY$4:$BN$4,0))),IF(AND(AT45="W/Base",DN45="Plain",AL45<14.01,EQ45=24),(INDEX(Database!$AY$43:$BN$43,MATCH('Structure Input'!$ES$9,Database!$C$43:$BN$43,0),MATCH('Structure Input'!AR45,Database!$AY$4:$BN$4,0))),IF(AND(AT45="No Base",DN45="Xypex",DN45="MIC", DN45="Xypex+MIC"),0,0))), 0) -> 0 | EU45: =IF(OR(DQ45="Round Knockout",DQ45="FW Knockout"),(EB45-EC45-EG45-X45-EL45-EQ45),0) -> 0 | EV45: =IF(AND(DQ45="Knockout",EU45>23.9),24,IF(AND(DQ45="Knockout",EU45<23.9,EU45>9.9),12,0)) -> 0 | EW45: =IFERROR(IF(AND(AT45="W/Base",DN45="Plain",AL45<14.01,EV45=12),(INDEX(Database!$AY$39:$BN$39,MATCH('Structure Input'!$EW$9,Database!$C$39:$BN$39,0),MATCH('Structure Input'!AR45,Database!$AY$4:$BN$4,0))),IF(AND(AT45="W/Base",DN45="Plain",AL45<14.01,EV45=24),(INDEX(Database!$AY$42:$BN$42,MATCH('Structure Input'!$EW$9,Database!$C$42:$BN$42,0),MATCH('Structure Input'!AR45,Database!$AY$4:$BN$4,0))),IF(AND(AT45="No Base",DN45="Xypex",DN45="MIC", DN45="Xypex+MIC"),0,0))), 0) -> 0 | EX45: =IFERROR(IF(AND(AT45="W/Base",DN45="Plain",AL45<14.01,EV45=12),(INDEX(Database!$AY$40:$BN$40,MATCH('Structure Input'!$EX$9,Database!$C$40:$BN$40,0),MATCH('Structure Input'!AR45,Database!$AY$4:$BN$4,0))),IF(AND(AT45="W/Base",DN45="Plain",AL45<14.01,EV45=24),(INDEX(Database!$AY$43:$BN$43,MATCH('Structure Input'!$EX$9,Database!$C$43:$BN$43,0),MATCH('Structure Input'!AR45,Database!$AY$4:$BN$4,0))),IF(AND(AT45="No Base",DN45="Xypex",DN45="MIC", DN45="Xypex+MIC"),0,0))), 0) -> 0 | EZ45: =IF(OR(DQ45="Round Knockout",DQ45="FW Knockout"),(EB45-EC45-EG45-X45-EL45-EQ45-EV45),0) -> 0 | FA45: =IF(AND(DQ45="Knockout",EZ45>23.9),24,IF(AND(DQ45="Knockout",EZ45<23.9,EZ45>9.9),12,0)) -> 0 | FB45: =IFERROR(IF(AND(AT45="W/Base",DN45="Plain",AL45<14.01,FA45=12),(INDEX(Database!$AY$39:$BN$39,MATCH('Structure Input'!$FB$9,Database!$C$39:$BN$39,0),MATCH('Structure Input'!AR45,Database!$AY$4:$BN$4,0))),IF(AND(AT45="W/Base",DN45="Plain",AL45<14.01,FA45=24),(INDEX(Database!$AY$42:$BN$42,MATCH('Structure Input'!$FB$9,Database!$C$42:$BN$42,0),MATCH('Structure Input'!AR45,Database!$AY$4:$BN$4,0))),IF(AND(AT45="No Base",DN45="Xypex",DN45="MIC", DN45="Xypex+MIC"),0,0))), 0) -> 0 | FC45: =IFERROR(IF(AND(AT45="W/Base",DN45="Plain",AL45<14.01,FA45=12),(INDEX(Database!$AY$40:$BN$40,MATCH('Structure Input'!$FC$9,Database!$C$40:$BN$40,0),MATCH('Structure Input'!AR45,Database!$AY$4:$BN$4,0))),IF(AND(AT45="W/Base",DN45="Plain",AL45<14.01,FA45=24),(INDEX(Database!$AY$43:$BN$43,MATCH('Structure Input'!$FC$9,Database!$C$43:$BN$43,0),MATCH('Structure Input'!AR45,Database!$AY$4:$BN$4,0))),IF(AND(AT45="No Base",DN45="Xypex",DN45="MIC", DN45="Xypex+MIC"),0,0))), 0) -> 0 | FE45: =IF(OR(DQ45="Round Knockout",DQ45="FW Knockout"),(EB45-EC45-EG45-X45-EL45-EQ45-EV45-FA45),0) -> 0 | FF45: =IF(AND(DQ45="Knockout",FE45>23.9),24,IF(AND(DQ45="Knockout",FE45<23.9,FE45>9.9),12,0)) -> 0 | FG45: =IFERROR(IF(AND(AT45="W/Base",DN45="Plain",AL45<14.01,FF45=12),(INDEX(Database!$AY$39:$BN$39,MATCH('Structure Input'!$FG$9,Database!$C$39:$BN$39,0),MATCH('Structure Input'!AR45,Database!$AY$4:$BN$4,0))),IF(AND(AT45="W/Base",DN45="Plain",AL45<14.01,FF45=24),(INDEX(Database!$AY$42:$BN$42,MATCH('Structure Input'!$FG$9,Database!$C$42:$BN$42,0),MATCH('Structure Input'!AR45,Database!$AY$4:$BN$4,0))),IF(AND(AT45="No Base",DN45="Xypex",DN45="MIC", DN45="Xypex+MIC"),0,0))), 0) -> 0 | FH45: =IFERROR(IF(AND(AT45="W/Base",DN45="Plain",AL45<14.01,FF45=12),(INDEX(Database!$AY$40:$BN$40,MATCH('Structure Input'!$FH$9,Database!$C$40:$BN$40,0),MATCH('Structure Input'!AR45,Database!$AY$4:$BN$4,0))),IF(AND(AT45="W/Base",DN45="Plain",AL45<14.01,FF45=24),(INDEX(Database!$AY$43:$BN$43,MATCH('Structure Input'!$FH$9,Database!$C$43:$BN$43,0),MATCH('Structure Input'!AR45,Database!$AY$4:$BN$4,0))),IF(AND(AT45="No Base",DN45="Xypex",DN45="MIC", DN45="Xypex+MIC"),0,0))), 0) -> 0 | FJ45: =IF(OR(DQ45="Round Knockout",DQ45="FW Knockout"),(EB45-EC45-EG45-X45-EL45-EQ45-EV45-FA45-FF45),0) -> 0 | FK45: =IF(AND(DQ45="Knockout",FJ45>5.01, FJ45<=9.9),6,IF(AND(DQ45="Knockout",FJ45>3.5,FJ45<5.01),4,IF(AND(DQ45="Knockout",FJ45>1.99,FJ45<3.49),3,0))) -> 0 | FL45: =IF(FK45=3,50,IF(FK45=4,60,IF(FK45=6,78,0))) -> 0 | FN45: =IF(OR(DQ45="Round Knockout",DQ45="FW Knockout"),(EB45-EC45-EG45-X45-EL45-EQ45-EV45-FA45-FF45-FK45),0) -> 0 | FO45: =IF(AND(DQ45="Knockout",FN45>5.01, FN45<=9.9),6,IF(AND(DQ45="Knockout",FN45>3.5,FN45<5.01),4,IF(AND(DQ45="Knockout",FN45>1.99,FN45<3.49),3,0))) -> 0 | FP45: =IF(FO45=3,50,IF(FO45=4,60,IF(FO45=6,78,0))) -> 0 | FR45: =FN45-FO45 -> 0 | FS45: =ED45+EH45+EM45+ER45+EW45+FB45+FG45+FL45+FP45 -> 0 | FT45: =(EE45+EI45+EN45+ES45+EX45+FC45+FH45)/2000 -> 0 | FU45: =IFERROR(INDEX(Database!$E$264:$M$264,MATCH('Structure Input'!$FU$9,Database!$C$264:$C$264,0),MATCH('Structure Input'!AW45,Database!$E$250:$M$250,0)),0) -> 0 | FV45: =IFERROR(IF(DQ45="Round",INDEX(Database!$E$251:$N$263,MATCH('Structure Input'!AR45,Database!$C$251:$C$265,0),MATCH('Structure Input'!AW45,Database!$E$250:$N$250,0)),IF(DQ45="Flat Wall",(FU45*BV45),0)),0) -> 0 | FW45: =IFERROR(INDEX(Database!$R$275:$R$277,MATCH('Structure Input'!AY45,Database!$C$275:$C$277,0),MATCH('Structure Input'!$FW$9,Database!$R$274:$R$274,0)),0) -> 0 | FX45: =IFERROR(IF(DQ45="Round",INDEX(Database!$E$275:$Q$277,MATCH('Structure Input'!AY45,Database!$C$275:$C$277,0),MATCH('Structure Input'!AR45,Database!$E$274:$Q$274,0)),IF(DQ45="Flat Wall",(FW45*BV45),0)),0) -> 0 | FY45: =IF(AND(BA45="Yes", DQ45="Round"),6,IF(AND(BA45="Yes",DQ45="Flat Wall"),18,IF(AND(BA45="Yes",DQ45="Knockout"),6,IF(AND(BA45="Yes",DQ45="Riser"),6,0)))) -> 0 | FZ45: =IFERROR(INDEX(Database!$T$236:$T$243,MATCH('Structure Input'!BB45,Database!$C$236:$C$243,0), MATCH('Structure Input'!$FZ$9,Database!$T$235:$T$235,0)), 0) -> 0 | GA45: =BV45*FZ45 -> 0 | GB45: =BY45*FZ47 -> 0 | GC45: =IFERROR(MAX(P45:P50), "") -> 0 | GD45: =IF(AND(GC45>=1,GC45<=8),8,IF(AND(GC45>=8.001,GC45<=10),10,IF(AND(GC45>=10.001,GC45<=12),12,IF(AND(GC45>=12.001,GC45<=15),15,IF(AND(GC45>=15.001,GC45<=18),18,IF(AND(GC45>=18.001,GC45<=24),24,IF(AND(GC45>=24.001,GC45<=30),30,IF(AND(GC45>=30.001,GC45<=36),36,IF(AND(GC45>=36.001,GC45<=42),42,IF(AND(GC45>=42.001,GC45<=48),48,0)))))))))) -> 0 | GE45: =IFERROR(IF(AND(DN45="Plain",BE45="Yes"),INDEX(Database!$G$71:$I$80,MATCH('Structure Input'!GD45,Database!$C$71:$C$80,0),MATCH('Structure Input'!AR45,Database!$G$4:$I$4,0)),IF(AND(DN45="Xypex",BE45="Yes"),INDEX(Database!$G$94:$I$103,MATCH('Structure Input'!GD45,Database!$C$94:$C$103,0),MATCH('Structure Input'!AR45,Database!$G$4:$I$4,0)),IF(AND(DN45="MIC",BE45="Yes"),INDEX(Database!$G$117:$I$126,MATCH('Structure Input'!GD45,Database!$C$117:$C$126,0),MATCH('Structure Input'!AR45,Database!$G$4:$I$4,0)),IF(AND(DN45="Xypex+MIC",BE45="Yes"),INDEX(Database!$G$140:$I$149,MATCH('Structure Input'!GD45,Database!$C$140:$C$149,0),MATCH('Structure Input'!AR45,Database!$G$4:$I$4,0)),IF(BE45="",0,0))))),0) -> 0 | GF45: =IFERROR(IF(AND(DN45="Plain",BG45="Yes"),INDEX(Database!$G$70:$AX$70,MATCH('Structure Input'!$GF$9,Database!$C$70:$AX$70,0),MATCH('Structure Input'!AR45,Database!$G$4:$AX$4,0)),IF(AND(DN45="Xypex",BG45="Yes"),INDEX(Database!$G$93:$L$93,MATCH('Structure Input'!$GF$9,Database!$C$93:$L$93,0),MATCH('Structure Input'!AR45,Database!$G$4:$L$4,0)),IF(AND(DN45="MIC",BG45="Yes"),INDEX(Database!$G$116:$L$116,MATCH('Structure Input'!$GF$9,Database!$C$116:$L$116,0),MATCH('Structure Input'!AR45,Database!$G$4:$L$4,0)),IF(AND(DN45="Xypex+MIC",BG45="Yes"),INDEX(Database!$G$139:$L$139,MATCH('Structure Input'!$GF$9,Database!$C$139:$L$139,0),MATCH('Structure Input'!AR45,Database!$G$4:$L$4,0)),0)))),0) -> 0 | GM45: =IFERROR(INDEX(Database!$E$219:$JS$219,MATCH('Structure Input'!$GM$9,Database!$C$219:$JS$219,0), MATCH('Structure Input'!H45,Database!$E$218:$JS$218,0)), 0) -> 0 | GN45: =ROUNDUP((GN47*GN48)+GN49,0) -> 0 | GO45: =IF(X47="Casting",GN45*GS45,0) -> 0 | GP45: =IF(X47="Hatch",GN45*GT45,0) -> 0 | GQ45: =IF(X47="Casting",GN48*GS45,0) -> 0 | GR45: =IF(X47="Hatch",GN48*GT45,0) -> 0 | GS45: =IF(X47="Casting",C45*Y45,0) -> 0 | GT45: =IF(X47="Hatch",C45*Y45,0) -> 0 | GU45: =IF(X47="Casting",GN48/Summary!$AG$10,0) -> 0 | GV45: =IFERROR(IF(X47="Hatch",GN48/Summary!$AG$13,0),0) -> 0 | GW45: =GW47*GW48 -> 0 | GX45: =GX47*GX48 -> 0 | HA45: =SUM(HA46:HA50) -> 0 | HB45: =IF(AND(BH45>0,BI45=0),BH45&" Dia.",IF(AND(BI45>0,BH45=0),BI45&"x"&BJ45, "")) ->  | HC45: =IF(DP45-DR45>0,(DP45-DR45)*DV45,0) -> 0 | HD45: =MAX(0,((AN45-(BR45/12))*DX45)) -> 0 | HE45: =(FV45*AL45) -> 0 | HF45: =(FX45*AL45) -> 0 | HG45: =(V45+V46+V47+V48+V49+V50) -> 0 | HH45: =(FY45*AL45) -> 0 | HI45: =Summary!$Q$11 -> 1.2 | HJ45: =(HE45+HF45+HG45+HH45)*(HI45) -> 0 | HK45: =SUM(HK46:HK50) -> 0 | HL45: =(GA45*AL45) -> 0 | HM45: =(GB45*AL45) -> 0 | HN45: =IF(DM45<>"",(DM45*DL45)+(DI45*DM45),0) -> 0 | HO45: =IFERROR(IA45,"") ->  | HP45: =IFERROR(HS45,"") ->  | HQ45: =IFERROR(HT45,"") ->  | HR45: =((DS45+DT45+DU45+DW45+DY45-DZ45-EA45+HC45+HD45+GE45+GI45+GL45+GM45+HN45)/((100-HU45)/100)-DS45-DT45-DU45-DW45-DY45+DZ45+EA45-HC45-HD45-GE45-GI45-GL45-GM45-HN45)*C45 -> 0 | HS45: =(DS45+DT45+DU45+DW45+DY45-DZ45-EA45+FS45+GE45+GF45+GG45+GH45+GI45+GJ45+GK45+GL45+GM45+HC45+HD45+HJ45+HK45+HL45+HM45+HN45+IA45)*IB45 ->  | HT45: =((DS45+DT45+DU45+DW45+DY45-DZ45-EA45+HC45+HD45+GL45+FS45+GE45+GF45+HK45+GM45+HN45)/DK45*2/27)*IB45 ->  | HU45: =(Summary!$AA$9) -> 9.553047732 | HV45: =(IF(DG45="1 Piece",(Summary!$AB$9*0.5),IF(DG45="2 Pieces",(Summary!$AB$9*1),IF(DG45="3 Pieces",(Summary!$AB$9*1.5),IF(DG45="4 Pieces",(Summary!$AB$9*2),0))))) -> 0 | HW45: =CS45*Summary!$AB$9 -> 0 | HX45: =IF(CN45=2,(CP45*Summary!$AB$9*0.25),IF(CN45=3,(CP45*Summary!$AB$9*0.5),IF(CN45=4,(CP45*Summary!$AB$9*0.75),0))) -> 0 | HY45: =IF(CO45=2,(CQ45*Summary!$AB$9*0.25),IF(CO45=3,(CQ45*Summary!$AB$9*0.5),IF(CO45=4,(CQ45*Summary!$AB$9*0.75),0))) -> 0 | HZ45: =HR45+HW45+HX45+HY45+(HV45*C45) -> 0 | IA45: =((HR45+HW45+HX45+HY45)/C45)+HV45 ->  | IB45: =IF(D45="Storm",Summary!$Q$2,IF(D45="End Treatment",Summary!$Q$3,IF(D45="Storm WQU",Summary!$Q$4,IF(D45="Sanitary",Summary!$Q$5,IF(D45="Wet Well",Summary!$Q$6,IF(D45="Vault",Summary!$Q$7,IF(OR(D45="Grease Trap",D45="Oil Separator",D45="Septic"),Summary!$Q$8,IF(D45="Water/SS ARV",Summary!$Q$9,IF(D45="Other",Summary!$Q$10,IF(D45="Box Culvert",Summary!$Q$15,IF(D45="UG Detention",Summary!$Q$16,1))))))))))) -> 1 | IC45: =IFERROR(HP45*C45, "") ->  | ID45: =IFERROR((((DS45+DT45+DU45+DW45+DY45-DZ45-EA45+GE45+GF45+GG45+GH45+GI45+GJ45+GL45+GM45+HC45+HD45+HK45+HN45+IA45)*IB45)*C45), "") ->  | IE45: =IFERROR((((DS45+DT45+DU45+DW45+DY45-DZ45-EA45+GE45+GF45+HD45+GG45+GH45+GI45+GJ45+GL45+GM45+HC45+HK45+HN45)*IB45)*C45), "") -> 0
A46: 1 | L46: =(K46-K45) -> 0 | M46: =IF(AND(P46<12.1,P46>3.9,L46>2.1,D45="Sanitary"), "Yes", "No") -> No | N46: =IF(L46<2.1,"",L46) ->  | O46: 2 | P46: =IFERROR(INDEX(Database!$E$203:$DA$203,MATCH('Structure Input'!$P$9,Database!$C$203:$DA$203,0), MATCH('Structure Input'!S46,Database!$E$199:$DA$199,0)), "") ->  | U46: =IFERROR(INDEX(Database!$E$201:$DA$201,MATCH('Structure Input'!$U$9,Database!$C$201:$DA$201,0), MATCH('Structure Input'!S46,Database!$E$199:$DA$199,0)), "n/a") -> n/a | V46: =IFERROR(INDEX(Database!$E$200:$DA$200,MATCH('Structure Input'!$V$9,Database!$C$200:$DA$200,0), MATCH('Structure Input'!S46,Database!$E$199:$DA$199,0)), 0) -> 0 | AR46: Overrides: | AX46: =IF(AW46="1"" CS-102",1,IF(AW46="1"" CS-102 Dbl",2,IF(AW46="1.25"" CS-102",3,IF(AW46="1.25"" CS-102 Dbl",4,IF(AW46="1"" CS-231",5,IF(AW46="1"" CS-231 Dbl",6,IF(AW46="1.25"" CS-231",7,IF(AW46="1.25"" CS-231 Dbl",8,IF(AW46="3/4"" CS-440",9,IF(AW46="HK TSS Gasket",10,IF(AND(C46>0,AW46=""),"No",""))))))))))) ->  | AZ46: =IF(AY46="6"" CS-212",1,IF(AY46="12"" CS-212",2,IF(AY46="12"" MacWrap",3,IF(AND(C46>0,AY46=""),"No","")))) ->  | BF46: =IF(BE46="Yes","Yes",IF(BE46="Exclude","Exclude",IF(BE46="No","No",IF(AND(J46>0,BE46=""),"No", "")))) ->  | FZ46: Interior | GM46: Designation: | GN46: =IF(OR(X47="Casting",X47="Hatch"),X47,"") ->  | GW46: =IF(OR(W48>0,W49>0),W48&""&W49,"") ->  | GY46: =IF(AU45="Xypex+MIC", 1.25,1) -> 1 | GZ46: =IF(AND(M46="Yes",P46>3.99,P46<5.98),160*GY46,IF(AND(M46="Yes",P46>5.99,P46<7.98),182*GY46,IF(AND(M46="Yes",P46>7.99,P46<9.98),216*GY46,IF(AND(M46="Yes",P46>9.99,P46<11.98),468*GY46,IF(AND(M46="Yes",P46=12),604*GY46,""))))) ->  | HA46: =IF(AND(N46>0,N46<4),4,IF(N46>=4,N46,"")) ->  | HK46: =IFERROR(IF(GZ46>0,GZ46*HA46,""),"") -> 
A47: 1 | L47: =(K47-K45) -> 0 | M47: =IF(AND(P47<12.1,P47>3.9,L47>2.1,D45="Sanitary"), "Yes", "No") -> No | N47: =IF(L47<2.1,"",L47) ->  | O47: 3 | P47: =IFERROR(INDEX(Database!$E$203:$DA$203,MATCH('Structure Input'!$P$9,Database!$C$203:$DA$203,0), MATCH('Structure Input'!S47,Database!$E$199:$DA$199,0)), "") ->  | U47: =IFERROR(INDEX(Database!$E$201:$DA$201,MATCH('Structure Input'!$U$9,Database!$C$201:$DA$201,0), MATCH('Structure Input'!S47,Database!$E$199:$DA$199,0)), "n/a") -> n/a | V47: =IFERROR(INDEX(Database!$E$200:$DA$200,MATCH('Structure Input'!$V$9,Database!$C$200:$DA$200,0), MATCH('Structure Input'!S47,Database!$E$199:$DA$199,0)), 0) -> 0 | X47: =IFERROR(INDEX(Database!$F$187:$LR$187,MATCH('Structure Input'!GM46,Database!$C$187:$LR$187,0),MATCH('Structure Input'!W45,Database!$F$180:$LR$180,0)),"Type in ""Casting"" or ""Hatch"" here if manually entered") -> Type in "Casting" or "Hatch" here if manually entered | BB47: Interior Coating | BC47: =IF(ISNUMBER(SEARCH("CS-55",BB48)),"5",IF(ISNUMBER(SEARCH("Carboline 300M",BB48)),"6",IF(ISNUMBER(SEARCH("Masterseal 610",BB48)),"7",IF(ISNUMBER(SEARCH("HLM 5000",BB48)),"8",IF(AND(C45>0,BB48=""),"No",""))))) ->  | FZ47: =IFERROR(INDEX(Database!$T$236:$T$243,MATCH('Structure Input'!BB48,Database!$C$236:$C$243,0), MATCH('Structure Input'!$FZ$9,Database!$T$235:$T$235,0)), 0) -> 0 | GM47: Multiplier: | GN47: =Summary!$Q$12 -> 1.2 | GW47: =Summary!$Q$13 -> 1.25 | GX47: =Summary!$Q$14 -> 1.25 | GY47: =IF(AU45="Xypex+MIC", 1.25,1) -> 1 | GZ47: =IF(AND(M47="Yes",P47>3.99,P47<5.98),160*GY47,IF(AND(M47="Yes",P47>5.99,P47<7.98),182*GY47,IF(AND(M47="Yes",P47>7.99,P47<9.98),216*GY47,IF(AND(M47="Yes",P47>9.99,P47<11.98),468*GY47,IF(AND(M47="Yes",P47=12),604*GY47,""))))) ->  | HA47: =IF(AND(N47>0,N47<4),4,IF(N47>=4,N47,"")) ->  | HK47: =IFERROR(IF(GZ47>0,GZ47*HA47,""),"") -> 
A48: 1 | L48: =(K48-K45) -> 0 | M48: =IF(AND(P48<12.1,P48>3.9,L48>2.1,D45="Sanitary"), "Yes", "No") -> No | N48: =IF(L48<2.1,"",L48) ->  | O48: 4 | P48: =IFERROR(INDEX(Database!$E$203:$DA$203,MATCH('Structure Input'!$P$9,Database!$C$203:$DA$203,0), MATCH('Structure Input'!S48,Database!$E$199:$DA$199,0)), "") ->  | U48: =IFERROR(INDEX(Database!$E$201:$DA$201,MATCH('Structure Input'!$U$9,Database!$C$201:$DA$201,0), MATCH('Structure Input'!S48,Database!$E$199:$DA$199,0)), "n/a") -> n/a | V48: =IFERROR(INDEX(Database!$E$200:$DA$200,MATCH('Structure Input'!$V$9,Database!$C$200:$DA$200,0), MATCH('Structure Input'!S48,Database!$E$199:$DA$199,0)), 0) -> 0 | X48: Qty: | Y48: =IF(OR(W48>0,W49>0), 1, "") ->  | AI48: <== Accessory | GM48: Cost: | GN48: =IFERROR(INDEX(Database!$F$182:$LR$182,MATCH('Structure Input'!$GN$9,Database!$C$182:$LR$182,0), MATCH('Structure Input'!W45,Database!$F$180:$LR$180,0)), 0) -> 0 | GW48: =IFERROR(INDEX(Database!$E$296:$AU$296,MATCH('Structure Input'!$GW$9,Database!$C$296:$AU$296,0), MATCH('Structure Input'!GW46,Database!$E$295:$AU$295,0)), 0) -> 0 | GX48: =IFERROR(INDEX(Database!$E$297:$AU$297,MATCH('Structure Input'!$GX$9,Database!$C$297:$AU$297,0), MATCH('Structure Input'!GX46,Database!$E$295:$AU$295,0)), 0) -> 0 | GY48: =IF(AU45="Xypex+MIC", 1.25,1) -> 1 | GZ48: =IF(AND(M48="Yes",P48>3.99,P48<5.98),160*GY48,IF(AND(M48="Yes",P48>5.99,P48<7.98),182*GY48,IF(AND(M48="Yes",P48>7.99,P48<9.98),216*GY48,IF(AND(M48="Yes",P48>9.99,P48<11.98),468*GY48,IF(AND(M48="Yes",P48=12),604*GY48,""))))) ->  | HA48: =IF(AND(N48>0,N48<4),4,IF(N48>=4,N48,"")) ->  | HK48: =IFERROR(IF(GZ48>0,GZ48*HA48,""),"") -> 
A49: 1 | L49: =(K49-K45) -> 0 | M49: =IF(AND(P49<12.1,P49>3.9,L49>2.1,D45="Sanitary"), "Yes", "No") -> No | N49: =IF(L49<2.1,"",L49) ->  | O49: 5 | P49: =IFERROR(INDEX(Database!$E$203:$DA$203,MATCH('Structure Input'!$P$9,Database!$C$203:$DA$203,0), MATCH('Structure Input'!S49,Database!$E$199:$DA$199,0)), "") ->  | U49: =IFERROR(INDEX(Database!$E$201:$DA$201,MATCH('Structure Input'!$U$9,Database!$C$201:$DA$201,0), MATCH('Structure Input'!S49,Database!$E$199:$DA$199,0)), "n/a") -> n/a | V49: =IFERROR(INDEX(Database!$E$200:$DA$200,MATCH('Structure Input'!$V$9,Database!$C$200:$DA$200,0), MATCH('Structure Input'!S49,Database!$E$199:$DA$199,0)), 0) -> 0 | GM49: Applied Freight: | GN49: =IF(X47="Casting",GU45*Summary!$AI$10,IF(X47="Hatch",GV45*Summary!$AI$13,0)) -> 0 | GY49: =IF(AU45="Xypex+MIC", 1.25,1) -> 1 | GZ49: =IF(AND(M49="Yes",P49>3.99,P49<5.98),160*GY49,IF(AND(M49="Yes",P49>5.99,P49<7.98),182*GY49,IF(AND(M49="Yes",P49>7.99,P49<9.98),216*GY49,IF(AND(M49="Yes",P49>9.99,P49<11.98),468*GY49,IF(AND(M49="Yes",P49=12),604*GY49,""))))) ->  | HA49: =IF(AND(N49>0,N49<4),4,IF(N49>=4,N49,"")) ->  | HK49: =IFERROR(IF(GZ49>0,GZ49*HA49,""),"") -> 
A50: 1 | L50: =(K50-K45) -> 0 | M50: =IF(AND(P50<12.1,P50>3.9,L50>2.1,D45="Sanitary"), "Yes", "No") -> No | N50: =IF(L50<2.1,"",L50) ->  | O50: 6 | P50: =IFERROR(INDEX(Database!$E$203:$DA$203,MATCH('Structure Input'!$P$9,Database!$C$203:$DA$203,0), MATCH('Structure Input'!S50,Database!$E$199:$DA$199,0)), "") ->  | U50: =IFERROR(INDEX(Database!$E$201:$DA$201,MATCH('Structure Input'!$U$9,Database!$C$201:$DA$201,0), MATCH('Structure Input'!S50,Database!$E$199:$DA$199,0)), "n/a") -> n/a | V50: =IFERROR(INDEX(Database!$E$200:$DA$200,MATCH('Structure Input'!$V$9,Database!$C$200:$DA$200,0), MATCH('Structure Input'!S50,Database!$E$199:$DA$199,0)), 0) -> 0 | BB50: Exterior Coating | FZ50: Exterior | GY50: =IF(AU45="Xypex+MIC", 1.25,1) -> 1 | GZ50: =IF(AND(M50="Yes",P50>3.99,P50<5.98),160*GY50,IF(AND(M50="Yes",P50>5.99,P50<7.98),182*GY50,IF(AND(M50="Yes",P50>7.99,P50<9.98),216*GY50,IF(AND(M50="Yes",P50>9.99,P50<11.98),468*GY50,IF(AND(M50="Yes",P50=12),604*GY50,""))))) ->  | HA50: =IF(AND(N50>0,N50<4),4,IF(N50>=4,N50,"")) ->  | HK50: =IFERROR(IF(GZ50>0,GZ50*HA50,""),"") -> 
A51: =(A45+1) -> 2 | B51: 1780 | C51: 12 | D51: End Treatment | H51: 6" KYTC Perf. Pipe HW Type 2 | N51: =IF(AND(OR(L52>2.1,L53>2.1,L54>2.1,L55>2.1,L56>2.1), J51>0,D51="Sanitary"), "Yes", IF(AND(OR(L52<2.1,L53<2.1,L54<2.1,L55<2.1,L56<2.1), J51>0,D51="Sanitary"), "No",IF(J51=0, "", ""))) ->  | O51: 1 | R51: 0 | T51: =IF(ISNUMBER(SEARCH("Grout",S51)),"1",IF(ISNUMBER(SEARCH("Link Seal",S51)),"4",IF(ISNUMBER(SEARCH("Boot",S51)),"2",IF(ISNUMBER(SEARCH("A-Lok",S51)),"3",IF(AND(C51>0,S51=""),"1",""))))) -> 1 | U51: =IFERROR(INDEX(Database!$E$201:$DA$201,MATCH('Structure Input'!$U$9,Database!$C$201:$DA$201,0), MATCH('Structure Input'!S51,Database!$E$199:$DA$199,0)), "n/a") -> n/a | V51: =IFERROR(INDEX(Database!$E$200:$DA$200,MATCH('Structure Input'!$V$9,Database!$C$200:$DA$200,0), MATCH('Structure Input'!S51,Database!$E$199:$DA$199,0)), 0) -> 0 | W51: =IFERROR(IF(W53>0,W53,IF(AND(W53=0,G51>0,H51=0),(INDEX(Database!$E$547:$FO$547,MATCH('Structure Input'!$W$19,Database!$C$547:$FO$547,0), MATCH('Structure Input'!G51,Database!$E$546:$FO$546,0))),IF(AND(W53=0,G51=0,H51>0),(INDEX(Database!$E$227:$JS$227,MATCH('Structure Input'!$W$19,Database!$C$227:$C$227,0), MATCH('Structure Input'!H51,Database!$E$218:$JS$218,0))),""))),"") -> 0 | X51: =IFERROR(INDEX(Database!$F$181:$LR$181,MATCH('Structure Input'!$X$9,Database!$C$181:$LR$181,0), MATCH('Structure Input'!W51,Database!$F$180:$LR$180,0)), 0) -> 0 | Y51: =IF(OR(W51>"",W53>0), 1, "") ->  | Z51: =IFERROR(INDEX(Database!$I$183:$LR$183,MATCH('Structure Input'!$Z$9,Database!$C$183:$LR$183,0), MATCH('Structure Input'!W51,Database!$I$180:$LR$180,0)), 0) -> 0 | AA51: =IFERROR(INDEX(Database!$I$184:$LR$184,MATCH('Structure Input'!$AA$9,Database!$C$184:$LR$184,0), MATCH('Structure Input'!W51,Database!$I$180:$LR$180,0)), 0) -> 0 | AB51: =IFERROR(INDEX(Database!$F$188:$LR$188,MATCH('Structure Input'!$AB$9,Database!$C$188:$LR$188,0), MATCH('Structure Input'!W51,Database!$F$180:$LR$180,0)), 0) -> 0 | AC51: =IF(AB51="Non-Stock",1*C51*Y51,0) -> 0 | AD51: =IFERROR(INDEX(Database!$I$189:$LR$189,MATCH('Structure Input'!$AD$9,Database!$C$189:$LR$189,0), MATCH('Structure Input'!W51,Database!$I$180:$LR$180,0)), 0) -> 0 | AE51: =IFERROR(INDEX(Database!$I$190:$LR$190,MATCH('Structure Input'!$AE$9,Database!$C$190:$LR$190,0), MATCH('Structure Input'!W51,Database!$I$180:$LR$180,0)), 0) -> 0 | AF51: =IFERROR(INDEX(Database!$I$191:$LR$191,MATCH('Structure Input'!$AF$9,Database!$C$191:$LR$191,0), MATCH('Structure Input'!W51,Database!$I$180:$LR$180,0)), 0) -> 0 | AG51: =IFERROR(INDEX(Database!$I$192:$LR$192,MATCH('Structure Input'!$AG$9,Database!$C$192:$LR$192,0), MATCH('Structure Input'!W51,Database!$I$180:$LR$180,0)), 0) -> 0 | AH51: =IFERROR(INDEX(Database!$I$193:$LR$193,MATCH('Structure Input'!$AH$9,Database!$C$193:$LR$193,0), MATCH('Structure Input'!W51,Database!$I$180:$LR$180,0)), 0) -> 0 | AJ51: =IFERROR(INDEX(Database!$E$204:$DA$204,MATCH('Structure Input'!$AJ$7,Database!$C$204:$DA$204,0), MATCH('Structure Input'!S51,Database!$E$199:$DA$199,0)),0) -> 0 | AL51: =(J51-K51)+AK51 -> 0 | AM51: =AL51-AN51 -> 0 | AN51: =IF(AND(AQ51>0, AO51="Transition"), AL51-AQ51, 0) -> 0 | AO51: =IFERROR(INDEX(Database!$E$165:$P$165,MATCH('Structure Input'!$AO$9,Database!$C$165:$P$165, 0), MATCH('Structure Input'!AS51,Database!$E$156:$P$156,0)), "") -> Top Slab | AP51: =IFERROR(INDEX(Database!$E$164:$P$164,MATCH('Structure Input'!$AP$9,Database!$C$164:$P$164, 0), MATCH('Structure Input'!AS51,Database!$E$156:$P$156,0)), "") -> 0 | AS51: =IF(AS52>0,AS52,IF(AND(AS52=0,AR51>0),INDEX(Database!$E$13:$BQ$13,MATCH('Structure Input'!$AS$9,Database!$C$13:$C$13,0), MATCH('Structure Input'!AR51,Database!$E$4:$BQ$4,0)),"Yes Top")) -> Yes Top | AT51: =IF(AT52>0,AT52,"W/Base") -> W/Base | AU51: =IF(AU52>0,AU52,IF(AND($D51="Storm",AU52=0,$AU$11>0),$AU$11,IF(AND($D51="Sanitary",AU52=0,$AU$12>0),$AU$12,IF(AND($D51="Wet Well",AU52=0,$AU$13>0),$AU$13,IF(AND($D51="Vault",AU52=0,$AU$14>0),$AU$14,IF(AND($D51="Grease Trap",AU52=0,$AU$15>0),$AU$15,IF(AND($D51="Oil Seperator",AU52=0,$AU$15>0),$AU$15,IF(AND($D51="Septic",AU52=0,$AU$16>0),$AU$16,IF(AND($D51="Water/SS ARV",AU52=0,$AU$17>0),$AU$17,"Plain"))))))))) -> Plain | AV51: =IFERROR(IF(AND(OR(AS51="Yes Top",AS51="Trans 48""R W/Top",AS51="Trans 60""R W/Top",AS51="Trans 24""x24"" Riser",AS51="Trans 24""x24"" W/Top",AS51="Trans 24""x30"" Riser",AS51="Trans 24""x30"" W/Top",AS51="Trans 24""x36"" Riser",AS51="Trans 24""x36"" W/Top",AS51="Trans 36""x36"" Riser",AS51="Trans 36""x36"" W/Top"),J51>0,AT51="W/Base"),"No",IF(AND(OR(AS51="Yes Top",AS51="Trans 48""R W/Top",AS51="Trans 60""R W/Top",AS51="Trans 24""x24"" Riser",AS51="Trans 24""x24"" W/Top",AS51="Trans 24""x30"" Riser",AS51="Trans 24""x30"" W/Top",AS51="Trans 24""x36"" Riser",AS51="Trans 24""x36"" W/Top",AS51="Trans 36""x36"" Riser",AS51="Trans 36""x36"" W/Top"),J51>0,AT51="No Base"),"OB",IF(AND(AS51="No Top",J51>0,OR(W51="",W51="No Casting"),AT51="W/Base"),"OT",IF(AND(AS51="No Top",J51>0,W51>0,AT51="W/Base"),"No",IF(AND(AS51="No Top",J51>0,OR(W51="",W51="No Casting"),AT51="No Base"),"OB & OT",IF(AND(AS51="No Top",J51>0,W51>0,AT51="No Base"),"OB","")))))),"") ->  | AW51: =IF(AW52>0,AW52,IF(AND($D51="Storm",AW52=0,$AW$11>0),$AW$11,IF(AND($D51="Sanitary",AW52=0,$AW$12>0),$AW$12,IF(AND($D51="Wet Well",AW52=0,$AW$13>0),$AW$13,IF(AND($D51="Vault",AW52=0,$AW$14>0),$AW$14,IF(AND($D51="Grease Trap",AW52=0,$AW$15>0),$AW$15,IF(AND($D51="Oil Seperator",AW52=0,$AW$15>0),$AW$15,IF(AND($D51="Septic",AW52=0,$AW$16>0),$AW$16,IF(AND($D51="Water/SS ARV",AW52=0,$AW$17>0),$AW$17,""))))))))) ->  | AX51: =IF(AW51="1"" CS-102",1,IF(AW51="1"" CS-102 Dbl",2,IF(AW51="1.25"" CS-102",3,IF(AW51="1.25"" CS-102 Dbl",4,IF(AW51="1"" CS-231",5,IF(AW51="1"" CS-231 Dbl",6,IF(AW51="1.25"" CS-231",7,IF(AW51="1.25"" CS-231 Dbl",8,IF(AW51="3/4"" CS-440",9,IF(AW51="HK TSS Gasket",10,IF(AND(C51>0,AW51=""),"No",""))))))))))) -> No | AY51: =IF(AY52>0,AY52,IF(AND($D51="Storm",AY52=0,$AY$11>0),$AY$11,IF(AND($D51="Sanitary",AY52=0,$AY$12>0),$AY$12,IF(AND($D51="Wet Well",AY52=0,$AY$13>0),$AY$13,IF(AND($D51="Vault",AY52=0,$AY$14>0),$AY$14,IF(AND($D51="Grease Trap",AY52=0,$AY$15>0),$AY$15,IF(AND($D51="Oil Seperator",AY52=0,$AY$15>0),$AY$15,IF(AND($D51="Septic",AY52=0,$AY$16>0),$AY$16,IF(AND($D51="Water/SS ARV",AY52=0,$AY$17>0),$AY$17,""))))))))) ->  | AZ51: =IF(AY51="6"" CS-212",1,IF(AY51="12"" CS-212",2,IF(AY51="12"" MacWrap",3,IF(AND(C51>0,AY51=""),"No","")))) -> No | BA51: =IF(BA52>0,BA52,IF(AND($D51="Storm",BA52=0,$BA$11>0),$BA$11,IF(AND($D51="Sanitary",BA52=0,$BA$12>0),$BA$12,IF(AND($D51="Wet Well",BA52=0,$BA$13>0),$BA$13,IF(AND($D51="Vault",BA52=0,$BA$14>0),$BA$14,IF(AND($D51="Grease Trap",BA52=0,$BA$15>0),$BA$15,IF(AND($D51="Oil Seperator",BA52=0,$BA$15>0),$BA$15,IF(AND($D51="Septic",BA52=0,$BA$16>0),$BA$16,IF(AND($D51="Water/SS ARV",BA52=0,$BA$17>0),$BA$17,""))))))))) ->  | BB51: =IF(BB52>0,BB52,IF(AND($D51="Storm",BB52=0,$BB$11>0),$BB$11,IF(AND($D51="Sanitary",BB52=0,$BB$12>0),$BB$12,IF(AND($D51="Wet Well",BB52=0,$BB$13>0),$BB$13,IF(AND($D51="Vault",BB52=0,$BB$14>0),$BB$14,IF(AND($D51="Grease Trap",BB52=0,$BB$15>0),$BB$15,IF(AND($D51="Oil Seperator",BB52=0,$BB$15>0),$BB$15,IF(AND($D51="Septic",BB52=0,$BB$16>0),$BB$16,IF(AND($D51="Water/SS ARV",BB52=0,$BB$17>0),$BB$17,""))))))))) ->  | BC51: =IF(ISNUMBER(SEARCH("CS-55",BB51)),"1",IF(ISNUMBER(SEARCH("Carboline 300M",BB51)),"2",IF(ISNUMBER(SEARCH("Masterseal 610",BB51)),"3",IF(ISNUMBER(SEARCH("HLM 5000",BB51)),"4",IF(AND(C51>0,BB51=""),"No",""))))) -> No | BD51: =IF(AND(BC51="No",BC53="No"),"No",IF(AND(BC51>0,BC53="No"),BC51,IF(AND(BC53>0,BC51="No"),BC53,IF(AND(BC53>0,BC51>0,C51>0),BC51&","&BC53,"")))) -> No | BE51: =IF(BE52>0,BE52,IF(AND($D51="Storm",BE52=0,$BE$11>0),$BE$11,IF(AND($D51="Sanitary",BE52=0,$BE$12>0),$BE$12,""))) ->  | BF51: =IF(BE51="Yes","Yes",IF(BE51="Exclude","Exclude",IF(BE51="No","No",IF(AND(J51>0,BE51=""),"No", "")))) ->  | BG51: =IF(BG52>0,BG52,IF(AND($D51="Storm",BG52=0,$BG$11>0),$BG$11,IF(AND($D51="Sanitary",BG52=0,$BG$12>0),$BG$12,IF(AND($D51="Wet Well",BG52=0,$BG$13>0),$BG$13,IF(AND($D51="Vault",BG52=0,$BG$14>0),$BG$14,IF(AND($D51="Grease Trap",BG52=0,$BG$15>0),$BG$15,IF(AND($D51="Oil Seperator",BG52=0,$BG$15>0),$BG$15,IF(AND($D51="Septic",BG52=0,$BG$16>0),$BG$16,IF(AND($D51="Water/SS ARV",BG52=0,$BG$17>0),$BG$17,""))))))))) ->  | BH51: =IFERROR(INDEX(Database!$G$5:$BN$5,MATCH('Structure Input'!$BH$9,Database!$C$5:$BN$5,0), MATCH('Structure Input'!AR51,Database!$G$4:$BN$4,0)), 0) -> 0 | BI51: =IFERROR(INDEX(Database!$S$6:$BN$6,MATCH('Structure Input'!$BI$9,Database!$C$6:$BN$6,0), MATCH('Structure Input'!AR51,Database!$S$4:$BN$4,0)), 0) -> 0 | BJ51: =IFERROR(INDEX(Database!$S$7:$BN$7,MATCH('Structure Input'!$BJ$9,Database!$C$7:$BN$7,0), MATCH('Structure Input'!AR51,Database!$S$4:$BN$4,0)), 0) -> 0 | BK51: =IF(AT51="W/Base",IFERROR(INDEX(Database!$E$8:$AX$8,MATCH('Structure Input'!$BK$9,Database!$C$8:$AX$8,0),MATCH('Structure Input'!AR51,Database!$E$4:$AX$4,0)),0),IF(AT51="No Base",0)) -> 0 | BL51: =IF(OR(AO51="Top Slab",AO51="Transition"),IFERROR(INDEX(Database!$E$9:$AX$9,MATCH('Structure Input'!$BL$9,Database!$C$9:$AX$9,0),MATCH('Structure Input'!AR51,Database!$E$4:$AX$4,0)),0),IF(AO51="No Top",0)) -> 0 | BM51: =IFERROR(INDEX(Database!$E$10:$AX$10,MATCH('Structure Input'!$BM$9,Database!$C$10:$AX$10,0), MATCH('Structure Input'!AR51,Database!$E$4:$AX$4,0)), 0) -> 0 | BN51: =IFERROR(IF(BG51="Yes",INDEX(Database!$E$57:$AX$57,MATCH('Structure Input'!$BN$9,Database!$C$57:$AX$57,0), MATCH('Structure Input'!AR51,Database!$E$4:$AX$4,0)), 0), 0) -> 0 | BO51: =IFERROR(INDEX(Database!$E$157:$P$157,MATCH('Structure Input'!$BO$9,Database!$C$157:$P$157,0), MATCH('Structure Input'!AS51,Database!$E$156:$P$156,0)), 0) -> 0 | BP51: =IFERROR(INDEX(Database!$E$158:$P$158,MATCH('Structure Input'!$BP$9,Database!$C$158:$P$158,0), MATCH('Structure Input'!AS51,Database!$E$156:$P$156,0)), 0) -> 0 | BQ51: =IFERROR(INDEX(Database!$E$159:$P$159,MATCH('Structure Input'!$BQ$9,Database!$C$159:$P$159,0), MATCH('Structure Input'!AS51,Database!$E$156:$P$156,0)), 0) -> 0 | BR51: =IFERROR(INDEX(Database!$E$160:$P$160,MATCH('Structure Input'!$BR$9,Database!$C$160:$P$160,0), MATCH('Structure Input'!AS51,Database!$E$156:$P$156,0)), 0) -> 0 | BS51: =IFERROR(INDEX(Database!$E$161:$P$161,MATCH('Structure Input'!$BS$9,Database!$C$161:$P$161,0), MATCH('Structure Input'!AS51,Database!$E$156:$P$156,0)), 0) -> 0 | BT51: =IF(BH51>0,((BH51+(BM51*2))*(22/7))/12,0) -> 0 | BU51: =IF(BI51>0,(((BI51+(BM51*2))*2)+((BJ51+(BM51*2))*2))/12,0) -> 0 | BV51: =BT51+BU51 -> 0 | BW51: =IF(BH51>0,(BH51*3.14159)/12,0) -> 0 | BX51: =IF(BI51>0,((BI51*2)+(BJ51*2))/12,0) -> 0 | BY51: =BW51+BX51 -> 0 | BZ51: =(BH51/2+BM51+BN51)*(BH51/2+BM51+BN51)/144*3.14*BK51/12 -> 0 | CA51: =((BH51/2+BM51)*(BH51/2+BM51)-(BH51/2)*(BH51/2))/144*3.14*(AM51-(X51+BL51+AI51-3)/12) -> 0 | CB51: =(BH51/2+BM51)*(BH51/2+BM51)/144*3.14*BL51/12 -> 0 | CC51: =SUM(BZ51:CB51) -> 0 | CD51: =((BI51+2*BM51+2*BN51)*(BJ51+2*BM51+2*BN51)/144*BK51/12) -> 0 | CE51: =((BI51+2*BM51)*(BJ51+2*BM51)-(BI51*BJ51))/144*(AM51-(BL51+X51+AI51-AJ51)/12) -> 0 | CF51: =(BI51+2*BM51)*(BJ51+2*BM51)/144*BL51/12 -> 0 | CG51: =(CF51+CE51+CD51) -> 0 | CH51: =IF(AP51="Round", ((BO51/2+BS51)*(BO51/2+BS51)-(BO51/2)*(BO51/2))/144*3.14*(AN51-(BR51-3)/12),IF(AP51="Flat Wall", ((BP51+2*BS51)*(BQ51+2*BS51)-(BP51*BQ51))/144*(AN51-(BR51)/12), 0)) -> 0 | CI51: =IF(AP51="Round", ((BO51/2+BS51)*(BO51/2+BS51)/144*3.14*BR51/12),IF(AP51="Flat Wall", ((BP51+2*BS51)*(BQ51+2*BS51)/144*BR51/12), 0)) -> 0 | CJ51: =(CH51+CI51) -> 0 | CK51: =BH51+BI51+(BM51*2)+(BN51*2) -> 0 | CL51: =BH51+BI51+(BM51*2) -> 0 | CM51: =IFERROR(INDEX(Database!$E$224:$JS$224,MATCH('Structure Input'!$CM$9,Database!$C$224:$JS$224,0), MATCH('Structure Input'!H51,Database!$E$218:$JS$218,0)), 0) -> 102 | CN51: =IF(AND(CK51>=103,CK51<150,CM51=0),2,IF(AND(CK51>=150,CK51<167,CM51=0),3,IF(AND(CK51>=168,CM51=0),4,IF(AND(CM51>=103,CM51<150),2,IF(AND(CM51>=150,CM51<167),3,IF(CM51>=168,4,1)))))) -> 1 | CO51: =IF(AND(CL51>=103,CL51<150),2,IF(AND(CL51>=150,CL51<167),3,IF(CL51>=168,4,1))) -> 1 | CP51: =IF(OR(DH51="Yes",DH51="Yes +1 Ld",DH51="Yes +2 Lds",DH51="Yes +3 Lds",DH51="Yes +4 Lds",DH51="Yes +5 Lds"),ROUNDUP((CV51/20),0),CV51/20) -> 0.678 | CQ51: =IF(AND(OR(DH51="Yes",DH51="Yes +1 Ld",DH51="Yes +2 Lds",DH51="Yes +3 Lds",DH51="Yes +4 Lds",DH51="Yes +5 Lds"),CT51=20,CU51>0),ROUNDUP((CW51/20),0),CW51/20)+IF(DH51="Yes +1 Ld",1,IF(DH51="Yes +2 Lds",2,IF(DH51="Yes +3 Lds",3,IF(DH51="Yes +4 Lds",4,IF(DH51="Yes +5 Lds",5,0))))) -> 0 | CR51: =CP51+CQ51 -> 0.678 | CS51: =CR51-((CV51/20)+(CW51/20)) -> 0 | CT51: =IF(DK51<=20,DK51,20) -> 1.13 | CU51: =(DK51-CT51) -> 0 | CV51: =IF(DK51<=20,DK51,20)*C51 -> 13.56 | CW51: =(DJ51-CV51) -> 0 | CX51: =IF(CN51=1,CV51,0)+IF(CO51=1,CW51,0) -> 13.56 | CY51: =IF(CN51=2,CV51,0)+IF(CO51=2,CW51,0) -> 0 | CZ51: =IF(CN51=3,CV51,0)+IF(CO51=3,CW51,0) -> 0 | DA51: =IF(CN51=4,CV51,0)+IF(CO51=4,CW51,0) -> 0 | DB51: =IFERROR(INDEX(Database!$E$220:$JS$220,MATCH('Structure Input'!$DB$7,Database!$C$220:$JS$220,0), MATCH('Structure Input'!H51,Database!$E$218:$JS$218,0)), 0) -> 1.13 | DD51: =IF(AND(C51>0,DC54>0),"(Item "&A51&" - "&"Structure "&I51&") "&DC54,"") ->  | DF51: =IF(DG51="1 Piece",1,IF(DG51="2 Pieces",2,IF(DG51="3 Pieces",3,IF(DG51="4 Pieces",4,"")))) ->  | DI51: =IF(BH51>0,(CC51+CJ51),(CG51+CJ51)) -> 0 | DJ51: =IF(C51>0,DK51*C51,DK51) -> 13.56 | DK51: =((DI51/13.5)+GE51/21*148/2000+(HA51*25*22/144*148/2000)+DB51+FT51+(DL51*148/2000)) -> 1.13 | DM51: =IF(ISNUMBER(SEARCH("Panel Form Structure",AR51)),"30","") ->  | DN51: =AU51 -> Plain | DO51: =IF(AND(DN51="Plain",C51>0),"No",IF(AND(DN51="Xypex",C51>0),2,IF(AND(DN51="MIC",C51>0),3,IF(AND(DN51="Xypex+MIC",C51>0),4,"")))) -> No | DP51: =(AM51) -> 0 | DQ51: =IFERROR(INDEX(Database!$E$12:$BQ$12,MATCH('Structure Input'!$DQ$9,Database!$C$12:$BQ$12,0), MATCH('Structure Input'!AR51,Database!$E$4:$BQ$4,0)), 0) -> 0 | DR51: =IFERROR(IF(AND(DQ51="Flat Wall",AT51="W/Base"),(INDEX(Database!$S$14:$AX$14,MATCH('Structure Input'!$DR$9,Database!$C$14:$AX$14,0),MATCH('Structure Input'!AR51,Database!$S$4:$AX$4,0))),IF(AND(DQ51="Round",DP51>=10),10,IF(AND(DQ51="Round",DP51<10,DP51>2),ROUNDDOWN(DP51,0),IF(AND(DQ51="Round",DP51<=2),2,0)))),0) -> 0 | DS51: =IFERROR(IF(AND(DN51="Plain",DQ51="Round"),INDEX(Database!$G$58:$L$66,MATCH('Structure Input'!DR51,Database!$C$58:$C$66,0),MATCH('Structure Input'!AR51,Database!$G$4:$L$4,0)),IF(AND(DN51="Xypex",DQ51="Round"),INDEX(Database!$G$81:$L$89,MATCH('Structure Input'!DR51,Database!$C$81:$C$89,0),MATCH('Structure Input'!AR51,Database!$G$4:$L$4,0)),IF(AND(DN51="MIC",DQ51="Round"),INDEX(Database!$G$104:$L$112,MATCH('Structure Input'!DR51,Database!$C$104:$C$112,0),MATCH('Structure Input'!AR51,Database!$G$4:$L$4,0)), IF(AND(DN51="Xypex+MIC", DQ51="Round"), INDEX(Database!$G$127:$L$135,MATCH('Structure Input'!DR51,Database!$C$127:$C$135,0),MATCH('Structure Input'!AR51,Database!$G$4:$L$4,0)), 0)))), 0) -> 0 | DT51: =IFERROR(IF(AND(AT51="W/Base",DN51="Plain"),(INDEX(Database!$S$15:$BQ$15,MATCH('Structure Input'!$DT$9,Database!$C$15:$BQ$15,0),MATCH('Structure Input'!AR51,Database!$S$4:$BQ$4,0))),IF(AND(AT51="No Base",DN51="Xypex",DN51="MIC", DN51="Xypex+MIC"),0,0)), 0) -> 0 | DU51: =IFERROR(IF(AND(OR(AS51="Yes Top",AS51="Trans 48""R W/Top",AS51="Trans 60""R W/Top",AS51="Trans 24""x24"" Riser",AS51="Trans 24""x24"" W/Top",AS51="Trans 24""x30"" Riser",AS51="Trans 24""x30"" W/Top",AS51="Trans 24""x36"" Riser",AS51="Trans 24""x36"" W/Top",AS51="Trans 36""x36"" Riser",AS51="Trans 36""x36"" W/Top"),DN51="Plain"),(INDEX(Database!$S$16:$BQ$16,MATCH('Structure Input'!$DU$9,Database!$C$16:$BQ$16,0),MATCH('Structure Input'!AR51,Database!$S$4:$BQ$4,0))),IF(AND(AS51="No Top",DN51="Xypex",DN51="MIC", DN51="Xypex+MIC"),0,0)), 0) -> 0 | DV51: =IFERROR(IF(DN51="Plain", INDEX(Database!$G$17:$BQ$17,MATCH('Structure Input'!$DV$9,Database!$C$17:$BQ$17,0), MATCH('Structure Input'!AR51,Database!$G$4:$BQ$4,0)), IF(DN51="Xypex", INDEX(Database!$G$90:$L$90,MATCH('Structure Input'!$DV$9,Database!$C$90:$L$90,0), MATCH('Structure Input'!AR51,Database!$G$4:$L$4,0)), IF(DN51="MIC", INDEX(Database!$G$113:$L$113,MATCH('Structure Input'!$DV$9,Database!$C$113:$L$113,0), MATCH('Structure Input'!AR51,Database!$G$4:$L$4,0)), IF(DN51="Xypex+MIC", INDEX(Database!$G$136:$L$136,MATCH('Structure Input'!$DV$9,Database!$C$136:$L$136,0), MATCH('Structure Input'!AR51,Database!$G$4:$L$4,0)), 0)))), 0) -> 0 | DW51: =IFERROR(IF(DN51="Plain", INDEX(Database!$GN$228:$JS$228,MATCH('Structure Input'!$DW$9,Database!$C$228:$JS$228,0), MATCH('Structure Input'!H51,Database!$GN$218:$JS$218,0)), IF(DN51="Xypex", INDEX(Database!$GN$229:$JS$229,MATCH('Structure Input'!$DW$9,Database!$C$229:$JS$229,0), MATCH('Structure Input'!H51,Database!$GN$218:$JS$218,0)), IF(DN51="MIC", INDEX(Database!$GN$230:$JS$230,MATCH('Structure Input'!$DW$9,Database!$C$230:$JS$230,0), MATCH('Structure Input'!H51,Database!$GN$218:$JS$218,0)), IF(DN51="Xypex+MIC", INDEX(Database!$GN$231:$JS$231,MATCH('Structure Input'!$DW$9,Database!$C$231:$JS$231,0), MATCH('Structure Input'!H51,Database!$GN$218:$JS$218,0)), 0)))), 0) -> 0 | DX51: =IF(AU51="Plain",INDEX(Database!$E$168:$P$168,MATCH('Structure Input'!$DX$9,Database!$C$168:$P$168,0), MATCH('Structure Input'!AS51,Database!$E$156:$P$156,0)),IF(AU51="Xypex",INDEX(Database!$E$170:$P$170,MATCH('Structure Input'!$DX$9,Database!$C$170:$P$170,0), MATCH('Structure Input'!AS51,Database!$E$156:$P$156,0)),IF(AU51="MIC",INDEX(Database!$E$172:$P$172,MATCH('Structure Input'!$DX$9,Database!$C$172:$P$172,0), MATCH('Structure Input'!AS51,Database!$E$156:$P$156,0)),IF(AU51="Xypex+MIC",INDEX(Database!$E$174:$P$174,MATCH('Structure Input'!$DX$9,Database!$C$174:$P$174,0), MATCH('Structure Input'!AS51,Database!$E$156:$P$156,0)),0)))) -> 0 | DY51: =IF(AU51="Plain",INDEX(Database!$E$167:$P$167,MATCH('Structure Input'!$DY$9,Database!$C$167:$P$167,0), MATCH('Structure Input'!AS51,Database!$E$156:$P$156,0)),IF(AU51="Xypex",INDEX(Database!$E$169:$P$169,MATCH('Structure Input'!$DY$9,Database!$C$169:$P$169,0), MATCH('Structure Input'!AS51,Database!$E$156:$P$156,0)),IF(AU51="MIC",INDEX(Database!$E$171:$P$171,MATCH('Structure Input'!$DY$9,Database!$C$171:$P$171,0), MATCH('Structure Input'!AS51,Database!$E$156:$P$156,0)),IF(AU51="Xypex+MIC",INDEX(Database!$E$173:$P$173,MATCH('Structure Input'!$DY$9,Database!$C$173:$P$173,0), MATCH('Structure Input'!AS51,Database!$E$156:$P$156,0)),0)))) -> 0 | DZ51: =IFERROR(IF(AND(DN51="Plain",DQ51="Round",AT51="No Base"),INDEX(Database!$G$68:$L$68,MATCH($DZ$9,Database!$C$68:$C$68,0),MATCH('Structure Input'!AR51,Database!$G$4:$L$4,0)),IF(AND(DN51="Xypex",DQ51="Round",AT51="No Base"),INDEX(Database!$G$91:$L$91,MATCH($DZ$9,Database!$C$91:$C$91,0),MATCH('Structure Input'!AR51,Database!$G$4:$L$4,0)),IF(AND(DN51="MIC",DQ51="Round",AT51="No Base"),INDEX(Database!$G$114:$L$114,MATCH($DZ$9,Database!$C$114:$C$114,0),MATCH('Structure Input'!AR51,Database!$G$4:$L$4,0)), IF(AND(DN51="Xypex+MIC", DQ51="Round",AT51="No Base"), INDEX(Database!$G$137:$L$137,MATCH($DZ$9,Database!$C$137:$C$137,0),MATCH('Structure Input'!AR51,Database!$G$4:$L$4,0)), 0)))), 0) -> 0 | EA51: =IFERROR(IF(AND(DN51="Plain",DQ51="Round",AS51="No Top"),INDEX(Database!$G$69:$L$69,MATCH($EA$9,Database!$C$69:$C$69,0),MATCH('Structure Input'!AR51,Database!$G$4:$L$4,0)),IF(AND(DN51="Xypex",DQ51="Round",AS51="No Top"),INDEX(Database!$G$92:$L$92,MATCH($EA$9,Database!$C$92:$C$92,0),MATCH('Structure Input'!AR51,Database!$G$4:$L$4,0)),IF(AND(DN51="MIC",DQ51="Round",AS51="No Top"),INDEX(Database!$G$115:$L$115,MATCH($EA$9,Database!$C$115:$C$115,0),MATCH('Structure Input'!AR51,Database!$G$4:$L$4,0)), IF(AND(DN51="Xypex+MIC", DQ51="Round",AS51="No Top"), INDEX(Database!$G$138:$L$138,MATCH($EA$9,Database!$C$138:$C$138,0),MATCH('Structure Input'!AR51,Database!$G$4:$L$4,0)), 0)))), 0) -> 0 | EB51: =IF(AND(OR(DQ51="Round Knockout",DQ51="FW Knockout"),AL51<14.01),(AL51*12)+AJ51-X51,0) -> 0 | EC51: =IFERROR(IF(AND(OR(DQ51="Round Knockout",DQ51="FW Knockout"),AT51="W/Base",DN51="Plain",AL51<14.01),(INDEX(Database!$AY$21:$BN$21,MATCH('Structure Input'!$EC$9,Database!$C$21:$BN$21,0),MATCH('Structure Input'!AR51,Database!$AY$4:$BN$4,0))),IF(AND(AT51="No Base",DN51="Xypex",DN51="MIC", DN51="Xypex+MIC"),0,0)), 0) -> 0 | ED51: =IFERROR(IF(AND(AT51="W/Base",DN51="Plain",AL51<14.01),(INDEX(Database!$AY$19:$BN$19,MATCH('Structure Input'!$ED$9,Database!$C$19:$BN$19,0),MATCH('Structure Input'!AR51,Database!$AY$4:$BN$4,0))),IF(AND(AT51="No Base",DN51="Xypex",DN51="MIC", DN51="Xypex+MIC"),0,0)), 0) -> 0 | EE51: =IFERROR(IF(AND(AT51="W/Base",DN51="Plain",AL51<14.01),(INDEX(Database!$AY$20:$BN$20,MATCH('Structure Input'!$EE$9,Database!$C$20:$BN$20,0),MATCH('Structure Input'!AR51,Database!$AY$4:$BN$4,0))),IF(AND(AT51="No Base",DN51="Xypex",DN51="MIC", DN51="Xypex+MIC"),0,0)), 0) -> 0 | EF51: =IFERROR(IF(AND(AT51="W/Base",DN51="Plain",AL51<14.01),(INDEX(Database!$AY$22:$BN$22,MATCH('Structure Input'!$EF$9,Database!$C$22:$BN$22,0),MATCH('Structure Input'!AR51,Database!$AY$4:$BN$4,0))),IF(AND(AT51="No Base",DN51="Xypex",DN51="MIC", DN51="Xypex+MIC"),0,0)), 0) -> 0 | EG51: =IFERROR(IF(AND(OR(AS51="Yes Top",AO51="Transition"),OR(DQ51="Round Knockout",DQ51="FW Knockout"),DN51="Plain",AL51<14.01),(INDEX(Database!$AY$25:$BN$25,MATCH('Structure Input'!$EG$9,Database!$C$25:$BN$25,0),MATCH('Structure Input'!AR51,Database!$AY$4:$BN$4,0))),IF(AND(AS51="No Top",DN51="Xypex",DN51="MIC", DN51="Xypex+MIC"),0,0)), 0) -> 0 | EH51: =IFERROR(IF(AND(OR(AS51="Yes Top",AO51="Transition"),OR(DQ51="Round Knockout",DQ51="FW Knockout"),DN51="Plain",AL51<14.01),(INDEX(Database!$AY$23:$BN$23,MATCH('Structure Input'!$EH$9,Database!$C$23:$BN$23,0),MATCH('Structure Input'!AR51,Database!$AY$4:$BN$4,0))),IF(AND(AS51="No Top",DN51="Xypex",DN51="MIC", DN51="Xypex+MIC"),0,0)), 0) -> 0 | EI51: =IFERROR(IF(AND(OR(AS51="Yes Top",AO51="Transition"),OR(DQ51="Round Knockout",DQ51="FW Knockout"),DN51="Plain",AL51<14.01),(INDEX(Database!$AY$24:$BN$24,MATCH('Structure Input'!$EI$9,Database!$C$24:$BN$24,0),MATCH('Structure Input'!AR51,Database!$AY$4:$BN$4,0))),IF(AND(AS51="No Top",DN51="Xypex",DN51="MIC", DN51="Xypex+MIC"),0,0)), 0) -> 0 | EJ51: =IFERROR(IF(AND(OR(AS51="Yes Top",AO51="Transition"),OR(DQ51="Round Knockout",DQ51="FW Knockout"),DN51="Plain",AL51<14.01),(INDEX(Database!$AY$26:$BN$38,MATCH('Structure Input'!AA51,Database!$C$26:$C$38,0),MATCH('Structure Input'!AR51,Database!$AY$4:$BN$4,0))),IF(AND(AS51="No Top",DN51="Xypex",DN51="MIC", DN51="Xypex+MIC"),0,0)), 0) -> 0 | EK51: =IF(OR(DQ51="Round Knockout",DQ51="FW Knockout"),(EB51-EC51-EG51-X51),0) -> 0 | EL51: =IF(AND(DQ51="Round Knockout",EK51>59.9),60,IF(AND(DQ51="Round Knockout",EK51>47.9,EK51<59.9),48,IF(AND(DQ51="Round Knockout",EK51>35.9,EK51<47.9),36,IF(AND(DQ51="Round Knockout",EK51>23.9,EK51<35.9),24,IF(AND(DQ51="FW Knockout",EK51>23.9),24,IF(AND(OR(DQ51="FW Knockout",DQ51="Round Knockout"),EK51<23.9,EK51>9.9),12,0)))))) -> 0 | EM51: =IFERROR(IF(AND(AT51="W/Base",DN51="Plain",AL51<14.01,EL51=12),(INDEX(Database!$AY$39:$BN$39,MATCH('Structure Input'!$EM$9,Database!$C$39:$BN$39,0),MATCH('Structure Input'!AR51,Database!$AY$4:$BN$4,0))),IF(AND(AT51="W/Base",DN51="Plain",AL51<14.01,EL51=24),(INDEX(Database!$AY$42:$BN$42,MATCH('Structure Input'!$EM$9,Database!$C$42:$BN$42,0),MATCH('Structure Input'!AR51,Database!$AY$4:$BN$4,0))),IF(AND(AT51="No Base",DN51="Xypex",DN51="MIC", DN51="Xypex+MIC"),0,0))), 0) -> 0 | EN51: =IFERROR(IF(AND(AT51="W/Base",DN51="Plain",AL51<14.01,EL51=12),(INDEX(Database!$AY$40:$BN$40,MATCH('Structure Input'!$EN$9,Database!$C$40:$BN$40,0),MATCH('Structure Input'!AR51,Database!$AY$4:$BN$4,0))),IF(AND(AT51="W/Base",DN51="Plain",AL51<14.01,EL51=24),(INDEX(Database!$AY$43:$BN$43,MATCH('Structure Input'!$EN$9,Database!$C$43:$BN$43,0),MATCH('Structure Input'!AR51,Database!$AY$4:$BN$4,0))),IF(AND(AT51="No Base",DN51="Xypex",DN51="MIC", DN51="Xypex+MIC"),0,0))), 0) -> 0 | EP51: =IF(OR(DQ51="Round Knockout",DQ51="FW Knockout"),(EB51-EC51-EG51-X51-EL51),0) -> 0 | EQ51: =IF(AND(DQ51="Knockout",EP51>23.9),24,IF(AND(DQ51="Knockout",EP51<23.9,EP51>9.9),12,0)) -> 0 | ER51: =IFERROR(IF(AND(AT51="W/Base",DN51="Plain",AL51<14.01,EQ51=12),(INDEX(Database!$AY$39:$BN$39,MATCH('Structure Input'!$ER$9,Database!$C$39:$BN$39,0),MATCH('Structure Input'!AR51,Database!$AY$4:$BN$4,0))),IF(AND(AT51="W/Base",DN51="Plain",AL51<14.01,EQ51=24),(INDEX(Database!$AY$42:$BN$42,MATCH('Structure Input'!$ER$9,Database!$C$42:$BN$42,0),MATCH('Structure Input'!AR51,Database!$AY$4:$BN$4,0))),IF(AND(AT51="No Base",DN51="Xypex",DN51="MIC", DN51="Xypex+MIC"),0,0))), 0) -> 0 | ES51: =IFERROR(IF(AND(AT51="W/Base",DN51="Plain",AL51<14.01,EQ51=12),(INDEX(Database!$AY$40:$BN$40,MATCH('Structure Input'!$ES$9,Database!$C$40:$BN$40,0),MATCH('Structure Input'!AR51,Database!$AY$4:$BN$4,0))),IF(AND(AT51="W/Base",DN51="Plain",AL51<14.01,EQ51=24),(INDEX(Database!$AY$43:$BN$43,MATCH('Structure Input'!$ES$9,Database!$C$43:$BN$43,0),MATCH('Structure Input'!AR51,Database!$AY$4:$BN$4,0))),IF(AND(AT51="No Base",DN51="Xypex",DN51="MIC", DN51="Xypex+MIC"),0,0))), 0) -> 0 | EU51: =IF(OR(DQ51="Round Knockout",DQ51="FW Knockout"),(EB51-EC51-EG51-X51-EL51-EQ51),0) -> 0 | EV51: =IF(AND(DQ51="Knockout",EU51>23.9),24,IF(AND(DQ51="Knockout",EU51<23.9,EU51>9.9),12,0)) -> 0 | EW51: =IFERROR(IF(AND(AT51="W/Base",DN51="Plain",AL51<14.01,EV51=12),(INDEX(Database!$AY$39:$BN$39,MATCH('Structure Input'!$EW$9,Database!$C$39:$BN$39,0),MATCH('Structure Input'!AR51,Database!$AY$4:$BN$4,0))),IF(AND(AT51="W/Base",DN51="Plain",AL51<14.01,EV51=24),(INDEX(Database!$AY$42:$BN$42,MATCH('Structure Input'!$EW$9,Database!$C$42:$BN$42,0),MATCH('Structure Input'!AR51,Database!$AY$4:$BN$4,0))),IF(AND(AT51="No Base",DN51="Xypex",DN51="MIC", DN51="Xypex+MIC"),0,0))), 0) -> 0 | EX51: =IFERROR(IF(AND(AT51="W/Base",DN51="Plain",AL51<14.01,EV51=12),(INDEX(Database!$AY$40:$BN$40,MATCH('Structure Input'!$EX$9,Database!$C$40:$BN$40,0),MATCH('Structure Input'!AR51,Database!$AY$4:$BN$4,0))),IF(AND(AT51="W/Base",DN51="Plain",AL51<14.01,EV51=24),(INDEX(Database!$AY$43:$BN$43,MATCH('Structure Input'!$EX$9,Database!$C$43:$BN$43,0),MATCH('Structure Input'!AR51,Database!$AY$4:$BN$4,0))),IF(AND(AT51="No Base",DN51="Xypex",DN51="MIC", DN51="Xypex+MIC"),0,0))), 0) -> 0 | EZ51: =IF(OR(DQ51="Round Knockout",DQ51="FW Knockout"),(EB51-EC51-EG51-X51-EL51-EQ51-EV51),0) -> 0 | FA51: =IF(AND(DQ51="Knockout",EZ51>23.9),24,IF(AND(DQ51="Knockout",EZ51<23.9,EZ51>9.9),12,0)) -> 0 | FB51: =IFERROR(IF(AND(AT51="W/Base",DN51="Plain",AL51<14.01,FA51=12),(INDEX(Database!$AY$39:$BN$39,MATCH('Structure Input'!$FB$9,Database!$C$39:$BN$39,0),MATCH('Structure Input'!AR51,Database!$AY$4:$BN$4,0))),IF(AND(AT51="W/Base",DN51="Plain",AL51<14.01,FA51=24),(INDEX(Database!$AY$42:$BN$42,MATCH('Structure Input'!$FB$9,Database!$C$42:$BN$42,0),MATCH('Structure Input'!AR51,Database!$AY$4:$BN$4,0))),IF(AND(AT51="No Base",DN51="Xypex",DN51="MIC", DN51="Xypex+MIC"),0,0))), 0) -> 0 | FC51: =IFERROR(IF(AND(AT51="W/Base",DN51="Plain",AL51<14.01,FA51=12),(INDEX(Database!$AY$40:$BN$40,MATCH('Structure Input'!$FC$9,Database!$C$40:$BN$40,0),MATCH('Structure Input'!AR51,Database!$AY$4:$BN$4,0))),IF(AND(AT51="W/Base",DN51="Plain",AL51<14.01,FA51=24),(INDEX(Database!$AY$43:$BN$43,MATCH('Structure Input'!$FC$9,Database!$C$43:$BN$43,0),MATCH('Structure Input'!AR51,Database!$AY$4:$BN$4,0))),IF(AND(AT51="No Base",DN51="Xypex",DN51="MIC", DN51="Xypex+MIC"),0,0))), 0) -> 0 | FE51: =IF(OR(DQ51="Round Knockout",DQ51="FW Knockout"),(EB51-EC51-EG51-X51-EL51-EQ51-EV51-FA51),0) -> 0 | FF51: =IF(AND(DQ51="Knockout",FE51>23.9),24,IF(AND(DQ51="Knockout",FE51<23.9,FE51>9.9),12,0)) -> 0 | FG51: =IFERROR(IF(AND(AT51="W/Base",DN51="Plain",AL51<14.01,FF51=12),(INDEX(Database!$AY$39:$BN$39,MATCH('Structure Input'!$FG$9,Database!$C$39:$BN$39,0),MATCH('Structure Input'!AR51,Database!$AY$4:$BN$4,0))),IF(AND(AT51="W/Base",DN51="Plain",AL51<14.01,FF51=24),(INDEX(Database!$AY$42:$BN$42,MATCH('Structure Input'!$FG$9,Database!$C$42:$BN$42,0),MATCH('Structure Input'!AR51,Database!$AY$4:$BN$4,0))),IF(AND(AT51="No Base",DN51="Xypex",DN51="MIC", DN51="Xypex+MIC"),0,0))), 0) -> 0 | FH51: =IFERROR(IF(AND(AT51="W/Base",DN51="Plain",AL51<14.01,FF51=12),(INDEX(Database!$AY$40:$BN$40,MATCH('Structure Input'!$FH$9,Database!$C$40:$BN$40,0),MATCH('Structure Input'!AR51,Database!$AY$4:$BN$4,0))),IF(AND(AT51="W/Base",DN51="Plain",AL51<14.01,FF51=24),(INDEX(Database!$AY$43:$BN$43,MATCH('Structure Input'!$FH$9,Database!$C$43:$BN$43,0),MATCH('Structure Input'!AR51,Database!$AY$4:$BN$4,0))),IF(AND(AT51="No Base",DN51="Xypex",DN51="MIC", DN51="Xypex+MIC"),0,0))), 0) -> 0 | FJ51: =IF(OR(DQ51="Round Knockout",DQ51="FW Knockout"),(EB51-EC51-EG51-X51-EL51-EQ51-EV51-FA51-FF51),0) -> 0 | FK51: =IF(AND(DQ51="Knockout",FJ51>5.01, FJ51<=9.9),6,IF(AND(DQ51="Knockout",FJ51>3.5,FJ51<5.01),4,IF(AND(DQ51="Knockout",FJ51>1.99,FJ51<3.49),3,0))) -> 0 | FL51: =IF(FK51=3,50,IF(FK51=4,60,IF(FK51=6,78,0))) -> 0 | FN51: =IF(OR(DQ51="Round Knockout",DQ51="FW Knockout"),(EB51-EC51-EG51-X51-EL51-EQ51-EV51-FA51-FF51-FK51),0) -> 0 | FO51: =IF(AND(DQ51="Knockout",FN51>5.01, FN51<=9.9),6,IF(AND(DQ51="Knockout",FN51>3.5,FN51<5.01),4,IF(AND(DQ51="Knockout",FN51>1.99,FN51<3.49),3,0))) -> 0 | FP51: =IF(FO51=3,50,IF(FO51=4,60,IF(FO51=6,78,0))) -> 0 | FR51: =FN51-FO51 -> 0 | FS51: =ED51+EH51+EM51+ER51+EW51+FB51+FG51+FL51+FP51 -> 0 | FT51: =(EE51+EI51+EN51+ES51+EX51+FC51+FH51)/2000 -> 0 | FU51: =IFERROR(INDEX(Database!$E$264:$M$264,MATCH('Structure Input'!$FU$9,Database!$C$264:$C$264,0),MATCH('Structure Input'!AW51,Database!$E$250:$M$250,0)),0) -> 0 | FV51: =IFERROR(IF(DQ51="Round",INDEX(Database!$E$251:$N$263,MATCH('Structure Input'!AR51,Database!$C$251:$C$265,0),MATCH('Structure Input'!AW51,Database!$E$250:$N$250,0)),IF(DQ51="Flat Wall",(FU51*BV51),0)),0) -> 0 | FW51: =IFERROR(INDEX(Database!$R$275:$R$277,MATCH('Structure Input'!AY51,Database!$C$275:$C$277,0),MATCH('Structure Input'!$FW$9,Database!$R$274:$R$274,0)),0) -> 0 | FX51: =IFERROR(IF(DQ51="Round",INDEX(Database!$E$275:$Q$277,MATCH('Structure Input'!AY51,Database!$C$275:$C$277,0),MATCH('Structure Input'!AR51,Database!$E$274:$Q$274,0)),IF(DQ51="Flat Wall",(FW51*BV51),0)),0) -> 0 | FY51: =IF(AND(BA51="Yes", DQ51="Round"),6,IF(AND(BA51="Yes",DQ51="Flat Wall"),18,IF(AND(BA51="Yes",DQ51="Knockout"),6,IF(AND(BA51="Yes",DQ51="Riser"),6,0)))) -> 0 | FZ51: =IFERROR(INDEX(Database!$T$236:$T$243,MATCH('Structure Input'!BB51,Database!$C$236:$C$243,0), MATCH('Structure Input'!$FZ$9,Database!$T$235:$T$235,0)), 0) -> 0 | GA51: =BV51*FZ51 -> 0 | GB51: =BY51*FZ53 -> 0 | GC51: =IFERROR(MAX(P51:P56), "") -> 0 | GD51: =IF(AND(GC51>=1,GC51<=8),8,IF(AND(GC51>=8.001,GC51<=10),10,IF(AND(GC51>=10.001,GC51<=12),12,IF(AND(GC51>=12.001,GC51<=15),15,IF(AND(GC51>=15.001,GC51<=18),18,IF(AND(GC51>=18.001,GC51<=24),24,IF(AND(GC51>=24.001,GC51<=30),30,IF(AND(GC51>=30.001,GC51<=36),36,IF(AND(GC51>=36.001,GC51<=42),42,IF(AND(GC51>=42.001,GC51<=48),48,0)))))))))) -> 0 | GE51: =IFERROR(IF(AND(DN51="Plain",BE51="Yes"),INDEX(Database!$G$71:$I$80,MATCH('Structure Input'!GD51,Database!$C$71:$C$80,0),MATCH('Structure Input'!AR51,Database!$G$4:$I$4,0)),IF(AND(DN51="Xypex",BE51="Yes"),INDEX(Database!$G$94:$I$103,MATCH('Structure Input'!GD51,Database!$C$94:$C$103,0),MATCH('Structure Input'!AR51,Database!$G$4:$I$4,0)),IF(AND(DN51="MIC",BE51="Yes"),INDEX(Database!$G$117:$I$126,MATCH('Structure Input'!GD51,Database!$C$117:$C$126,0),MATCH('Structure Input'!AR51,Database!$G$4:$I$4,0)),IF(AND(DN51="Xypex+MIC",BE51="Yes"),INDEX(Database!$G$140:$I$149,MATCH('Structure Input'!GD51,Database!$C$140:$C$149,0),MATCH('Structure Input'!AR51,Database!$G$4:$I$4,0)),IF(BE51="",0,0))))),0) -> 0 | GF51: =IFERROR(IF(AND(DN51="Plain",BG51="Yes"),INDEX(Database!$G$70:$AX$70,MATCH('Structure Input'!$GF$9,Database!$C$70:$AX$70,0),MATCH('Structure Input'!AR51,Database!$G$4:$AX$4,0)),IF(AND(DN51="Xypex",BG51="Yes"),INDEX(Database!$G$93:$L$93,MATCH('Structure Input'!$GF$9,Database!$C$93:$L$93,0),MATCH('Structure Input'!AR51,Database!$G$4:$L$4,0)),IF(AND(DN51="MIC",BG51="Yes"),INDEX(Database!$G$116:$L$116,MATCH('Structure Input'!$GF$9,Database!$C$116:$L$116,0),MATCH('Structure Input'!AR51,Database!$G$4:$L$4,0)),IF(AND(DN51="Xypex+MIC",BG51="Yes"),INDEX(Database!$G$139:$L$139,MATCH('Structure Input'!$GF$9,Database!$C$139:$L$139,0),MATCH('Structure Input'!AR51,Database!$G$4:$L$4,0)),0)))),0) -> 0 | GM51: =IFERROR(INDEX(Database!$E$219:$JS$219,MATCH('Structure Input'!$GM$9,Database!$C$219:$JS$219,0), MATCH('Structure Input'!H51,Database!$E$218:$JS$218,0)), 0) -> 378 | GN51: =ROUNDUP((GN53*GN54)+GN55,0) -> 0 | GO51: =IF(X53="Casting",GN51*GS51,0) -> 0 | GP51: =IF(X53="Hatch",GN51*GT51,0) -> 0 | GQ51: =IF(X53="Casting",GN54*GS51,0) -> 0 | GR51: =IF(X53="Hatch",GN54*GT51,0) -> 0 | GS51: =IF(X53="Casting",C51*Y51,0) -> 0 | GT51: =IF(X53="Hatch",C51*Y51,0) -> 0 | GU51: =IF(X53="Casting",GN54/Summary!$AG$10,0) -> 0 | GV51: =IFERROR(IF(X53="Hatch",GN54/Summary!$AG$13,0),0) -> 0 | GW51: =GW53*GW54 -> 0 | GX51: 0 | HA51: =SUM(HA52:HA56) -> 0 | HB51: =IF(AND(BH51>0,BI51=0),BH51&" Dia.",IF(AND(BI51>0,BH51=0),BI51&"x"&BJ51, "")) ->  | HC51: =IF(DP51-DR51>0,(DP51-DR51)*DV51,0) -> 0 | HD51: =MAX(0,((AN51-(BR51/12))*DX51)) -> 0 | HE51: =(FV51*AL51) -> 0 | HF51: =(FX51*AL51) -> 0 | HG51: =(V51+V52+V53+V54+V55+V56) -> 0 | HH51: =(FY51*AL51) -> 0 | HI51: =Summary!$Q$11 -> 1.2 | HJ51: =(HE51+HF51+HG51+HH51)*(HI51) -> 0 | HK51: =SUM(HK52:HK56) -> 0 | HL51: =(GA51*AL51) -> 0 | HM51: =(GB51*AL51) -> 0 | HN51: =IF(DM51<>"",(DM51*DL51)+(DI51*DM51),0) -> 0 | HO51: =IFERROR(IA51,"") -> 39.92452982 | HP51: =IFERROR(HS51,"") -> 313.4433974 | HQ51: =IFERROR(HT51,"") -> 18.5840708 | HR51: =((DS51+DT51+DU51+DW51+DY51-DZ51-EA51+HC51+HD51+GE51+GI51+GL51+GM51+HN51)/((100-HU51)/100)-DS51-DT51-DU51-DW51-DY51+DZ51+EA51-HC51-HD51-GE51-GI51-GL51-GM51-HN51)*C51 -> 479.0943578 | HS51: =(DS51+DT51+DU51+DW51+DY51-DZ51-EA51+FS51+GE51+GF51+GG51+GH51+GI51+GJ51+GK51+GL51+GM51+HC51+HD51+HJ51+HK51+HL51+HM51+HN51+IA51)*IB51 -> 313.4433974 | HT51: =((DS51+DT51+DU51+DW51+DY51-DZ51-EA51+HC51+HD51+GL51+FS51+GE51+GF51+HK51+GM51+HN51)/DK51*2/27)*IB51 -> 18.5840708 | HU51: =(Summary!$AA$9) -> 9.553047732 | HV51: =(IF(DG51="1 Piece",(Summary!$AB$9*0.5),IF(DG51="2 Pieces",(Summary!$AB$9*1),IF(DG51="3 Pieces",(Summary!$AB$9*1.5),IF(DG51="4 Pieces",(Summary!$AB$9*2),0))))) -> 0 | HW51: =CS51*Summary!$AB$9 -> 0 | HX51: =IF(CN51=2,(CP51*Summary!$AB$9*0.25),IF(CN51=3,(CP51*Summary!$AB$9*0.5),IF(CN51=4,(CP51*Summary!$AB$9*0.75),0))) -> 0 | HY51: =IF(CO51=2,(CQ51*Summary!$AB$9*0.25),IF(CO51=3,(CQ51*Summary!$AB$9*0.5),IF(CO51=4,(CQ51*Summary!$AB$9*0.75),0))) -> 0 | HZ51: =HR51+HW51+HX51+HY51+(HV51*C51) -> 479.0943578 | IA51: =((HR51+HW51+HX51+HY51)/C51)+HV51 -> 39.92452982 | IB51: =IF(D51="Storm",Summary!$Q$2,IF(D51="End Treatment",Summary!$Q$3,IF(D51="Storm WQU",Summary!$Q$4,IF(D51="Sanitary",Summary!$Q$5,IF(D51="Wet Well",Summary!$Q$6,IF(D51="Vault",Summary!$Q$7,IF(OR(D51="Grease Trap",D51="Oil Separator",D51="Septic"),Summary!$Q$8,IF(D51="Water/SS ARV",Summary!$Q$9,IF(D51="Other",Summary!$Q$10,IF(D51="Box Culvert",Summary!$Q$15,IF(D51="UG Detention",Summary!$Q$16,1))))))))))) -> 0.75 | IC51: =IFERROR(HP51*C51, "") -> 3761.320768 | ID51: =IFERROR((((DS51+DT51+DU51+DW51+DY51-DZ51-EA51+GE51+GF51+GG51+GH51+GI51+GJ51+GL51+GM51+HC51+HD51+HK51+HN51+IA51)*IB51)*C51), "") -> 3761.320768 | IE51: =IFERROR((((DS51+DT51+DU51+DW51+DY51-DZ51-EA51+GE51+GF51+HD51+GG51+GH51+GI51+GJ51+GL51+GM51+HC51+HK51+HN51)*IB51)*C51), "") -> 3402
A52: 2 | L52: =(K52-K51) -> 0 | M52: =IF(AND(P52<12.1,P52>3.9,L52>2.1,D51="Sanitary"), "Yes", "No") -> No | N52: =IF(L52<2.1,"",L52) ->  | O52: 2 | P52: =IFERROR(INDEX(Database!$E$203:$DA$203,MATCH('Structure Input'!$P$9,Database!$C$203:$DA$203,0), MATCH('Structure Input'!S52,Database!$E$199:$DA$199,0)), "") ->  | U52: =IFERROR(INDEX(Database!$E$201:$DA$201,MATCH('Structure Input'!$U$9,Database!$C$201:$DA$201,0), MATCH('Structure Input'!S52,Database!$E$199:$DA$199,0)), "n/a") -> n/a | V52: =IFERROR(INDEX(Database!$E$200:$DA$200,MATCH('Structure Input'!$V$9,Database!$C$200:$DA$200,0), MATCH('Structure Input'!S52,Database!$E$199:$DA$199,0)), 0) -> 0 | AR52: Overrides: | FZ52: Interior | GM52: Designation: | GN52: =IF(OR(X53="Casting",X53="Hatch"),X53,"") ->  | GW52: =IF(OR(W54>0,W55>0),W54&""&W55,"") ->  | GY52: =IF(AU51="Xypex+MIC", 1.25,1) -> 1 | GZ52: =IF(AND(M52="Yes",P52>3.99,P52<5.98),160*GY52,IF(AND(M52="Yes",P52>5.99,P52<7.98),182*GY52,IF(AND(M52="Yes",P52>7.99,P52<9.98),216*GY52,IF(AND(M52="Yes",P52>9.99,P52<11.98),468*GY52,IF(AND(M52="Yes",P52=12),604*GY52,""))))) ->  | HA52: =IF(AND(N52>0,N52<4),4,IF(N52>=4,N52,"")) ->  | HK52: =IFERROR(IF(GZ52>0,GZ52*HA52,""),"") -> 
A53: 2 | L53: =(K53-K51) -> 0 | M53: =IF(AND(P53<12.1,P53>3.9,L53>2.1,D51="Sanitary"), "Yes", "No") -> No | O53: 3 | P53: =IFERROR(INDEX(Database!$E$203:$DA$203,MATCH('Structure Input'!$P$9,Database!$C$203:$DA$203,0), MATCH('Structure Input'!S53,Database!$E$199:$DA$199,0)), "") ->  | U53: =IFERROR(INDEX(Database!$E$201:$DA$201,MATCH('Structure Input'!$U$9,Database!$C$201:$DA$201,0), MATCH('Structure Input'!S53,Database!$E$199:$DA$199,0)), "n/a") -> n/a | V53: =IFERROR(INDEX(Database!$E$200:$DA$200,MATCH('Structure Input'!$V$9,Database!$C$200:$DA$200,0), MATCH('Structure Input'!S53,Database!$E$199:$DA$199,0)), 0) -> 0 | X53: =IFERROR(INDEX(Database!$F$187:$LR$187,MATCH('Structure Input'!GM52,Database!$C$187:$LR$187,0),MATCH('Structure Input'!W51,Database!$F$180:$LR$180,0)),"Type in ""Casting"" or ""Hatch"" here if manually entered") -> Type in "Casting" or "Hatch" here if manually entered | BB53: Interior Coating | BC53: =IF(ISNUMBER(SEARCH("CS-55",BB54)),"5",IF(ISNUMBER(SEARCH("Carboline 300M",BB54)),"6",IF(ISNUMBER(SEARCH("Masterseal 610",BB54)),"7",IF(ISNUMBER(SEARCH("HLM 5000",BB54)),"8",IF(AND(C51>0,BB54=""),"No",""))))) -> No | FZ53: =IFERROR(INDEX(Database!$T$236:$T$243,MATCH('Structure Input'!BB54,Database!$C$236:$C$243,0), MATCH('Structure Input'!$FZ$9,Database!$T$235:$T$235,0)), 0) -> 0 | GM53: Multiplier: | GN53: =Summary!$Q$12 -> 1.2 | GW53: =Summary!$Q$13 -> 1.25 | GX53: =Summary!$Q$14 -> 1.25 | GY53: =IF(AU51="Xypex+MIC", 1.25,1) -> 1 | GZ53: =IF(AND(M53="Yes",P53>3.99,P53<5.98),160*GY53,IF(AND(M53="Yes",P53>5.99,P53<7.98),182*GY53,IF(AND(M53="Yes",P53>7.99,P53<9.98),216*GY53,IF(AND(M53="Yes",P53>9.99,P53<11.98),468*GY53,IF(AND(M53="Yes",P53=12),604*GY53,""))))) ->  | HA53: =IF(AND(N53>0,N53<4),4,IF(N53>=4,N53,"")) -> 
A54: 2 | L54: =(K54-K51) -> 0 | M54: =IF(AND(P54<12.1,P54>3.9,L54>2.1,D51="Sanitary"), "Yes", "No") -> No | O54: 4 | P54: =IFERROR(INDEX(Database!$E$203:$DA$203,MATCH('Structure Input'!$P$9,Database!$C$203:$DA$203,0), MATCH('Structure Input'!S54,Database!$E$199:$DA$199,0)), "") ->  | U54: =IFERROR(INDEX(Database!$E$201:$DA$201,MATCH('Structure Input'!$U$9,Database!$C$201:$DA$201,0), MATCH('Structure Input'!S54,Database!$E$199:$DA$199,0)), "n/a") -> n/a | V54: =IFERROR(INDEX(Database!$E$200:$DA$200,MATCH('Structure Input'!$V$9,Database!$C$200:$DA$200,0), MATCH('Structure Input'!S54,Database!$E$199:$DA$199,0)), 0) -> 0 | X54: Qty: | Y54: =IF(OR(W54>0,W55>0), 1, "") ->  | AI54: <== Accessory | GM54: Cost: | GN54: =IFERROR(INDEX(Database!$F$182:$LR$182,MATCH('Structure Input'!$GN$9,Database!$C$182:$LR$182,0), MATCH('Structure Input'!W51,Database!$F$180:$LR$180,0)), 0) -> 0 | GW54: =IFERROR(INDEX(Database!$E$296:$AU$296,MATCH('Structure Input'!$GW$9,Database!$C$296:$AU$296,0), MATCH('Structure Input'!GW52,Database!$E$295:$AU$295,0)), 0) -> 0 | GX54: =IFERROR(INDEX(Database!$E$297:$AU$297,MATCH('Structure Input'!$GX$9,Database!$C$297:$AU$297,0), MATCH('Structure Input'!GX52,Database!$E$295:$AU$295,0)), 0) -> 0 | GY54: =IF(AU51="Xypex+MIC", 1.25,1) -> 1 | GZ54: =IF(AND(M54="Yes",P54>3.99,P54<5.98),160*GY54,IF(AND(M54="Yes",P54>5.99,P54<7.98),182*GY54,IF(AND(M54="Yes",P54>7.99,P54<9.98),216*GY54,IF(AND(M54="Yes",P54>9.99,P54<11.98),468*GY54,IF(AND(M54="Yes",P54=12),604*GY54,""))))) ->  | HA54: =IF(AND(N54>0,N54<4),4,IF(N54>=4,N54,"")) -> 
A55: 2 | L55: =(K55-K51) -> 0 | M55: =IF(AND(P55<12.1,P55>3.9,L55>2.1,D51="Sanitary"), "Yes", "No") -> No | O55: 5 | P55: =IFERROR(INDEX(Database!$E$203:$DA$203,MATCH('Structure Input'!$P$9,Database!$C$203:$DA$203,0), MATCH('Structure Input'!S55,Database!$E$199:$DA$199,0)), "") ->  | U55: =IFERROR(INDEX(Database!$E$201:$DA$201,MATCH('Structure Input'!$U$9,Database!$C$201:$DA$201,0), MATCH('Structure Input'!S55,Database!$E$199:$DA$199,0)), "n/a") -> n/a | V55: =IFERROR(INDEX(Database!$E$200:$DA$200,MATCH('Structure Input'!$V$9,Database!$C$200:$DA$200,0), MATCH('Structure Input'!S55,Database!$E$199:$DA$199,0)), 0) -> 0 | GM55: Applied Freight: | GN55: =IF(X53="Casting",GU51*Summary!$AI$10,IF(X53="Hatch",GV51*Summary!$AI$13,0)) -> 0 | GY55: =IF(AU51="Xypex+MIC", 1.25,1) -> 1 | GZ55: =IF(AND(M55="Yes",P55>3.99,P55<5.98),160*GY55,IF(AND(M55="Yes",P55>5.99,P55<7.98),182*GY55,IF(AND(M55="Yes",P55>7.99,P55<9.98),216*GY55,IF(AND(M55="Yes",P55>9.99,P55<11.98),468*GY55,IF(AND(M55="Yes",P55=12),604*GY55,""))))) ->  | HA55: =IF(AND(N55>0,N55<4),4,IF(N55>=4,N55,"")) -> 
A56: 2 | L56: =(K56-K51) -> 0 | M56: =IF(AND(P56<12.1,P56>3.9,L56>2.1,D51="Sanitary"), "Yes", "No") -> No | O56: 6 | P56: =IFERROR(INDEX(Database!$E$203:$DA$203,MATCH('Structure Input'!$P$9,Database!$C$203:$DA$203,0), MATCH('Structure Input'!S56,Database!$E$199:$DA$199,0)), "") ->  | U56: =IFERROR(INDEX(Database!$E$201:$DA$201,MATCH('Structure Input'!$U$9,Database!$C$201:$DA$201,0), MATCH('Structure Input'!S56,Database!$E$199:$DA$199,0)), "n/a") -> n/a | V56: =IFERROR(INDEX(Database!$E$200:$DA$200,MATCH('Structure Input'!$V$9,Database!$C$200:$DA$200,0), MATCH('Structure Input'!S56,Database!$E$199:$DA$199,0)), 0) -> 0 | BB56: Exterior Coating | FZ56: Exterior | GY56: =IF(AU51="Xypex+MIC", 1.25,1) -> 1 | GZ56: =IF(AND(M56="Yes",P56>3.99,P56<5.98),160*GY56,IF(AND(M56="Yes",P56>5.99,P56<7.98),182*GY56,IF(AND(M56="Yes",P56>7.99,P56<9.98),216*GY56,IF(AND(M56="Yes",P56>9.99,P56<11.98),468*GY56,IF(AND(M56="Yes",P56=12),604*GY56,""))))) ->  | HA56: =IF(AND(N56>0,N56<4),4,IF(N56>=4,N56,"")) -> 
A57: 3 | B57: 1790 | C57: 12 | D57: End Treatment | E57: =IF(OR(D57="Sanitary",D57="Wet Well",D57="Vault",D57="Grease Trap",D57="Oil Separator",D57="Septic",D57="Water/SS ARV"),"Sanitary",IF(OR(D57="Storm",D57="Storm WQU",D57="Box Culvert"),"Storm",IF(D57="End Treatment","Headwalls",""))) -> Headwalls | H57: 6" KYTC Perf. Pipe HW Type 3 | N57: =IF(AND(OR(L58>2.1,L59>2.1,L60>2.1,L61>2.1,L62>2.1), J57>0,D57="Sanitary"), "Yes", IF(AND(OR(L58<2.1,L59<2.1,L60<2.1,L61<2.1,L62<2.1), J57>0,D57="Sanitary"), "No",IF(J57=0, "", ""))) ->  | O57: 1 | P57: =IFERROR(INDEX(Database!$E$203:$DA$203,MATCH('Structure Input'!$P$9,Database!$C$203:$DA$203,0), MATCH('Structure Input'!S57,Database!$E$199:$DA$199,0)), "") ->  | R57: 0 | T57: =IF(ISNUMBER(SEARCH("Grout",S57)),"1",IF(ISNUMBER(SEARCH("Link Seal",S57)),"4",IF(ISNUMBER(SEARCH("Boot",S57)),"2",IF(ISNUMBER(SEARCH("A-Lok",S57)),"3",IF(AND(C57>0,S57=""),"1",""))))) -> 1 | U57: =IFERROR(INDEX(Database!$E$201:$DA$201,MATCH('Structure Input'!$U$9,Database!$C$201:$DA$201,0), MATCH('Structure Input'!S57,Database!$E$199:$DA$199,0)), "n/a") -> n/a | V57: =IFERROR(INDEX(Database!$E$200:$DA$200,MATCH('Structure Input'!$V$9,Database!$C$200:$DA$200,0), MATCH('Structure Input'!S57,Database!$E$199:$DA$199,0)), 0) -> 0 | W57: =IFERROR(IF(W59>0,W59,IF(AND(W59=0,G57>0,H57=0),(INDEX(Database!$E$547:$FO$547,MATCH('Structure Input'!$W$19,Database!$C$547:$FO$547,0), MATCH('Structure Input'!G57,Database!$E$546:$FO$546,0))),IF(AND(W59=0,G57=0,H57>0),(INDEX(Database!$E$227:$JS$227,MATCH('Structure Input'!$W$19,Database!$C$227:$C$227,0), MATCH('Structure Input'!H57,Database!$E$218:$JS$218,0))),""))),"") -> 0 | X57: =IFERROR(INDEX(Database!$F$181:$LR$181,MATCH('Structure Input'!$X$9,Database!$C$181:$LR$181,0), MATCH('Structure Input'!W57,Database!$F$180:$LR$180,0)), 0) -> 0 | Y57: =IF(OR(W57>"",W59>0), 1, "") ->  | Z57: =IFERROR(INDEX(Database!$I$183:$LR$183,MATCH('Structure Input'!$Z$9,Database!$C$183:$LR$183,0), MATCH('Structure Input'!W57,Database!$I$180:$LR$180,0)), 0) -> 0 | AA57: =IFERROR(INDEX(Database!$I$184:$LR$184,MATCH('Structure Input'!$AA$9,Database!$C$184:$LR$184,0), MATCH('Structure Input'!W57,Database!$I$180:$LR$180,0)), 0) -> 0 | AB57: =IFERROR(INDEX(Database!$F$188:$LR$188,MATCH('Structure Input'!$AB$9,Database!$C$188:$LR$188,0), MATCH('Structure Input'!W57,Database!$F$180:$LR$180,0)), 0) -> 0 | AC57: =IF(AB57="Non-Stock",1*C57*Y57,0) -> 0 | AD57: =IFERROR(INDEX(Database!$I$189:$LR$189,MATCH('Structure Input'!$AD$9,Database!$C$189:$LR$189,0), MATCH('Structure Input'!W57,Database!$I$180:$LR$180,0)), 0) -> 0 | AE57: =IFERROR(INDEX(Database!$I$190:$LR$190,MATCH('Structure Input'!$AE$9,Database!$C$190:$LR$190,0), MATCH('Structure Input'!W57,Database!$I$180:$LR$180,0)), 0) -> 0 | AF57: =IFERROR(INDEX(Database!$I$191:$LR$191,MATCH('Structure Input'!$AF$9,Database!$C$191:$LR$191,0), MATCH('Structure Input'!W57,Database!$I$180:$LR$180,0)), 0) -> 0 | AG57: =IFERROR(INDEX(Database!$I$192:$LR$192,MATCH('Structure Input'!$AG$9,Database!$C$192:$LR$192,0), MATCH('Structure Input'!W57,Database!$I$180:$LR$180,0)), 0) -> 0 | AH57: =IFERROR(INDEX(Database!$I$193:$LR$193,MATCH('Structure Input'!$AH$9,Database!$C$193:$LR$193,0), MATCH('Structure Input'!W57,Database!$I$180:$LR$180,0)), 0) -> 0 | AJ57: =IFERROR(INDEX(Database!$E$204:$DA$204,MATCH('Structure Input'!$AJ$7,Database!$C$204:$DA$204,0), MATCH('Structure Input'!S57,Database!$E$199:$DA$199,0)),0) -> 0 | AL57: =(J57-K57)+AK57 -> 0 | AM57: =AL57-AN57 -> 0 | AN57: =IF(AND(AQ57>0, AO57="Transition"), AL57-AQ57, 0) -> 0 | AO57: =IFERROR(INDEX(Database!$E$165:$P$165,MATCH('Structure Input'!$AO$9,Database!$C$165:$P$165, 0), MATCH('Structure Input'!AS57,Database!$E$156:$P$156,0)), "") -> Top Slab | AP57: =IFERROR(INDEX(Database!$E$164:$P$164,MATCH('Structure Input'!$AP$9,Database!$C$164:$P$164, 0), MATCH('Structure Input'!AS57,Database!$E$156:$P$156,0)), "") -> 0 | AS57: =IF(AS58>0,AS58,IF(AND(AS58=0,AR57>0),INDEX(Database!$E$13:$BQ$13,MATCH('Structure Input'!$AS$9,Database!$C$13:$C$13,0), MATCH('Structure Input'!AR57,Database!$E$4:$BQ$4,0)),"Yes Top")) -> Yes Top | AT57: =IF(AT58>0,AT58,"W/Base") -> W/Base | AU57: =IF(AU58>0,AU58,IF(AND($D57="Storm",AU58=0,$AU$11>0),$AU$11,IF(AND($D57="Sanitary",AU58=0,$AU$12>0),$AU$12,IF(AND($D57="Wet Well",AU58=0,$AU$13>0),$AU$13,IF(AND($D57="Vault",AU58=0,$AU$14>0),$AU$14,IF(AND($D57="Grease Trap",AU58=0,$AU$15>0),$AU$15,IF(AND($D57="Oil Seperator",AU58=0,$AU$15>0),$AU$15,IF(AND($D57="Septic",AU58=0,$AU$16>0),$AU$16,IF(AND($D57="Water/SS ARV",AU58=0,$AU$17>0),$AU$17,"Plain"))))))))) -> Plain | AV57: =IFERROR(IF(AND(OR(AS57="Yes Top",AS57="Trans 48""R W/Top",AS57="Trans 60""R W/Top",AS57="Trans 24""x24"" Riser",AS57="Trans 24""x24"" W/Top",AS57="Trans 24""x30"" Riser",AS57="Trans 24""x30"" W/Top",AS57="Trans 24""x36"" Riser",AS57="Trans 24""x36"" W/Top",AS57="Trans 36""x36"" Riser",AS57="Trans 36""x36"" W/Top"),J57>0,AT57="W/Base"),"No",IF(AND(OR(AS57="Yes Top",AS57="Trans 48""R W/Top",AS57="Trans 60""R W/Top",AS57="Trans 24""x24"" Riser",AS57="Trans 24""x24"" W/Top",AS57="Trans 24""x30"" Riser",AS57="Trans 24""x30"" W/Top",AS57="Trans 24""x36"" Riser",AS57="Trans 24""x36"" W/Top",AS57="Trans 36""x36"" Riser",AS57="Trans 36""x36"" W/Top"),J57>0,AT57="No Base"),"OB",IF(AND(AS57="No Top",J57>0,OR(W57="",W57="No Casting"),AT57="W/Base"),"OT",IF(AND(AS57="No Top",J57>0,W57>0,AT57="W/Base"),"No",IF(AND(AS57="No Top",J57>0,OR(W57="",W57="No Casting"),AT57="No Base"),"OB & OT",IF(AND(AS57="No Top",J57>0,W57>0,AT57="No Base"),"OB","")))))),"") ->  | AW57: =IF(AW58>0,AW58,IF(AND($D57="Storm",AW58=0,$AW$11>0),$AW$11,IF(AND($D57="Sanitary",AW58=0,$AW$12>0),$AW$12,IF(AND($D57="Wet Well",AW58=0,$AW$13>0),$AW$13,IF(AND($D57="Vault",AW58=0,$AW$14>0),$AW$14,IF(AND($D57="Grease Trap",AW58=0,$AW$15>0),$AW$15,IF(AND($D57="Oil Seperator",AW58=0,$AW$15>0),$AW$15,IF(AND($D57="Septic",AW58=0,$AW$16>0),$AW$16,IF(AND($D57="Water/SS ARV",AW58=0,$AW$17>0),$AW$17,""))))))))) ->  | AX57: =IF(AW57="1"" CS-102",1,IF(AW57="1"" CS-102 Dbl",2,IF(AW57="1.25"" CS-102",3,IF(AW57="1.25"" CS-102 Dbl",4,IF(AW57="1"" CS-231",5,IF(AW57="1"" CS-231 Dbl",6,IF(AW57="1.25"" CS-231",7,IF(AW57="1.25"" CS-231 Dbl",8,IF(AW57="3/4"" CS-440",9,IF(AW57="HK TSS Gasket",10,IF(AND(C57>0,AW57=""),"No",""))))))))))) -> No | AY57: =IF(AY58>0,AY58,IF(AND($D57="Storm",AY58=0,$AY$11>0),$AY$11,IF(AND($D57="Sanitary",AY58=0,$AY$12>0),$AY$12,IF(AND($D57="Wet Well",AY58=0,$AY$13>0),$AY$13,IF(AND($D57="Vault",AY58=0,$AY$14>0),$AY$14,IF(AND($D57="Grease Trap",AY58=0,$AY$15>0),$AY$15,IF(AND($D57="Oil Seperator",AY58=0,$AY$15>0),$AY$15,IF(AND($D57="Septic",AY58=0,$AY$16>0),$AY$16,IF(AND($D57="Water/SS ARV",AY58=0,$AY$17>0),$AY$17,""))))))))) ->  | AZ57: =IF(AY57="6"" CS-212",1,IF(AY57="12"" CS-212",2,IF(AY57="12"" MacWrap",3,IF(AND(C57>0,AY57=""),"No","")))) -> No | BA57: =IF(BA58>0,BA58,IF(AND($D57="Storm",BA58=0,$BA$11>0),$BA$11,IF(AND($D57="Sanitary",BA58=0,$BA$12>0),$BA$12,IF(AND($D57="Wet Well",BA58=0,$BA$13>0),$BA$13,IF(AND($D57="Vault",BA58=0,$BA$14>0),$BA$14,IF(AND($D57="Grease Trap",BA58=0,$BA$15>0),$BA$15,IF(AND($D57="Oil Seperator",BA58=0,$BA$15>0),$BA$15,IF(AND($D57="Septic",BA58=0,$BA$16>0),$BA$16,IF(AND($D57="Water/SS ARV",BA58=0,$BA$17>0),$BA$17,""))))))))) ->  | BB57: =IF(BB58>0,BB58,IF(AND($D57="Storm",BB58=0,$BB$11>0),$BB$11,IF(AND($D57="Sanitary",BB58=0,$BB$12>0),$BB$12,IF(AND($D57="Wet Well",BB58=0,$BB$13>0),$BB$13,IF(AND($D57="Vault",BB58=0,$BB$14>0),$BB$14,IF(AND($D57="Grease Trap",BB58=0,$BB$15>0),$BB$15,IF(AND($D57="Oil Seperator",BB58=0,$BB$15>0),$BB$15,IF(AND($D57="Septic",BB58=0,$BB$16>0),$BB$16,IF(AND($D57="Water/SS ARV",BB58=0,$BB$17>0),$BB$17,""))))))))) ->  | BC57: =IF(ISNUMBER(SEARCH("CS-55",BB57)),"1",IF(ISNUMBER(SEARCH("Carboline 300M",BB57)),"2",IF(ISNUMBER(SEARCH("Masterseal 610",BB57)),"3",IF(ISNUMBER(SEARCH("HLM 5000",BB57)),"4",IF(AND(C57>0,BB57=""),"No",""))))) -> No | BD57: =IF(AND(BC57="No",BC59="No"),"No",IF(AND(BC57>0,BC59="No"),BC57,IF(AND(BC59>0,BC57="No"),BC59,IF(AND(BC59>0,BC57>0,C57>0),BC57&","&BC59,"")))) -> No | BE57: =IF(BE58>0,BE58,IF(AND($D57="Storm",BE58=0,$BE$11>0),$BE$11,IF(AND($D57="Sanitary",BE58=0,$BE$12>0),$BE$12,""))) ->  | BF57: =IF(BE57="Yes","Yes",IF(BE57="Exclude","Exclude",IF(BE57="No","No",IF(AND(J57>0,BE57=""),"No", "")))) ->  | BG57: =IF(BG58>0,BG58,IF(AND($D57="Storm",BG58=0,$BG$11>0),$BG$11,IF(AND($D57="Sanitary",BG58=0,$BG$12>0),$BG$12,IF(AND($D57="Wet Well",BG58=0,$BG$13>0),$BG$13,IF(AND($D57="Vault",BG58=0,$BG$14>0),$BG$14,IF(AND($D57="Grease Trap",BG58=0,$BG$15>0),$BG$15,IF(AND($D57="Oil Seperator",BG58=0,$BG$15>0),$BG$15,IF(AND($D57="Septic",BG58=0,$BG$16>0),$BG$16,IF(AND($D57="Water/SS ARV",BG58=0,$BG$17>0),$BG$17,""))))))))) ->  | BH57: =IFERROR(INDEX(Database!$G$5:$BN$5,MATCH('Structure Input'!$BH$9,Database!$C$5:$BN$5,0), MATCH('Structure Input'!AR57,Database!$G$4:$BN$4,0)), 0) -> 0 | BI57: =IFERROR(INDEX(Database!$S$6:$BN$6,MATCH('Structure Input'!$BI$9,Database!$C$6:$BN$6,0), MATCH('Structure Input'!AR57,Database!$S$4:$BN$4,0)), 0) -> 0 | BJ57: =IFERROR(INDEX(Database!$S$7:$BN$7,MATCH('Structure Input'!$BJ$9,Database!$C$7:$BN$7,0), MATCH('Structure Input'!AR57,Database!$S$4:$BN$4,0)), 0) -> 0 | BK57: =IF(AT57="W/Base",IFERROR(INDEX(Database!$E$8:$AX$8,MATCH('Structure Input'!$BK$9,Database!$C$8:$AX$8,0),MATCH('Structure Input'!AR57,Database!$E$4:$AX$4,0)),0),IF(AT57="No Base",0)) -> 0 | BL57: =IF(OR(AO57="Top Slab",AO57="Transition"),IFERROR(INDEX(Database!$E$9:$AX$9,MATCH('Structure Input'!$BL$9,Database!$C$9:$AX$9,0),MATCH('Structure Input'!AR57,Database!$E$4:$AX$4,0)),0),IF(AO57="No Top",0)) -> 0 | BM57: =IFERROR(INDEX(Database!$E$10:$AX$10,MATCH('Structure Input'!$BM$9,Database!$C$10:$AX$10,0), MATCH('Structure Input'!AR57,Database!$E$4:$AX$4,0)), 0) -> 0 | BN57: =IFERROR(IF(BG57="Yes",INDEX(Database!$E$57:$AX$57,MATCH('Structure Input'!$BN$9,Database!$C$57:$AX$57,0), MATCH('Structure Input'!AR57,Database!$E$4:$AX$4,0)), 0), 0) -> 0 | BO57: =IFERROR(INDEX(Database!$E$157:$P$157,MATCH('Structure Input'!$BO$9,Database!$C$157:$P$157,0), MATCH('Structure Input'!AS57,Database!$E$156:$P$156,0)), 0) -> 0 | BP57: =IFERROR(INDEX(Database!$E$158:$P$158,MATCH('Structure Input'!$BP$9,Database!$C$158:$P$158,0), MATCH('Structure Input'!AS57,Database!$E$156:$P$156,0)), 0) -> 0 | BQ57: =IFERROR(INDEX(Database!$E$159:$P$159,MATCH('Structure Input'!$BQ$9,Database!$C$159:$P$159,0), MATCH('Structure Input'!AS57,Database!$E$156:$P$156,0)), 0) -> 0 | BR57: =IFERROR(INDEX(Database!$E$160:$P$160,MATCH('Structure Input'!$BR$9,Database!$C$160:$P$160,0), MATCH('Structure Input'!AS57,Database!$E$156:$P$156,0)), 0) -> 0 | BS57: =IFERROR(INDEX(Database!$E$161:$P$161,MATCH('Structure Input'!$BS$9,Database!$C$161:$P$161,0), MATCH('Structure Input'!AS57,Database!$E$156:$P$156,0)), 0) -> 0 | BT57: =IF(BH57>0,((BH57+(BM57*2))*(22/7))/12,0) -> 0 | BU57: =IF(BI57>0,(((BI57+(BM57*2))*2)+((BJ57+(BM57*2))*2))/12,0) -> 0 | BV57: =BT57+BU57 -> 0 | BW57: =IF(BH57>0,(BH57*3.14159)/12,0) -> 0 | BX57: =IF(BI57>0,((BI57*2)+(BJ57*2))/12,0) -> 0 | BY57: =BW57+BX57 -> 0 | BZ57: =(BH57/2+BM57+BN57)*(BH57/2+BM57+BN57)/144*3.14*BK57/12 -> 0 | CA57: =((BH57/2+BM57)*(BH57/2+BM57)-(BH57/2)*(BH57/2))/144*3.14*(AM57-(X57+BL57+AI57-3)/12) -> 0 | CB57: =(BH57/2+BM57)*(BH57/2+BM57)/144*3.14*BL57/12 -> 0 | CC57: =SUM(BZ57:CB57) -> 0 | CD57: =((BI57+2*BM57+2*BN57)*(BJ57+2*BM57+2*BN57)/144*BK57/12) -> 0 | CE57: =((BI57+2*BM57)*(BJ57+2*BM57)-(BI57*BJ57))/144*(AM57-(BL57+X57+AI57-AJ57)/12) -> 0 | CF57: =(BI57+2*BM57)*(BJ57+2*BM57)/144*BL57/12 -> 0 | CG57: =(CF57+CE57+CD57) -> 0 | CH57: =IF(AP57="Round", ((BO57/2+BS57)*(BO57/2+BS57)-(BO57/2)*(BO57/2))/144*3.14*(AN57-(BR57-3)/12),IF(AP57="Flat Wall", ((BP57+2*BS57)*(BQ57+2*BS57)-(BP57*BQ57))/144*(AN57-(BR57)/12), 0)) -> 0 | CI57: =IF(AP57="Round", ((BO57/2+BS57)*(BO57/2+BS57)/144*3.14*BR57/12),IF(AP57="Flat Wall", ((BP57+2*BS57)*(BQ57+2*BS57)/144*BR57/12), 0)) -> 0 | CJ57: =(CH57+CI57) -> 0 | CK57: =BH57+BI57+(BM57*2)+(BN57*2) -> 0 | CL57: =BH57+BI57+(BM57*2) -> 0 | CM57: =IFERROR(INDEX(Database!$E$224:$JS$224,MATCH('Structure Input'!$CM$9,Database!$C$224:$JS$224,0), MATCH('Structure Input'!H57,Database!$E$218:$JS$218,0)), 0) -> 102 | CN57: =IF(AND(CK57>=103,CK57<150,CM57=0),2,IF(AND(CK57>=150,CK57<167,CM57=0),3,IF(AND(CK57>=168,CM57=0),4,IF(AND(CM57>=103,CM57<150),2,IF(AND(CM57>=150,CM57<167),3,IF(CM57>=168,4,1)))))) -> 1 | CO57: =IF(AND(CL57>=103,CL57<150),2,IF(AND(CL57>=150,CL57<167),3,IF(CL57>=168,4,1))) -> 1 | CP57: =IF(OR(DH57="Yes",DH57="Yes +1 Ld",DH57="Yes +2 Lds",DH57="Yes +3 Lds",DH57="Yes +4 Lds",DH57="Yes +5 Lds"),ROUNDUP((CV57/20),0),CV57/20) -> 0.9 | CQ57: =IF(AND(OR(DH57="Yes",DH57="Yes +1 Ld",DH57="Yes +2 Lds",DH57="Yes +3 Lds",DH57="Yes +4 Lds",DH57="Yes +5 Lds"),CT57=20,CU57>0),ROUNDUP((CW57/20),0),CW57/20)+IF(DH57="Yes +1 Ld",1,IF(DH57="Yes +2 Lds",2,IF(DH57="Yes +3 Lds",3,IF(DH57="Yes +4 Lds",4,IF(DH57="Yes +5 Lds",5,0))))) -> 0 | CR57: =CP57+CQ57 -> 0.9 | CS57: =CR57-((CV57/20)+(CW57/20)) -> 0 | CT57: =IF(DK57<=20,DK57,20) -> 1.5 | CU57: =(DK57-CT57) -> 0 | CV57: =IF(DK57<=20,DK57,20)*C57 -> 18 | CW57: =(DJ57-CV57) -> 0 | CX57: =IF(CN57=1,CV57,0)+IF(CO57=1,CW57,0) -> 18 | CY57: =IF(CN57=2,CV57,0)+IF(CO57=2,CW57,0) -> 0 | CZ57: =IF(CN57=3,CV57,0)+IF(CO57=3,CW57,0) -> 0 | DA57: =IF(CN57=4,CV57,0)+IF(CO57=4,CW57,0) -> 0 | DB57: =IFERROR(INDEX(Database!$E$220:$JS$220,MATCH('Structure Input'!$DB$7,Database!$C$220:$JS$220,0), MATCH('Structure Input'!H57,Database!$E$218:$JS$218,0)), 0) -> 1.5 | DD57: =IF(AND(C57>0,DC60>0),"(Item "&A57&" - "&"Structure "&I57&") "&DC60,"") ->  | DF57: =IF(DG57="1 Piece",1,IF(DG57="2 Pieces",2,IF(DG57="3 Pieces",3,IF(DG57="4 Pieces",4,"")))) ->  | DI57: =IF(BH57>0,(CC57+CJ57),(CG57+CJ57)) -> 0 | DJ57: =IF(C57>0,DK57*C57,DK57) -> 18 | DK57: =((DI57/13.5)+GE57/21*148/2000+(HA57*25*22/144*148/2000)+DB57+FT57+(DL57*148/2000)) -> 1.5 | DM57: =IF(ISNUMBER(SEARCH("Panel Form Structure",AR57)),"30","") ->  | DN57: =AU57 -> Plain | DO57: =IF(AND(DN57="Plain",C57>0),"No",IF(AND(DN57="Xypex",C57>0),2,IF(AND(DN57="MIC",C57>0),3,IF(AND(DN57="Xypex+MIC",C57>0),4,"")))) -> No | DP57: =(AM57) -> 0 | DQ57: =IFERROR(INDEX(Database!$E$12:$BQ$12,MATCH('Structure Input'!$DQ$9,Database!$C$12:$BQ$12,0), MATCH('Structure Input'!AR57,Database!$E$4:$BQ$4,0)), 0) -> 0 | DR57: =IFERROR(IF(AND(DQ57="Flat Wall",AT57="W/Base"),(INDEX(Database!$S$14:$AX$14,MATCH('Structure Input'!$DR$9,Database!$C$14:$AX$14,0),MATCH('Structure Input'!AR57,Database!$S$4:$AX$4,0))),IF(AND(DQ57="Round",DP57>=10),10,IF(AND(DQ57="Round",DP57<10,DP57>2),ROUNDDOWN(DP57,0),IF(AND(DQ57="Round",DP57<=2),2,0)))),0) -> 0 | DS57: =IFERROR(IF(AND(DN57="Plain",DQ57="Round"),INDEX(Database!$G$58:$L$66,MATCH('Structure Input'!DR57,Database!$C$58:$C$66,0),MATCH('Structure Input'!AR57,Database!$G$4:$L$4,0)),IF(AND(DN57="Xypex",DQ57="Round"),INDEX(Database!$G$81:$L$89,MATCH('Structure Input'!DR57,Database!$C$81:$C$89,0),MATCH('Structure Input'!AR57,Database!$G$4:$L$4,0)),IF(AND(DN57="MIC",DQ57="Round"),INDEX(Database!$G$104:$L$112,MATCH('Structure Input'!DR57,Database!$C$104:$C$112,0),MATCH('Structure Input'!AR57,Database!$G$4:$L$4,0)), IF(AND(DN57="Xypex+MIC", DQ57="Round"), INDEX(Database!$G$127:$L$135,MATCH('Structure Input'!DR57,Database!$C$127:$C$135,0),MATCH('Structure Input'!AR57,Database!$G$4:$L$4,0)), 0)))), 0) -> 0 | DT57: =IFERROR(IF(AND(AT57="W/Base",DN57="Plain"),(INDEX(Database!$S$15:$BQ$15,MATCH('Structure Input'!$DT$9,Database!$C$15:$BQ$15,0),MATCH('Structure Input'!AR57,Database!$S$4:$BQ$4,0))),IF(AND(AT57="No Base",DN57="Xypex",DN57="MIC", DN57="Xypex+MIC"),0,0)), 0) -> 0 | DU57: =IFERROR(IF(AND(OR(AS57="Yes Top",AS57="Trans 48""R W/Top",AS57="Trans 60""R W/Top",AS57="Trans 24""x24"" Riser",AS57="Trans 24""x24"" W/Top",AS57="Trans 24""x30"" Riser",AS57="Trans 24""x30"" W/Top",AS57="Trans 24""x36"" Riser",AS57="Trans 24""x36"" W/Top",AS57="Trans 36""x36"" Riser",AS57="Trans 36""x36"" W/Top"),DN57="Plain"),(INDEX(Database!$S$16:$BQ$16,MATCH('Structure Input'!$DU$9,Database!$C$16:$BQ$16,0),MATCH('Structure Input'!AR57,Database!$S$4:$BQ$4,0))),IF(AND(AS57="No Top",DN57="Xypex",DN57="MIC", DN57="Xypex+MIC"),0,0)), 0) -> 0 | DV57: =IFERROR(IF(DN57="Plain", INDEX(Database!$G$17:$BQ$17,MATCH('Structure Input'!$DV$9,Database!$C$17:$BQ$17,0), MATCH('Structure Input'!AR57,Database!$G$4:$BQ$4,0)), IF(DN57="Xypex", INDEX(Database!$G$90:$L$90,MATCH('Structure Input'!$DV$9,Database!$C$90:$L$90,0), MATCH('Structure Input'!AR57,Database!$G$4:$L$4,0)), IF(DN57="MIC", INDEX(Database!$G$113:$L$113,MATCH('Structure Input'!$DV$9,Database!$C$113:$L$113,0), MATCH('Structure Input'!AR57,Database!$G$4:$L$4,0)), IF(DN57="Xypex+MIC", INDEX(Database!$G$136:$L$136,MATCH('Structure Input'!$DV$9,Database!$C$136:$L$136,0), MATCH('Structure Input'!AR57,Database!$G$4:$L$4,0)), 0)))), 0) -> 0 | DW57: =IFERROR(IF(DN57="Plain", INDEX(Database!$GN$228:$JS$228,MATCH('Structure Input'!$DW$9,Database!$C$228:$JS$228,0), MATCH('Structure Input'!H57,Database!$GN$218:$JS$218,0)), IF(DN57="Xypex", INDEX(Database!$GN$229:$JS$229,MATCH('Structure Input'!$DW$9,Database!$C$229:$JS$229,0), MATCH('Structure Input'!H57,Database!$GN$218:$JS$218,0)), IF(DN57="MIC", INDEX(Database!$GN$230:$JS$230,MATCH('Structure Input'!$DW$9,Database!$C$230:$JS$230,0), MATCH('Structure Input'!H57,Database!$GN$218:$JS$218,0)), IF(DN57="Xypex+MIC", INDEX(Database!$GN$231:$JS$231,MATCH('Structure Input'!$DW$9,Database!$C$231:$JS$231,0), MATCH('Structure Input'!H57,Database!$GN$218:$JS$218,0)), 0)))), 0) -> 0 | DX57: =IF(AU57="Plain",INDEX(Database!$E$168:$P$168,MATCH('Structure Input'!$DX$9,Database!$C$168:$P$168,0), MATCH('Structure Input'!AS57,Database!$E$156:$P$156,0)),IF(AU57="Xypex",INDEX(Database!$E$170:$P$170,MATCH('Structure Input'!$DX$9,Database!$C$170:$P$170,0), MATCH('Structure Input'!AS57,Database!$E$156:$P$156,0)),IF(AU57="MIC",INDEX(Database!$E$172:$P$172,MATCH('Structure Input'!$DX$9,Database!$C$172:$P$172,0), MATCH('Structure Input'!AS57,Database!$E$156:$P$156,0)),IF(AU57="Xypex+MIC",INDEX(Database!$E$174:$P$174,MATCH('Structure Input'!$DX$9,Database!$C$174:$P$174,0), MATCH('Structure Input'!AS57,Database!$E$156:$P$156,0)),0)))) -> 0 | DY57: =IF(AU57="Plain",INDEX(Database!$E$167:$P$167,MATCH('Structure Input'!$DY$9,Database!$C$167:$P$167,0), MATCH('Structure Input'!AS57,Database!$E$156:$P$156,0)),IF(AU57="Xypex",INDEX(Database!$E$169:$P$169,MATCH('Structure Input'!$DY$9,Database!$C$169:$P$169,0), MATCH('Structure Input'!AS57,Database!$E$156:$P$156,0)),IF(AU57="MIC",INDEX(Database!$E$171:$P$171,MATCH('Structure Input'!$DY$9,Database!$C$171:$P$171,0), MATCH('Structure Input'!AS57,Database!$E$156:$P$156,0)),IF(AU57="Xypex+MIC",INDEX(Database!$E$173:$P$173,MATCH('Structure Input'!$DY$9,Database!$C$173:$P$173,0), MATCH('Structure Input'!AS57,Database!$E$156:$P$156,0)),0)))) -> 0 | DZ57: =IFERROR(IF(AND(DN57="Plain",DQ57="Round",AT57="No Base"),INDEX(Database!$G$68:$L$68,MATCH($DZ$9,Database!$C$68:$C$68,0),MATCH('Structure Input'!AR57,Database!$G$4:$L$4,0)),IF(AND(DN57="Xypex",DQ57="Round",AT57="No Base"),INDEX(Database!$G$91:$L$91,MATCH($DZ$9,Database!$C$91:$C$91,0),MATCH('Structure Input'!AR57,Database!$G$4:$L$4,0)),IF(AND(DN57="MIC",DQ57="Round",AT57="No Base"),INDEX(Database!$G$114:$L$114,MATCH($DZ$9,Database!$C$114:$C$114,0),MATCH('Structure Input'!AR57,Database!$G$4:$L$4,0)), IF(AND(DN57="Xypex+MIC", DQ57="Round",AT57="No Base"), INDEX(Database!$G$137:$L$137,MATCH($DZ$9,Database!$C$137:$C$137,0),MATCH('Structure Input'!AR57,Database!$G$4:$L$4,0)), 0)))), 0) -> 0 | EA57: =IFERROR(IF(AND(DN57="Plain",DQ57="Round",AS57="No Top"),INDEX(Database!$G$69:$L$69,MATCH($EA$9,Database!$C$69:$C$69,0),MATCH('Structure Input'!AR57,Database!$G$4:$L$4,0)),IF(AND(DN57="Xypex",DQ57="Round",AS57="No Top"),INDEX(Database!$G$92:$L$92,MATCH($EA$9,Database!$C$92:$C$92,0),MATCH('Structure Input'!AR57,Database!$G$4:$L$4,0)),IF(AND(DN57="MIC",DQ57="Round",AS57="No Top"),INDEX(Database!$G$115:$L$115,MATCH($EA$9,Database!$C$115:$C$115,0),MATCH('Structure Input'!AR57,Database!$G$4:$L$4,0)), IF(AND(DN57="Xypex+MIC", DQ57="Round",AS57="No Top"), INDEX(Database!$G$138:$L$138,MATCH($EA$9,Database!$C$138:$C$138,0),MATCH('Structure Input'!AR57,Database!$G$4:$L$4,0)), 0)))), 0) -> 0 | EB57: =IF(AND(OR(DQ57="Round Knockout",DQ57="FW Knockout"),AL57<14.01),(AL57*12)+AJ57-X57,0) -> 0 | EC57: =IFERROR(IF(AND(OR(DQ57="Round Knockout",DQ57="FW Knockout"),AT57="W/Base",DN57="Plain",AL57<14.01),(INDEX(Database!$AY$21:$BN$21,MATCH('Structure Input'!$EC$9,Database!$C$21:$BN$21,0),MATCH('Structure Input'!AR57,Database!$AY$4:$BN$4,0))),IF(AND(AT57="No Base",DN57="Xypex",DN57="MIC", DN57="Xypex+MIC"),0,0)), 0) -> 0 | ED57: =IFERROR(IF(AND(AT57="W/Base",DN57="Plain",AL57<14.01),(INDEX(Database!$AY$19:$BN$19,MATCH('Structure Input'!$ED$9,Database!$C$19:$BN$19,0),MATCH('Structure Input'!AR57,Database!$AY$4:$BN$4,0))),IF(AND(AT57="No Base",DN57="Xypex",DN57="MIC", DN57="Xypex+MIC"),0,0)), 0) -> 0 | EE57: =IFERROR(IF(AND(AT57="W/Base",DN57="Plain",AL57<14.01),(INDEX(Database!$AY$20:$BN$20,MATCH('Structure Input'!$EE$9,Database!$C$20:$BN$20,0),MATCH('Structure Input'!AR57,Database!$AY$4:$BN$4,0))),IF(AND(AT57="No Base",DN57="Xypex",DN57="MIC", DN57="Xypex+MIC"),0,0)), 0) -> 0 | EF57: =IFERROR(IF(AND(AT57="W/Base",DN57="Plain",AL57<14.01),(INDEX(Database!$AY$22:$BN$22,MATCH('Structure Input'!$EF$9,Database!$C$22:$BN$22,0),MATCH('Structure Input'!AR57,Database!$AY$4:$BN$4,0))),IF(AND(AT57="No Base",DN57="Xypex",DN57="MIC", DN57="Xypex+MIC"),0,0)), 0) -> 0 | EG57: =IFERROR(IF(AND(OR(AS57="Yes Top",AO57="Transition"),OR(DQ57="Round Knockout",DQ57="FW Knockout"),DN57="Plain",AL57<14.01),(INDEX(Database!$AY$25:$BN$25,MATCH('Structure Input'!$EG$9,Database!$C$25:$BN$25,0),MATCH('Structure Input'!AR57,Database!$AY$4:$BN$4,0))),IF(AND(AS57="No Top",DN57="Xypex",DN57="MIC", DN57="Xypex+MIC"),0,0)), 0) -> 0 | EH57: =IFERROR(IF(AND(OR(AS57="Yes Top",AO57="Transition"),OR(DQ57="Round Knockout",DQ57="FW Knockout"),DN57="Plain",AL57<14.01),(INDEX(Database!$AY$23:$BN$23,MATCH('Structure Input'!$EH$9,Database!$C$23:$BN$23,0),MATCH('Structure Input'!AR57,Database!$AY$4:$BN$4,0))),IF(AND(AS57="No Top",DN57="Xypex",DN57="MIC", DN57="Xypex+MIC"),0,0)), 0) -> 0 | EI57: =IFERROR(IF(AND(OR(AS57="Yes Top",AO57="Transition"),OR(DQ57="Round Knockout",DQ57="FW Knockout"),DN57="Plain",AL57<14.01),(INDEX(Database!$AY$24:$BN$24,MATCH('Structure Input'!$EI$9,Database!$C$24:$BN$24,0),MATCH('Structure Input'!AR57,Database!$AY$4:$BN$4,0))),IF(AND(AS57="No Top",DN57="Xypex",DN57="MIC", DN57="Xypex+MIC"),0,0)), 0) -> 0 | EJ57: =IFERROR(IF(AND(OR(AS57="Yes Top",AO57="Transition"),OR(DQ57="Round Knockout",DQ57="FW Knockout"),DN57="Plain",AL57<14.01),(INDEX(Database!$AY$26:$BN$38,MATCH('Structure Input'!AA57,Database!$C$26:$C$38,0),MATCH('Structure Input'!AR57,Database!$AY$4:$BN$4,0))),IF(AND(AS57="No Top",DN57="Xypex",DN57="MIC", DN57="Xypex+MIC"),0,0)), 0) -> 0 | EK57: =IF(OR(DQ57="Round Knockout",DQ57="FW Knockout"),(EB57-EC57-EG57-X57),0) -> 0 | EL57: =IF(AND(DQ57="Round Knockout",EK57>59.9),60,IF(AND(DQ57="Round Knockout",EK57>47.9,EK57<59.9),48,IF(AND(DQ57="Round Knockout",EK57>35.9,EK57<47.9),36,IF(AND(DQ57="Round Knockout",EK57>23.9,EK57<35.9),24,IF(AND(DQ57="FW Knockout",EK57>23.9),24,IF(AND(OR(DQ57="FW Knockout",DQ57="Round Knockout"),EK57<23.9,EK57>9.9),12,0)))))) -> 0 | EM57: =IFERROR(IF(AND(AT57="W/Base",DN57="Plain",AL57<14.01,EL57=12),(INDEX(Database!$AY$39:$BN$39,MATCH('Structure Input'!$EM$9,Database!$C$39:$BN$39,0),MATCH('Structure Input'!AR57,Database!$AY$4:$BN$4,0))),IF(AND(AT57="W/Base",DN57="Plain",AL57<14.01,EL57=24),(INDEX(Database!$AY$42:$BN$42,MATCH('Structure Input'!$EM$9,Database!$C$42:$BN$42,0),MATCH('Structure Input'!AR57,Database!$AY$4:$BN$4,0))),IF(AND(AT57="No Base",DN57="Xypex",DN57="MIC", DN57="Xypex+MIC"),0,0))), 0) -> 0 | EN57: =IFERROR(IF(AND(AT57="W/Base",DN57="Plain",AL57<14.01,EL57=12),(INDEX(Database!$AY$40:$BN$40,MATCH('Structure Input'!$EN$9,Database!$C$40:$BN$40,0),MATCH('Structure Input'!AR57,Database!$AY$4:$BN$4,0))),IF(AND(AT57="W/Base",DN57="Plain",AL57<14.01,EL57=24),(INDEX(Database!$AY$43:$BN$43,MATCH('Structure Input'!$EN$9,Database!$C$43:$BN$43,0),MATCH('Structure Input'!AR57,Database!$AY$4:$BN$4,0))),IF(AND(AT57="No Base",DN57="Xypex",DN57="MIC", DN57="Xypex+MIC"),0,0))), 0) -> 0 | EP57: =IF(OR(DQ57="Round Knockout",DQ57="FW Knockout"),(EB57-EC57-EG57-X57-EL57),0) -> 0 | EQ57: =IF(AND(DQ57="Knockout",EP57>23.9),24,IF(AND(DQ57="Knockout",EP57<23.9,EP57>9.9),12,0)) -> 0 | ER57: =IFERROR(IF(AND(AT57="W/Base",DN57="Plain",AL57<14.01,EQ57=12),(INDEX(Database!$AY$39:$BN$39,MATCH('Structure Input'!$ER$9,Database!$C$39:$BN$39,0),MATCH('Structure Input'!AR57,Database!$AY$4:$BN$4,0))),IF(AND(AT57="W/Base",DN57="Plain",AL57<14.01,EQ57=24),(INDEX(Database!$AY$42:$BN$42,MATCH('Structure Input'!$ER$9,Database!$C$42:$BN$42,0),MATCH('Structure Input'!AR57,Database!$AY$4:$BN$4,0))),IF(AND(AT57="No Base",DN57="Xypex",DN57="MIC", DN57="Xypex+MIC"),0,0))), 0) -> 0 | ES57: =IFERROR(IF(AND(AT57="W/Base",DN57="Plain",AL57<14.01,EQ57=12),(INDEX(Database!$AY$40:$BN$40,MATCH('Structure Input'!$ES$9,Database!$C$40:$BN$40,0),MATCH('Structure Input'!AR57,Database!$AY$4:$BN$4,0))),IF(AND(AT57="W/Base",DN57="Plain",AL57<14.01,EQ57=24),(INDEX(Database!$AY$43:$BN$43,MATCH('Structure Input'!$ES$9,Database!$C$43:$BN$43,0),MATCH('Structure Input'!AR57,Database!$AY$4:$BN$4,0))),IF(AND(AT57="No Base",DN57="Xypex",DN57="MIC", DN57="Xypex+MIC"),0,0))), 0) -> 0 | EU57: =IF(OR(DQ57="Round Knockout",DQ57="FW Knockout"),(EB57-EC57-EG57-X57-EL57-EQ57),0) -> 0 | EV57: =IF(AND(DQ57="Knockout",EU57>23.9),24,IF(AND(DQ57="Knockout",EU57<23.9,EU57>9.9),12,0)) -> 0 | EW57: =IFERROR(IF(AND(AT57="W/Base",DN57="Plain",AL57<14.01,EV57=12),(INDEX(Database!$AY$39:$BN$39,MATCH('Structure Input'!$EW$9,Database!$C$39:$BN$39,0),MATCH('Structure Input'!AR57,Database!$AY$4:$BN$4,0))),IF(AND(AT57="W/Base",DN57="Plain",AL57<14.01,EV57=24),(INDEX(Database!$AY$42:$BN$42,MATCH('Structure Input'!$EW$9,Database!$C$42:$BN$42,0),MATCH('Structure Input'!AR57,Database!$AY$4:$BN$4,0))),IF(AND(AT57="No Base",DN57="Xypex",DN57="MIC", DN57="Xypex+MIC"),0,0))), 0) -> 0 | EX57: =IFERROR(IF(AND(AT57="W/Base",DN57="Plain",AL57<14.01,EV57=12),(INDEX(Database!$AY$40:$BN$40,MATCH('Structure Input'!$EX$9,Database!$C$40:$BN$40,0),MATCH('Structure Input'!AR57,Database!$AY$4:$BN$4,0))),IF(AND(AT57="W/Base",DN57="Plain",AL57<14.01,EV57=24),(INDEX(Database!$AY$43:$BN$43,MATCH('Structure Input'!$EX$9,Database!$C$43:$BN$43,0),MATCH('Structure Input'!AR57,Database!$AY$4:$BN$4,0))),IF(AND(AT57="No Base",DN57="Xypex",DN57="MIC", DN57="Xypex+MIC"),0,0))), 0) -> 0 | EZ57: =IF(OR(DQ57="Round Knockout",DQ57="FW Knockout"),(EB57-EC57-EG57-X57-EL57-EQ57-EV57),0) -> 0 | FA57: =IF(AND(DQ57="Knockout",EZ57>23.9),24,IF(AND(DQ57="Knockout",EZ57<23.9,EZ57>9.9),12,0)) -> 0 | FB57: =IFERROR(IF(AND(AT57="W/Base",DN57="Plain",AL57<14.01,FA57=12),(INDEX(Database!$AY$39:$BN$39,MATCH('Structure Input'!$FB$9,Database!$C$39:$BN$39,0),MATCH('Structure Input'!AR57,Database!$AY$4:$BN$4,0))),IF(AND(AT57="W/Base",DN57="Plain",AL57<14.01,FA57=24),(INDEX(Database!$AY$42:$BN$42,MATCH('Structure Input'!$FB$9,Database!$C$42:$BN$42,0),MATCH('Structure Input'!AR57,Database!$AY$4:$BN$4,0))),IF(AND(AT57="No Base",DN57="Xypex",DN57="MIC", DN57="Xypex+MIC"),0,0))), 0) -> 0 | FC57: =IFERROR(IF(AND(AT57="W/Base",DN57="Plain",AL57<14.01,FA57=12),(INDEX(Database!$AY$40:$BN$40,MATCH('Structure Input'!$FC$9,Database!$C$40:$BN$40,0),MATCH('Structure Input'!AR57,Database!$AY$4:$BN$4,0))),IF(AND(AT57="W/Base",DN57="Plain",AL57<14.01,FA57=24),(INDEX(Database!$AY$43:$BN$43,MATCH('Structure Input'!$FC$9,Database!$C$43:$BN$43,0),MATCH('Structure Input'!AR57,Database!$AY$4:$BN$4,0))),IF(AND(AT57="No Base",DN57="Xypex",DN57="MIC", DN57="Xypex+MIC"),0,0))), 0) -> 0 | FE57: =IF(OR(DQ57="Round Knockout",DQ57="FW Knockout"),(EB57-EC57-EG57-X57-EL57-EQ57-EV57-FA57),0) -> 0 | FF57: =IF(AND(DQ57="Knockout",FE57>23.9),24,IF(AND(DQ57="Knockout",FE57<23.9,FE57>9.9),12,0)) -> 0 | FG57: =IFERROR(IF(AND(AT57="W/Base",DN57="Plain",AL57<14.01,FF57=12),(INDEX(Database!$AY$39:$BN$39,MATCH('Structure Input'!$FG$9,Database!$C$39:$BN$39,0),MATCH('Structure Input'!AR57,Database!$AY$4:$BN$4,0))),IF(AND(AT57="W/Base",DN57="Plain",AL57<14.01,FF57=24),(INDEX(Database!$AY$42:$BN$42,MATCH('Structure Input'!$FG$9,Database!$C$42:$BN$42,0),MATCH('Structure Input'!AR57,Database!$AY$4:$BN$4,0))),IF(AND(AT57="No Base",DN57="Xypex",DN57="MIC", DN57="Xypex+MIC"),0,0))), 0) -> 0 | FH57: =IFERROR(IF(AND(AT57="W/Base",DN57="Plain",AL57<14.01,FF57=12),(INDEX(Database!$AY$40:$BN$40,MATCH('Structure Input'!$FH$9,Database!$C$40:$BN$40,0),MATCH('Structure Input'!AR57,Database!$AY$4:$BN$4,0))),IF(AND(AT57="W/Base",DN57="Plain",AL57<14.01,FF57=24),(INDEX(Database!$AY$43:$BN$43,MATCH('Structure Input'!$FH$9,Database!$C$43:$BN$43,0),MATCH('Structure Input'!AR57,Database!$AY$4:$BN$4,0))),IF(AND(AT57="No Base",DN57="Xypex",DN57="MIC", DN57="Xypex+MIC"),0,0))), 0) -> 0 | FJ57: =IF(OR(DQ57="Round Knockout",DQ57="FW Knockout"),(EB57-EC57-EG57-X57-EL57-EQ57-EV57-FA57-FF57),0) -> 0 | FK57: =IF(AND(DQ57="Knockout",FJ57>5.01, FJ57<=9.9),6,IF(AND(DQ57="Knockout",FJ57>3.5,FJ57<5.01),4,IF(AND(DQ57="Knockout",FJ57>1.99,FJ57<3.49),3,0))) -> 0 | FL57: =IF(FK57=3,50,IF(FK57=4,60,IF(FK57=6,78,0))) -> 0 | FN57: =IF(OR(DQ57="Round Knockout",DQ57="FW Knockout"),(EB57-EC57-EG57-X57-EL57-EQ57-EV57-FA57-FF57-FK57),0) -> 0 | FO57: =IF(AND(DQ57="Knockout",FN57>5.01, FN57<=9.9),6,IF(AND(DQ57="Knockout",FN57>3.5,FN57<5.01),4,IF(AND(DQ57="Knockout",FN57>1.99,FN57<3.49),3,0))) -> 0 | FP57: =IF(FO57=3,50,IF(FO57=4,60,IF(FO57=6,78,0))) -> 0 | FR57: =FN57-FO57 -> 0 | FS57: =ED57+EH57+EM57+ER57+EW57+FB57+FG57+FL57+FP57 -> 0 | FT57: =(EE57+EI57+EN57+ES57+EX57+FC57+FH57)/2000 -> 0 | FU57: =IFERROR(INDEX(Database!$E$264:$M$264,MATCH('Structure Input'!$FU$9,Database!$C$264:$C$264,0),MATCH('Structure Input'!AW57,Database!$E$250:$M$250,0)),0) -> 0 | FV57: =IFERROR(IF(DQ57="Round",INDEX(Database!$E$251:$N$263,MATCH('Structure Input'!AR57,Database!$C$251:$C$265,0),MATCH('Structure Input'!AW57,Database!$E$250:$N$250,0)),IF(DQ57="Flat Wall",(FU57*BV57),0)),0) -> 0 | FW57: =IFERROR(INDEX(Database!$R$275:$R$277,MATCH('Structure Input'!AY57,Database!$C$275:$C$277,0),MATCH('Structure Input'!$FW$9,Database!$R$274:$R$274,0)),0) -> 0 | FX57: =IFERROR(IF(DQ57="Round",INDEX(Database!$E$275:$Q$277,MATCH('Structure Input'!AY57,Database!$C$275:$C$277,0),MATCH('Structure Input'!AR57,Database!$E$274:$Q$274,0)),IF(DQ57="Flat Wall",(FW57*BV57),0)),0) -> 0 | FY57: =IF(AND(BA57="Yes", DQ57="Round"),6,IF(AND(BA57="Yes",DQ57="Flat Wall"),18,IF(AND(BA57="Yes",DQ57="Knockout"),6,IF(AND(BA57="Yes",DQ57="Riser"),6,0)))) -> 0 | FZ57: =IFERROR(INDEX(Database!$T$236:$T$243,MATCH('Structure Input'!BB57,Database!$C$236:$C$243,0), MATCH('Structure Input'!$FZ$9,Database!$T$235:$T$235,0)), 0) -> 0 | GA57: =BV57*FZ57 -> 0 | GB57: =BY57*FZ59 -> 0 | GC57: =IFERROR(MAX(P57:P62), "") -> 0 | GD57: =IF(AND(GC57>=1,GC57<=8),8,IF(AND(GC57>=8.001,GC57<=10),10,IF(AND(GC57>=10.001,GC57<=12),12,IF(AND(GC57>=12.001,GC57<=15),15,IF(AND(GC57>=15.001,GC57<=18),18,IF(AND(GC57>=18.001,GC57<=24),24,IF(AND(GC57>=24.001,GC57<=30),30,IF(AND(GC57>=30.001,GC57<=36),36,IF(AND(GC57>=36.001,GC57<=42),42,IF(AND(GC57>=42.001,GC57<=48),48,0)))))))))) -> 0 | GE57: =IFERROR(IF(AND(DN57="Plain",BE57="Yes"),INDEX(Database!$G$71:$I$80,MATCH('Structure Input'!GD57,Database!$C$71:$C$80,0),MATCH('Structure Input'!AR57,Database!$G$4:$I$4,0)),IF(AND(DN57="Xypex",BE57="Yes"),INDEX(Database!$G$94:$I$103,MATCH('Structure Input'!GD57,Database!$C$94:$C$103,0),MATCH('Structure Input'!AR57,Database!$G$4:$I$4,0)),IF(AND(DN57="MIC",BE57="Yes"),INDEX(Database!$G$117:$I$126,MATCH('Structure Input'!GD57,Database!$C$117:$C$126,0),MATCH('Structure Input'!AR57,Database!$G$4:$I$4,0)),IF(AND(DN57="Xypex+MIC",BE57="Yes"),INDEX(Database!$G$140:$I$149,MATCH('Structure Input'!GD57,Database!$C$140:$C$149,0),MATCH('Structure Input'!AR57,Database!$G$4:$I$4,0)),IF(BE57="",0,0))))),0) -> 0 | GF57: =IFERROR(IF(AND(DN57="Plain",BG57="Yes"),INDEX(Database!$G$70:$AX$70,MATCH('Structure Input'!$GF$9,Database!$C$70:$AX$70,0),MATCH('Structure Input'!AR57,Database!$G$4:$AX$4,0)),IF(AND(DN57="Xypex",BG57="Yes"),INDEX(Database!$G$93:$L$93,MATCH('Structure Input'!$GF$9,Database!$C$93:$L$93,0),MATCH('Structure Input'!AR57,Database!$G$4:$L$4,0)),IF(AND(DN57="MIC",BG57="Yes"),INDEX(Database!$G$116:$L$116,MATCH('Structure Input'!$GF$9,Database!$C$116:$L$116,0),MATCH('Structure Input'!AR57,Database!$G$4:$L$4,0)),IF(AND(DN57="Xypex+MIC",BG57="Yes"),INDEX(Database!$G$139:$L$139,MATCH('Structure Input'!$GF$9,Database!$C$139:$L$139,0),MATCH('Structure Input'!AR57,Database!$G$4:$L$4,0)),0)))),0) -> 0 | GM57: =IFERROR(INDEX(Database!$E$219:$JS$219,MATCH('Structure Input'!$GM$9,Database!$C$219:$JS$219,0), MATCH('Structure Input'!H57,Database!$E$218:$JS$218,0)), 0) -> 500 | GN57: =ROUNDUP((GN59*GN60)+GN61,0) -> 0 | GO57: =IF(X59="Casting",GN57*GS57,0) -> 0 | GP57: =IF(X59="Hatch",GN57*GT57,0) -> 0 | GQ57: =IF(X59="Casting",GN60*GS57,0) -> 0 | GR57: =IF(X59="Hatch",GN60*GT57,0) -> 0 | GS57: =IF(X59="Casting",C57*Y57,0) -> 0 | GT57: =IF(X59="Hatch",C57*Y57,0) -> 0 | GU57: =IF(X59="Casting",GN60/Summary!$AG$10,0) -> 0 | GV57: =IFERROR(IF(X59="Hatch",GN60/Summary!$AG$13,0),0) -> 0 | GW57: =GW59*GW60 -> 0 | GX57: 0 | HA57: =SUM(HA58:HA62) -> 0 | HB57: =IF(AND(BH57>0,BI57=0),BH57&" Dia.",IF(AND(BI57>0,BH57=0),BI57&"x"&BJ57, "")) ->  | HC57: =IF(DP57-DR57>0,(DP57-DR57)*DV57,0) -> 0 | HD57: =MAX(0,((AN57-(BR57/12))*DX57)) -> 0 | HE57: =(FV57*AL57) -> 0 | HF57: =(FX57*AL57) -> 0 | HG57: =(V57+V58+V59+V60+V61+V62) -> 0 | HH57: =(FY57*AL57) -> 0 | HI57: =Summary!$Q$11 -> 1.2 | HJ57: =(HE57+HF57+HG57+HH57)*(HI57) -> 0 | HK57: =SUM(HK58:HK62) -> 0 | HL57: =(GA57*AL57) -> 0 | HM57: =(GB57*AL57) -> 0 | HN57: =IF(DM57<>"",(DM57*DL57)+(DI57*DM57),0) -> 0 | HO57: =IFERROR(IA57,"") -> 52.81022463 | HP57: =IFERROR(HS57,"") -> 414.6076685 | HQ57: =IFERROR(HT57,"") -> 18.51851852 | HR57: =((DS57+DT57+DU57+DW57+DY57-DZ57-EA57+HC57+HD57+GE57+GI57+GL57+GM57+HN57)/((100-HU57)/100)-DS57-DT57-DU57-DW57-DY57+DZ57+EA57-HC57-HD57-GE57-GI57-GL57-GM57-HN57)*C57 -> 633.7226955 | HS57: =(DS57+DT57+DU57+DW57+DY57-DZ57-EA57+FS57+GE57+GF57+GG57+GH57+GI57+GJ57+GK57+GL57+GM57+HC57+HD57+HJ57+HK57+HL57+HM57+HN57+IA57)*IB57 -> 414.6076685 | HT57: =((DS57+DT57+DU57+DW57+DY57-DZ57-EA57+HC57+HD57+GL57+FS57+GE57+GF57+HK57+GM57+HN57)/DK57*2/27)*IB57 -> 18.51851852 | HU57: =(Summary!$AA$9) -> 9.553047732 | HV57: =(IF(DG57="1 Piece",(Summary!$AB$9*0.5),IF(DG57="2 Pieces",(Summary!$AB$9*1),IF(DG57="3 Pieces",(Summary!$AB$9*1.5),IF(DG57="4 Pieces",(Summary!$AB$9*2),0))))) -> 0 | HW57: =CS57*Summary!$AB$9 -> 0 | HX57: =IF(CN57=2,(CP57*Summary!$AB$9*0.25),IF(CN57=3,(CP57*Summary!$AB$9*0.5),IF(CN57=4,(CP57*Summary!$AB$9*0.75),0))) -> 0 | HY57: =IF(CO57=2,(CQ57*Summary!$AB$9*0.25),IF(CO57=3,(CQ57*Summary!$AB$9*0.5),IF(CO57=4,(CQ57*Summary!$AB$9*0.75),0))) -> 0 | HZ57: =HR57+HW57+HX57+HY57+(HV57*C57) -> 633.7226955 | IA57: =((HR57+HW57+HX57+HY57)/C57)+HV57 -> 52.81022463 | IB57: =IF(D57="Storm",Summary!$Q$2,IF(D57="End Treatment",Summary!$Q$3,IF(D57="Storm WQU",Summary!$Q$4,IF(D57="Sanitary",Summary!$Q$5,IF(D57="Wet Well",Summary!$Q$6,IF(D57="Vault",Summary!$Q$7,IF(OR(D57="Grease Trap",D57="Oil Separator",D57="Septic"),Summary!$Q$8,IF(D57="Water/SS ARV",Summary!$Q$9,IF(D57="Other",Summary!$Q$10,IF(D57="Box Culvert",Summary!$Q$15,IF(D57="UG Detention",Summary!$Q$16,1))))))))))) -> 0.75 | IC57: =IFERROR(HP57*C57, "") -> 4975.292022 | ID57: =IFERROR((((DS57+DT57+DU57+DW57+DY57-DZ57-EA57+GE57+GF57+GG57+GH57+GI57+GJ57+GL57+GM57+HC57+HD57+HK57+HN57+IA57)*IB57)*C57), "") -> 4975.292022 | IE57: =IFERROR((((DS57+DT57+DU57+DW57+DY57-DZ57-EA57+GE57+GF57+HD57+GG57+GH57+GI57+GJ57+GL57+GM57+HC57+HK57+HN57)*IB57)*C57), "") -> 4500
A58: 3 | L58: =(K58-K57) -> 0 | M58: =IF(AND(P58<12.1,P58>3.9,L58>2.1,D57="Sanitary"), "Yes", "No") -> No | O58: 2 | P58: =IFERROR(INDEX(Database!$E$203:$DA$203,MATCH('Structure Input'!$P$9,Database!$C$203:$DA$203,0), MATCH('Structure Input'!S58,Database!$E$199:$DA$199,0)), "") ->  | U58: =IFERROR(INDEX(Database!$E$201:$DA$201,MATCH('Structure Input'!$U$9,Database!$C$201:$DA$201,0), MATCH('Structure Input'!S58,Database!$E$199:$DA$199,0)), "n/a") -> n/a | V58: =IFERROR(INDEX(Database!$E$200:$DA$200,MATCH('Structure Input'!$V$9,Database!$C$200:$DA$200,0), MATCH('Structure Input'!S58,Database!$E$199:$DA$199,0)), 0) -> 0 | AR58: Overrides: | FZ58: Interior | GM58: Designation: | GN58: =IF(OR(X59="Casting",X59="Hatch"),X59,"") ->  | GW58: =IF(OR(W60>0,W61>0),W60&""&W61,"") ->  | GY58: =IF(AU57="Xypex+MIC", 1.25,1) -> 1 | GZ58: =IF(AND(M58="Yes",P58>3.99,P58<5.98),160*GY58,IF(AND(M58="Yes",P58>5.99,P58<7.98),182*GY58,IF(AND(M58="Yes",P58>7.99,P58<9.98),216*GY58,IF(AND(M58="Yes",P58>9.99,P58<11.98),468*GY58,IF(AND(M58="Yes",P58=12),604*GY58,""))))) ->  | HA58: =IF(AND(N58>0,N58<4),4,IF(N58>=4,N58,"")) ->  | HK58: =IFERROR(IF(GZ58>0,GZ58*HA58,""),"") -> 
A59: 3 | L59: =(K59-K57) -> 0 | M59: =IF(AND(P59<12.1,P59>3.9,L59>2.1,D57="Sanitary"), "Yes", "No") -> No | O59: 3 | P59: =IFERROR(INDEX(Database!$E$203:$DA$203,MATCH('Structure Input'!$P$9,Database!$C$203:$DA$203,0), MATCH('Structure Input'!S59,Database!$E$199:$DA$199,0)), "") ->  | U59: =IFERROR(INDEX(Database!$E$201:$DA$201,MATCH('Structure Input'!$U$9,Database!$C$201:$DA$201,0), MATCH('Structure Input'!S59,Database!$E$199:$DA$199,0)), "n/a") -> n/a | V59: =IFERROR(INDEX(Database!$E$200:$DA$200,MATCH('Structure Input'!$V$9,Database!$C$200:$DA$200,0), MATCH('Structure Input'!S59,Database!$E$199:$DA$199,0)), 0) -> 0 | X59: =IFERROR(INDEX(Database!$F$187:$LR$187,MATCH('Structure Input'!GM58,Database!$C$187:$LR$187,0),MATCH('Structure Input'!W57,Database!$F$180:$LR$180,0)),"Type in ""Casting"" or ""Hatch"" here if manually entered") -> Type in "Casting" or "Hatch" here if manually entered | BB59: Interior Coating | BC59: =IF(ISNUMBER(SEARCH("CS-55",BB60)),"5",IF(ISNUMBER(SEARCH("Carboline 300M",BB60)),"6",IF(ISNUMBER(SEARCH("Masterseal 610",BB60)),"7",IF(ISNUMBER(SEARCH("HLM 5000",BB60)),"8",IF(AND(C57>0,BB60=""),"No",""))))) -> No | FZ59: =IFERROR(INDEX(Database!$T$236:$T$243,MATCH('Structure Input'!BB60,Database!$C$236:$C$243,0), MATCH('Structure Input'!$FZ$9,Database!$T$235:$T$235,0)), 0) -> 0 | GM59: Multiplier: | GN59: =Summary!$Q$12 -> 1.2 | GW59: =Summary!$Q$13 -> 1.25 | GX59: =Summary!$Q$14 -> 1.25 | GY59: =IF(AU57="Xypex+MIC", 1.25,1) -> 1 | GZ59: =IF(AND(M59="Yes",P59>3.99,P59<5.98),160*GY59,IF(AND(M59="Yes",P59>5.99,P59<7.98),182*GY59,IF(AND(M59="Yes",P59>7.99,P59<9.98),216*GY59,IF(AND(M59="Yes",P59>9.99,P59<11.98),468*GY59,IF(AND(M59="Yes",P59=12),604*GY59,""))))) ->  | HA59: =IF(AND(N59>0,N59<4),4,IF(N59>=4,N59,"")) -> 
A60: 3 | L60: =(K60-K57) -> 0 | M60: =IF(AND(P60<12.1,P60>3.9,L60>2.1,D57="Sanitary"), "Yes", "No") -> No | O60: 4 | P60: =IFERROR(INDEX(Database!$E$203:$DA$203,MATCH('Structure Input'!$P$9,Database!$C$203:$DA$203,0), MATCH('Structure Input'!S60,Database!$E$199:$DA$199,0)), "") ->  | U60: =IFERROR(INDEX(Database!$E$201:$DA$201,MATCH('Structure Input'!$U$9,Database!$C$201:$DA$201,0), MATCH('Structure Input'!S60,Database!$E$199:$DA$199,0)), "n/a") -> n/a | V60: =IFERROR(INDEX(Database!$E$200:$DA$200,MATCH('Structure Input'!$V$9,Database!$C$200:$DA$200,0), MATCH('Structure Input'!S60,Database!$E$199:$DA$199,0)), 0) -> 0 | X60: Qty: | Y60: =IF(OR(W60>0,W61>0), 1, "") ->  | AI60: <== Accessory | GM60: Cost: | GN60: =IFERROR(INDEX(Database!$F$182:$LR$182,MATCH('Structure Input'!$GN$9,Database!$C$182:$LR$182,0), MATCH('Structure Input'!W57,Database!$F$180:$LR$180,0)), 0) -> 0 | GW60: =IFERROR(INDEX(Database!$E$296:$AU$296,MATCH('Structure Input'!$GW$9,Database!$C$296:$AU$296,0), MATCH('Structure Input'!GW58,Database!$E$295:$AU$295,0)), 0) -> 0 | GX60: =IFERROR(INDEX(Database!$E$297:$AU$297,MATCH('Structure Input'!$GX$9,Database!$C$297:$AU$297,0), MATCH('Structure Input'!GX58,Database!$E$295:$AU$295,0)), 0) -> 0 | GY60: =IF(AU57="Xypex+MIC", 1.25,1) -> 1 | GZ60: =IF(AND(M60="Yes",P60>3.99,P60<5.98),160*GY60,IF(AND(M60="Yes",P60>5.99,P60<7.98),182*GY60,IF(AND(M60="Yes",P60>7.99,P60<9.98),216*GY60,IF(AND(M60="Yes",P60>9.99,P60<11.98),468*GY60,IF(AND(M60="Yes",P60=12),604*GY60,""))))) ->  | HA60: =IF(AND(N60>0,N60<4),4,IF(N60>=4,N60,"")) -> 
